Workbook

Sheet Menu
I1: Marwin Ball Valve Actuator Sizing Program
I2: Disclaimer on Top of Instructions Page | R2: Version 6.1
B4: Valve Selection | E4: =IF(Size="--"," Select Valid Size","") ->  | H4: =IF(AND(Seat="--",Series<>"Own")," Select Valid Seat Mat'l",IF(AND(Seat="--",Series="Own"),"Select Soft or Hard Seat Mat'l","")) -> 
C5: Series | F5: Size | H5: Seat Material | M5: Service Factor (SF)(2)
D9: Series Description: | E9: =Va!C46 -> 3-Pc Fire Safe, Full Port, 3000 WOG | M9: =IF(ISNA(WOG),"",IF(Press>WOG,"Incorrect Pressure","")) ->  | Q9: Mounting
J11: =IF(ISNA(WOG),"",IF(AND(OR(WOG="NA",WOG="--"), Series<>"Own"),"",IF(Series="Own", "Valve Torque = ", "Diff. Press. Across Va. = "))) ->  | K11: 1500 | L11: =IF(ISNA(WOG),"",IF(AND(OR(WOG="NA",WOG="--"), Series<>"Own"),"",IF(Series="Own", "in-lb", "psi"))) ->  | M11: =IF(ISNA(WOG),"",IF(OR(WOG="NA",WOG="--")," ","Enter 0 to "&WOG&" psi")) ->  | Q11: =IF(Va!D69<>0,Va!D69,"") -> Bckt & Cplgr
Q12: =IF(Va!D70<>0,Va!D70,"") -> F03 | R12: =IF(Va!D70<>0,Va!D71,"") -> 5.44
J13: Valve Torque1 (Start Open Torque) = | K13: =IF(OR(Size="--",Seat="--",Torq="Not Available",Press>WOG),"",Torq) -> 96 | M13: =IF(AND(Size="--",Seat="--",Series<>"Own"),"Invalid Size and Seat Material",IF(AND(Size="--",Series<>"Own"),"Invalid Size",IF(Seat="--","Invalid Seat Material",IF(Va!D62="Not Available","Consult Engineering",IF(Press>WOG,"",""))))) ->  | T13: =IF(OR(Seat="PEEK", Seat="CPEEK"), "WARNING! Torq. for PEEK & CPEEK seats especially sensitive to Diff. Press. Enter correct Press.","") -> 
J14: Required Torque2 (Valve Torque X SF) = | K14: =IF(OR(Size="--",Seat="--",Press>WOG, Torq="Not Available"),"",SOT) -> 115 | M14: =IF(K14>99999, "Actuator selection invalid for required torque greater than 99999 in-lb.", "") -> 
B16: =Va!N60 -> 
B18: RATIO OF ACT. TO VA. TORQUE (EXCLUDING SERVICE FACTOR) SHOULD USUALLY BE 1.2 OR GREATER FOR AUTOMATION
B20: PRESS CALCULATE BUTTON AFTER CHANGING ANY ENTRY.
B22: Electric Actuator | K22: Double Acting Rack & Pinion Pneumatic Actuator
B24: Act. = | H24: Mtg | I24: Time | N24: D. A. Act. Press. = | Q24: Mtg | R24: Time CCW/CW
E26: Elect Act. Size = | F26: =IF(K14<99999,Elect!C49,"Out of Range") -> ER-2 | H26: =Elect!G49 -> F05 | I26: =Elect!I49&"s" -> 5s | N26: D. A. Act. Size = | O26: =IF(K14<99999,DA!C45,"Out of Range") -> UT-0-DA | Q26: =DA!Q45 -> F03/F05 | R26: =CONCATENATE(DA!S45,"s") -> 0.07s
H27: =Elect!H49 -> 14mm Female Star | Q27: =DA!R45 -> 11 | R27: =CONCATENATE(DA!T45,"s") -> 0.05s
B28: Act. Torque | E28: Required Torque2 | H28: Act:Req4 | I28: Status | K28: Act. Torque | N28: Required Torque2 | Q28: Act:Req4 | R28: Status
B29: =IF(OR(Elect!E7=99999,K14>99999),"",Elect!E7) -> 200 | D29: =IF(B29="","",IF(B29>=E29,"≥","<")) -> ≥ | E29: =K14 -> 115 | H29: =IF(B29="","",B29/E29) -> 1.739130435 | I29: =IF(B29="","",IF(B29>=E29,"OK","Not OK")) -> OK | K29: =IF(OR(DA!B45=99999, K14>99999),"",DA!B45) -> 179 | M29: =IF(K29="","",IF(K29>=N29,"≥","<")) -> ≥ | N29: =K14 -> 115 | Q29: =IF(K29="","",K29/N29) -> 1.556521739 | R29: =IF(K29="","",IF(K29>=N29,"OK","Not OK")) -> OK
B30: =IF(B29="","",IF(Va!X45<1, Va!$Y$50,Va!AG50)) -> Act.:Req. Torque = 1.74 > 1.0 OK for Automation (Note 4) | K30: =IF(K29="","",IF(Va!Y45<1, Va!$Y$51,Va!AG51)) -> Act.:Req. Torque = 1.56 > 1.0 OK for Automation (Note 4)
B31: =IF(Elect!K11=2,"Elect. Operation both Dir. Norm.; S. R. on Emer. loss of Elect. only.","") ->  | K31: =IF(LEFT(Va!$C$46,5)="3-Way","UT act. not suitiable for 3-way va's. in 180 deg. port config.","") -> 
B34: Spring Return Rack and Pinion Pneumatic Actuator | K34: Gear Operator | T34: =Oper!AL128 -> Quarter turn worm gear operator for manual valves.
B36: Act. Press. = | G36: Fail Mode = | O36: Max. Allow. HW Dia. = | R36: in.
E38: S. R. Act. Size = | F38: =IF(K14<99999,SR!C135,"Out of Range") -> UT-1-SR-05 | H38: =SR!AA143 -> F05/F07 | I38: =CONCATENATE(SR!AN52,"s") -> 0.13s | O38: Max. Allow. Tot. HW Pull = | P38: 80 | R38: lbf
C39: =SR!AA153 ->  | H39: =SR!AB143 -> 14 | I39: =CONCATENATE(SR!AO52,"s") -> 0.13s
B40: for Actuator | E40: for Valve2 | H40: Act : Req Torq4 | I40: Status | K40: Oper. = | Q40: Size = | R40: =IF(K14<99999,Oper!B128,"Out of Range") -> DT3
B41: Stroke | C41: Act Torq | E41: Req Torq | F41: Stroke6 | P41: =Oper!AH128 -> 0.38-16 on 3.25 BC
B42: Spr. Start | C42: =IF(OR(SR!AB134=99999, K14>99999),"",SR!AB134) -> 196 | D42: =IF(C42="","",IF(C42>=E42,"≥","<")) -> ≥ | E42: =CHOOSE(SR!$BQ$10,SCT,SOT) -> 104 | F42: =CHOOSE(SR!$BQ$10,"Start Closed","Start Open") -> Start Closed | H42: =IF(C42="","",C42/E42) -> 1.884615385 | I42: =IF(C42="","",IF(C42>=E42,"OK","Not OK")) -> OK | K42: Oper. Torque | N42: Required Torque2 | Q42: Act:Req4 | R42: Status
B43: Spr. End | C43: =IF(OR(SR!AB135=99999,K14>99999),"",SR!AB135) -> 111 | D43: =IF(C43="","",IF(C43>=E43,"≥","<")) -> ≥ | E43: =CHOOSE(SR!$BQ$10,ECT,EOT) -> 98 | F43: =CHOOSE(SR!$BQ$10,"End Closed","End Open") -> End Closed | H43: =IF(C43="","",C43/E43) -> 1.132653061 | I43: =IF(C43="","",IF(C43>=E43,"OK","Not OK")) -> OK | K43: =IF(OR(Oper!F128=99999,K14>99999),"",Oper!F128) -> 4500 | L43: =Oper!#REF! ->  | M43: =IF(K43="","",IF(K43>=N43,"≥","<")) -> ≥ | N43: =IF(Oper!AP14=3,SOT+SR!AB135,SOT) -> 115 | Q43: =IF(K43="","",K43/N43) -> 39.13043478 | R43: =IF(K43="","",IF(K43>=N43,"OK","Not OK")) -> OK
B44: Air Start | C44: =IF(OR(SR!AB136=99999,K14>99999),"",SR!AB136) -> 193 | D44: =IF(C44="","",IF(C44>=E44,"≥","<")) -> ≥ | E44: =CHOOSE(SR!$BQ$10,SOT,SCT) -> 115 | F44: =CHOOSE(SR!$BQ$10,"Start Open","Start Closed") -> Start Open | H44: =IF(C44="","",C44/E44) -> 1.67826087 | I44: =IF(C44="","",IF(C44>=E44,"OK","Not OK")) -> OK | O44: Handwheel Dia. = | P44: =IF(Oper!AC128=0,"",Oper!AC128) -> 6 | Q44: in.
B45: Air End | C45: =IF(OR(SR!AB137=99999,K14>99999),"",SR!AB137) -> 95 | D45: =IF(C45="","",IF(C45>=E45,"≥","<")) -> ≥ | E45: =CHOOSE(SR!$BQ$10,EOT,ECT) -> 92 | F45: =CHOOSE(SR!$BQ$10,"End Open","End Closed") -> End Open | H45: =IF(C45="","",C45/E45) -> 1.032608696 | I45: =IF(C45="","",IF(C45>=E45,"OK","Not OK")) -> OK | O45: Tot. Handwheel Pull = | P45: =IF(Oper!AC128=0,"",SOT/(Oper!AC128/2*Oper!D128)) -> 4.732510288 | Q45: lbf
B46: =IF(C42="","",IF(MIN(Va!Z45:Z48)<1, Va!$Y$52,Va!AG52)) -> Act.:Req. Torque = 1.03 > 1.0 OK for Automation (Note 4) | O46: No. of Handwheel Turns (90o) = | P46: =IF(Oper!AC128=0,"",Oper!C128*0.25) -> 7.5 | Q46: turns
B47: =IF(LEFT(Va!$C$46,5)="3-Way","UT act. not suit. for 3-way va's. in 180 deg. port config.","") ->  | K47: =Oper!AX19 -> DT3 not suitiable for chain wheel.
B49: Notes:
B50: 1. Valve Torque does not includes service factor (SF). | K50: 5. Valve & actuator mounting information (bolt pattern & stem) and
K51: nominal operating times (seconds, CCW/CW) shown in lavender.
B52: 2. Required Torque includes service factor. Recommended SF's are:
B53: Clean, & 10 or More cycle / day ................................................................. 1.0 | K53: 6. Valve Stroke Position Definitions:
B54: Clean & 2 or More cycle / day .................................................................... 1.2 | K54: Start (Break) Open Torque --> Start Open from Closed Position
B55: Clean, & Less Than 2 cycle / day or Throttling; Dry, Dirty, Slurry; or | K55: End Open Torque --> End Open from Closed Position
B56: Cryo, & 2 or More cycle / day ...................................................................... 1.5 | K56: Start Closed Torque --> Start Closed from Open Position
B57: Dry, Dirty, Slurry, or Cryo, & Less Than 2 cycle/day or Throttling ..… 1.75 | K57: End Closed Torque --> End Closed from Open Position
B58: Emer. Shutoff or Less Than 1 cycle / mo ............................................... 2.0
K59: 7. Valve Stroke Position Torque Multipliers Used in Program:
B60: 3. Because the minimum output torque for rack & pinion actuators occurs at an end position, the normal 1.2 break SF is sufficient for soft seated valves including control; 1.5 is recommended for hard seated valves for control. For Scotch Yoke actuators, with minimum output torque between the end positions, the running torque must be checked for sufficient SF for both on-off and control. | K60: (Affect Spring Return Act. & Handle Selection)
K61: Start (Break) Open -- 1.0 for all Seat Materials
K62: End Open -- 0.8 for PTFE, RPTFE, CRPTFE, "Soft";
K63: 1.0 for Delrin, PEEK, "Hard"
K64: Start Closed -- 0.9 for PTFE, RPTFE, CRPTFE, "Soft";
K65: 1.0 for Delrin, PEEK, "Hard"
K66: End Closed -- 0.85 for PTFE, RPTFE, CRPTFE, "Soft";
B67: 4. Ratios in tables are Act. Torq. to Required (Req.) Torque, which includes SF. | K67: 1.0 for Delrin, PEEK, "Hard"
R68: JJH 6/25/21
B75: Copy of Va!N52:N56, Act.: Va. Torq. Too Low message, used as criteria for conditional formatting of message
B76: ER | C76: Warning! Act.:Va. Torq. = 1.13 < 1.2 TOO LOW FOR AUTOMATION!
B77: UT-DA | C77: Warning! Act.:Va. Torq. = 1.11 < 1.2 TOO LOW FOR AUTOMATION!
B78: UT-SR | C78: Warning! Act.:Va. Torq. = 1.03 < 1.2 TOO LOW FOR AUTOMATION!
B79: Gear Op.
B80: Spr. Hand | C80: Warning! Act.:Va. Torq. = 1.98 < 1.2 TOO LOW FOR AUTOMATION!
B82: WOG | C82: =WOG -> NA

Sheet Instructions
H2: Marwin Ball Valve Actuator Sizing Program
K4: Version 6.1
A6: This program selects the Marwin actuator size for Marwin ball valves based on torque stated. It is not
A7: intended to indicate availability or ability to mount actuator to valve. While this program is presented in good
A8: faith and believed to be reasonably accurate, Marwin Valve, a division of Richards Industrials, makes no
A9: warranty, either expressed or implied. In no event shall Marwin Valve, a division of Richards Industrials, be
A10: liable toanyone for any special, collateral, incidental or consequential damage in connection with these
A11: calculations.
A13: Marwin Valve, A division of Richards Industrals
A14: 3170 Wasson Road Cincinnati, OH 45209
A15: 513-533-7340 or 800-628-2583 (toll-free) 513-533-7343 (fax)
A16: Send comments to webmaster@richardsind.co
A19: Instructions
A21: Select series, size, seat material, and service factor from the drop down lists in the Valve Selection frame on the Menu
A22: tab. It is suggested that the selection be in the order given so that each succeeding list presents only valid options for the
A23: series. The Size and Seat Material drop down lists contain dashes (--) in place of invalid entries. If one of these is
A24: selected from the list or was already selected when the series is changed, Select Valid Entry appears above the list.
A26: Note that valve selection entries for spring return handles and fusible links must be made on the Menu tab, not the Menu
A27: SR_Hand tab. Spring return calculate / print, fail position, and size selection output is on the Menu SR_Hand tab.
A29: If the torque is a function of pressure, a frame for the differential pressure appears. The entry in this frame must be
A30: between 0 and the WOG rating of the valve. If a higher pressure is entered, Enter 0 to xxx psi appears above
A31: the pressure frame.
A33: To enter your own torque, select "Own" from the series menu, and "Soft" or "Hard" from the seat material menu.
A34: "Soft" treats the torque like that for a soft seat material, and "Hard" like that for a hard seat material, as defined in
A35: Theory below. Enter the torque in the frame that appears for the torque.
A37: The Calculate or Calculate & Print button must be pushed after all entries are made or changed in the Valve Selection
A38: and Actuator frames. Actuator size and data that has not been recalculated after an entry has been made or
A39: changed is incorrect.
A41: Actuator selection is based on required torque, which includes the service factor. The frame for each actuator type
A42: contains inputs for that actuator type. It gives the actuator size selected, actuator torque, required torque, and their ratio.
A43: It also has a note that gives the ratio of the actuator torque to the valve torque, which excludes the service factor, and
A44: compares it to a 1.2 minimum service factor for automation.
A46: When a 3-Way series is selected, Actuator not suitable for 3-Way valves in 180 degree port configuration appears
A47: in the frames for the double acting and spring return pneumatic actuators, and in the frame for the spring return unit,
A48: because the actuators are 90 degree turn devices only.
A50: When a direct mount (DM or DR) valve is selected, Check if selected act. bolt pattern matches va. for direct mounting
A51: appears below required torque valve selection frame. Actuator size selection in this program is based on torque only, and
A52: ability of the selected actuator to be mounted on the valve must be checked seperately. To assist in checking, the
A53: mounting pattern is given for actuators and direct mount valves.
A55: Theory
A57: This program contains lookup tables of short term start (break) open torques for each valve series. End open torque is
A58: taken as 0.8 times start open torque for soft seat materials (virgin Teflon (PTFE) and glass reinforced Teflon (RPTFE)),
A59: and 1.0 times start open torque for hard seat materials (Delrin and PEEK). Start closed and end closed torques are taken
A60: as 0.9 and 0.85 times start open torque, respectively, for soft materials, and 1.0 times start open torque, respectively for
A61: hard materials. Long term start open torque is higher than short term due to the tendency of seats to take a set. Although
A62: strictly speaking, this increased torque applies to start (break) open and start closed torques only, this program
A63: multiplys all torques by the service factor multiplier when 10 or less cycles per day is selected.
A65: Valve operating torque curves are shown in the figures below.
A82: Select actuator whose torque at the end of | G82: Select actuator whose torque at the end
A83: spring stroke exceeds torque to close valve. | G83: of air stroke exceeds torque to close valve.
A86: The actuator size selection criteria used in this program is given in the table below. Criteria which must be checked by
A87: the program is shown in bold italic. Some criteria is "automatic." For example, spring return actuator air start is always
A88: greater than air end torque, and valve break open torque is always greater than or equal to valve running and seat open
A89: torque. Therefore, actuator air end will be greater than valve run torque without specifically checking for it. However, this
A90: program checks all criteria.
A92: Actuator | D92: Selection Criteria (See Simplified Valve Torque Curve)
A94: Electric | D94: >= Max. Va. Torque (Va. Start (Break) Open Torque)
A95: Pneumatic Double Acting | D95: >= Max. Va. Torque (Va. Start (Break) Open Torque)
A96: Gear Operator | D96: >= Max. Va. Torque (Va. Start (Break) Open Torque) | E96: >= Max. Va. Torque (Va. Start (Break) Open Torque) | F96: >= Max. Va. Torque (Va. Start (Break) Open Torque) | G96: >= Max. Va. Torque (Va. Start (Break) Open Torque) | H96: >= Max. Va. Torque (Va. Start (Break) Open Torque) | I96: >= Max. Va. Torque (Va. Start (Break) Open Torque) | J96: >= Max. Va. Torque (Va. Start (Break) Open Torque) | K96: >= Max. Va. Torque (Va. Start (Break) Open Torque)
D97: Spring Start | F97: Spring End | H97: Air Start | J97: Air End
A98: Pneumatic Fail Close | D98: >= Start Closed (1) | F98: >= End Closed (2) | H98: >= Start Open (3) | J98: >= End Open (4)
A99: Pneumatic Fail Open | D99: >= Start Open (3) | F99: >= End Open (4) | H99: >= Start Closed (1) | J99: >= End Closed (2)
A100: Spring Return Unit Fail Close | D100: >= Start Closed (1) | F100: >= End Closed (2) | H100: NA | J100: NA
A101: Spring Return Unit Fail Open | D101: >= Start Open (3) | F101: > End Open (4) | H101: NA | J101: NA
A102: Note: Seat Open = Break Closed = Seat Closed = Running Torque
A105: How the Program Works
A107: This program contains lookup torque tables for each valve series. These tables contain a torque value (if torque is not a
A108: function of differential pressure), or a torque logic function or equation and the maximum differential pressure (WOG) (if
A109: torque is a function of differential pressure) for each valve size in the series.
A111: The program also contains tables for each actuator type. The tables contain output torques, and fail closed and fail open
A112: logic functions for each actuator size. These logic functions return true or false depending upon whether the actuator
A113: meets the selection criteria for the valve series, size, and pressure (if applicable) that is input. The Calculate and
A114: Calculate & Print buttons run macros that sort the actuator data tables by logic function, then by actuator size,
A115: then by spring size. The actuator at the top of the sorted data table is the smallest actuator of each type that meets all
A116: the selection criteria.

Sheet Changes (hidden)
A1: Release and Change History
A3: Version 1 | C3: Initial Release
A4: 2001-08-13
A6: Version 2 | C6: Errors corrected--2000R, 0.25 3000F, 0.25 7000F, 0.25 10000F.
A7: 2001-10-08 | C7: 3000 & 10000 PEEK seat torques reduced by 50% (service factor of 2 removed) to be consistent with other torques.
C8: 10000 sizes and torques corrected.
C9: DM600F, DM 9000 & 3L/T2S00 added.
C10: Invalid pressure warning added.
C11: Pressure limits revised for step and continuous function torques for UT600, 3K, 5K, 6K, 7K, and 10K.
C12: Instructions revised--Enter Pressure added.
C13: Fail safe pneumatic actuator logic corrected.
C14: Fail safe unit logic corrected.
C15: Changed "Not Available" to "Consult Engineering".
C16: Added "Consult Engineering" to actuators which had no warning when maximum torque of largest unit exceeded.
C17: Changed gear operator handwheel pull calculation
C18: Torque curves changed from 1.0 for break open and 0.8 for end open and start and end closed to 1.0, 0.8, 0.9, and 0.85, respectively.
C19: Fail Safe Spring Return Handle was Unit.
C20: Eliminated Spring Return Handle sizes not used by Marwin, and changed ratings of remaining sizes.
C21: Added valve torques to Spring Handle output for comparison.
C22: Corrected 6000 max press from 275 to 720 psi.
C23: Added graph to "Act" sheet for fail safe spring return actuator (not visible to user).
C24: Added "Calculate All" and "Calculate All & Print" buttons.
C25: Added 1.75 "Unspecified" torque multiplier.
A27: Version 3 | C27: 5000 285 psi max was 720.
A28: 2002-10-03 | C28: Added Series DR8000F. 12/19/01
C29: Added 3L/T2S00 small sizes to program 12/20/01
C30: Added ER20 and ER38 Elect Act. 1/5/02
C31: Added vendor identification to electric and pneumatic actuator tables. 1/5/02
C32: Added actuator vs. Va. torque tables w/ ratio. 1/5/02
C33: Added 1.2 "Minimum Automation Multiplier. 1/5/02
C34: Added range names to actuator tables, incorporated them into macros, and renamed modules. 1/5/02
C35: Moved electric actuator selection macro to separate module. 1/5/02
C36: Added Series 666R and 666F. 1/20/02
C37: Large size 3L/T2S00 redesignated 3L/T2S33. Small size 3L/T2S00 redesignated 3L/T2Q33. 1/20/02
C38: Corrected error in description of 3L-2000 1/20/02
C39: "Warning! Act.:Va. Torque w/out Service Fact. less than 1.2!" added 1/20/02
C40: Added Series 3L3100, 3L3299, 3T3300, and 3L3400. 1/22/02.
C41: Added logic to force UT-SR spring set selection equal to Act. Press. 2/17/02
C42: Suppressed "99999" actuator torques for valve torques exceeding actuator sizes in program. 2/18/02
C43: 3T3100 was 3L3100--Changed to agree w/ computer instead of bulletin. 3/12/02
C44: Brass was bronze in description for 3T3100, 3L3200, 3T3300, 3L3400. 3/12/02
C45: Changed RPTFE seats to PTFE seats for 3T 3100 and 3L3200. 3/21/02
C46: Rearranged menu format 3/22/02.
C47: Renamed "Va. Torque", which includes SF, to "Required Torque", & added new "Va. Torque, which does not include SF. 3/24/02
A49: Version 4 | C49: Renamed sheets by replacing 1000 by K; example, 3000 became 3K. 7/5/02
C50: Renamed 3L or 3T to 3W. 7/5/02
C51: Consolidated 3K, 7K, and 10K; and 5K and 6K; and 8K and CF 8000 sheets. 7/5/02
C52: Added Series 4600R and 4600F. 7/5/02
C53: Seperated Elect., DA Pneu., SR Pneu., and SR handles onto separate worksheets. 7/7/02
C54: Changed old DA and SR Pneumatic ratings, and added new ratings. 7/7/02
C55: Removed logic that forced UT-SR spring set selection equal to Act. Press.
C56: Added drop-down box to menu to choose old or new UT actuators. 7/26/02
C57: Added 70000 Series 2-Way and 3-Way wafer ball valves. 7/27/02
C58: Added macro to automatically initialize workbook on opening to 1.2 SF, "automatic" UT design, 80 psi supply, fail closed, 18 in. Max HW Dia, 80 lb max HW pull. 7/28/02
C59: Old Design Pneumatic ratings source changed from Marwin bulletin UT Series-1099 G to Valbia Cat. 970/C. 8/6/02
C60: Old Design Pneumatic ratings source changed from Valbia Cat. 970/C to Valbia Cat. 028/A for sizes not redesigned (0A, 5, 6, 7). 8/7/02
C61: Added ability to input own valve torque. 8/23/02
C62: Changed logic to select spring that gives highest minimum Act. to required Va. torque ratio (instead of lowest spring set No.). 9/3/02
C63: Spring Set Pressures added to UT-SR tables.
C64: 7K Delrin torques corrected to be same as corresponding 3K Delrin torques. 10/3/02
C65: Changed DR8000 seats from PTFE to RPTFE to agree w/ inventory, and increased torques by 1.35 due to this change. 10/25/02
C66: ER-5K thru ER-27K (Indelac K Series) added. These are not published in Marwin literature and are special. 10/26/02.
C67: Added ProGear gear operators. 10/27/02
C68: Added warning that PEEK seat torque is extremely sensitive to pressue. 10/27/02
C69: 0.25" thru 0.75" 4600R and 4600F torques corrected. 11/27/02
C70: Max. pressure for 6000 series changed to 740 psi (based on carbon steel), was 720 psi (based on SS). 1/6/03
C71: 10"R 5K torque corrected -- 9600 in-lb 0 to 100 psi, 12000 in-lb above 101 psi up was 9600 in-lb. 2/14/03
C72: Pro-Gear nom. hwl. dia's replaced by actual & alternate hwl. dia's removed because they are not stocked by local distributor. 2/17/03
A74: Version 4.1 | C74: ER-5K, -7K, -12K, -14K, & -27K replaced by ER-50, -70, -120, -140, & -270, respectively. 2/18/03 & 4/8/03
A75: 2003-04-08 | C75: Corrected Pro-Gear Hwl. selection calculation in cells Oper! AE26 to AE34 & AF26 to AF24 ($AN$40 was $AN$20). 4/2/03
C76: Due to depletion from stock of old-dsgn, UT DA sizes -0, -1, -3, & -4 & UT SR sizes -1, -2, & -4 default changed from old (1) to new (2). Only UT size w/ new
C77: dsgn. that still has significant quantity in stock & defaults to old is -3.5-SR. (UT sizes -0A & -5 thrugh -7 do not have new dsgn. & default to "old" (1)). 4/8/03
C78: Corrected D.A. act. selection calculation in cell Menu!P24 (DA!C50 was DA!C7). 4/8/03
A80: Version 4.2 | C80: Removed 0.25" & 0.38" DM9000, because they are not available. 4/23/03
A81: 2003-04-24 | C81: Corrected gear op. max. hwl. pull calculation (AN63 was AN20 in AF6:AF17 & AN40 in AF26:AF34). 4/24/03
C82: Pro-Gear nom. hwl. dia's changed to include several alternate hwl. dia's based on meeting w/ local distributor 4/9/03. 4/24/03
C83: Removed UT600F from program, because they are not available. 4/24/03
C84: Corrected 16 in. default hwl. dia. initialization. 4/24/03
C85: Corrected hwl. dia. & turns display on "Menu" page so it wouldn't be blank when it wasn't suppossed to (AD49 was AD6). 4/24/03
C86: Added "Own" to va. stroke position multiplier note, numbered notes, & added reference to Note 5 near va. selection box. 4/24/03
C87: Added Disclaimer to top of Instructions page. 4/24/03
C88: Moved change history from instruction page to seperate change page. 4/24/03
A90: Version 4.3 | C90: Eliminate 0.25" & 0.38" DM9000F sizes. 8/1/03
A91: 2003-08-06 | C91: Increased 2" DM9000F torque per Valbia 7/22/03 e-mail, but kept old torques for other sizes. 8/1/03
C92: Eliminated 2.5" size for 3T-3300R / 3L-3400R. 8/1/03
C93: Added Series KF8000F. 8/6/03
C94: Added soft / hard option to "Own" torque input. 8/6/03
C95: Obsolete 3L/T-2000F "3-Way FE, Uni-body, Full Port, ANSI 150" (Seats R, Sizes 1-6, no 1.25), removed from menu. 8/6/03
C96: Added direct mounting note to valve selection frame and to instructions. 8/6/03
C97: Corrected DA & SR old-new selection table so "Consult Eng." appears when torque too high for largest actuator. 8/6/03
A99: Version 4.31 | C99: Error in 2000F_300 torque calculation corrected. Was using torque for 2000F_150. 9/29/03
C100: Service factors listed under Menu Note 2. 9/29/03
A102: Version 4.4 | C102: CRPTFE (Starfill) seat added to 3K, 7K, 10K. CRPTFE (Starfill) & PTFE added to 5K, 10K. 10/6/03
A103: 2003-10-07 | C103: Added "no provisions for actuator mounting" note to valve selection frame for 666F and 666R. 10/7/03
C104: Added "sizes 1.5" and smaller cannot be automated" note to valve selection frame for 3T-3100 and 3L-3200. 10/7/03
C105: Size 2.5F & 3R Series 8000 torque revised: 650 was 850, based on test of one va. & plot showing 2.5" torque was out of line w/ other sizes. 10/11/30
C106: Corrected "Throttling Service Factor" to give required torque twice va. torque instead of "#NA." 10/18/03
C107: Hid formulae, protected "Menu" sheet upon opening, and added password protection. 10/18/03
A109: Version 4.41 | C109: Added 115 psi air pressure for spring return pneumatic actuators. 11/7/03
C110: Added chainwheel warning note for Q200 & Q400. 11/10/03
C111: Corrected WOG pressure lookup by adding no. of seat mat'l col's in va. lookup tables to Table 1. JJH 12/9/03
C112: Corrected password protection. JJH 12/11/03
C113: Added 1.5" 2000F-300. JJH 12/12/03
A115: Version 4.5 | C115: SR Hand. moved to seperate menu (2/15/04) & separate "Calc" & "Calc-Print" macro made for it so it to function properly (8/31/04). JJH
A116: 2004-11-24 | C116: DR8000 torque values revised & Teflon seat mat'l added. JJH 2/15/04
C117: KF89 torque values revised. JJH 2/15/04
C118: Spring return handle torques revised. JJH 2/15/04
C119: Added "Direct Mount" to DM600F, 3T-3300F, 3L-3400F descriptions. JJH 2/16/04
C120: Added mounting patterns to actuators and direct mount valves. JJH 2/16/04
C121: Changed KF8000 to KF8900. JJH 6/22/04
C122: Eliminated PTFE, RPTFE, and CRPTFE seat mat'ls from 10K per D. Behm 7/16/04 request. JJH 8/31/04
C123: Eliminated 70000 Series. JJH 8/31/04
C124: Added 4700F, 5800F/R, 6800F/R, and 8700F series. JJH 8/31/04
C125: Added CR-PEEK & revised PEEK torques for 3K per D. Behm 9/3/04 request. JJH 9/7/04
C126: Changed location where seat material column in torque tables is identified from seat table to torque tables, so a specific material doesn't have to be in
C127: same torque table column for all series. JJH 9/7/04
C128: Added Marwear & Marwinite seat materials & MS10K to program. JJH 9/7/04
C129: UT old / new actuator status updated (All now new). JJH 9/10/04
C130: Changed AT Controls gear operator to "Alecto". JJH 11/4/04
C131: Added DynaTorque & MasterGear gear operators. JJH 11/4/04
C132: 0.25" & 0.38" 3T-3700 / 3L-3800 RPTFE torque 93 was 100-Changed so UT-1-SR-80 FC selected w/ 1.2 SF based on customer experience. JJH 11/4/04
C133: Default Old/New/Automatic UT selection changed from automatic to new, and selection box moved from menu to DA sheet so it is not accessible to user. JJH 11/19/04
A135: Version 4.51 | C135: KF89 size range changed from 0.5~3, no 1.25, to 0.5~4, no 1.25. JJH 1/7/05
A136: 2005-03-23 | C136: 3" 4600R added. JJH 1/20/05
C137: 0.5" 3K, MS3K, 10K, MS10, series torque equation corrected -- 240 constant in equation was 360. JJH 3/2/05
C138: Input for SR Handles moved from Menu SR_Hand to Menu. In Ver. 4.5, the pressure from Menu was being used, not the pressure input on
C139: Menu SR_Hand, and there was no way to make the program work for pressure input in two places. Input values shown on Menu SR_Hand
C140: made reference only. JJH 3/13/05
C141: 0.75" 4700F & 8700 RPTFE torque reduced from 70 to 57 in-lb, & other seat mat'ls reduced proportionally, per RI test & production, & Emico test. JJH 3/23/05
C142: 3L/T-3900 size range changed from 0.5"~2" to 0.5", 1", 2". JJH 3/23/05
A144: Version 4.52 | C144: DT2 & 5 added; DT1 eliminated. JJH 3/23/05
A145: 2005-03-29 | C145: Added descriptiors "Metal" to Marwear & "Carbon" to Marwinite. JJH 3/29/05
A147: Version 4.53 | C147: 3000F size range changed from 0.5" ~ 3" to 0.25" ~3". JJH 4/23/05
A148: 2005-04-23 | C148: 1.25" & 1.5" 3000F CRPTFE max press changed from 2200 to 2500 psi. JJH 4/23/05
A150: Version 4.54 | C150: 5000 and 6000 torques revised 2/4/06; 5000 and 6000 torques were same below & above 100 psi; max torque kept for 6000 at max rating; torques reduced for lower
A151: 2006-07-21 | C151: pressures based on limited testing & comparison w/ 2000 & 58/6800 series & prorated between 100 and max rating; PTFE torques changed from 90% of old to
C152: 90% of new RPTFE torques. JJH 2/4/06
C153: 6800 torques changed to 5800 values below 285 psi max 5800 rating, because 5800 & 6800 are same except wall thickness. JJH 2/4/06
C154: DM600 torques changed per Valbia Rubinetterie Bresciane Scheda S-04.4/5 - Prova di laboratorio n. torque 250N.doc 6/6/05 JJH 23/3/06
C155: 2000F-F3 torques changed per TVC 2004 torque chart. Old torques also had cruve fit problem that caused 2.5" torque to be higher than 3" at certain pressures. JJH 6/9/06
C156: Following obsolete series removed from program: 7000F&R, 8000F&R, DR8000F, 3L-8000F, 3L-9000F. JJH 6/11/06
C157: Reminents of previous obsolute programs removed: 3L/T-2000F, UT-600F. JJH 6/11/06
C158: Corrected table name range to eliminate apprearanc of "REF" for 2000R act. Mtg. Ptrn. JJH 6/11/06
C159: UT-4.5-SR added to new UT actuators. JJH 6/11/06
C160: UT stock status, and old UT data removed. Tables and logic left to maintain program logic for future alternate actuator. JJH 6/11/06
C161: Added 1", 1.5"-2000R-F1, 1"-2000F-F3. JJH 6/14/06
C162: Removed 1.25"-2000F-F1. JJH 6/14/06
C163: Corrected "Air Torque @ " label in SR charts--no effect on selection. JJH 6/26/06
C164: Added spring return electric actuators. JJH 6/27/06
C165: Dynatorque DTSD & DTSRD declutchable GO's added. JJH 6/28/06
C166: Service factor menu reconfigured. JJH 6/29/06
C167: Added fusible links. JJH 7/10/06
C168: Reconfigured size and seat material menu tables within program (sizes & materials from torque tables used instead of seperate tables). JJH 7/14/06
C169: Added 3x2 MS3K, 10K, MS10K. JJH 7/14/06
C170: Removed Max. input torque as gear operator selection criteria. JJH 7/27/06
A172: Version 5.0 | C172: Restored seperate size and seat material menu tables to prevent size and seat material from changing when series changed. JJH 8/6/06
A173: 2007-01-13 | C173: Revised logic statements for valve torque / pressure labels so error indications wouldn't appear where labels should be when invalid seat material selected. JJH 8/6/06
C174: Note on menu was "RATIO OF ACT. TO VA. TORQUE (EXCLUDING SERVICE FACTOR) SHOULD NEVER BE LESS THAN 1.2 FOR AUTOMATION". Changed to
C175: avoid conflict with reconfigured service factors. JJH 8/6/06
C176: Note when Act:Va. Torq. Ratio less than 1.2 was "Warning! Act.:Va. Torq. = 1.25 < 1.2 TOO LOW FOR AUTOMATION!" Changed to avoid conflict with reconfigured
C177: service factors. JJH 8/6/06
C178: Added PTFE (0.9 x RPTFE) to 2000F-150 & 2000R-150. JJH 11/11/06
C179: Added CRPTFE (1.15 x RPTFE) to 2000. JJH 11/11/06
C180: Increased 3"F /4"R 3K PTFE torque (was 0.9729 x Press + 779.32). JJH 11/11/06
C181: Added UHMW-PE to 3K (1.5 PTFE), 2K (1.15 RPTFE for F1, 1.3 PTFE for F3), 47/87 (1.3 PTFE), 5/6K (1.3 PTFE), and 5800/6800 (1.3 PTFE).
C182: 2.5"F, 3"F, 3"R, 4"R curve fit to reduce value of torque above pressure limit of PTFE, because PTFE torques are a function of pressure. JJH 11/11/06
C183: Added CPEEK to 3K (1.25 x PEEK) & modified PEEK pressure sensitivity note to include CPEEK. JJH 11/11/06
A185: Verison 5.1 | C185: 10K Delrin Seat column no. corrected (6 was 5); affected maximum pressure. JJH 3/12/07
A186: 2007-08-02 | C186: 10K torques changed from 3000R torques to 3000F torques. Since there was no 2"F 3K Delrin torque, that torque was adjusted by comparing with other sizes and
C187: with PEEK torque. JJH 6/30/07
C188: 0.75"F to 2"F 3K and 10 K Delrin torques at 0 psid slightly adjusted for logical progression by size. JJH 6/30/07
C189: 5800F, 5800R, and 6800F deleted; 5801F, 5801R, 6801F added. JJH 6/30/07
C190: Logic for note to right of torque on Menu page changed to check for "Own" series. Note above seat mat'l changed to be specific for named and "Own" series. JJH 8/2/07
C191: Logic added to prevent showing actuator size or data for torques exceeding 99999 in-lb actuator torque chart limit. Sort routine that selects actuator size was
C192: properly selecting "consult engineering" for torques between actuator upper limit and 99999 in-lb, but incorrectly selecting an acutator size for torques above 99999
C193: in-lb. This only occurred for "own" torque input. JJH 8/5/07
C194: 27301 was 7021 in-lb lower limit for "Consult Engineering" in electric actuator table; changed to agree with additon of larger ER actuators on 10/26/02. JJH 8/5/07
C195: 1001 / 99999 in-lb "Not Available" added to electric spring return actuator table. JJH 8/5/07
C196: Changed blank cell to "--" for "99999 "Consult Engineering" gear operator mounting to surpress mm showing for stem square size when "consult engineering" applicable. JJH 8/5/'07
C197: Changed "Consult Engineering" to "Not Available" for 99999 in-lb in fusible link table. JJH 8/5/07
A199: Verison 5.1a | C199: Corrected problem with 2000F-F3 Series Menu (Table 1). Had incorrect size range. JJH 1/26/12
A200: 2012-01-26
A202: Verison 5.1b | C202: Revised 5801 and 6801 torques. 6" & 8" torques increased significantly. JJH 5/7/14
A203: 2014-05-07
A205: Version 5.1b1 | C205: Changed 3T-3700 / 3L-3800 seat material from RPTFE to Teflon. Torques unchanged. JJH 7/12/14
A206: 2014-07-12
A208: Version 5.1b2 | C208: Changed max pressure for MS3K from 1440 to 1000 psi. JJH 6/20/15
A209: 2014-06-20 | C209: Changed seats for MS3K & MS10K to W5 (Class V) only. JJH 6/20/15
A211: Version 6.0 | C211: Richards Industrials was Richards Industries, and Marwin logo changed to 2007 logo.
A212: 2020-08-01 | C212: 3L or 3T-2100 (DE Series M4 & M4F) was 3L or 3T_2Q33F & 3L or 3T_2S33F (TVC Series 30M & 33M). Torques changed accordingly.
C213: CF8901F (Sigma SAS-301T/B-M-SL) was KF8900 (John Valve Series JV9301NC)
C214: 9700 (DE Series FSB-26) added
C215: FE was ANSI in valve menu table (Table 1)
C216: Computer User Name function removed for compatability with 64 bit computers
C217: "Reduced" was "Std."
C218: 3T-3101/3L-3201 was 3T-3200/3L-3100
C219: 4600R size range corrected 1-1/4"~3" was 1/4"-3"
C220: 6800R eliminated
C221: Fixed electric actuator selection on menu to output failsafe when that option selected.
C222: Corrected "Consult Eng" size order in DA Table 6B: 13 was 12.
... 9 more rows

Sheet Elect (hidden)
A1: Electric Actuator
G3: Elect_Act
A4: Electric Act. Data Table (Table 5A) | G4: A6:I22 | O4: Model Number | P4: ER | Q4: Torque | R4: Cycle Time | S4: Mounting
A5: Torque Range | C5: Electric Actuator | F5: Act. >= | I5: Cycle Time, s | K5: Elect Actuator Version | S5: Blt Ptrn | T5: Stem
A6: Min | B6: Max | C6: Model No. | D6: Indelac ID | E6: lbf-in. | F6: Va. Open | G6: Mounting | H6: Stem Connect. | L6: Menu | Q6: (In-Lbs.) | R6: (Sec/90) | S6: ISO or in. | T6: mm
A7: 101 | B7: 200 | C7: ER-2 | D7: SD | E7: 200 | F7: =AND(E7>=SOT) -> TRUE | G7: F05 | H7: 14mm Female Star | I7: 5 | K7: 1 | L7: ER | O7: SD or SR | P7: ER2 | Q7: 200 | R7: 5 | S7: F03/F05/F07 (SD Reg) | T7: 14 Female Star
A8: 201 | B8: 300 | C8: ER-3 | D8: SDX | E8: 300 | F8: TRUE | G8: F05 | H8: 14mm Female Star | I8: 5 | K8: 2 | L8: ES, AS, or ASC Fail Safe Spr Rtn | O8: SDX or SX | P8: ER3 | Q8: 300 | R8: 5 | S8: F03/F05/F07 (SD Reg) | T8: 14 Female Star
A9: 301 | B9: 400 | C9: ER-4 | D9: SH | E9: 400 | F9: TRUE | G9: F07 | H9: 17mm Female Star | I9: 10 | O9: MS | P9: ER4 | Q9: 400 | R9: 10 | S9: F07 | T9: 17 Female Star
A10: 401 | B10: 675 | C10: ER-6 | D10: MR | E10: 675 | F10: TRUE | G10: F07 | H10: 17mm Female Star | I10: 15 | O10: MR | P10: ER6 | Q10: 675 | R10: 15 | S10: F07 | T10: 17 Female Star
A11: 676 | B11: 1000 | C11: ER-10 | D11: ML | E11: 1000 | F11: TRUE | G11: F07 | H11: 17mm Female Star | I11: 15 | K11: 1 | L11: =VLOOKUP(K11,K7:L8,2,FALSE) -> ER | O11: ML | P11: ER10 | Q11: 1000 | R11: 15 | S11: F07 | T11: 17 Female Star
A12: 1001 | B12: 1500 | C12: ER-15 | D12: MH | E12: 1500 | F12: TRUE | G12: F07/F10 | H12: 17mm Female Star | I12: 30 | O12: MH | P12: ER15 | Q12: 1500 | R12: 30 | S12: F07/F10 | T12: 17 Female Star
A13: 1501 | B13: 2000 | C13: ER-20 | D13: LA | E13: 2000 | F13: TRUE | G13: F07/F10 | H13: 22mm Female Star | I13: 12 | O13: LA-12 | P13: ER20 | Q13: 2000 | R13: 12 | S13: F07/F10 | T13: 22 Female Star
A14: 2001 | B14: 3840 | C14: ER-38 | D14: LX | E14: 3840 | F14: TRUE | G14: F07/F10 | H14: 22mm Female Star | I14: 14 | O14: LX-14 | P14: ER38 | Q14: 3840 | R14: 14 | S14: F07/F10 | T14: 22 Female Star
A15: 3841 | B15: 5000 | C15: ER-50 | D15: 5K | E15: 5000 | F15: TRUE | G15: F14 & 4.24 BC | H15: 22.2mm Male DD | I15: 38 | O15: 5K | P15: ER50 | Q15: 5000 | R15: 38 | S15: F14&(4)0.375-16 on 4.242BC | T15: 22.2 Male DD
A16: 5001 | B16: 7020 | C16: ER-70 | D16: 7K | E16: 7020 | F16: TRUE | G16: F14 & 4.24 BC | H16: 22.2mm Male DD | I16: 38 | O16: 7K | P16: ER70 | Q16: 7020 | R16: 38 | S16: F14&(4)0.375-16 on 4.242BC | T16: 36.1 Male DD
A17: 7021 | B17: 11520 | C17: ER-120 | D17: 12K | E17: 11520 | F17: TRUE | G17: F14 & 4.24 BC | H17: 22.2mm Male DD | I17: 58 | O17: 12K | P17: ER120 | Q17: 11500 | R17: 58 | S17: F14&(4)0.375-16 on 4.242BC | T17: 36.1 Male DD
A18: 11521 | B18: 14040 | C18: ER-140 | D18: 14K | E18: 14040 | F18: TRUE | G18: F14 & 4.24 BC | H18: 36.1mm Male DD | I18: 58 | O18: 14K | P18: ER140 | Q18: 14040 | R18: 58 | S18: F14&(4)0.375-16 on 4.242BC | T18: 36.1 Male DD
A19: 14041 | B19: 19200 | C19: ER-190 | D19: 19K | E19: 19200 | F19: TRUE | G19: (8) 0.625-11 on F14 BC | H19: 36mm Male DD | I19: 114 | O19: 19K | P19: ER190 | Q19: 19200 | R19: 114 | S19: (8) 0.625-11 on F14 BC | T19: 36 Male DD
A20: 19201 | B20: 27300 | C20: ER-270 | D20: 27K | E20: 27300 | F20: TRUE | G20: F14 & 4.24 BC | H20: 2.375" Bore&Key | I20: 136 | O20: 27K | P20: ER270 | Q20: 27300 | R20: 136 | S20: (8) 0.625-11 on 7.50 BC | T20: 2.375 Bore&Key
A21: 27301 | B21: 99999 | C21: Consult Eng. | E21: 99999 | F21: TRUE | G21: -- | H21: -- | I21: --
A22: 0 | B22: 100 | C22: ER-1 | D22: R | E22: 100 | F22: FALSE | G22: F03/F05 | H22: 9mm Female Star | I22: 2.5 | O22: R & RXP | P22: ER1 | Q22: 100 | R22: 2.5 | S22: F03/F05 | T22: 9 Female Star
A23: Indelac
G26: Elect_FS_SR_Act
A27: Electric Fail Safe Spr. Rtn. Act. Data Table (Table 5B) | G27: A30:I35
A28: Torque Range | C28: Electric FS SR Actuator | F28: Act. >= | I28: Cycle Time, s
A29: Min | B29: Max | C29: Model No. | D29: Indelac ID | E29: lbf-in. | F29: Va. Open | G29: Mounting | H29: Stem Connect.
A30: 676 | B30: 1000 | C30: ES2 | D30: ES2 | E30: 200 | F30: =AND(E30>=SOT) -> TRUE | G30: F07/F10 | H30: 17mm Female Star | I30: 10 | P30: ES2 | Q30: 200 | R30: 10/2 | S30: F07/F10 | T30: 17 Female Star
A31: 201 | B31: 300 | C31: AS4/ASC4 | D31: AS4/ASC4 | E31: 400 | F31: =AND(E31>=SOT) -> TRUE | G31: F07 | H31: 17mm Male Sq. | I31: 12 | P31: AS4/ASC4 | Q31: 400 | R31: 12/2 | S31: F07 | T31: 17 Male Sq.
A32: 301 | B32: 400 | C32: AS6/ASC6 | D32: AS6/ASC6 | E32: 600 | F32: =AND(E32>=SOT) -> TRUE | G32: F07 | H32: 17mm Male Sq. | I32: 12 | P32: AS6/ASC6 | Q32: 600 | R32: 12/2 | S32: F07 | T32: 17 Male Sq.
A33: 401 | B33: 675 | C33: AS10/ASC10 | D33: AS10/ASC10 | E33: 1000 | F33: =AND(E33>=SOT) -> TRUE | G33: F10 | H33: 25.4mm Male Sq | I33: 12 | P33: AS10/ASC10 | Q33: 1000 | R33: 12/2 | S33: F10 | T33: 25.4 Male Sq
A34: 676 | B34: 1200 | C34: ASC12 | D34: ASC12 | E34: 1200 | F34: =AND(E34>=SOT) -> TRUE | G34: F10 | H34: 25.4mm Male Sq | I34: 12 | P34: ASC12 | Q34: 1200 | R34: 12/2 | S34: F10 | T34: 25.4 Male Sq
A35: 1201 | B35: 99999 | C35: Not Available | D35: -- | E35: 99999 | F35: FALSE | G35: -- | H35: -- | I35: --
A46: Electric Act. Selection Table (Table 5C) | F46: =CHOOSE($K$11,G3,G26) -> Elect_Act
A47: Torque Range | C47: Electric Act. Torq. Info., in-lb
A48: Min | B48: Max | C48: Model No. | D48: Indelac ID | E48: lbf-in. | F48: Va. Open | G48: Mounting | H48: Stem Connect. | I48: Time, s
A49: =CHOOSE($K$11,A13,A24) -> 1501 | B49: =CHOOSE($K$11,B13,B24) -> 2000 | C49: =CHOOSE($K$11,C7,C30) -> ER-2 | D49: =CHOOSE($K$11,D7,D30) -> SD | E49: 200 | F49: TRUE | G49: F05 | H49: 14mm Female Star | I49: 5

Sheet Va (hidden)
A1: Valve Control
A2: Marwin Valve Series Menu (Table1) | N2: Series | AZ2: Series
B3: Menu | C3: Description | F3: Sizes | G3: Seats | H3: No. Col's | N3: 7000F | O3: 666F | P3: 666R | R3: 4600F | S3: 9000F | U3: 3T3100F | V3: MS3000 | W3: DM600F | X3: 3L_or_3T _2100F_F | AA3: 3L_or_3T _3900F | AB3: 8700F | AD3: 3000F | AF3: 3000R | AG3: CF8000F | AH3: 2000F_150 | AJ3: 5800F | AK3: 5000F | AM3: 5800R | AN3: 5000R | AO3: 2000R_150 | AQ3: 2000F_300 | AR3: 3L_or_3T_2S33F | AS3: 3L9000R | AT3: 9700 | AZ3: 3000R | BA3: 7000R | BB3: DR8000F | BC3: 666R | BD3: 8000R | BE3: 2000R_150 | BF3: 4700F | BG3: 10000F | BH3: MS3000 | BI3: 9700 | BJ3: Own
A4: 1 | B4: *****2-Way******** | C4: *************************************************************************** | F4: ***************** | G4: ************ | H4: ************* | P4: 7000R | R4: 3L8000F | T4: 4600R | U4: 3L3200F | V4: 10000F | W4: 8000R | AB4: 9000R | AD4: 4600R | AF4: 4700F | AG4: KF8900F | AJ4: 6800F | AK4: 6000F | AM4: 6800R | AN4: 6000R | AZ4: 3000F | BA4: 7000F | BC4: 666F | BD4: 8000F | BE4: 2000F_150 | BF4: 5000R | BH4: MS10000
A5: 2 | B5: 666R | C5: 2-Pc Brass Reduced Port, 600 WOG | F5: .5 - 2 | G5: T | H5: 4 | O5: DR8000F | P5: 8700F | V5: MS10000 | W5: 8000F | AB5: DM9000F | AF5: 3L_or_3T _2100F_A | AG5: CF8901F | BC5: DM600F | BD5: 9000R | BE5: 2000F_300 | BF5: 5000F
A6: 3 | B6: 666F | C6: 2-Pc Brass Full Port, 600 WOG | F6: .25 - 2 | G6: T | H6: 4 | P6: 9000R | AK6: 5801F | AP6: 5801R | BC6: 4600R | BD6: 9000F | BE6: 3L_or_3T_2100F | BF6: 5800R
A7: 4 | B7: DM600F | C7: 2-Pc Full Port, Direct Mount, 600 WOG | F7: .25 - 4 | G7: T | H7: 4 | O7: 3T3300R | P7: DM9000F | AK7: 6801F | BC7: 4600F | BE7: 3L_or_3T_2S33F | BF7: 5800F
A8: 5 | B8: 2000R_150 | C8: FE Uni-body, Reduced Port, FE 150 | F8: 1-4, no 1.25, 2.5 | G8: R, S, U | H8: 4 | O8: 3L3400R | BC8: CF8000F | BF8: 6000R
A9: 6 | B9: 2000F_150 | C9: FE 2-Pc Body, Full Port, FE 150 | F9: .5 - 6, no 1.25 | G9: R, S, U | H9: 4 | O9: 3T3700R | BC9: KF8900F | BD9: 3T3300R | BF9: 6000F
A10: 7 | B10: 2000F_300 | C10: FE 2-Pc Body, Full Port, FE 300 | F10: 1.5-4 | G10: R, S, U | H10: 4 | O10: 3L3800R | BC10: DM9000F | BD10: 3L3400R | BF10: 6800R
A11: 8 | B11: 3000R | C11: 3-Pc Fire Safe, Reduced Port, 3000 WOG | F11: .5 - 4 | G11: T,R,S,U,D,P,CP | H11: 7 | BC11: 3T3100F | BD11: 3T3700R | BF11: 6800F
A12: 9 | B12: 3000F | C12: 3-Pc Fire Safe, Full Port, 3000 WOG | F12: .25 - 3 | G12: T,R,S,U,D,P,CP | H12: 7 | L12: Size Menu (Table 2) | O12: Horizontal Lookup Table | AT12: Size_Range | BC12: 3L3200F | BD12: 3L3800R | BF12: 8700F
A13: 10 | B13: MS3000 | C13: 3-Pc Metal Seated, Sch. 160 Port, 1000 WOG | F13: .25-3x2, no 2.5 | G13: W5 | H13: 7 | L13: Menu | M13: Col: | N13: 1 | O13: 2 | P13: 3 | Q13: 4 | R13: 5 | S13: 6 | T13: 7 | U13: 8 | V13: 9 | W13: 10 | X13: 11 | Y13: 12 | Z13: 13 | AA13: 14 | AB13: 15 | AC13: 16 | AD13: 17 | AE13: 18 | AF13: 19 | AG13: 20 | AH13: 21 | AI13: 22 | AJ13: 23 | AK13: 24 | AL13: 25 | AM13: 26 | AN13: 27 | AO13: 28 | AP13: 29 | AQ13: 30 | AR13: 31 | AS13: 32 | AT13: 33 | BC13: 3T3700R | BD13: 3L_or_3T_3900F | BF13: 5801R
A14: 11 | B14: 4600R | C14: 3-Pc Brass, Reduced Port, 600 WOG | F14: 1.25-3 | G14: T | H14: 4 | L14: =F46 -> .25 - 3 | M14: Row for | N14: .25-1.5, no .38 | O14: .25 - 2 | P14: .25-2, no .38 | Q14: .25-2, no 1.25 | R14: .25 - 2.5 | S14: .25 - 3 | T14: 1.25-3 | U14: .25-3, no 2.5 | V14: .25-3x2, no 2.5 | W14: .25 - 4 | X14: .5 - 6 | Y14: .38 - 6 | Z14: .5 - 1.5 | AA14: .5,1,2 | AB14: .5 - 2 | AC14: .5 - 2.5 | AD14: .5 - 3 | AE14: .5-3, no 1.25 | AF14: .5 - 4 | AG14: .5-4, no 1.25 | AH14: .5 - 6, no 1.25 | AI14: .5 - 8 | AJ14: .5-8, no 1.25 | AK14: .5-8, no 1.25, 2.5 | AL14: .5 - 10 | AM14: .5-10, no 1.25 | AN14: .5-10, no 1.25, 2.5 | AO14: 1-4, no 1.25, 2.5 | AP14: 1-8, no 1.25,2.5 | AQ14: 1.5-4 | AR14: 2 - 6 | AS14: 3 | AT14: 0.25F-1.5F, 2R | BC14: 3L3800R | BD14: 3L8000F | BF14: 5801F
A15: 12 | B15: 4600F | C15: 3-Pc Brass, Full Port, 600 WOG | F15: .25 - 2.5 | G15: T | H15: 4 | BD15: 3L9000R | BF15: 6801F
A16: 13 | B16: 4700F | C16: 3-Pc, Full Port, 2000 WOG Dir Mt w/Lever / 150 WSP | F16: .5 - 4 | G16: T, R, S, U | H16: 5 | K16: 1 | L16: =HLOOKUP($F$46,$N$14:$AT$29,K16+2,FALSE) -> 0.25 | M16: 0.25 | N16: 0.25 | O16: 0.25 | P16: 0.25 | Q16: 0.25 | R16: 0.25 | S16: 0.25 | T16: -- | U16: 0.25 | V16: 0.25 | W16: 0.25 | X16: -- | Y16: -- | Z16: -- | AA16: -- | AB16: -- | AC16: -- | AD16: -- | AE16: -- | AF16: -- | AG16: -- | AH16: -- | AI16: -- | AJ16: -- | AK16: -- | AL16: -- | AM16: -- | AN16: -- | AO16: -- | AP16: -- | AQ16: -- | AR16: -- | AS16: -- | AT16: 0.25F
A17: 14 | B17: 5000R | C17: FE, Uni-body, Reduced Port, FE 150 | F17: .5-10, no 1.25, 2.5 | G17: T, R, S, U | H17: 5 | K17: 2 | L17: 0.38 | M17: 0.38 | N17: -- | O17: 0.38 | P17: -- | Q17: 0.38 | R17: 0.38 | S17: 0.38 | T17: -- | U17: 0.38 | V17: 0.38 | W17: 0.38 | X17: 0.38 | Y17: 0.38 | Z17: -- | AA17: -- | AB17: -- | AC17: -- | AD17: -- | AE17: -- | AF17: -- | AG17: -- | AH17: -- | AI17: -- | AJ17: -- | AK17: -- | AL17: -- | AM17: -- | AN17: -- | AO17: -- | AP17: -- | AQ17: -- | AR17: -- | AS17: -- | AT17: 0.38F
A18: 15 | B18: 5000F | C18: FE, Uni-body ≤ 1" / Split Body > 1", Full Port, FE 150 | F18: .5-8, no 1.25, 2.5 | G18: T, R, S, U | H18: 5 | K18: 3 | L18: 0.50 | M18: 0.50 | N18: 0.50 | O18: 0.50 | P18: 0.50 | Q18: 0.50 | R18: 0.50 | S18: 0.50 | T18: -- | U18: 0.50 | V18: 0.50 | W18: 0.50 | X18: 0.50 | Y18: 0.50 | Z18: 0.50 | AA18: 0.50 | AB18: 0.50 | AC18: 0.50 | AD18: 0.50 | AE18: 0.50 | AF18: 0.50 | AG18: 0.50 | AH18: 0.50 | AI18: 0.50 | AJ18: 0.50 | AK18: 0.50 | AL18: 0.50 | AM18: 0.50 | AN18: 0.50 | AO18: -- | AP18: -- | AQ18: -- | AR18: -- | AS18: -- | AT18: 0.50F
A19: 16 | B19: 5801R | C19: FE, Split Body, Reduced Port, Fire Safe, FE 150 | F19: 1-8, no 1.25,2.5 | G19: T, R, S, U | H19: 5 | K19: 4 | L19: 0.75 | M19: 0.75 | N19: 0.75 | O19: 0.75 | P19: 0.75 | Q19: 0.75 | R19: 0.75 | S19: 0.75 | T19: -- | U19: 0.75 | V19: 0.75 | W19: 0.75 | X19: 0.75 | Y19: 0.75 | Z19: 0.75 | AA19: -- | AB19: 0.75 | AC19: 0.75 | AD19: 0.75 | AE19: 0.75 | AF19: 0.75 | AG19: 0.75 | AH19: 0.75 | AI19: 0.75 | AJ19: 0.75 | AK19: 0.75 | AL19: 0.75 | AM19: 0.75 | AN19: 0.75 | AO19: -- | AP19: -- | AQ19: -- | AR19: -- | AS19: -- | AT19: 0.75F | AX19: Seat Material Menu (Table 3)
A20: 17 | B20: 5801F | C20: FE, Split Body, Full Port, Fire Safe, FE 150 | F20: .5-8, no 1.25, 2.5 | G20: T, R, S, U | H20: 5 | K20: 5 | L20: 1.00 | M20: 1.00 | N20: 1.00 | O20: 1.00 | P20: 1.00 | Q20: 1.00 | R20: 1.00 | S20: 1.00 | T20: -- | U20: 1.00 | V20: 1.00 | W20: 1.00 | X20: 1.00 | Y20: 1.00 | Z20: 1.00 | AA20: 1.00 | AB20: 1.00 | AC20: 1.00 | AD20: 1.00 | AE20: 1.00 | AF20: 1.00 | AG20: 1.00 | AH20: 1.00 | AI20: 1.00 | AJ20: 1.00 | AK20: 1.00 | AL20: 1.00 | AM20: 1.00 | AN20: 1.00 | AO20: 1.00 | AP20: 1.00 | AQ20: -- | AR20: -- | AS20: -- | AT20: 1.00F | AX20: Menu | AY20: Horizontal Lookup Table
A21: 18 | B21: 6000R | C21: FE, Uni-body, Reduced Port, FE 300 | F21: .5-10, no 1.25, 2.5 | G21: T, R, S, U | H21: 5 | K21: 6 | L21: 1.25 | M21: 1.25 | N21: 1.25 | O21: 1.25 | P21: 1.25 | Q21: -- | R21: 1.25 | S21: 1.25 | T21: 1.25 | U21: 1.25 | V21: 1.25 | W21: 1.25 | X21: 1.25 | Y21: 1.25 | Z21: 1.25 | AA21: -- | AB21: 1.25 | AC21: 1.25 | AD21: 1.25 | AE21: 1.50 | AF21: 1.25 | AG21: -- | AH21: -- | AI21: 1.25 | AJ21: -- | AK21: -- | AL21: 1.25 | AM21: -- | AN21: -- | AO21: -- | AP21: -- | AQ21: -- | AR21: -- | AS21: -- | AT21: 1.25F | AX21: =G46 -> T,R,S,U,D,P,CP | AY21: Row for | AZ21: T,R,S,U,D,P,CP | BA21: T, R, S, D | BB21: T, R | BC21: T | BD21: R | BE21: R, S, U | BF21: T, R, S, U | BG21: D, P, CP | BH21: W5 | BI21: D | BJ21: Soft, Hard
A22: 19 | B22: 6000F | C22: FE, Uni-body ≤ 1" / Split Body > 1", Full Port, FE 300 | F22: .5-8, no 1.25, 2.5 | G22: T, R, S, U | H22: 5 | K22: 7 | L22: 1.50 | M22: 1.50 | N22: 1.50 | O22: 1.50 | P22: 1.50 | Q22: 1.50 | R22: 1.50 | S22: 1.50 | T22: 1.50 | U22: 1.50 | V22: 1.50 | W22: 1.50 | X22: 1.50 | Y22: 1.50 | Z22: 1.50 | AA22: -- | AB22: 1.50 | AC22: 1.50 | AD22: 1.50 | AE22: 2.00 | AF22: 1.50 | AG22: 1.50 | AH22: 1.50 | AI22: 1.50 | AJ22: 1.50 | AK22: 1.50 | AL22: 1.50 | AM22: 1.50 | AN22: 1.50 | AO22: 1.50 | AP22: 1.50 | AQ22: 1.50 | AR22: -- | AS22: -- | AT22: 1.50F | AW22: 1 | AX22: =HLOOKUP($G$46,$AZ$21:$BJ$33,2,FALSE) -> Teflon | AY22: Teflon | AZ22: Teflon | BA22: Teflon | BB22: Teflon | BC22: Teflon | BD22: RPTFE | BE22: -- | BF22: Teflon | BG22: -- | BH22: -- | BI22: -- | BJ22: --
A23: 20 | B23: 6801F | C23: FE, Split Body, Full Port, Fire Safe, FE 300 | F23: .5-8, no 1.25, 2.5 | G23: T, R, S, U | H23: 5 | K23: 8 | L23: 2.00 | M23: 2.00 | N23: -- | O23: 2.00 | P23: 2.00 | Q23: 2.00 | R23: 2.00 | S23: 2.00 | T23: 2.00 | U23: 2.00 | V23: 2.00 | W23: 2.00 | X23: 2.00 | Y23: 2.00 | Z23: -- | AA23: 2.00 | AB23: 2.00 | AC23: 2.00 | AD23: 2.00 | AE23: 2.50 | AF23: 2.00 | AG23: 2.00 | AH23: 2.00 | AI23: 2.00 | AJ23: 2.00 | AK23: 2.00 | AL23: 2.00 | AM23: 2.00 | AN23: 2.00 | AO23: 2.00 | AP23: 2.00 | AQ23: 2.00 | AR23: 2.00 | AS23: -- | AT23: 2.00R | AW23: 2 | AX23: =HLOOKUP($G$46,$AZ$21:$BJ$33,3,FALSE) -> RPTFE | AY23: RPTFE | AZ23: RPTFE | BA23: RPTFE | BB23: RPTFE | BC23: -- | BD23: -- | BE23: RPTFE | BF23: RPTFE | BG23: -- | BH23: -- | BI23: -- | BJ23: --
A24: 21 | B24: CF8901F | C24: 3-Pc Cavity Filled, Full (Tube) Port, 1000 WOG / 150 WSP | F24: .5-4, no 1.25 | G24: T | H24: 5 | K24: 9 | L24: 2.50 | M24: 2.50 | N24: -- | O24: -- | P24: -- | Q24: -- | R24: 2.50 | S24: 2.50 | T24: 2.50 | U24: -- | V24: -- | W24: 2.50 | X24: 2.50 | Y24: 2.50 | Z24: -- | AA24: -- | AB24: -- | AC24: 2.50 | AD24: 2.50 | AE24: 3.00 | AF24: 2.50 | AG24: 2.50 | AH24: 2.50 | AI24: 2.50 | AJ24: 2.50 | AK24: -- | AL24: 2.50 | AM24: 2.50 | AN24: -- | AO24: -- | AP24: -- | AQ24: 2.50 | AR24: 2.50 | AS24: -- | AT24: -- | AW24: 3 | AX24: =HLOOKUP($G$46,$AZ$21:$BJ$33,4,FALSE) -> CRPTFE | AY24: CRPTFE | AZ24: CRPTFE | BA24: CRPTFE | BB24: -- | BC24: -- | BD24: -- | BE24: CRPTFE | BF24: CRPTFE | BG24: -- | BH24: -- | BI24: -- | BJ24: --
A25: 22 | B25: 8700F | C25: 3-Pc, Full Port, 1000 WOG Dir Mt w/Lever / 150 WSP | F25: .5 - 2 | G25: T, R, S, U | H25: 5 | K25: 10 | L25: 3.00 | M25: 3.00 | N25: -- | O25: -- | P25: -- | Q25: -- | R25: -- | S25: 3.00 | T25: 3.00 | U25: 3.00 | V25: 3.00 x 2.00 | W25: 3.00 | X25: 3.00 | Y25: 3.00 | Z25: -- | AA25: -- | AB25: -- | AC25: -- | AD25: 3.00 | AE25: -- | AF25: 3.00 | AG25: 3.00 | AH25: 3.00 | AI25: 3.00 | AJ25: 3.00 | AK25: 3.00 | AL25: 3.00 | AM25: 3.00 | AN25: 3.00 | AO25: 3.00 | AP25: 3.00 | AQ25: 3.00 | AR25: 3.00 | AS25: 3.00 | AT25: -- | AW25: 4 | AX25: =HLOOKUP($G$46,$AZ$21:$BJ$33,5,FALSE) -> UHMW-PE | AY25: UHMW-PE | AZ25: UHMW-PE | BA25: -- | BB25: -- | BC25: -- | BD25: -- | BE25: UHMW-PE | BF25: UHMW-PE | BG25: -- | BH25: -- | BI25: -- | BJ25: --
A26: 23 | B26: 9000R | C26: 2-Pc Reduced Port, 1000 WOG | F26: .5 - 2 | G26: R | H26: 4 | K26: 11 | L26: -- | M26: 4.00 | N26: -- | O26: -- | P26: -- | Q26: -- | R26: -- | S26: -- | T26: -- | U26: -- | V26: -- | W26: 4.00 | X26: 4.00 | Y26: 4.00 | Z26: -- | AA26: -- | AB26: -- | AC26: -- | AD26: -- | AE26: -- | AF26: 4.00 | AG26: 4.00 | AH26: 4.00 | AI26: 4.00 | AJ26: 4.00 | AK26: 4.00 | AL26: 4.00 | AM26: 4.00 | AN26: 4.00 | AO26: 4.00 | AP26: 4.00 | AQ26: 4.00 | AR26: 4.00 | AS26: -- | AT26: -- | AW26: 5 | AX26: =HLOOKUP($G$46,$AZ$21:$BJ$33,6,FALSE) -> Delrin | AY26: Delrin | AZ26: Delrin | BA26: Delrin | BB26: -- | BC26: -- | BD26: -- | BE26: -- | BF26: -- | BG26: Delrin | BH26: -- | BI26: Delrin | BJ26: --
A27: 24 | B27: 9000F | C27: 2-Pc Full Port, 1000 WOG | F27: .25 - 3 | G27: R | H27: 4 | K27: 12 | L27: -- | M27: 6.00 | N27: -- | O27: -- | P27: -- | Q27: -- | R27: -- | S27: -- | T27: -- | U27: -- | V27: -- | W27: -- | X27: 6.00 | Y27: 6.00 | Z27: -- | AA27: -- | AB27: -- | AC27: -- | AD27: -- | AE27: -- | AF27: -- | AG27: -- | AH27: 6.00 | AI27: 6.00 | AJ27: 6.00 | AK27: 6.00 | AL27: 6.00 | AM27: 6.00 | AN27: 6.00 | AO27: -- | AP27: 6.00 | AQ27: -- | AR27: 6.00 | AS27: -- | AT27: -- | AW27: 6 | AX27: =HLOOKUP($G$46,$AZ$21:$BJ$33,7,FALSE) -> PEEK | AY27: PEEK | AZ27: PEEK | BA27: -- | BB27: -- | BC27: -- | BD27: -- | BE27: -- | BF27: -- | BG27: PEEK | BH27: -- | BI27: -- | BJ27: --
A28: 25 | B28: 9700 | C28: 9700 Series 2-Pc Seal Welded | F28: 0.25F-1.5F, 2R | G28: D | H28: 4 | K28: 13 | L28: -- | M28: 8.00 | N28: -- | O28: -- | P28: -- | Q28: -- | R28: -- | S28: -- | T28: -- | U28: -- | V28: -- | W28: -- | X28: -- | Y28: -- | Z28: -- | AA28: -- | AB28: -- | AC28: -- | AD28: -- | AE28: -- | AF28: -- | AG28: -- | AH28: -- | AI28: 8.00 | AJ28: 8.00 | AK28: 8.00 | AL28: 8.00 | AM28: 8.00 | AN28: 8.00 | AO28: -- | AP28: 8.00 | AQ28: -- | AR28: -- | AS28: -- | AT28: -- | AW28: 7 | AX28: =HLOOKUP($G$46,$AZ$21:$BJ$33,8,FALSE) -> CPEEK | AY28: CPEEK | AZ28: CPEEK | BA28: -- | BB28: -- | BC28: -- | BD28: -- | BE28: -- | BF28: -- | BG28: CPEEK | BH28: -- | BI28: -- | BJ28: --
A29: 26 | B29: DM9000F | C29: 2-Pc Full Port, Direct Mount, 900 WOG | F29: .5 - 2 | G29: T | H29: 4 | K29: 14 | L29: -- | M29: 10.00 | N29: -- | O29: -- | P29: -- | Q29: -- | R29: -- | S29: -- | T29: -- | U29: -- | V29: -- | W29: -- | X29: -- | Y29: -- | Z29: -- | AA29: -- | AB29: -- | AC29: -- | AD29: -- | AE29: -- | AF29: -- | AG29: -- | AH29: -- | AI29: -- | AJ29: -- | AK29: -- | AL29: 10.00 | AM29: 10.00 | AN29: 10.00 | AO29: -- | AP29: -- | AQ29: -- | AR29: -- | AS29: -- | AT29: -- | AW29: 8 | AX29: =HLOOKUP($G$46,$AZ$21:$BJ$33,9,FALSE) -> -- | AY29: MarWear CL4 | AZ29: -- | BA29: -- | BB29: -- | BC29: -- | BD29: -- | BE29: -- | BF29: -- | BG29: -- | BH29: -- | BI29: -- | BJ29: --
A30: 27 | B30: 10000F | C30: 3-Pc Full Port, 6200 WOG ≤ 1.0 / 4300 WOG > 1.0 | F30: .25-3x2, no 2.5 | G30: D, P, CP | H30: 7 | AW30: 9 | AX30: =HLOOKUP($G$46,$AZ$21:$BJ$33,10,FALSE) -> -- | AY30: MarWear CL5 | AZ30: -- | BA30: -- | BB30: -- | BC30: -- | BD30: -- | BE30: -- | BF30: -- | BG30: -- | BH30: MarWear Metal CL5 | BI30: -- | BJ30: --
A31: 28 | B31: MS10000 | C31: 3-Pc Metal Seated, Sch. 160 Port, 4500 WOG<=1.25 / 3700 WOG > 1.25 | F31: .25-3x2, no 2.5 | G31: W5 | H31: 7 | K31: 3 | L31: =IF(Series<>"Own",VLOOKUP(K31,K16:L29,2,FALSE),"Not Required") -> 0.50 | AW31: 10 | AX31: =HLOOKUP($G$46,$AZ$21:$BJ$33,11,FALSE) -> -- | AY31: Marwinite CL6 | AZ31: -- | BA31: -- | BB31: -- | BC31: -- | BD31: -- | BE31: -- | BF31: -- | BG31: -- | BH31: -- | BI31: -- | BJ31: --
A32: 29 | B32: ******3-Way******* | C32: *************************************************************************** | F32: ***************** | G32: ************ | H32: ************* | L32: Size | AP32: was 1-6, no 1.25 | AW32: 11 | AX32: =HLOOKUP($G$46,$AZ$21:$BJ$33,12,FALSE) -> -- | AY32: Soft | AZ32: -- | BA32: -- | BB32: -- | BC32: -- | BD32: -- | BE32: -- | BF32: -- | BG32: -- | BH32: -- | BI32: -- | BJ32: Soft
A33: 30 | B33: 3L_or_3T_2100F_A | C33: 3-Way FE, Full Port NPT, Dir Mt w/Lever) | F33: .5 - 4 | G33: R, S, U | H33: 4 | AW33: 12 | AX33: =HLOOKUP($G$46,$AZ$21:$BJ$33,13,FALSE) -> -- | AY33: Hard | AZ33: -- | BA33: -- | BB33: -- | BC33: -- | BD33: -- | BE33: -- | BF33: -- | BG33: -- | BH33: -- | BI33: -- | BJ33: Hard
A34: 31 | B34: 3L_or_3T_2100F_F | C34: 3-Way FE, Full Port, FE 150 (1/2"-4" Dir Mt w/Lever) | F34: .5 - 6 | G34: R, S, U | H34: 4
A35: 32 | B35: 3T3101F | C35: 3-Way Br. Bot. Entry, Full T-Port, Transflow Mix, 300 WOG (1/2"-2" DM w/Lever) | F35: .25-3, no 2.5 | G35: T | H35: 4
A36: 33 | B36: 3L3201F | C36: 3-Way Br. Bot. Entry, Full L-Port, Non-Transflow Divert, 300 WOG (1/2"-2" DM w/Lever) | F36: .25-3, no 2.5 | G36: T | H36: 4 | AW36: 2 | AX36: =VLOOKUP($AW$36,$AW$22:$AX$33,2,FALSE) -> RPTFE
A37: 34 | B37: 3T3300R | C37: 3-Way Brass, Reduced T-Port, Dir Mt w/ Lever, 400 WOG | F37: .25 - 2 | G37: R | H37: 4 | AX37: Seat
A38: 35 | B38: 3L3400R | C38: 3-Way Brass, Reduced L-Port, Dir Mt w/ Lever, 400 WOG | F38: .25 - 2 | G38: R | H38: 4
A39: 36 | B39: 3T3700R | C39: 3-Way, Reduced T-Port, 800 WOG | F39: .25 - 2 | G39: T | H39: 4 | M39: Valve Note Table (Table 3A) | P39: N41:O56 | X39: Automation Notes for Menu (Table 3B) | BA39: End Open Torque Multiplier = | BB39: =IF(OR(Seat="Teflon", Seat="RPTFE", Seat="CRPTFE", Seat="Soft"),0.8,1) -> 0.8
A40: 37 | B40: 3L3800R | C40: 3-Way, Reduced L-Port, 800 WOG | F40: .25 - 2 | G40: T | H40: 4 | N40: Series | O40: Note | X40: Ratio of Actuator Torque to Valve Required Torque | BA40: Start Closed Torque Multiplier = | BB40: =IF(OR(Seat="Teflon", Seat="RPTFE", Seat="CRPTFE", Seat="Soft"),0.9,1) -> 0.9
A41: 38 | B41: *******Own*********** | C41: *************************************************************************** | F41: ***************** | G41: ************ | H41: ************* | M41: 1 | N41: DM600F | O41: Check if selected act. bolt pattern matches va. for direct mounting. | X41: ER | Y41: UT-DA | Z41: UT-SR | AA41: Spr. Hand | AB41: Gear Op. | AC41: Fus. Link | BA41: End Closed Torque Multiplier = | BB41: =IF(OR(Seat="Teflon", Seat="RPTFE", Seat="CRPTFE", Seat="Soft"),0.85,1) -> 0.85
A42: 39 | B42: Own | C42: Input Own Valve Torque | F42: -- | G42: Soft, Hard | H42: -- | M42: 2 | N42: DM9000F | O42: Check if selected act. bolt pattern matches va. for direct mounting.
M43: 3 | N43: 4700F | O43: Check if selected act. bolt pattern matches va. for direct mounting. | AX43: Seat Mat'l Codes: Teflon--T, RPTFE--R, CRPTFE (Starfill)--S, Delrin--D, PEEK--P, Carbon Filled Peek--CP, MarWear Class 4--M4, MarWear Class 6--M6,
M44: 4 | N44: 8700F | O44: Check if selected act. bolt pattern matches va. for direct mounting. | AX44: Marwinite Class 6--W6
M45: 5 | N45: 666F | O45: No provisions for actuator mounting. | X45: =Menu!H29 -> 1.739130435 | Y45: =Menu!Q29 -> 1.556521739 | Z45: =Menu!H42 -> 1.884615385 | AA45: =#REF! ->  | AB45: =Menu!Q43 -> 39.13043478 | AC45: =#REF! -> 
A46: 9 | B46: =VLOOKUP($A$46,$A$4:$H$42,2, FALSE) -> 3000F | C46: =VLOOKUP($A$46,$A$4:$H$42,3, FALSE) -> 3-Pc Fire Safe, Full Port, 3000 WOG | F46: =VLOOKUP($A$46,$A$4:$H$42,6, FALSE) -> .25 - 3 | G46: =VLOOKUP($A$46,$A$4:$H$42,7, FALSE) -> T,R,S,U,D,P,CP | H46: =VLOOKUP($A$46,$A$4:$H$42,8, FALSE) -> 7 | M46: 6 | N46: 666R | O46: No provisions for actuator mounting. | Z46: =Menu!H43 -> 1.132653061 | AA46: =#REF! -> 
B47: Series | M47: 7 | N47: 9000F | O47: Automation not recommended for 1.25" - 2.5" 9000F | Z47: =Menu!H44 -> 1.67826087
M48: 8 | N48: 3T3300R | O48: Check if selected act. bolt pattern matches va. for direct mounting. | Z48: =Menu!H45 -> 1.032608696
M49: 9 | N49: 3L3400R | O49: Check if selected act. bolt pattern matches va. for direct mounting. | X49: Act. | Y49: Act.: Va. Torq. Too Low | AG49: Act.: Va. Torq. OK
M50: 10 | N50: 3T3101F | O50: 180 Deg. rotation required for automation | X50: ER | Y50: =CONCATENATE("Act.:Req. Torq. = ",ROUND(X45,2)," < 1.0; MAY BE TOO LOW FOR AUTOMATION!") -> Act.:Req. Torq. = 1.74 < 1.0; MAY BE TOO LOW FOR AUTOMATION! | AG50: =CONCATENATE("Act.:Req. Torque = ",ROUND(X45,2)," > 1.0 OK for Automation (Note 4)") -> Act.:Req. Torque = 1.74 > 1.0 OK for Automation (Note 4) | AM50: =text -> 
M51: 11 | N51: 3L3201F | O51: 180 Deg. rotation required for automation | X51: UT-DA | Y51: =CONCATENATE("Act.:Req. Torq. = ",ROUND(Y45,2)," < 1.0; MAY BE TOO LOW FOR AUTOMATION!") -> Act.:Req. Torq. = 1.56 < 1.0; MAY BE TOO LOW FOR AUTOMATION! | AG51: =CONCATENATE("Act.:Req. Torque = ",ROUND(Y45,2)," > 1.0 OK for Automation (Note 4)") -> Act.:Req. Torque = 1.56 > 1.0 OK for Automation (Note 4)
M52: 12 | N52: 5800R | O52: 10" 5800R standard w/ Gear Op. & 23.6 in. D. Hwl. | X52: UT-SR | Y52: =CONCATENATE("Act.:Req. Torq. = ",ROUND(MIN(Z45:Z48),2)," < 1.0 MAY BE TOO LOW FOR AUTOMATION!") -> Act.:Req. Torq. = 1.03 < 1.0 MAY BE TOO LOW FOR AUTOMATION! | AG52: =CONCATENATE("Act.:Req. Torque = ",ROUND(MIN(Z45:Z48),2)," > 1.0 OK for Automation (Note 4)") -> Act.:Req. Torque = 1.03 > 1.0 OK for Automation (Note 4)
M53: 13 | N53: 5800F | O53: 8" 5800F standard w/ Gear Op. & 23.6 in. D. Hwl. | X53: Gear Op.
M54: 14 | N54: 6800R | O54: 8" & 10" 6800R standard w/ Gear Op. & 23.6 in. D. Hwl. | X54: Spr. Hand | Y54: =CONCATENATE("Warning! Act.:Req. Torq. = ",ROUND(MIN(AA45:AA46),2)," < 1.0 TOO LOW FOR AUTOMATION!") ->  | AG54: =CONCATENATE("Act.:Req. Torque = ",ROUND(MIN(AA45:AA46),2)," >1.0 OK for Automation (Use 1.5 SF)") -> 
M55: 15 | N55: 6800F | O55: 6" & 8" 6800F standard w/ Gear Op. & 23.6 in. D. Hwl. | X55: Fus. Link | Y55: =CONCATENATE("Warning! Act.:Req. Torq. = ",ROUND(AC45,2)," < 1.5 TOO LOW FOR FUS. Link!") ->  | AG55: =CONCATENATE("Act.:Req. Torque = ",ROUND(AC45,2)," >1.5 OK for FUS. LINK") -> 
M56: 16
C59: Va. Table (Va_Table) = | D59: =CONCATENATE("_",Series) -> _3000F | N59: =VLOOKUP($B$46,$N$41:$O$56,2, FALSE) -> 
C60: Va. Seat Mat'l (Seat) = | D60: =Seat -> RPTFE | N60: =IF(ISERROR(N59),"",N59) -> 
C61: Seat Col. in Torque Tables: | D61: =HLOOKUP(Seat,INDIRECT(Va_Table),2,FALSE) -> 3
C62: Va. Table Break Open Torque (Torq) = | D62: =IF(Series<>"Own",VLOOKUP(Size,INDIRECT(Va_Table),Va!$D$61,FALSE),Menu!$K$11) -> 96 | E62: lbf-in.
C63: Service Factor (SF) = | D63: =D84 -> 1.2 | E63: -- | F63: =CONCATENATE("Based on ",C84) -> Based on Clean & 2 or More cycle / day ..................................... 1.2
C64: Va. Start (Break) Open Torque (SOT) = | D64: =ROUND(Torq*SF,0) -> 115 | E64: lbf-in. | F64: Service Factor x Va. Break Open Torque (Required Torque)
C65: Va. End Open Torque (EOT)= | D65: =ROUND(SOT*BB39,0) -> 92 | E65: lbf-in. | F65: =CONCATENATE("Based on ",BB39," End Open Torque Multiplier for ",Seat) -> Based on 0.8 End Open Torque Multiplier for RPTFE
C66: Va. Start Closed Torque (SCT) = | D66: =ROUND(SOT*BB40,0) -> 104 | E66: lbf-in. | F66: =CONCATENATE("Based on ",BB40," Start Closed Torque Multiplier for ",Seat) -> Based on 0.9 Start Closed Torque Multiplier for RPTFE
C67: Va. End Closed Torque (ECT) = | D67: =ROUND(SOT*BB41,0) -> 98 | E67: lbf-in. | F67: =CONCATENATE("Based on ",BB41," End Closed Torque Multiplier for ",Seat) -> Based on 0.85 End Closed Torque Multiplier for RPTFE
C68: Torque Function of Press (WOG): | D68: =IF(Series<>"Own",VLOOKUP(Size,INDIRECT(Va_Table),Va!$D$61+H46,FALSE),"NA") -> NA | E68: psi
C69: Mounting: | D69: =IF(Series<>"Own",VLOOKUP(Size,INDIRECT(Va_Table),H46*2+2,FALSE),"") -> Bckt & Cplgr | E69: --
C70: Dir. Mt. Va. Mounting Pattern: | D70: =IF(Series<>"Own",VLOOKUP(Size,INDIRECT(Va_Table),H46*2+3,FALSE),"") -> F03 | E70: mm
C71: Dir. Mt. Va. Stem Sq.: | D71: =IF(Series<>"Own",VLOOKUP(Size,INDIRECT(Va_Table),H46*2+4,FALSE),"") -> 5.44
A73: Service Factor Menu (Table 4)
B75: 1 | C75: Clean, & 10 or More cycle / day .................................. 1.0 | D75: 1
B76: 2 | C76: Clean & 2 or More cycle / day ..................................... 1.2 | D76: 1.2
B77: 3 | C77: Clean & Less Than 2 cycle / day .................................. 1.5 | D77: 1.5
B78: 4 | C78: Clean & Throttling ...................................................... 1.5 | D78: 1.5
B79: 5 | C79: Dry, Dirty, Slurry, or Cryo, & 2 or More cycle / day ....... 1.5 | D79: 1.5
B80: 6 | C80: Dry, Dirty, Slurry, or Cryo, & Less Than 2 cycle / day ... 1.75 | D80: 1.75
B81: 7 | C81: Dry, Dirty, Slurry, or Cryo, & Throttling ........................ 1.75 | D81: 1.75
B82: 8 | C82: Emer. Shutoff or Less Than 1 cycle / mo ....................... 2.0 | D82: 2
B84: 2 | C84: =VLOOKUP($B$84,$B$75:$D$82,2,FALSE) -> Clean & 2 or More cycle / day ..................................... 1.2 | D84: =VLOOKUP($B$84,$B$75:$D$82,3,FALSE) -> 1.2

Sheet DA (hidden)
A1: Direct Acting Pnuematic Actuator
H3: DA_Pneu_Act | J3: This table not valid; data removed, but 1st and last lines left to maintain program functionality for future alternate actuator.
A4: D. A. Pneumatic Act. Data Table (Table 6A) | H4: A7:P10 | W4: D. A. Press. Sel. Menu (Table 9) | AB4: Actuator Version
A5: Torque Range | C5: Pneumatic Actuator Torque Information - Double Acting (lbf-in.) | P5: Act. >= | Q5: Mount | R5: Stem | S5: Cycle Time, s | U5: Lookup | X5: Menu | AC5: Menu
A6: Min | B6: Max | C6: Model No. | D6: Valbia ID | E6: Size Ord. | F6: 40 PSI | G6: 50 PSI | H6: 60 PSI | I6: 70 PSI | J6: 80 PSI | K6: 90 PSI | L6: 100 PSI | M6: 115 PSI | N6: 130 PSI | O6: 140 psi | P6: Va. Open | R6: Sq. | S6: CCW | T6: CW | U6: Row No. | W6: 1 | X6: 40 PSI | AB6: 1 | AC6: Old / Unchanged UT
A7: =B6+1 ->  | B7: =HLOOKUP($X$17,$C$6:$O$10,U7,FALSE) -> 209.1 | C7: UT-0-DA | D7: DA 52 | E7: 2 | F7: 104.5 | G7: 130.7 | H7: 156.8 | I7: 182.9 | J7: 209.1 | K7: 235.2 | L7: 261.3 | M7: 300.5 | N7: 339.7 | O7: 365.8 | P7: =AND(B7>=SOT) -> TRUE | Q7: F03/F05 | R7: 11 | U7: 2 | W7: 2 | X7: 50 PSI | AB7: 2 | AC7: New UT
A8: 0 | B8: =HLOOKUP($X$17,$C$6:$O$10,U8,FALSE) -> 25469 | C8: UT-7-DA | D8: DA 270 | E8: 11 | F8: 12734 | G8: 15919 | H8: 19097 | I8: 22284 | J8: 25469 | K8: 28654 | L8: 31832 | M8: 36611 | N8: 41382 | O8: 44565 | P8: =AND(B8>=SOT) -> TRUE | Q8: F16 | R8: 46 | U8: 3 | W8: 3 | X8: 60 PSI | AB8: 3 | AC8: Automatic
A9: =B8+1 -> 25470 | B9: =HLOOKUP($X$17,$C$6:$O$10,U9,FALSE) -> 99999 | C9: Consult Eng. | E9: 12 | F9: 99999 | G9: 99999 | H9: 99999 | I9: 99999 | J9: 99999 | K9: 99999 | L9: 99999 | M9: 99999 | N9: 99999 | O9: 99999 | P9: =AND(B9>=SOT) -> TRUE | Q9: -- | R9: -- | U9: 4 | W9: 4 | X9: 70 PSI
A10: =B9+1 -> 100000 | B10: =HLOOKUP($X$17,$C$6:$O$10,U10,FALSE) -> 71 | C10: UT-0A-DA | D10: DA 32 | E10: 1 | F10: 34 | G10: 43 | H10: 55 | I10: 64 | J10: 71 | K10: 82 | L10: 87 | M10: 101 | N10: 114 | O10: 123 | P10: =AND(B10>=SOT) -> FALSE | Q10: F03 | R10: 9 | U10: 5 | W10: 5 | X10: 80 PSI | Z10: 2 | AB10: 2 | AC10: =VLOOKUP(AB10,AB6:AC8,2,FALSE) -> New UT
W11: 6 | X11: 90 PSI
W12: 7 | X12: 100 PSI
W13: 8 | X13: 115 PSI
H14: DA_Pneu_Act_New | W14: 9 | X14: 130 PSI
A15: New D. A. Pneumatic Act. Data Table (Table 6B) | H15: A18:P32 | W15: 10 | X15: 140 psi
A16: Torque Range | C16: Pneumatic Actuator Torque Information - Double Acting (lbf-in.) | P16: Act. >= | Q16: Mount | R16: Stem | S16: Cycle Time, s | U16: Lookup
A17: Min | B17: Max | C17: Model No. | D17: Valbia ID | E17: Size Ord. | F17: 40 PSI | G17: 50 PSI | H17: 60 PSI | I17: 70 PSI | J17: 80 PSI | K17: 90 PSI | L17: 100 PSI | M17: 115 PSI | N17: 130 PSI | O17: 140 psi | P17: Va. Open | R17: Sq. | S17: CCW | T17: CW | U17: 5 | W17: 5 | X17: =VLOOKUP(W17,W6:X15,2,FALSE) -> 80 PSI
A18: =B17+1 ->  | B18: =HLOOKUP($X$17,$C$17:$O$32,U18,FALSE) -> 179 | C18: UT-0-DA | D18: DA 52 | E18: 2 | F18: 86 | G18: 110 | H18: 133 | I18: 156 | J18: 179 | K18: 203 | L18: 226 | M18: 261 | N18: 303 | O18: 326 | P18: =AND(B18>=SOT) -> TRUE | Q18: F03/F05 | R18: 11 | S18: 0.07 | T18: 0.05 | U18: 2
A19: 180 | B19: 321 | C19: UT-1-DA | D19: DA 63 | E19: 3 | F19: 154 | G19: 196 | H19: 238 | I19: 280 | J19: 321 | K19: 363 | L19: 405 | M19: 468 | N19: 536 | O19: 577 | P19: TRUE | Q19: F05/F07 | R19: 14 | S19: 0.11 | T19: 0.1 | U19: 3
A20: 322 | B20: 586 | C20: UT-2-DA | D20: DA 75 | E20: 4 | F20: 284 | G20: 360 | H20: 435 | I20: 511 | J20: 586 | K20: 661 | L20: 737 | M20: 850 | N20: 965 | O20: 1039 | P20: TRUE | Q20: F05/F07 | R20: 17 | S20: 0.18 | T20: 0.15 | U20: 4
A21: 587 | B21: 851 | C21: UT-2.5-DA | D21: DA 85 | E21: 5 | F21: 408 | G21: 518 | H21: 629 | I21: 740 | J21: 851 | K21: 962 | L21: 1072 | M21: 1238 | N21: 1374 | O21: 1480 | P21: TRUE | Q21: F05/F07 | R21: 17 | S21: 0.36 | T21: 0.25 | U21: 5
A22: 852 | B22: 1334 | C22: UT-3-DA | D22: DA 100 | E22: 6 | F22: 646 | G22: 818 | H22: 991 | I22: 1163 | J22: 1334 | K22: 1508 | L22: 1681 | M22: 1939 | N22: 2168 | O22: 2335 | P22: TRUE | Q22: F05/F07 | R22: 17 | S22: 0.38 | T22: 0.34 | U22: 6
A23: 1335 | B23: 2210 | C23: UT-3.5-DA | D23: DA 115 | E23: 7 | F23: 1070 | G23: 1355 | H23: 1640 | I23: 1925 | J23: 2210 | K23: 2495 | L23: 2780 | M23: 3208 | N23: 3570 | O23: 3844 | P23: TRUE | Q23: F07/F10 | R23: 22 | S23: 0.6 | T23: 0.54 | U23: 7 | X23: UT-6.5 | Y23: DA 230 | Z23: 8585.3714 | AA23: 10730.7714 | AB23: 12876.1714 | AC23: 15021.5714 | AD23: 17166.9714 | AE23: 19312.3714 | AF23: 21457.7714 | AG23: 24675.8714
A24: 2211 | B24: 2906 | C24: UT-4-DA | D24: DA 125 | E24: 8 | F24: 1409 | G24: 1780 | H24: 2157 | I24: 2532 | J24: 2906 | K24: 3280 | L24: 3654 | M24: 4216 | N24: 4628 | O24: 4984 | P24: TRUE | Q24: F07/F10 | R24: 22 | S24: 0.8 | T24: 0.7 | U24: 8 | X24: DA 330 | Y24: 22460.5724 | Z24: 28075.0724 | AA24: 33689.5724 | AB24: 39304.0724 | AC24: 44918.5724 | AD24: 50533.0724 | AE24: 56147.5724 | AF24: 64569.3224
A25: 2907 | B25: 4008 | C25: UT-4.5-DA | D25: DA 140 | E25: 9 | F25: 2001 | G25: 2503 | H25: 3005 | I25: 3506 | J25: 4008 | K25: 4510 | L25: 5012 | M25: 5765 | N25: =NA() ->  | O25: =NA() ->  | P25: TRUE | Q25: F10/F12 | R25: 27 | S25: 1.13 | T25: 0.94 | U25: 9
A26: =B24+1 -> 2907 | B26: 5859 | C26: UT-5-DA | D26: DA 160 | E26: 10 | F26: 2930 | G26: 3662 | H26: 4394 | I26: 5127 | J26: 5859 | K26: 6591 | L26: 7324 | M26: 8422 | N26: 9521 | O26: 10254 | P26: TRUE | Q26: F10/F12 | R26: 27 | S26: 1.43 | T26: 1.25 | U26: 10
A27: =B26+1 -> 5860 | B27: 10981 | C27: UT-6-DA | D27: DA 200 | E27: 11 | F27: 5488 | G27: 6866 | H27: 8239 | I27: 9612 | J27: 10981 | K27: 12359 | L27: 13732 | M27: 15792 | N27: 17852 | O27: 19225 | P27: TRUE | Q27: F14 | R27: 36 | S27: 3.08 | T27: 2.41 | U27: 11
A28: =B26+1 -> 5860 | B28: 17166.9714 | C28: UT-6.5-DA | D28: DA 230 | E28: 12 | F28: 8585.3714 | G28: 10730.7714 | H28: 12876.1714 | I28: 15021.5714 | J28: 17166.9714 | K28: 19312.3714 | L28: 21457.7714 | M28: 24675.8714 | P28: TRUE | Q28: F16 | R28: 46 | S28: 4.15 | T28: 3.8 | U28: 12
A29: =B27+1 -> 10982 | B29: 25469 | C29: UT-7-DA | D29: DA 270 | E29: 13 | F29: 12734 | G29: 15919 | H29: 19097 | I29: 22284 | J29: 25469 | K29: 28654 | L29: 31832 | M29: 36611 | N29: 41382 | O29: 44565 | P29: TRUE | Q29: F16 | R29: 46 | S29: 6.2 | T29: 5.5 | U29: 13
A30: =B29+1 -> 25470 | B30: 44918.5724 | C30: UT-7.5-DA | D30: DA 330 | E30: 14 | F30: 22460.5724 | G30: 28075.0724 | H30: 33689.5724 | I30: 39304.0724 | J30: 44918.5724 | K30: 50533.0724 | L30: 56147.5724 | M30: 64569.3224 | P30: TRUE | Q30: F16/F25 | R30: 55 | S30: 7.3 | T30: 8.2 | U30: 14
A31: =B30+1 -> 44919.5724 | B31: 99999 | C31: Consult Eng. | E31: 15 | F31: 99999 | G31: 99999 | H31: 99999 | I31: 99999 | J31: 99999 | K31: 99999 | L31: 99999 | M31: 99999 | N31: 99999 | O31: 99999 | P31: TRUE | Q31: -- | R31: -- | S31: -- | T31: -- | U31: 15
A32: 0 | B32: 71 | C32: UT-0A-DA | D32: DA 32 | E32: 1 | F32: 34 | G32: 43 | H32: 55 | I32: 64 | J32: 71 | K32: 82 | L32: 87 | M32: 101 | N32: 114 | O32: 123 | P32: FALSE | Q32: F03 | R32: 9 | S32: 0.03 | T32: 0.03 | U32: 16
A33: New Valbia Model DA (Valbia Cat. 028/A p12) | N33: Calc. | O33: Calc.
A36: Red Italics -- Calculated from 100 psi torque; Valbia did not give torque for new design above 115 psi. | AB36: Old or New UT
AB37: Actuator
AB38: Selection
A42: D. A. Pneumatic Act. Selection Table (Table 6C) | F42: =CHOOSE($AB$10,H3,H14) -> DA_Pneu_Act_New | AB42: This needs to be put
A43: Torque Range | C43: Pneumatic Actuator Torque Information - Double Acting (lbf-in.) | Q43: Mount | R43: Stem | S43: Cycle Time, s | AB43: on Menu sheet if user
A44: Min | B44: Max | C44: Model No. | D44: UT size | E44: Size Ord. | F44: 40 PSI | G44: 50 PSI | H44: 60 PSI | I44: 70 PSI | J44: 80 PSI | K44: 90 PSI | L44: 100 PSI | M44: 115 PSI | N44: 130 PSI | O44: 140 psi | R44: Sq. | S44: CCW | T44: CW | AB44: must select from
A45: =CHOOSE($AB$10,A7,A18) ->  | B45: 179 | C45: UT-0-DA | D45: DA 52 | E45: 2 | F45: 86 | G45: 110 | H45: 133 | I45: 156 | J45: 179 | K45: 203 | L45: 226 | M45: 261 | N45: 303 | O45: 326 | Q45: =CHOOSE($AB$10,Q7,Q18) -> F03/F05 | R45: =CHOOSE($AB$10,R7,R18) -> 11 | S45: =CHOOSE($AB$10,S7,S18) -> 0.07 | T45: 0.05 | AB45: multiple actuator
AB46: brands.
Q48: DA Actuator Note Table | T48: R48:S50
R49: Actuator | S49: Note
Q50: 1 | R50: UT-6.5-DA | S50: Non-stock; consult factory.
Q51: 2 | R51: UT-7.5-DA | S51: Non-stock; consult factory.
Q52: 3
Q55: =VLOOKUP($C$45,$R$50:$S$52,2, FALSE) -> 
Q56: =IF(ISERROR(Q55),"",Q55) -> 

Sheet SR (hidden)
A1: Spring Return Pneumatic Actuator
AJ3: All FC > Req | AK3: All FO > Req | AR3: Valve Start (Break) Open Torque --> Start Open from Closed Position
AJ4: Spr. Start >= | AK4: Spr. Start >= | AR4: Valve End Open Torque --> End Open from Closed Position | AZ4: Fail Safe Spring Return Pneumatic Actuator | BL4: S. R. Pneumatic Act. Press. | BQ4: S. R. Pneumatic Act. Failure
AJ5: Start Closed | AK5: Start Open | AR5: Valve Start Closed Torque --> Start Closed from Open Position | AZ5: =BB28 -> Torque vs. Va. Position -- Fail Closed | BL5: Sel. Menu (Table 10) | BQ5: Mode Menu (Table 11)
AJ6: Spr. End >= | AK6: Spr. End >= | AR6: Valve End Closed Torque --> End Closed from Open Position | BM6: Menu
J7: FS_Pneu_Act | L7: This table not valid; data removed, but 1st and last lines left to maintain program functionality for future alternate actuator. | AJ7: End Closed | AK7: End Open | BL7: 1 | BM7: 40 PSI | BQ7: 1 | BR7: Fail Closed
A8: Old Spring Return Pneumatic Act. Data Table (Table 7A) | J8: A12:AA67 | M8: Old SR Pneumatic Act. | AA8: Old SR Pneumatic Act. | AJ8: Air Start >= | AK8: Air Start >= | BL8: 2 | BM8: 50 PSI | BQ8: 2 | BR8: Fail Open
A9: =CONCATENATE("Air Torq. @ ",$BM$16) -> Air Torq. @ 80 PSI | C9: "Old" Spring Return Pneumatic Act. Torque (lbf-in.) - Sorted by True / False, Act. Size, Min. Torque Ratio | Z9: Fail Close Act. : Va. Required Torque Ratio | AE9: Fail Open Act. : Va. Required Torque Ratio | AJ9: Start Open | AK9: Start Closed | BL9: 3 | BM9: 60 PSI
A10: Start | B10: End | C10: Model No. | D10: Valbia ID | E10: UT No. | F10: Spring | G10: Spr. Set | H10: Spring Torque | J10: 40 PSI | L10: 50 PSI | N10: 60 PSI | P10: 70 PSI | R10: 80 PSI | T10: 90 PSI | V10: 100 PSI | X10: 115 PSI | Z10: Spr. Start | AA10: Spr. End | AB10: Air Start | AC10: Air End | AD10: Min | AE10: Spr. Start | AF10: Spr. End | AG10: Air Start | AH10: Air End | AI10: Min | AJ10: Air End >= | AK10: Air End >= | AL10: Mount | AM10: Stem | AN10: Cycle Time, s | AP10: Lookup | AY10: Act: | BL10: 4 | BM10: 70 PSI | BO10: 1 | BQ10: 1 | BR10: =VLOOKUP(BQ10,BQ7:BR8,2,FALSE) -> Fail Closed
A11: =CONCATENATE($BM$17,"_Start") -> 80_Start | B11: =CONCATENATE($BM$17,"_End") -> 80_End | F11: Set | G11: No. | H11: Start | I11: End | J11: 40_Start | K11: 40_End | L11: 50_Start | M11: 50_End | N11: 60_Start | O11: 60_End | P11: 70_Start | Q11: 70_End | R11: 80_Start | S11: 80_End | T11: 90_Start | U11: 90_End | V11: 100_Start | W11: 100_End | X11: 115_Start | Y11: 115_End | Z11: SCT | AA11: ECT | AB11: SOT | AC11: EOT | AE11: SOT | AF11: EOT | AG11: SCT | AH11: ECT | AJ11: End Open | AK11: End Closed | AM11: Sq. | AN11: CCW | AO11: CW | AP11: Row No. | AR11: Fail Close | AX11: Req. | AY11: Req : Va | BL11: 5 | BM11: 80 PSI
A12: =HLOOKUP($A$11,$C$11:$Y$13,AP12,FALSE) -> 3452 | B12: =HLOOKUP($B$11,$C$11:$Y$13,AP12,FALSE) -> 2240 | C12: UT-5-SR-05 | D12: SR 160 | E12: 5 | F12: 72.6-87 | G12: 5 | H12: 3327 | I12: 2230 | J12: - | K12: - | L12: - | M12: - | N12: - | O12: - | P12: 2737 | Q12: 1507 | R12: 3452 | S12: 2240 | T12: 4175 | U12: 2963 | V12: - | W12: - | X12: - | Y12: - | Z12: =H12/SCT -> 31.99038462 | AA12: =I12/ECT -> 22.75510204 | AB12: =A12/SOT -> 30.0173913 | AC12: =B12/EOT -> 24.34782609 | AD12: =MIN(Z12:AC12) -> 22.75510204 | AE12: =H12/SOT -> 28.93043478 | AF12: =I12/EOT -> 24.23913043 | AG12: =A12/SCT -> 33.19230769 | AH12: =B12/ECT -> 22.85714286 | AI12: =MIN(AE12:AH12) -> 22.85714286 | AJ12: =AND(H12>=SCT,I12>=ECT,A12>=SOT,B12>=EOT,A12<>"-",B12<>"-") -> TRUE | AK12: =AND(H12>=SOT,I12>=EOT,A12>=SCT,B12>=ECT,A12<>"-",B12<>"-") -> TRUE | AL12: F10/F12 | AM12: 27 | AP12: 2 | AR12: Stroke Cell | AT12: Act. Stroke | AV12: Act Torq | AW12: Compare | AX12: Va Torq | AY12: Ratio | BL12: 6 | BM12: 90 PSI
A13: =HLOOKUP($A$11,$C$11:$Y$13,AP13,FALSE) -> - | B13: =HLOOKUP($B$11,$C$11:$Y$13,AP53,FALSE) -> - | C13: UT-7-SR-01 | D13: SR 270 | E13: 7 | F13: 40 | G13: 1 | H13: 6973 | I13: 4469 | J13: 8574 | K13: 6017 | L13: 11883 | M13: 9317 | N13: 15309 | O13: 12743 | P13: - | Q13: - | R13: - | S13: - | T13: - | U13: - | V13: - | W13: - | X13: - | Y13: - | Z13: =H13/SCT -> 67.04807692 | AA13: =I13/ECT -> 45.60204082 | AB13: =A13/SOT ->  | AC13: =B13/EOT ->  | AD13: =MIN(Z13:AC13) ->  | AE13: =H13/SOT -> 60.63478261 | AF13: =I13/EOT -> 48.57608696 | AG13: =A13/SCT ->  | AH13: =B13/ECT ->  | AI13: =MIN(AE13:AH13) ->  | AJ13: =AND(H13>=SCT,I13>=ECT,A13>=SOT,B13>=EOT,A13<>"-",B13<>"-") -> FALSE | AK13: =AND(H13>=SOT,I13>=EOT,A13>=SCT,B13>=ECT,A13<>"-",B13<>"-") -> FALSE | AL13: F16 | AM13: 46 | AP13: 3 | AR13: H12 | AU13: Spr. Start Torque = | AV13: =$H$12 -> 3327 | AW13: >= Start Closed | AX13: =SCT -> 104 | AY13: =AV13/AX13 -> 31.99038462 | BL13: 7 | BM13: 100 PSI
AR14: I12 | AU14: Spr. End Torque = | AV14: =$I$12 -> 2230 | AW14: >= End Closed | AX14: =ECT -> 98 | AY14: =AV14/AX14 -> 22.75510204 | BL14: 8 | BM14: 115 PSI
AR15: A12 | AU15: Air Start Torque = | AV15: =$A$12 -> 3452 | AW15: >= Start Open | AX15: =SOT -> 115 | AY15: =AV15/AX15 -> 30.0173913
AR16: B12 | AU16: Air End Torque = | AV16: =$B$12 -> 2240 | AW16: >= End Open | AX16: =EOT -> 92 | AY16: =AV16/AX16 -> 24.34782609 | BJ16: 5 | BL16: 5 | BM16: =VLOOKUP(BL16,BL7:BM14,2,FALSE) -> 80 PSI
AU17: Min. FC Act Torque = | AV17: =MIN(AV13:AV16) -> 2230 | AW17: Min. FC Req : Va | AY17: =MIN(AY13:AY16) -> 22.75510204 | BM17: =LEFT($BM$16,LEN($BM$16)-4) -> 80 | BN17: text
AR18: F.C. Information for S.R. Pneumatic Act. | BM18: =IF(VALUE(BM17)<60,40,IF(VALUE(BM17)<80,60,80)) -> 80 | BN18: number
AR19: Vs. Va. Torque Comparison (Table 7B)
AR20: =IF($H$12>SCT,$H$12&" Spr. Start >= "&SCT&" Start Closed -- OK", $H$12&" Spr. Start < "&SCT&" Start Closed -- Not OK") -> 3327 Spr. Start >= 104 Start Closed -- OK | AW20: AD20:AD23
AR21: =IF($I$12>ECT,$I$12&" Spr. End >= "&ECT&" End Closed -- OK", $I$12&" Spr. End < "&ECT&" End Closed -- Not OK") -> 2230 Spr. End >= 98 End Closed -- OK
AR22: =IF($A$12>SOT,$A$12&" Air Start >= "&SOT&" Start Open -- OK",$A$12&" Air Start < "&SOT&" Start Open -- Not OK") -> 3452 Air Start >= 115 Start Open -- OK
AR23: =IF($B$12>EOT,$B$12&" Air End >= "&EOT&" End Open -- OK",$B$12&" Air End < "&EOT&" End Open -- Not OK") -> 2240 Air End >= 92 End Open -- OK
AY25: Act:
AR26: Fail Open | AX26: Req. | AY26: Req : Va
AR27: Stroke Cell | AT27: Act. Stroke | AV27: Act Torq | AW27: Compare | AX27: Va Torq | AY27: Ratio
AR28: H12 | AU28: Spr. Start Torque = | AV28: =$H$12 -> 3327 | AW28: >= Start Open | AX28: =SOT -> 115 | AY28: =AV28/AX28 -> 28.93043478 | BA28: Title: | BB28: =CHOOSE($BQ$10,"Torque vs. Va. Position -- Fail Closed", "Torque vs. Va. Position -- Fail Open") -> Torque vs. Va. Position -- Fail Closed
AR29: I12 | AU29: Spr. End Torque = | AV29: =$I$12 -> 2230 | AW29: >= End Open | AX29: =EOT -> 92 | AY29: =AV29/AX29 -> 24.23913043
AR30: A12 | AU30: Air Start Torque = | AV30: =$A$12 -> 3452 | AW30: >= Start Closed | AX30: =SCT -> 104 | AY30: =AV30/AX30 -> 33.19230769 | BB30: Postion | BC30: Req. Va. Closing | BD30: Req. Va. Opening | BE30: =CHOOSE($BQ$10,"Spr. Closing", "Spr. Opening") -> Spr. Closing | BF30: =CHOOSE($BQ$10,"Air Opening", "Air Closing") -> Air Opening
AR31: B12 | AU31: Air End Torque = | AV31: =$B$12 -> 2240 | AW31: >= End Closed | AX31: =ECT -> 98 | AY31: =AV31/AX31 -> 22.85714286 | BA31: Closed | BB31: 0 | BC31: =ECT -> 98 | BD31: =SOT -> 115 | BE31: =CHOOSE($BQ$10,$I$12,$H$12) -> 2230 | BF31: =CHOOSE($BQ$10,$A$12,$B$12) -> 3452
AU32: Min. FO Act Torque = | AV32: =MIN(AV28:AV31) -> 2230 | AW32: Min. FO Req : Va | AY32: =MIN(AY28:AY31) -> 22.85714286 | BB32: 15 | BC32: =0.7*SOT -> 80.5 | BD32: =0.72*SOT -> 82.8 | BE32: =NA() ->  | BF32: =NA() -> 
AR33: F.O. Information for S.R. Pneumatic Act. | BB33: 30 | BC33: =0.7*SOT -> 80.5 | BD33: =0.72*SOT -> 82.8 | BE33: =NA() ->  | BF33: =NA() -> 
AR34: Vs. Va. Torque Comparison (Table 7C) | BB34: 45 | BC34: =0.7*SOT -> 80.5 | BD34: =0.72*SOT -> 82.8 | BE34: =NA() ->  | BF34: =NA() -> 
AR35: =IF($H$12>SOT,$H$12&" Spr. Start >= "&SOT&" Start Open -- OK", $H$12&" Spr. Star < "&SOT& " Start Open -- Not OK") -> 3327 Spr. Start >= 115 Start Open -- OK | AW35: AD34:AD38 | BB35: 60 | BC35: =0.7*SOT -> 80.5 | BD35: =0.72*SOT -> 82.8 | BE35: =NA() ->  | BF35: =NA() -> 
AR36: =IF($I$12>EOT,$I$12&" Spr. End >= "&EOT&" End Open -- OK", $I$12&" Spr. End < "&EOT&" End Open -- Not OK") -> 2230 Spr. End >= 92 End Open -- OK | BB36: 75 | BC36: =0.7*SOT -> 80.5 | BD36: =0.72*SOT -> 82.8 | BE36: =NA() ->  | BF36: =NA() -> 
AR37: =IF($A$12>SCT,$A$12&" Air Start >= "&SCT&" Start Closed -- OK",$A$12& " Air Start < "&SCT&" Start Closed -- Not OK") -> 3452 Air Start >= 104 Start Closed -- OK | BA37: Open | BB37: 90 | BC37: =SCT -> 104 | BD37: =EOT -> 92 | BE37: =CHOOSE($BQ$10,$H$12, $I$12) -> 3327 | BF37: =CHOOSE($BQ$10,$B$12,$A$12) -> 2240
AR38: =IF($B$12>ECT,$B$12&" Air End >= "&ECT&" End Closed -- OK",$B$12&" Air End < "&ECT& " End Closed -- Not OK") -> 2240 Air End >= 98 End Closed -- OK
E42: Sort Order 2 | AD42: FC Sort Order 3 | AI42: FC Sort Ord. 3 | AJ42: FC Sort Ord. 1 | AK42: FO Sort Ord. 1
AJ43: All FC > Req | AK43: All FO > Req | AR43: Valve Start (Break) Open Torque --> Start Open from Closed Position
AJ44: Spr. Start >= | AK44: Spr. Start >= | AR44: Valve End Open Torque --> End Open from Closed Position | AZ44: Fail Safe Spring Return Pneumatic Actuator
AJ45: Start Closed | AK45: Start Open | AR45: Valve Start Closed Torque --> Start Closed from Open Position | AZ45: =BB64 -> Torque vs. Va. Position -- Fail Closed
AJ46: Spr. End >= | AK46: Spr. End >= | AR46: Valve End Closed Torque --> End Closed from Open Position
J47: FS_Pneu_Act_New | AJ47: End Closed | AK47: End Open
A48: New Spring Return Pneumatic Act. Data Table (Table 7B) | J48: A52:AO126 | M48: New SR Pneumatic Act. | AA48: New SR Pneumatic Act. | AJ48: Air Start >= | AK48: Air Start >=
A49: =CONCATENATE("Air Torq. @ ",$BM$16) -> Air Torq. @ 80 PSI | C49: "New" Spring Return Pneumatic Act. Torque (lbf-in.) - Sorted by True / False, Act. Size, Min. Torque Ratio | Z49: Fail Close Act. : Va. Required Torque Ratio | AE49: Fail Open Act. : Va. Required Torque Ratio | AJ49: Start Open | AK49: Start Closed
A50: Start | B50: End | C50: Model No. | D50: Valbia ID | E50: UT size | F50: Spring | G50: Spr. Set | H50: Spring Torque | J50: 40 PSI | L50: 50 PSI | N50: 60 PSI | P50: 70 PSI | R50: 80 PSI | T50: 90 PSI | V50: 100 PSI | X50: 115 PSI | Z50: Spr. Start | AA50: Spr. End | AB50: Air Start | AC50: Air End | AD50: Min | AE50: Spr. Start | AF50: Spr. End | AG50: Air Start | AH50: Air End | AI50: Min | AJ50: Air End >= | AK50: Air End >= | AL50: Mount | AM50: Stem | AN50: Cycle Time, s | AP50: Lookup | AY50: Act:
A51: =CONCATENATE($BM$17,"_Start") -> 80_Start | B51: =CONCATENATE($BM$17,"_End") -> 80_End | F51: Set Press | G51: No. | H51: Start | I51: End | J51: 40_Start | K51: 40_End | L51: 50_Start | M51: 50_End | N51: 60_Start | O51: 60_End | P51: 70_Start | Q51: 70_End | R51: 80_Start | S51: 80_End | T51: 90_Start | U51: 90_End | V51: 100_Start | W51: 100_End | X51: 115_Start | Y51: 115_End | Z51: SCT | AA51: ECT | AB51: SOT | AC51: EOT | AE51: SOT | AF51: EOT | AG51: SCT | AH51: ECT | AJ51: End Open | AK51: End Closed | AM51: Sq. | AN51: CCW | AO51: CW | AP51: Row No. | AR51: Fail Close | AX51: Req. | AY51: Req : Va
A52: =HLOOKUP($A$51,$C$51:$Y$126,AP52,FALSE) -> 193 | B52: =HLOOKUP($B$51,$C$51:$Y$126,AP52,FALSE) -> 95 | C52: UT-1-SR-05 | D52: SR 63 | E52: 1 | F52: 79.8-87 | G52: 5 | H52: 196 | I52: 111 | J52: - | K52: - | L52: - | M52: - | N52: - | O52: - | P52: 151 | Q52: 53 | R52: 193 | S52: 95 | T52: 235 | U52: 136 | V52: 276 | W52: 178 | X52: 339 | Y52: 241 | Z52: =H52/SCT -> 1.884615385 | AA52: =I52/ECT -> 1.132653061 | AB52: =A52/SOT -> 1.67826087 | AC52: =B52/EOT -> 1.032608696 | AD52: =MIN(Z52:AC52) -> 1.032608696 | AE52: =H52/SOT -> 1.704347826 | AF52: =I52/EOT -> 1.206521739 | AG52: =A52/SCT -> 1.855769231 | AH52: =B52/ECT -> 0.9693877551 | AI52: =MIN(AE52:AH52) -> 0.9693877551 | AJ52: =AND(H52>=SCT,I52>=ECT,A52>=SOT,B52>=EOT,A52<>"-",B52<>"-") -> TRUE | AK52: =AND(H52>=SOT,I52>=EOT,A52>=SCT,B52>=ECT,A52<>"-",B52<>"-") -> FALSE | AL52: F05/F07 | AM52: 14 | AN52: 0.13 | AO52: 0.13 | AP52: 2 | AR52: Stroke Cell | AT52: Act. Stroke | AV52: Act Torq | AW52: Compare | AX52: Va Torq | AY52: Ratio
A53: 354 | B53: 157 | C53: UT-2-SR-05 | D53: SR 75 | E53: 2 | F53: 79.8-87 | G53: 5 | H53: 380 | I53: 205 | J53: - | K53: - | L53: - | M53: - | N53: - | O53: - | P53: 279 | Q53: 81 | R53: 354 | S53: 157 | T53: 430 | U53: 232 | V53: 505 | W53: 303 | X53: 618 | Y53: 421 | Z53: 3.653846154 | AA53: 2.091836735 | AB53: 3.07826087 | AC53: 1.706521739 | AD53: 1.706521739 | AE53: 3.304347826 | AF53: 2.22826087 | AG53: 3.403846154 | AH53: 1.602040816 | AI53: 1.602040816 | AJ53: TRUE | AK53: TRUE | AL53: F05/F07 | AM53: 17 | AN53: 0.32 | AO53: 0.3 | AP53: 3 | AR53: H80 | AU53: Spr. Start Torque = | AV53: =$H$52 -> 196 | AW53: >= Start Closed | AX53: =SCT -> 104 | AY53: =AV53/AX53 -> 1.884615385
A54: 398 | B54: 234 | C54: UT-2-SR-04 | D54: SR 75 | E54: 2 | F54: 72.5-79.8 | G54: 4 | H54: 303 | I54: 162 | J54: - | K54: - | L54: - | M54: - | N54: 247 | O54: 83 | P54: 322 | Q54: 158 | R54: 398 | S54: 234 | T54: 473 | U54: 309 | V54: 549 | W54: 385 | X54: - | Y54: - | Z54: 2.913461538 | AA54: 1.653061224 | AB54: 3.460869565 | AC54: 2.543478261 | AD54: 1.653061224 | AE54: 2.634782609 | AF54: 1.760869565 | AG54: 3.826923077 | AH54: 2.387755102 | AI54: 1.760869565 | AJ54: TRUE | AK54: TRUE | AL54: F05/F07 | AM54: 17 | AN54: 0.32 | AO54: 0.3 | AP54: 4 | AR54: I80 | AU54: Spr. End Torque = | AV54: =$I$52 -> 111 | AW54: >= End Closed | AX54: =ECT -> 98 | AY54: =AV54/AX54 -> 1.132653061
A55: 426 | B55: 288 | C55: UT-2-SR-03 | D55: SR 75 | E55: 2 | F55: 58-72.5 | G55: 3 | H55: 249 | I55: 133 | J55: - | K55: - | L55: - | M55: - | N55: 275 | O55: 137 | P55: 351 | Q55: 212 | R55: 426 | S55: 288 | T55: 502 | U55: 363 | V55: - | W55: - | X55: - | Y55: - | Z55: 2.394230769 | AA55: 1.357142857 | AB55: 3.704347826 | AC55: 3.130434783 | AD55: 1.357142857 | AE55: 2.165217391 | AF55: 1.445652174 | AG55: 4.096153846 | AH55: 2.93877551 | AI55: 1.445652174 | AJ55: TRUE | AK55: TRUE | AL55: F05/F07 | AM55: 17 | AN55: 0.32 | AO55: 0.3 | AP55: 5 | AR55: A80 | AU55: Air Start Torque = | AV55: =$A$52 -> 193 | AW55: >= Start Open | AX55: =SOT -> 115 | AY55: =AV55/AX55 -> 1.67826087
A56: 503 | B56: 257 | C56: UT-2.5-SR-05 | D56: SR 85 | E56: 2.5 | F56: 79.8-87 | G56: 5 | H56: 536 | I56: 321 | J56: - | K56: - | L56: - | M56: - | N56: - | O56: - | P56: 392 | Q56: 146 | R56: 503 | S56: 257 | T56: 614 | U56: 368 | V56: 725 | W56: 478 | X56: 891 | Y56: 645 | Z56: 5.153846154 | AA56: 3.275510204 | AB56: 4.373913043 | AC56: 2.793478261 | AD56: 2.793478261 | AE56: 4.660869565 | AF56: 3.489130435 | AG56: 4.836538462 | AH56: 2.62244898 | AI56: 2.62244898 | AJ56: TRUE | AK56: TRUE | AL56: F05/F07 | AM56: 17 | AN56: 0.32 | AO56: 0.3 | AP56: 6 | AR56: B80 | AU56: Air End Torque = | AV56: =$B$52 -> 95 | AW56: >= End Open | AX56: =EOT -> 92 | AY56: =AV56/AX56 -> 1.032608696
A57: 576 | B57: 376 | C57: UT-2.5-SR-04 | D57: SR 85 | E57: 2.5 | F57: 72.5-79.8 | G57: 4 | H57: 417 | I57: 248 | J57: - | K57: - | L57: - | M57: - | N57: 354 | O57: 155 | P57: 465 | Q57: 265 | R57: 576 | S57: 376 | T57: 687 | U57: 487 | V57: 797 | W57: 633 | X57: - | Y57: - | Z57: 4.009615385 | AA57: 2.530612245 | AB57: 5.008695652 | AC57: 4.086956522 | AD57: 2.530612245 | AE57: 3.626086957 | AF57: 2.695652174 | AG57: 5.538461538 | AH57: 3.836734694 | AI57: 2.695652174 | AJ57: TRUE | AK57: TRUE | AL57: F05/F07 | AM57: 17 | AN57: 0.32 | AO57: 0.3 | AP57: 7 | AU57: Min. FC Act Torque = | AV57: =MIN(AV53:AV56) -> 95 | AW57: Min. FC Req : Va | AY57: =MIN(AY53:AY56) -> 1.032608696
A58: 609 | B58: 432 | C58: UT-2.5-SR-03 | D58: SR 85 | E58: 2.5 | F58: 58-72.5 | G58: 3 | H58: 361 | I58: 215 | J58: - | K58: - | L58: - | M58: - | N58: 387 | O58: 211 | P58: 498 | Q58: 322 | R58: 609 | S58: 432 | T58: 720 | U58: 543 | V58: - | W58: - | X58: - | Y58: - | Z58: 3.471153846 | AA58: 2.193877551 | AB58: 5.295652174 | AC58: 4.695652174 | AD58: 2.193877551 | AE58: 3.139130435 | AF58: 2.336956522 | AG58: 5.855769231 | AH58: 4.408163265 | AI58: 2.336956522 | AJ58: TRUE | AK58: TRUE | AL58: F05/F07 | AM58: 17 | AN58: 0.32 | AO58: 0.3 | AP58: 8 | AR58: F.C. Information for S.R. Pneumatic Act.
A59: 802 | B59: 378 | C59: UT-3-SR-05 | D59: SR 100 | E59: 3 | F59: 79.8-87 | G59: 5 | H59: 860 | I59: 489 | J59: - | K59: - | L59: - | M59: - | N59: - | O59: - | P59: 630 | Q59: 206 | R59: 802 | S59: 378 | T59: 975 | U59: 551 | V59: 1147 | W59: 723 | X59: 1443 | Y59: 1027 | Z59: 8.269230769 | AA59: 4.989795918 | AB59: 6.973913043 | AC59: 4.108695652 | AD59: 4.108695652 | AE59: 7.47826087 | AF59: 5.315217391 | AG59: 7.711538462 | AH59: 3.857142857 | AI59: 3.857142857 | AJ59: TRUE | AK59: TRUE | AL59: F07/F10 | AM59: 17 | AN59: 0.54 | AO59: 0.48 | AP59: 9 | AR59: Vs. Va. Torque Comparison (Table 7B)
A60: 903 | B60: 548 | C60: UT-3-SR-04 | D60: SR 100 | E60: 3 | F60: 72.5-79.8 | G60: 4 | H60: 691 | I60: 389 | J60: - | K60: - | L60: - | M60: - | N60: 558 | O60: 203 | P60: 730 | Q60: 375 | R60: 903 | S60: 548 | T60: 1075 | U60: 720 | V60: 1248 | W60: 893 | X60: - | Y60: - | Z60: 6.644230769 | AA60: 3.969387755 | AB60: 7.852173913 | AC60: 5.956521739 | AD60: 3.969387755 | AE60: 6.008695652 | AF60: 4.22826087 | AG60: 8.682692308 | AH60: 5.591836735 | AI60: 4.22826087 | AJ60: TRUE | AK60: TRUE | AL60: F07/F10 | AM60: 17 | AN60: 0.54 | AO60: 0.48 | AP60: 10 | AR60: =IF($I$52>SCT,$I$52&" Spr. Start >= "&SCT&" Start Closed -- OK", $I$52&" Spr. Start < "&SCT&" Start Closed -- Not OK") -> 111 Spr. Start >= 104 Start Closed -- OK | AW60: AD88:AD91
A61: 973 | B61: 674 | C61: UT-3-SR-03 | D61: SR 100 | E61: 3 | F61: 58 -72.5 | G61: 3 | H61: 564 | I61: 318 | J61: - | K61: - | L61: - | M61: - | N61: 628 | O61: 329 | P61: 801 | Q61: 502 | R61: 973 | S61: 674 | T61: 1146 | U61: 847 | V61: - | W61: - | X61: - | Y61: - | Z61: 5.423076923 | AA61: 3.244897959 | AB61: 8.460869565 | AC61: 7.326086957 | AD61: 3.244897959 | AE61: 4.904347826 | AF61: 3.456521739 | AG61: 9.355769231 | AH61: 6.87755102 | AI61: 3.456521739 | AJ61: TRUE | AK61: TRUE | AL61: F07/F10 | AM61: 17 | AN61: 0.54 | AO61: 0.48 | AP61: 11 | AR61: =IF($H$52>ECT,$H$52&" Spr. End >= "&ECT&" End Closed -- OK", $H$52&" Spr. End < "&ECT&" End Closed -- Not OK") -> 196 Spr. End >= 98 End Closed -- OK
A62: 1352 | B62: 637 | C62: UT-3.5-SR-05 | D62: SR 115 | E62: 3.5 | F62: 79.8-87 | G62: 5 | H62: 1432 | I62: 800 | J62: - | K62: - | L62: - | M62: - | N62: - | O62: - | P62: 1067 | Q62: 352 | R62: 1352 | S62: 637 | T62: 1638 | U62: 922 | V62: 1923 | W62: 1207 | X62: 2350 | Y62: 1635 | Z62: 13.76923077 | AA62: 8.163265306 | AB62: 11.75652174 | AC62: 6.923913043 | AD62: 6.923913043 | AE62: 12.45217391 | AF62: 8.695652174 | AG62: 13 | AH62: 6.5 | AI62: 6.5 | AJ62: TRUE | AK62: TRUE | AL62: F07/F10 | AM62: 22 | AN62: 0.92 | AO62: 0.75 | AP62: 12 | AR62: =IF($A$52>SOT,$A$52&" Air Start >= "&SOT&" Start Open -- OK",$A$52&" Air Start < "&SOT&" Start Open -- Not OK") -> 193 Air Start >= 115 Start Open -- OK
A63: 1528 | B63: 935 | C63: UT-3.5-SR-04 | D63: SR 115 | E63: 3.5 | F63: 72.5-79.8 | G63: 4 | H63: 1133 | I63: 625 | J63: - | K63: - | L63: - | M63: - | N63: 958 | O63: 365 | P63: 1243 | Q63: 650 | R63: 1528 | S63: 935 | T63: 1813 | U63: 1220 | V63: 2098 | W63: 1505 | X63: - | Y63: - | Z63: 10.89423077 | AA63: 6.37755102 | AB63: 13.28695652 | AC63: 10.16304348 | AD63: 6.37755102 | AE63: 9.852173913 | AF63: 6.793478261 | AG63: 14.69230769 | AH63: 9.540816327 | AI63: 6.793478261 | AJ63: TRUE | AK63: TRUE | AL63: F07/F10 | AM63: 22 | AN63: 0.92 | AO63: 0.75 | AP63: 13 | AR63: =IF($B$52>EOT,$B$52&" Air End >= "&EOT&" End Open -- OK",$B$52&" Air End < "&EOT&" End Open -- Not OK") -> 95 Air End >= 92 End Open -- OK
A64: 1615 | B64: 1112 | C64: UT-3.5-SR-03 | D64: SR 115 | E64: 3.5 | F64: 58-72.5 | G64: 3 | H64: 957 | I64: 538 | J64: - | K64: - | L64: - | M64: - | N64: 1044 | O64: 541 | P64: 1329 | Q64: 827 | R64: 1615 | S64: 1112 | T64: 1900 | U64: 1397 | V64: - | W64: - | X64: - | Y64: - | Z64: 9.201923077 | AA64: 5.489795918 | AB64: 14.04347826 | AC64: 12.08695652 | AD64: 5.489795918 | AE64: 8.32173913 | AF64: 5.847826087 | AG64: 15.52884615 | AH64: 11.34693878 | AI64: 5.847826087 | AJ64: TRUE | AK64: TRUE | AL64: F07/F10 | AM64: 22 | AN64: 0.92 | AO64: 0.75 | AP64: 14 | BA64: Title: | BB64: =CHOOSE($BQ$10,"Torque vs. Va. Position -- Fail Closed", "Torque vs. Va. Position -- Fail Open") -> Torque vs. Va. Position -- Fail Closed
A65: 1762 | B65: 789 | C65: UT-4-SR-05 | D65: SR 125 | E65: 4 | F65: 79.8-87 | G65: 5 | H65: 1913 | I65: 1055 | J65: - | K65: - | L65: - | M65: - | N65: - | O65: - | P65: 1388 | Q65: 415 | R65: 1762 | S65: 789 | T65: 2136 | U65: 1164 | V65: 2511 | W65: 1538 | X65: 3072 | Y65: 2099 | Z65: 18.39423077 | AA65: 10.76530612 | AB65: 15.32173913 | AC65: 8.576086957 | AD65: 8.576086957 | AE65: 16.63478261 | AF65: 11.4673913 | AG65: 16.94230769 | AH65: 8.051020408 | AI65: 8.051020408 | AJ65: TRUE | AK65: TRUE | AL65: F07/F10 | AM65: 22 | AN65: 1.2 | AO65: 0.94 | AP65: 15
A66: 2010 | B66: 1226 | C66: UT-4-SR-04 | D66: SR 125 | E66: 4 | F66: 72.5-79.8 | G66: 4 | H66: 1477 | I66: 808 | J66: - | K66: - | L66: - | M66: - | N66: 1261 | O66: 477 | P66: 1636 | Q66: 851 | R66: 2010 | S66: 1226 | T66: 2389 | U66: 1600 | V66: 2758 | W66: 1974 | X66: - | Y66: - | Z66: 14.20192308 | AA66: 8.244897959 | AB66: 17.47826087 | AC66: 13.32608696 | AD66: 8.244897959 | AE66: 12.84347826 | AF66: 8.782608696 | AG66: 19.32692308 | AH66: 12.51020408 | AI66: 8.782608696 | AJ66: TRUE | AK66: TRUE | AL66: F07/F10 | AM66: 22 | AN66: 1.2 | AO66: 0.94 | AP66: 16 | AY66: Act: | BB66: Postion | BC66: Req. Va. Closing | BD66: Req. Va. Opening | BE66: =CHOOSE($BQ$10,"Spr. Closing", "Spr. Opening") -> Spr. Closing | BF66: =CHOOSE($BQ$10,"Air Opening", "Air Closing") -> Air Opening
A67: 2099 | B67: 1389 | C67: UT-4-SR-03 | D67: SR 125 | E67: 4 | F67: 58-72.5 | G67: 3 | H67: 1313 | I67: 718 | J67: - | K67: - | L67: - | M67: - | N67: 1351 | O67: 640 | P67: 1725 | Q67: 1015 | R67: 2099 | S67: 1389 | T67: 2474 | U67: 1763 | V67: - | W67: - | X67: - | Y67: - | Z67: 12.625 | AA67: 7.326530612 | AB67: 18.25217391 | AC67: 15.09782609 | AD67: 7.326530612 | AE67: 11.4173913 | AF67: 7.804347826 | AG67: 20.18269231 | AH67: 14.17346939 | AI67: 7.804347826 | AJ67: TRUE | AK67: TRUE | AL67: F07/F10 | AM67: 22 | AN67: 1.2 | AO67: 0.94 | AP67: 17 | AR67: Fail Open | AX67: Req. | AY67: Req : Va | BA67: Closed | BB67: 0 | BC67: =ECT -> 98 | BD67: =SOT -> 115 | BE67: =CHOOSE($BQ$10,$I$52,$H$52) -> 111 | BF67: =CHOOSE($BQ$10,$A$52,$B$52) -> 193
A68: 2813 | B68: 1671 | C68: UT-4.5-SR-04 | D68: SR 140 | E68: 4.5 | F68: 58-101.5 | G68: 4 | H68: 2124 | I68: 1133 | J68: - | K68: - | L68: - | M68: - | N68: 1807 | O68: 665 | P68: 2310 | Q68: 1168 | R68: 2813 | S68: 1671 | T68: 3316 | U68: 2174 | V68: 3819 | W68: 2677 | X68: - | Y68: - | Z68: 20.42307692 | AA68: 11.56122449 | AB68: 24.46086957 | AC68: 18.16304348 | AD68: 11.56122449 | AE68: 18.46956522 | AF68: 12.31521739 | AG68: 27.04807692 | AH68: 17.05102041 | AI68: 12.31521739 | AJ68: TRUE | AK68: TRUE | AL68: F10/F12 | AM68: 27 | AN68: 1.64 | AO68: 1.25 | AP68: 18 | AR68: Stroke Cell | AT68: Act. Stroke | AV68: Act Torq | AW68: Compare | AX68: Va Torq | AY68: Ratio | BB68: 15 | BC68: =0.7*SOT -> 80.5 | BD68: =0.72*SOT -> 82.8 | BE68: =NA() ->  | BF68: =NA() -> 
A69: 2482 | B69: 1018 | C69: UT-4.5-SR-05 | D69: SR 140 | E69: 4.5 | F69: 72.5-116 | G69: 5 | H69: 2726 | I69: 1452 | J69: - | K69: - | L69: - | M69: - | N69: - | O69: - | P69: 1981 | Q69: 516 | R69: 2482 | S69: 1018 | T69: 2982 | U69: 1520 | V69: 3483 | W69: 2022 | X69: 4239 | Y69: 2775 | Z69: 26.21153846 | AA69: 14.81632653 | AB69: 21.5826087 | AC69: 11.06521739 | AD69: 11.06521739 | AE69: 23.70434783 | AF69: 15.7826087 | AG69: 23.86538462 | AH69: 10.3877551 | AI69: 10.3877551 | AJ69: TRUE | AK69: TRUE | AL69: F10/F12 | AM69: 27 | AN69: 1.64 | AO69: 1.25 | AP69: 19 | AR69: H80 | AU69: Spr. Start Torque = | AV69: =$H$52 -> 196 | AW69: >= Start Open | AX69: =SOT -> 115 | AY69: =AV69/AX69 -> 1.704347826 | BB69: 30 | BC69: =0.7*SOT -> 80.5 | BD69: =0.72*SOT -> 82.8 | BE69: =NA() ->  | BF69: =NA() -> 
A70: 2916 | B70: 1862 | C70: UT-4.5-SR-03 | D70: SR 140 | E70: 4.5 | F70: 58-87 | G70: 3 | H70: 1956 | I70: 1036 | J70: - | K70: - | L70: - | M70: - | N70: 1915 | O70: 861 | P70: 2415 | Q70: 1362 | R70: 2916 | S70: 1862 | T70: 3416 | U70: 2363 | V70: - | W70: - | X70: - | Y70: - | Z70: 18.80769231 | AA70: 10.57142857 | AB70: 25.35652174 | AC70: 20.23913043 | AD70: 10.57142857 | AE70: 17.00869565 | AF70: 11.26086957 | AG70: 28.03846154 | AH70: 19 | AI70: 11.26086957 | AJ70: TRUE | AK70: TRUE | AL70: F10/F12 | AM70: 27 | AN70: 1.64 | AO70: 1.25 | AP70: 20 | AR70: I80 | AU70: Spr. End Torque = | AV70: =$I$52 -> 111 | AW70: >= End Open | AX70: =EOT -> 92 | AY70: =AV70/AX70 -> 1.206521739 | BB70: 45 | BC70: =0.7*SOT -> 80.5 | BD70: =0.72*SOT -> 82.8 | BE70: =NA() ->  | BF70: =NA() -> 
A71: 3452 | B71: 2240 | C71: UT-5-SR-05 | D71: SR 160 | E71: 5 | F71: 72.6-87 | G71: 5 | H71: 3327 | I71: 2230 | J71: - | K71: - | L71: - | M71: - | N71: - | O71: - | P71: 2737 | Q71: 1507 | R71: 3452 | S71: 2240 | T71: 4175 | U71: 2963 | V71: - | W71: - | X71: - | Y71: - | Z71: 31.99038462 | AA71: 22.75510204 | AB71: 30.0173913 | AC71: 24.34782609 | AD71: 22.75510204 | AE71: 28.93043478 | AF71: 24.23913043 | AG71: 33.19230769 | AH71: 22.85714286 | AI71: 22.85714286 | AJ71: TRUE | AK71: TRUE | AL71: F10/F12 | AM71: 27 | AN71: 2.27 | AO71: 1.6 | AP71: 21 | AR71: A80 | AU71: Air Start Torque = | AV71: =$A$52 -> 193 | AW71: >= Start Closed | AX71: =SCT -> 104 | AY71: =AV71/AX71 -> 1.855769231 | BB71: 60 | BC71: =0.7*SOT -> 80.5 | BD71: =0.72*SOT -> 82.8 | BE71: =NA() ->  | BF71: =NA() -> 
A72: 3886 | B72: 2779 | C72: UT-5-SR-04 | D72: SR 160 | E72: 5 | F72: 58-79.8 | G72: 4 | H72: 2841 | I72: 1770 | J72: - | K72: - | L72: - | M72: - | N72: 2447 | O72: 1350 | P72: 3162 | Q72: 2074 | R72: 3886 | S72: 2779 | T72: - | U72: - | V72: - | W72: - | X72: - | Y72: - | Z72: 27.31730769 | AA72: 18.06122449 | AB72: 33.79130435 | AC72: 30.20652174 | AD72: 18.06122449 | AE72: 24.70434783 | AF72: 19.23913043 | AG72: 37.36538462 | AH72: 28.35714286 | AI72: 19.23913043 | AJ72: TRUE | AK72: TRUE | AL72: F10/F12 | AM72: 27 | AN72: 2.27 | AO72: 1.6 | AP72: 22 | AR72: B80 | AU72: Air End Torque = | AV72: =$B$52 -> 95 | AW72: >= End Closed | AX72: =ECT -> 98 | AY72: =AV72/AX72 -> 0.9693877551 | BB72: 75 | BC72: =0.7*SOT -> 80.5 | BD72: =0.72*SOT -> 82.8 | BE72: =NA() ->  | BF72: =NA() -> 
A73: 2983 | B73: 1443 | C73: UT-5-SR-06 | D73: SR 160 | E73: 5 | F73: 87-101.6 | G73: 6 | H73: 4186 | I73: 2655 | J73: - | K73: - | L73: - | M73: - | N73: - | O73: - | P73: - | Q73: - | R73: 2983 | S73: 1443 | T73: 3715 | U73: 2167 | V73: 4421 | W73: 2828 | X73: 5475 | Y73: 3865 | Z73: 40.25 | AA73: 27.09183673 | AB73: 25.93913043 | AC73: 15.68478261 | AD73: 15.68478261 | AE73: 36.4 | AF73: 28.85869565 | AG73: 28.68269231 | AH73: 14.7244898 | AI73: 14.7244898 | AJ73: TRUE | AK73: TRUE | AL73: F10/F12 | AM73: 27 | AN73: 2.27 | AO73: 1.6 | AP73: 23 | AU73: Min. FO Act Torque = | AV73: =MIN(AV69:AV72) -> 95 | AW73: Min. FO Req : Va | AY73: =MIN(AY69:AY72) -> 0.9693877551 | BA73: Open | BB73: 90 | BC73: =SCT -> 104 | BD73: =EOT -> 92 | BE73: =CHOOSE($BQ$10,$H$52, $I$52) -> 196 | BF73: =CHOOSE($BQ$10,$B$52,$A$52) -> 95
A74: 5893 | B74: 3539 | C74: UT-6-SR-06 | D74: SR 200 | E74: 6 | F74: 87-101.6 | G74: 6 | H74: 6867 | I74: 4664 | J74: - | K74: - | L74: - | M74: - | N74: - | O74: - | P74: - | Q74: - | R74: 5893 | S74: 3539 | T74: 7288 | U74: 4925 | V74: 8591 | W74: 6175 | X74: 10562 | Y74: 8137 | Z74: 66.02884615 | AA74: 47.59183673 | AB74: 51.24347826 | AC74: 38.4673913 | AD74: 38.4673913 | AE74: 59.71304348 | AF74: 50.69565217 | AG74: 56.66346154 | AH74: 36.1122449 | AI74: 36.1122449 | AJ74: TRUE | AK74: TRUE | AL74: F14 | AM74: 36 | AN74: 3.58 | AO74: 2.8 | AP74: 24 | AR74: F.O. Information for S.R. Pneumatic Act.
A75: 6822 | B75: 5008 | C75: UT-6-SR-05 | D75: SR 200 | E75: 6 | F75: 72.6-87 | G75: 5 | H75: 5327 | I75: 3726 | J75: - | K75: - | L75: - | M75: - | N75: - | O75: - | P75: 5453 | Q75: 3613 | R75: 6822 | S75: 5008 | T75: 8182 | U75: 6385 | V75: - | W75: - | X75: - | Y75: - | Z75: 51.22115385 | AA75: 38.02040816 | AB75: 59.32173913 | AC75: 54.43478261 | AD75: 38.02040816 | AE75: 46.32173913 | AF75: 40.5 | AG75: 65.59615385 | AH75: 51.10204082 | AI75: 40.5 | AJ75: TRUE | AK75: TRUE | AL75: F14 | AM75: 36 | AN75: 3.58 | AO75: 2.8 | AP75: 25 | AR75: Vs. Va. Torque Comparison (Table 7C)
A76: 7486 | B76: 5795 | C76: UT-6-SR-04 | D76: SR 200 | E76: 6 | F76: 58-79.8 | G76: 4 | H76: 4699 | I76: 3124 | J76: - | K76: - | L76: - | M76: - | N76: 4788 | O76: 3080 | P76: 6126 | Q76: 4445 | R76: 7486 | S76: 5795 | T76: - | U76: - | V76: - | W76: - | X76: - | Y76: - | Z76: 45.18269231 | AA76: 31.87755102 | AB76: 65.09565217 | AC76: 62.98913043 | AD76: 31.87755102 | AE76: 40.86086957 | AF76: 33.95652174 | AG76: 71.98076923 | AH76: 59.13265306 | AI76: 33.95652174 | AJ76: TRUE | AK76: TRUE | AL76: F14 | AM76: 36 | AN76: 3.58 | AO76: 2.8 | AP76: 26 | AR76: =IF($I$52>SOT,$I$52&" Spr. Start >= "&SOT&" Start Open -- OK", $I$52&" Spr. Star < "&SOT& " Start Open -- Not OK") -> 111 Spr. Star < 115 Start Open -- Not OK | AW76: AD104:AD107
A77: 10594.65295 | B77: 5903.755448 | C77: UT-6.5-SR-05 | D77: SR 230 | E77: 6.5 | F77: 58-79.8 | G77: 5 | H77: 6195.525 | I77: 10612.04925 | J77: - | K77: - | L77: - | M77: - | N77: 6068.867716 | O77: 1606.868922 | P77: 8400.582543 | Q77: 3755.464784 | R77: 10594.65295 | S77: 5903.755448 | T77: 12733.17727 | U77: 8042.279767 | V77: - | W77: - | X77: - | Y77: - | Z77: 59.57235577 | AA77: 108.2862168 | AB77: 92.12741694 | AC77: 64.17125487 | AD77: 59.57235577 | AE77: 53.87413043 | AF77: 115.3483614 | AG77: 101.871663 | AH77: 60.24240253 | AI77: 53.87413043 | AJ77: TRUE | AK77: TRUE | AL77: F16 | AM77: 46 | AN77: 6.2 | AO77: 5.4 | AP77: 27 | AR77: =IF($H$52>EOT,$H$52&" Spr. End >= "&EOT&" End Open -- OK", $H$52&" Spr. End < "&EOT&" End Open -- Not OK") -> 196 Spr. End >= 92 End Open -- OK
A78: 11329.5704 | B78: 7152.016397 | C78: UT-6.5-SR-04 | D78: SR 230 | E78: 6.5 | F78: 58-87 | G78: 4 | H78: 5505.1665 | I78: 9434.8995 | J78: - | K78: - | L78: - | M78: - | N78: 7032.378672 | O78: 2854.824672 | P78: 9180.974534 | Q78: 5003.420534 | R78: 11329.5704 | S78: 7152.016397 | T78: - | U78: - | V78: - | W78: - | X78: - | Y78: - | Z78: 52.93429327 | AA78: 96.27448469 | AB78: 98.51800345 | AC78: 77.73930866 | AD78: 52.93429327 | AE78: 47.87101304 | AF78: 102.5532554 | AG78: 108.9381769 | AH78: 72.97975915 | AI78: 47.87101304 | AJ78: TRUE | AK78: TRUE | AL78: F16 | AM78: 46 | AN78: 6.2 | AO78: 5.4 | AP78: 28 | AR78: =IF($A$52>SCT,$A$52&" Air Start >= "&SCT&" Start Closed -- OK",$A$52& " Air Start < "&SCT&" Start Closed -- Not OK") -> 193 Air Start >= 104 Start Closed -- OK
A79: 9868.891448 | B79: 4646.948948 | C79: UT-6.5-SR-06 | D79: SR 230 | E79: 6.5 | F79: 72.5-116 | G79: 6 | H79: 6877.03275 | I79: 11789.199 | J79: - | K79: - | L79: - | M79: - | P79: 7721.679503 | Q79: 2499.737003 | R79: 9868.891448 | S79: 4646.948948 | T79: 12008.94176 | U79: 6786.999259 | V79: 14157.53762 | W79: 8935.595121 | X79: 17372.19106 | Y79: 12150.24856 | Z79: 66.1253149 | AA79: 120.297949 | AB79: 85.81644738 | AC79: 50.51031466 | AD79: 50.51031466 | AE79: 59.80028478 | AF79: 128.1434674 | AG79: 94.893187 | AH79: 47.41784641 | AI79: 47.41784641 | AJ79: TRUE | AK79: TRUE | AL79: F16 | AM79: 46 | AN79: 6.2 | AO79: 5.4 | AP79: 29 | AR79: =IF($B$52>ECT,$B$52&" Air End >= "&ECT&" End Closed -- OK",$B$52&" Air End < "&ECT& " End Closed -- Not OK") -> 95 Air End < 98 End Closed -- Not OK
A80: 16319 | B80: 10681 | C80: UT-7-SR-07 | D80: SR 270 | E80: 7 | F80: 58-101.5 | G80: 7 | H80: 15336 | I80: 9832 | J80: - | K80: - | L80: - | M80: - | N80: 9584 | O80: 3955 | P80: 13009 | Q80: 7381 | R80: 16319 | S80: 10681 | T80: 19619 | U80: 13990 | V80: 23053 | W80: 17416 | X80: - | Y80: - | Z80: 147.4615385 | AA80: 100.3265306 | AB80: 141.9043478 | AC80: 116.0978261 | AD80: 100.3265306 | AE80: 133.3565217 | AF80: 106.8695652 | AG80: 156.9134615 | AH80: 108.9897959 | AI80: 106.8695652 | AJ80: TRUE | AK80: TRUE | AL80: F16 | AM80: 46 | AN80: 9 | AO80: 6.6 | AP80: 30
A81: 15363 | B81: 9221 | C81: UT-7-SR-08 | D81: SR 270 | E81: 7 | F81: 58-116 | G81: 8 | H81: 16735 | I81: 10735 | J81: - | K81: - | L81: - | M81: - | N81: 8637 | O81: 2486 | P81: 12063 | Q81: 5912 | R81: 15363 | S81: 9221 | T81: 18672 | U81: 12521 | V81: 22098 | W81: 15947 | X81: 27115 | Y81: 20965 | Z81: 160.9134615 | AA81: 109.5408163 | AB81: 133.5913043 | AC81: 100.2282609 | AD81: 100.2282609 | AE81: 145.5217391 | AF81: 116.6847826 | AG81: 147.7211538 | AH81: 94.09183673 | AI81: 94.09183673 | AJ81: TRUE | AK81: TRUE | AL81: F16 | AM81: 46 | AN81: 9 | AO81: 6.6 | AP81: 31
A82: 17274 | B82: 12150 | C82: UT-7-SR-06 | D82: SR 270 | E82: 7 | F82: 58-79.8 | G82: 6 | H82: 13947 | I82: 8938 | J82: - | K82: - | L82: - | M82: - | N82: 10539 | O82: 5415 | P82: 13965 | Q82: 8850 | R82: 17274 | S82: 12150 | T82: 20574 | U82: 15459 | V82: - | W82: - | X82: - | Y82: - | Z82: 134.1057692 | AA82: 91.20408163 | AB82: 150.2086957 | AC82: 132.0652174 | AD82: 91.20408163 | AE82: 121.2782609 | AF82: 97.15217391 | AG82: 166.0961538 | AH82: 123.9795918 | AI82: 97.15217391 | AJ82: TRUE | AK82: TRUE | AL82: F16 | AM82: 46 | AN82: 9 | AO82: 6.6 | AP82: 32
A83: 18221 | B83: 13619 | C83: UT-7-SR-05 | D83: SR 270 | E83: 7 | F83: 58-79.8 | G83: 5 | H83: 12549 | I83: 8044 | J83: - | K83: - | L83: 8069 | M83: 3459 | N83: 11495 | O83: 6884 | P83: 14921 | Q83: 10310 | R83: 18221 | S83: 13619 | T83: 21530 | U83: 16920 | V83: - | W83: - | X83: - | Y83: - | Z83: 120.6634615 | AA83: 82.08163265 | AB83: 158.4434783 | AC83: 148.0326087 | AD83: 82.08163265 | AE83: 109.1217391 | AF83: 87.43478261 | AG83: 175.2019231 | AH83: 138.9693878 | AI83: 87.43478261 | AJ83: TRUE | AK83: TRUE | AL83: F16 | AM83: 46 | AN83: 9 | AO83: 6.6 | AP83: 33
A84: 19177 | B84: 15080 | C84: UT-7-SR-04 | D84: SR 270 | E84: 7 | F84: 43.5-79.8 | G84: 4 | H84: 11159 | I84: 7150 | J84: 5716 | K84: 1619 | L84: 9016 | M84: 4928 | N84: 12442 | O84: 8353 | P84: 15877 | Q84: 11779 | R84: 19177 | S84: 15080 | T84: - | U84: - | V84: - | W84: - | X84: - | Y84: - | Z84: =H84/SCT -> 107.2980769 | AA84: =I84/ECT -> 72.95918367 | AB84: =A84/SOT -> 166.7565217 | AC84: =B84/EOT -> 163.9130435 | AD84: =MIN(Z84:AC84) -> 72.95918367 | AE84: =H84/SOT -> 97.03478261 | AF84: =I84/EOT -> 77.7173913 | AG84: =A84/SCT -> 184.3942308 | AH84: =B84/ECT -> 153.877551 | AI84: =MIN(AE84:AH84) -> 77.7173913 | AJ84: =AND(H84>=SCT,I84>=ECT,A84>=SOT,B84>=EOT,A84<>"-",B84<>"-") -> TRUE | AK84: =AND(H84>=SOT,I84>=EOT,A84>=SCT,B84>=ECT,A84<>"-",B84<>"-") -> TRUE | AL84: F16 | AM84: 46 | AN84: 9 | AO84: 6.6 | AP84: 34
A85: 26648.38746 | B85: 16540.83096 | C85: UT-7.5-SR-07 | D85: SR-330 | E85: 7.5 | F85: 58-101.5 | G85: 7 | H85: 17205.858 | I85: 26720.41425 | J85: - | K85: - | L85: - | M85: - | N85: 15417.09091 | O85: 5309.534405 | P85: 21032.73918 | Q85: 10925.18268 | R85: 26648.38746 | S85: 16540.83096 | T85: 32262.20454 | U85: 22154.64804 | V85: 37871.74885 | W85: 27764.19235 | X85: - | Y85: - | Z85: 165.4409423 | AA85: 272.6572883 | AB85: 231.7251083 | AC85: 179.7916408 | AD85: 165.4409423 | AE85: 149.6161565 | AF85: 290.4392853 | AG85: 256.2344948 | AH85: 168.7839894 | AI85: 149.6161565 | AJ85: TRUE | AK85: TRUE | AL85: F16/F25 | AM85: 55 | AN85: 8.7 | AO85: 9.65 | AP85: 35
A86: 24984.44646 | B86: 13956.41196 | C86: UT-7.5-SR-08 | D86: SR 270 | E86: 7.5 | F86: 58-116 | G86: 8 | H86: 18772.44075 | I86: 29154.3705 | J86: - | K86: - | L86: - | M86: - | N86: - | O86: - | P86: 19369.64011 | Q86: 8341.605607 | R86: 24984.44646 | S86: 13956.41196 | T86: 30598.26354 | U86: 19570.22904 | V86: 36207.80785 | W86: 25179.77335 | X86: 44630.36467 | Y86: 33602.33017 | Z86: 180.504238 | AA86: 297.4935765 | AB86: 217.2560561 | AC86: 151.70013 | AD86: 151.70013 | AE86: 163.2386152 | AF86: 316.8953315 | AG86: 240.2350621 | AH86: 142.4123669 | AI86: 142.4123669 | AJ86: TRUE | AK86: TRUE | AL86: F16/F25 | AM86: 55 | AN86: 8.7 | AO86: 9.65 | AP86: 36
A87: 28303.47771 | B87: 19116.39921 | C87: UT-7.5-SR-06 | D87: SR-330 | E87: 7.5 | F87: 58-79.8 | G87: 6 | H87: 15639.27525 | I87: 24295.30875 | J87: - | K87: - | L87: - | M87: - | N87: 17072.18116 | O87: 7885.102655 | P87: 22687.82943 | Q87: 13500.75093 | R87: 28303.47771 | S87: 19116.39921 | T87: 33919.12598 | U87: 24732.04748 | V87: - | W87: - | X87: - | Y87: - | Z87: 150.3776466 | AA87: 247.9113138 | AB87: 246.1171975 | AC87: 207.7869479 | AD87: 150.3776466 | AE87: 135.9936978 | AF87: 264.0794429 | AG87: 272.1488241 | AH87: 195.065298 | AI87: 135.9936978 | AJ87: TRUE | AK87: TRUE | AL87: F16/F25 | AM87: 55 | AN87: 8.7 | AO87: 9.65 | AP87: 37
A88: 29967.41871 | B88: 21700.81821 | C88: UT-7.5-SR-05 | D88: SR-330 | E88: 7.5 | F88: 58-79.8 | G88: 5 | H88: 14081.54325 | I88: 21861.3525 | J88: - | K88: - | L88: - | M88: - | N88: 18736.12216 | O88: 10469.52166 | P88: 24351.77043 | Q88: 16085.16993 | R88: 29967.41871 | S88: 21700.81821 | T88: 35583.06698 | U88: 27316.46648 | V88: - | W88: - | X88: - | Y88: - | Z88: 135.3994543 | AA88: 223.0750255 | AB88: 260.5862496 | AC88: 235.8784588 | AD88: 135.3994543 | AE88: 122.4482022 | AF88: 237.6233967 | AG88: 288.1482568 | AH88: 221.4369205 | AI88: 122.4482022 | AJ88: TRUE | AK88: TRUE | AL88: F16/F25 | AM88: 55 | AN88: 8.7 | AO88: 9.65 | AP88: 38
A89: 31631.35971 | B89: 24276.38646 | C89: UT-7.5-SR-04 | D89: SR-330 | E89: 7.5 | F89: 43.5-79.8 | G89: 4 | H89: 12514.9605 | I89: 19436.247 | J89: - | K89: - | L89: 14784.41488 | M89: 7429.441629 | N89: 20400.06316 | O89: 13045.08991 | P89: 26015.71143 | Q89: 18660.73818 | R89: 31631.35971 | S89: 24276.38646 | T89: - | U89: - | V89: - | W89: - | X89: - | Y89: - | Z89: 120.3361587 | AA89: 198.329051 | AB89: 275.0553018 | AC89: 263.8737658 | AD89: 120.3361587 | AE89: 108.8257435 | AF89: 211.2635543 | AG89: 304.1476895 | AH89: 247.7182292 | AI89: 108.8257435 | AJ89: TRUE | AK89: TRUE | AL89: F16/F25 | AM89: 55 | AN89: 8.7 | AO89: 9.65 | AP89: 39
A90: 99999 | B90: 99999 | C90: Consult Eng. | E90: 99999 | F90: 99999 | G90: 99999 | H90: 99999 | I90: 99999 | J90: 99999 | K90: 99999 | L90: 99999 | M90: 99999 | N90: 99999 | O90: 99999 | P90: 99999 | Q90: 99999 | R90: 99999 | S90: 99999 | T90: 99999 | U90: 99999 | V90: 99999 | W90: 99999 | X90: 99999 | Y90: 99999 | Z90: 961.5288462 | AA90: 1020.397959 | AB90: 869.5565217 | AC90: 1086.945652 | AD90: 869.5565217 | AE90: 869.5565217 | AF90: 1086.945652 | AG90: 961.5288462 | AH90: 1020.397959 | AI90: 869.5565217 | AJ90: TRUE | AK90: TRUE | AL90: -- | AM90: -- | AN90: -- | AO90: -- | AP90: 40
A91: =HLOOKUP($A$51,$C$51:$Y$126,AP91,FALSE) -> - | B91: =HLOOKUP($B$51,$C$51:$Y$126,AP91,FALSE) -> - | C91: UT-0-SR-01 | D91: SR 52 | E91: 0 | F91: 36.3-43.5 | G91: 1 | H91: 44 | I91: 32 | J91: 48 | K91: 23 | L91: 72 | M91: 47 | N91: 95 | O91: 70 | P91: - | Q91: - | R91: - | S91: - | T91: - | U91: - | V91: - | W91: - | X91: - | Y91: - | Z91: 0.4230769231 | AA91: 0.3265306122 | AE91: 0.3826086957 | AF91: 0.347826087 | AJ91: FALSE | AK91: FALSE | AL91: F03/F05 | AM91: 11 | AN91: 0.07 | AO91: 0.07 | AP91: 41
A92: - | B92: - | C92: UT-0-SR-02 | D92: SR 52 | E92: 0 | F92: 43.5-58 | G92: 2 | H92: 59 | I92: 42 | J92: - | K92: - | L92: 61 | M92: 31 | N92: 84 | O92: 54 | P92: 108 | Q92: 77 | R92: - | S92: - | T92: - | U92: - | V92: - | W92: - | X92: - | Y92: - | Z92: 0.5673076923 | AA92: 0.4285714286 | AE92: 0.5130434783 | AF92: 0.4565217391 | AJ92: FALSE | AK92: FALSE | AL92: F03/F05 | AM92: 11 | AN92: 0.07 | AO92: 0.07 | AP92: 42
A93: 101 | B93: 55 | C93: UT-0-SR-05 | D93: SR 52 | E93: 0 | F93: 79.8-87 | G93: 5 | H93: 105 | I93: 72 | J93: - | K93: - | L93: - | M93: - | N93: - | O93: - | P93: 78 | Q93: 32 | R93: 101 | S93: 55 | T93: 125 | U93: 78 | V93: 148 | W93: 102 | X93: 183 | Y93: 137 | Z93: 1.009615385 | AA93: 0.7346938776 | AB93: 0.8782608696 | AC93: 0.597826087 | AD93: 0.597826087 | AE93: 0.9130434783 | AF93: 0.7826086957 | AG93: 0.9711538462 | AH93: 0.5612244898 | AI93: 0.5612244898 | AJ93: FALSE | AK93: FALSE | AL93: F03/F05 | AM93: 11 | AN93: 0.07 | AO93: 0.07 | AP93: 43
A94: 116 | B94: 78 | C94: UT-0-SR-04 | D94: SR 52 | E94: 0 | F94: 72.5-79.8 | G94: 4 | H94: 82 | I94: 57 | J94: - | K94: - | L94: - | M94: - | N94: 70 | O94: 31 | P94: 93 | Q94: 55 | R94: 116 | S94: 78 | T94: 140 | U94: 101 | V94: 163 | W94: 125 | X94: - | Y94: - | Z94: 0.7884615385 | AA94: 0.5816326531 | AB94: 1.008695652 | AC94: 0.847826087 | AD94: 0.5816326531 | AE94: 0.7130434783 | AF94: 0.6195652174 | AG94: 1.115384615 | AH94: 0.7959183673 | AI94: 0.6195652174 | AJ94: FALSE | AK94: FALSE | AL94: F03/F05 | AM94: 11 | AN94: 0.07 | AO94: 0.07 | AP94: 44
A95: 127 | B95: 94 | C95: UT-0-SR-03 | D95: SR 52 | E95: 0 | F95: 58-72.5 | G95: 3 | H95: 66 | I95: 46 | J95: - | K95: - | L95: - | M95: - | N95: 80 | O95: 47 | P95: 104 | Q95: 70 | R95: 127 | S95: 94 | T95: 150 | U95: 117 | V95: - | W95: - | X95: - | Y95: - | Z95: 0.6346153846 | AA95: 0.4693877551 | AB95: 1.104347826 | AC95: 1.02173913 | AD95: 0.4693877551 | AE95: 0.5739130435 | AF95: 0.5 | AG95: 1.221153846 | AH95: 0.9591836735 | AI95: 0.5 | AJ95: FALSE | AK95: FALSE | AL95: F03/F05 | AM95: 11 | AN95: 0.07 | AO95: 0.07 | AP95: 45
A96: - | B96: - | C96: UT-1-SR-01 | D96: SR 63 | E96: 1 | F96: 36.3-43.5 | G96: 1 | H96: 85 | I96: 44 | J96: 92 | K96: 38 | L96: 134 | M96: 80 | N96: 176 | O96: 122 | P96: - | Q96: - | R96: - | S96: - | T96: - | U96: - | V96: - | W96: - | X96: - | Y96: - | Z96: 0.8173076923 | AA96: 0.4489795918 | AE96: 0.7391304348 | AF96: 0.4782608696 | AJ96: FALSE | AK96: FALSE | AL96: F05/F07 | AM96: 14 | AN96: 0.13 | AO96: 0.13 | AP96: 46
A97: - | B97: - | C97: UT-1-SR-02 | D97: SR 63 | E97: 1 | F97: 43.5-58 | G97: 2 | H97: 109 | I97: 58 | J97: - | K97: - | L97: 120 | M97: 56 | N97: 162 | O97: 98 | P97: 204 | Q97: 140 | R97: - | S97: - | T97: - | U97: - | V97: - | W97: - | X97: - | Y97: - | Z97: 1.048076923 | AA97: 0.5918367347 | AE97: 0.947826087 | AF97: 0.6304347826 | AJ97: FALSE | AK97: FALSE | AL97: F05/F07 | AM97: 14 | AN97: 0.13 | AO97: 0.13 | AP97: 47
A98: 219 | B98: 138 | C98: UT-1-SR-04 | D98: SR 63 | E98: 1 | F98: 72.5-79.8 | G98: 4 | H98: 152 | I98: 85 | J98: - | K98: - | L98: - | M98: - | N98: 136 | O98: 54 | P98: 177 | Q98: 96 | R98: 219 | S98: 138 | T98: 261 | U98: 180 | V98: 303 | W98: 222 | X98: - | Y98: - | Z98: 1.461538462 | AA98: 0.8673469388 | AB98: 1.904347826 | AC98: 1.5 | AD98: 0.8673469388 | AE98: 1.32173913 | AF98: 0.9239130435 | AG98: 2.105769231 | AH98: 1.408163265 | AI98: 0.9239130435 | AJ98: FALSE | AK98: FALSE | AL98: F05/F07 | AM98: 14 | AN98: 0.13 | AO98: 0.13 | AP98: 48
A99: 233 | B99: 162 | C99: UT-1-SR-03 | D99: SR 63 | E99: 1 | F99: 58-72.5 | G99: 3 | H99: 128 | I99: 71 | J99: - | K99: - | L99: - | M99: - | N99: 149 | O99: 79 | P99: 191 | Q99: 121 | R99: 233 | S99: 162 | T99: 275 | U99: 204 | V99: - | W99: - | X99: - | Y99: - | Z99: 1.230769231 | AA99: 0.7244897959 | AB99: 2.026086957 | AC99: 1.760869565 | AD99: 0.7244897959 | AE99: 1.113043478 | AF99: 0.7717391304 | AG99: 2.240384615 | AH99: 1.653061224 | AI99: 0.7717391304 | AJ99: FALSE | AK99: FALSE | AL99: F05/F07 | AM99: 14 | AN99: 0.13 | AO99: 0.13 | AP99: 49
A100: - | B100: - | C100: UT-2-SR-01 | D100: SR 75 | E100: 2 | F100: 36.3-43.5 | G100: 1 | H100: 172 | I100: 89 | J100: 168 | K100: 63 | L100: 244 | M100: 138 | N100: 319 | O100: 214 | P100: - | Q100: - | R100: - | S100: - | T100: - | U100: - | V100: - | W100: - | X100: - | Y100: - | Z100: 1.653846154 | AA100: 0.9081632653 | AE100: 1.495652174 | AF100: 0.9673913043 | AJ100: FALSE | AK100: FALSE | AL100: F05/F07 | AM100: 17 | AN100: 0.32 | AO100: 0.3 | AP100: 50
A101: - | B101: - | C101: UT-2-SR-02 | D101: SR 75 | E101: 2 | F101: 43.5-58 | G101: 2 | H101: 226 | I101: 118 | J101: - | K101: - | L101: 215 | M101: 85 | N101: 291 | O101: 160 | P101: 366 | Q101: 235 | R101: - | S101: - | T101: - | U101: - | V101: - | W101: - | X101: - | Y101: - | Z101: 2.173076923 | AA101: 1.204081633 | AE101: 1.965217391 | AF101: 1.282608696 | AJ101: FALSE | AK101: FALSE | AL101: F05/F07 | AM101: 17 | AN101: 0.32 | AO101: 0.3 | AP101: 51
A102: - | B102: - | C102: UT-2.5-SR-01 | D102: SR 85 | E102: 2.5 | F102: 36.3-43.5 | G102: 1 | H102: 242 | I102: 143 | J102: 238 | K102: 109 | L102: 349 | M102: 219 | N102: 460 | O102: 330 | P102: - | Q102: - | R102: - | S102: - | T102: - | U102: - | V102: - | W102: - | X102: - | Y102: - | Z102: 2.326923077 | AA102: 1.459183673 | AE102: 2.104347826 | AF102: 1.554347826 | AJ102: FALSE | AK102: FALSE | AL102: F05/F07 | AM102: 17 | AN102: 0.32 | AO102: 0.3 | AP102: 52
A103: - | B103: - | C103: UT-2.5-SR-02 | D103: SR 85 | E103: 2.5 | F103: 43.5-58 | G103: 2 | H103: 298 | I103: 176 | J103: - | K103: - | L103: 316 | M103: 163 | N103: 427 | O103: 274 | P103: 537 | Q103: 384 | R103: - | S103: - | T103: - | U103: - | V103: - | W103: - | X103: - | Y103: - | Z103: 2.865384615 | AA103: 1.795918367 | AE103: 2.591304348 | AF103: 1.913043478 | AJ103: FALSE | AK103: FALSE | AL103: F05/F07 | AM103: 17 | AN103: 0.32 | AO103: 0.3 | AP103: 53
A104: - | B104: - | C104: UT-3-SR-01 | D104: SR 100 | E104: 3 | F104: 36.3-43.5 | G104: 1 | H104: 395 | I104: 218 | J104: 384 | K104: 154 | L104: 556 | M104: 326 | N104: 728 | O104: 499 | P104: - | Q104: - | R104: - | S104: - | T104: - | U104: - | V104: - | W104: - | X104: - | Y104: - | Z104: 3.798076923 | AA104: 2.224489796 | AE104: 3.434782609 | AF104: 2.369565217 | AJ104: FALSE | AK104: FALSE | AL104: F07/F10 | AM104: 17 | AN104: 0.54 | AO104: 0.48 | AP104: 54
A105: - | B105: - | C105: UT-3-SR-02 | D105: SR 100 | E105: 3 | F105: 43.5-58 | G105: 2 | H105: 521 | I105: 288 | J105: - | K105: - | L105: 485 | M105: 199 | N105: 658 | O105: 372 | P105: 830 | Q105: 544 | R105: - | S105: - | T105: - | U105: - | V105: - | W105: - | X105: - | Y105: - | Z105: 5.009615385 | AA105: 2.93877551 | AE105: 4.530434783 | AF105: 3.130434783 | AJ105: FALSE | AK105: FALSE | AL105: F07/F10 | AM105: 17 | AN105: 0.54 | AO105: 0.48 | AP105: 55
A106: - | B106: - | C106: UT-3.5-SR-01 | D106: SR 115 | E106: 3.5 | F106: 36.3-43.5 | G106: 1 | H106: 658 | I106: 363 | J106: 650 | K106: 270 | L106: 935 | M106: 555 | N106: 1220 | O106: 840 | P106: - | Q106: - | R106: - | S106: - | T106: - | U106: - | V106: - | W106: - | X106: - | Y106: - | Z106: 6.326923077 | AA106: 3.704081633 | AE106: 5.72173913 | AF106: 3.945652174 | AJ106: FALSE | AK106: FALSE | AL106: F07/F10 | AM106: 22 | AN106: 0.92 | AO106: 0.75 | AP106: 56
A107: - | B107: - | C107: UT-3.5-SR-02 | D107: SR 115 | E107: 3.5 | F107: 43.5-58 | G107: 2 | H107: 835 | I107: 449 | J107: - | K107: - | L107: 848 | M107: 378 | N107: 1133 | O107: 663 | P107: 1419 | Q107: 949 | R107: - | S107: - | T107: - | U107: - | V107: - | W107: - | X107: - | Y107: - | Z107: 8.028846154 | AA107: 4.581632653 | AE107: 7.260869565 | AF107: 4.880434783 | AJ107: FALSE | AK107: FALSE | AL107: F07/F10 | AM107: 22 | AN107: 0.92 | AO107: 0.75 | AP107: 57
A108: - | B108: - | C108: UT-4-SR-01 | D108: SR 125 | E108: 4 | F108: 36.3-43.5 | G108: 1 | H108: 877 | I108: 470 | J108: 850 | K108: 328 | L108: 1224 | M108: 703 | N108: 1599 | O108: 1077 | P108: - | Q108: - | R108: - | S108: - | T108: - | U108: - | V108: - | W108: - | X108: - | Y108: - | Z108: 8.432692308 | AA108: 4.795918367 | AE108: 7.626086957 | AF108: 5.108695652 | AJ108: FALSE | AK108: FALSE | AL108: F07/F10 | AM108: 22 | AN108: 1.2 | AO108: 0.94 | AP108: 58
A109: - | B109: - | C109: UT-4-SR-02 | D109: SR 125 | E109: 4 | F109: 43.5-58 | G109: 2 | H109: 1040 | I109: 560 | J109: - | K109: - | L109: 1135 | M109: 539 | N109: 1509 | O109: 914 | P109: 1883 | Q109: 1288 | R109: - | S109: - | T109: - | U109: - | V109: - | W109: - | X109: - | Y109: - | Z109: 10 | AA109: 5.714285714 | AE109: 9.043478261 | AF109: 6.086956522 | AJ109: FALSE | AK109: FALSE | AL109: F07/F10 | AM109: 22 | AN109: 1.2 | AO109: 0.94 | AP109: 59
A110: - | B110: - | C110: UT-4.5-SR-01 | D110: SR 140 | E110: 4.5 | F110: 36.3-58 | G110: 1 | H110: 1345 | I110: 726 | J110: 1241 | K110: 506 | L110: 1742 | M110: 1007 | N110: - | O110: - | P110: - | Q110: - | R110: - | S110: - | T110: - | U110: - | V110: - | W110: - | X110: - | Y110: - | Z110: 12.93269231 | AA110: 7.408163265 | AE110: 11.69565217 | AF110: 7.891304348 | AJ110: FALSE | AK110: FALSE | AL110: F10/F12 | AM110: 27 | AN110: 1.64 | AO110: 1.25 | AP110: 60
A111: - | B111: - | C111: UT-4.5-SR-02 | D111: SR 140 | E111: 4.5 | F111: 43.5-72.5 | G111: 2 | H111: 1522 | I111: 814 | J111: - | K111: - | L111: 1644 | M111: 821 | N111: 2142 | O111: 1322 | P111: 2645 | Q111: 1822 | R111: - | S111: - | T111: - | U111: - | V111: - | W111: - | X111: - | Y111: - | Z111: 14.63461538 | AA111: 8.306122449 | AE111: 13.23478261 | AF111: 8.847826087 | AJ111: FALSE | AK111: FALSE | AL111: F10/F12 | AM111: 27 | AN111: 1.64 | AO111: 1.25 | AP111: 61
A112: - | B112: - | C112: UT-5-SR-02 | D112: SR 160 | E112: 5 | F112: 43.5-58 | G112: 2 | H112: 1991 | I112: 1301 | J112: - | K112: - | L112: 2228 | M112: 1503 | N112: 2952 | O112: 2217 | P112: - | Q112: - | R112: - | S112: - | T112: - | U112: - | V112: - | W112: - | X112: - | Y112: - | Z112: 19.14423077 | AA112: 13.2755102 | AE112: 17.31304348 | AF112: 14.14130435 | AJ112: FALSE | AK112: FALSE | AL112: F10/F12 | AM112: 27 | AN112: 2.27 | AO112: 1.6 | AP112: 62
A113: - | B113: - | C113: UT-5-SR-01 | D113: SR 160 | E113: 5 | F113: 36.3-43.5 | G113: 1 | H113: 1345 | I113: 885 | J113: 1921 | K113: 1390 | L113: 2644 | M113: 2140 | N113: - | O113: - | P113: - | Q113: - | R113: - | S113: - | T113: - | U113: - | V113: - | W113: - | X113: - | Y113: - | Z113: 12.93269231 | AA113: 9.030612245 | AE113: 11.69565217 | AF113: 9.619565217 | AJ113: FALSE | AK113: FALSE | AL113: F10/F12 | AM113: 27 | AN113: 2.27 | AO113: 1.6 | AP113: 63
A114: - | B114: - | C114: UT-5-SR-03 | D114: SR 160 | E114: 5 | F114: 43.5-72.6 | G114: 3 | H114: 2336 | I114: 1531 | J114: - | K114: - | L114: 1980 | M114: 1131 | N114: 2713 | O114: 1854 | P114: 3419 | Q114: 2569 | R114: - | S114: - | T114: - | U114: - | V114: - | W114: - | X114: - | Y114: - | Z114: 22.46153846 | AA114: 15.62244898 | AE114: 20.31304348 | AF114: 16.64130435 | AJ114: FALSE | AK114: FALSE | AL114: F10/F12 | AM114: 27 | AN114: 2.27 | AO114: 1.6 | AP114: 64
A115: - | B115: - | C115: UT-6-SR-02 | D115: SR 200 | E115: 6 | F115: 43.5-58 | G115: 2 | H115: 3150 | I115: 2186 | J115: - | K115: - | L115: 4414 | M115: 3308 | N115: 5770 | O115: 4681 | P115: - | Q115: - | R115: - | S115: - | T115: - | U115: - | V115: - | W115: - | X115: - | Y115: - | Z115: 30.28846154 | AA115: 22.30612245 | AE115: 27.39130435 | AF115: 23.76086957 | AJ115: FALSE | AK115: FALSE | AL115: F14 | AM115: 36 | AN115: 3.58 | AO115: 2.8 | AP115: 65
A116: - | B116: - | C116: UT-6-SR-01 | D116: SR 200 | E116: 6 | F116: 36.3-43.5 | G116: 1 | H116: 2168 | I116: 1540 | J116: 3718 | K116: 2904 | L116: 5069 | M116: 4317 | N116: - | O116: - | P116: - | Q116: - | R116: - | S116: - | T116: - | U116: - | V116: - | W116: - | X116: - | Y116: - | Z116: =H116/SCT -> 20.84615385 | AA116: =I116/ECT -> 15.71428571 | AB116: =A116/SOT ->  | AC116: =B116/EOT ->  | AD116: =MIN(Z116:AC116) ->  | AE116: =H116/SOT -> 18.85217391 | AF116: =I116/EOT -> 16.73913043 | AG116: =A116/SCT ->  | AH116: =B116/ECT ->  | AI116: =MIN(AE116:AH116) ->  | AJ116: =AND(H116>=SCT,I116>=ECT,A116>=SOT,B116>=EOT,A116<>"-",B116<>"-") -> FALSE | AK116: =AND(H116>=SOT,I116>=EOT,A116>=SCT,B116>=ECT,A116<>"-",B116<>"-") -> FALSE | AL116: F14 | AM116: 36 | AN116: 3.58 | AO116: 2.8 | AP116: 66
A117: - | B117: - | C117: UT-6-SR-03 | D117: SR 200 | E117: 6 | F117: 43.5-72.6 | G117: 3 | H117: 3752 | I117: 2637 | J117: - | K117: - | L117: 3936 | M117: 2591 | N117: 5304 | O117: 4035 | P117: 6639 | Q117: 5400 | R117: - | S117: - | T117: - | U117: - | V117: - | W117: - | X117: - | Y117: - | Z117: 36.07692308 | AA117: 26.90816327 | AE117: 32.62608696 | AF117: 28.66304348 | AJ117: FALSE | AK117: FALSE | AL117: F14 | AM117: 36 | AN117: 3.58 | AO117: 2.8 | AP117: 67
A118: - | B118: - | C118: UT-6.5-SR-01 | D118: SR 230 | E118: 6.5 | F118: 36.3-58 | G118: 1 | H118: 3442.94175 | I118: 5894.5995 | J118: 4930.172948 | K118: 2328.052448 | L118: 7074.801233 | M118: 4472.680733 | N118: 9217.293129 | O118: 6615.172629 | P118: - | Q118: - | R118: - | S118: - | T118: - | U118: - | V118: - | W118: - | X118: - | Y118: - | Z118: 33.10520913 | AA118: 60.14897449 | AE118: 29.93862391 | AF118: 64.0717337 | AJ118: FALSE | AK118: FALSE | AL118: F16 | AM118: 46 | AN118: 6.2 | AO118: 5.4 | AP118: 68
A119: - | B119: - | C119: UT-6.5-SR-02 | D119: SR 230 | E119: 6.5 | F119: 43.5-58 | G119: 2 | H119: 4124.4495 | I119: 7071.74925 | J119: 4206.547836 | K119: 1073.382336 | L119: 6349.039733 | M119: 3215.874233 | N119: 8491.531629 | O119: 5358.366129 | P119: - | Q119: - | R119: - | S119: - | T119: - | U119: - | V119: - | W119: - | X119: - | Y119: - | Z119: 39.65816827 | AA119: 72.16070663 | AE119: 35.86477826 | AF119: 76.86683967 | AJ119: FALSE | AK119: FALSE | AL119: F16 | AM119: 46 | AN119: 6.2 | AO119: 5.4 | AP119: 69
A120: - | B120: - | C120: UT-6.5-SR-03 | D120: SR 230 | E120: 6.5 | F120: 58-72.5 | G120: 3 | H120: 4814.808 | I120: 8257.74975 | J120: - | K120: - | L120: - | M120: - | N120: 7758.140172 | O120: 4111.631172 | P120: 9906.736034 | Q120: 6260.227034 | R120: - | S120: - | T120: - | U120: - | V120: - | W120: - | X120: - | Y120: - | Z120: 46.29623077 | AA120: 84.26275255 | AE120: 41.86789565 | AF120: 89.75814946 | AJ120: FALSE | AK120: FALSE | AL120: F16 | AM120: 46 | AN120: 6.2 | AO120: 5.4 | AP120: 70
A121: - | B121: - | C121: UT-7-SR-03 | D121: SR 270 | E121: 7 | F121: 36.3-72.5 | G121: 3 | H121: 9761 | I121: 6257 | J121: 6672 | K121: 3088 | L121: 9972 | M121: 6388 | N121: 13398 | O121: 9814 | P121: 16824 | Q121: 13240 | R121: - | S121: - | T121: - | U121: - | V121: - | W121: - | X121: - | Y121: - | Z121: 93.85576923 | AA121: 63.84693878 | AE121: 84.87826087 | AF121: 68.01086957 | AJ121: FALSE | AK121: FALSE | AL121: F16 | AM121: 46 | AN121: 9 | AO121: 6.6 | AP121: 71
A122: - | B122: - | C122: UT-7-SR-02 | D122: SR 270 | E122: 7 | F122: 36.3-58 | G122: 2 | H122: 8372 | I122: 5363 | J122: 7619 | K122: 4548 | L122: 10928 | M122: 7857 | N122: 14353 | O122: 11283 | P122: - | Q122: - | R122: - | S122: - | T122: - | U122: - | V122: - | W122: - | X122: - | Y122: - | Z122: 80.5 | AA122: 54.7244898 | AE122: 72.8 | AF122: 58.29347826 | AJ122: FALSE | AK122: FALSE | AL122: F16 | AM122: 46 | AN122: 9 | AO122: 6.6 | AP122: 72
A123: - | B123: - | C123: UT-7-SR-01 | D123: SR 270 | E123: 7 | F123: 36.3-58 | G123: 1 | H123: 6973 | I123: 4469 | J123: 8574 | K123: 6017 | L123: 11883 | M123: 9317 | N123: 15309 | O123: 12743 | P123: - | Q123: - | R123: - | S123: - | T123: - | U123: - | V123: - | W123: - | X123: - | Y123: - | Z123: 67.04807692 | AA123: 45.60204082 | AE123: 60.63478261 | AF123: 48.57608696 | AJ123: FALSE | AK123: FALSE | AL123: F16 | AM123: 46 | AN123: 9 | AO123: 6.6 | AP123: 73
A124: - | B124: - | C124: UT-7.5-SR-01 | D124: SR-330 | E124: 7.5 | F124: 36.3-58 | G124: 1 | H124: 7824.063 | I124: 12143.229 | J124: 14151.73885 | K124: 9558.199603 | L124: 19767.38713 | M124: 15173.84788 | N124: 25383.03541 | O124: 20789.49616 | P124: - | Q124: - | R124: - | S124: - | T124: - | U124: - | V124: - | W124: - | X124: - | Y124: - | Z124: 75.231375 | AA124: 123.9105 | AE124: 68.03533043 | AF124: 131.9916196 | AJ124: FALSE | AK124: FALSE | AL124: F16/F25 | AM124: 55 | AN124: 8.7 | AO124: 9.65 | AP124: 74
A125: - | B125: - | C125: UT-7.5-SR-02 | D125: SR-330 | E125: 7.5 | F125: 36.3-58 | G125: 2 | H125: 9381.795 | I125: 14577.18525 | J125: 12487.79785 | K125: 6973.780603 | L125: 18103.44613 | M125: 12589.42888 | N125: 23719.09441 | O125: 18205.07716 | P125: - | Q125: - | R125: - | S125: - | T125: - | U125: - | V125: - | W125: - | X125: - | Y125: - | Z125: 90.20956731 | AA125: 148.7467883 | AE125: 81.58082609 | AF125: 158.4476658 | AJ125: FALSE | AK125: FALSE | AL125: F16/F25 | AM125: 55 | AN125: 8.7 | AO125: 9.65 | AP125: 75
A126: - | B126: - | C126: UT-7.5-SR-03 | D126: SR-330 | E126: 7.5 | F126: 58-72.5 | G126: 3 | H126: 10948.37775 | I126: 17002.29075 | J126: 10823.85685 | K126: 4398.212353 | L126: 16439.50513 | M126: 10013.86063 | N126: 22055.15341 | O126: 15629.50891 | P126: 27670.80168 | Q126: 21245.15718 | R126: - | S126: - | T126: - | U126: - | V126: - | W126: - | X126: - | Y126: - | Z126: 105.272863 | AA126: 173.4927628 | AE126: 95.20328478 | AF126: 184.8075082 | AJ126: FALSE | AK126: FALSE | AL126: F16/F25 | AM126: 55 | AN126: 8.7 | AO126: 9.65 | AP126: 76
A127: New Valbia Model SR (Valbia Cat. 028/A p14)
A128: Spring Set Pressures for UT-0 thru UT-4 from Valbia Instruction Manual 028/A p 3. Spring Set Pressures for UT-5 thru UT-6 from Valbia Cat. 970 p 7.
A131: Spring Return Pneumatic Act. Selection Table (Table 7C) | AA131: Actuator Torques for Menu
A132: =CONCATENATE("Air Torq. @ ",$BM$16) -> Air Torq. @ 80 PSI | C132: Selected Spring Return Pneumatic Act. Torque (lbf-in.) | AA132: Actuator | AD132: Required(2) | AG132: Ratio Act:Req
A133: Start | B133: End | C133: Model No. | D133: Valbia ID | E133: UT size | F133: Spring | G133: Spr. Set | H133: Spring Torque | J133: 40 PSI | L133: 50 PSI | N133: 60 PSI | P133: 70 PSI | R133: 80 PSI | T133: 90 PSI | V133: 100 PSI | X133: 115 PSI | AA133: Stroke | AB133: Torq | AD133: Torq(6) | AE133: Stroke(5)
A134: =CONCATENATE($BM$17,"_Start") -> 80_Start | B134: =CONCATENATE($BM$17,"_End") -> 80_End | F134: Set | G134: No. | H134: Start | I134: End | J134: 40_Start | K134: 40_End | L134: 50_Start | M134: 50_End | N134: 60_Start | O134: 60_End | P134: 70_Start | Q134: 70_End | R134: 80_Start | S134: 80_End | T134: 90_Start | U134: 90_End | V134: 100_Start | W134: 100_End | X134: 115_Start | Y134: 115_End | AA134: Spr. Start | AB134: =CHOOSE(DA!$AB$10,AV13,AV53) -> 196 | AC134: =IF(AB134="","",IF(AB134>=AD134,"≥","<")) -> ≥ | AD134: =CHOOSE(SR!$BQ$10,SCT,SOT) -> 104 | AE134: =CHOOSE(SR!$BQ$10,"Start Closed","Start Open") -> Start Closed | AG134: =IF(AB134="","",AB134/AD134) -> 1.884615385
A135: =CHOOSE(DA!$AB$10,A12,A52) -> 193 | B135: =CHOOSE(DA!$AB$10,B12,B52) -> 95 | C135: =CHOOSE(DA!$AB$10,C12,C52) -> UT-1-SR-05 | D135: =CHOOSE(DA!$AB$10,D12,D52) -> SR 63 | E135: =CHOOSE(DA!$AB$10,E12,E52) -> 1 | F135: =CHOOSE(DA!$AB$10,F12,F52) -> 79.8-87 | G135: =CHOOSE(DA!$AB$10,G12,G52) -> 5 | H135: =CHOOSE(DA!$AB$10,H12,H52) -> 196 | I135: =CHOOSE(DA!$AB$10,I12,I52) -> 111 | J135: =CHOOSE(DA!$AB$10,J12,J52) -> - | K135: =CHOOSE(DA!$AB$10,K12,K52) -> - | L135: =CHOOSE(DA!$AB$10,L12,L52) -> - | M135: =CHOOSE(DA!$AB$10,M12,M52) -> - | N135: =CHOOSE(DA!$AB$10,N12,N52) -> - | O135: =CHOOSE(DA!$AB$10,O12,O52) -> - | P135: =CHOOSE(DA!$AB$10,P12,P52) -> 151 | Q135: =CHOOSE(DA!$AB$10,Q12,Q52) -> 53 | R135: =CHOOSE(DA!$AB$10,R12,R52) -> 193 | S135: =CHOOSE(DA!$AB$10,S12,S52) -> 95 | T135: =CHOOSE(DA!$AB$10,T12,T52) -> 235 | U135: =CHOOSE(DA!$AB$10,U12,U52) -> 136 | V135: =CHOOSE(DA!$AB$10,V12,V52) -> 276 | W135: =CHOOSE(DA!$AB$10,W12,W52) -> 178 | X135: =CHOOSE(DA!$AB$10,X12,X52) -> 339 | Y135: =CHOOSE(DA!$AB$10,Y12,Y52) -> 241 | AA135: Spr. End | AB135: =CHOOSE(DA!$AB$10,AV14,AV54) -> 111 | AC135: =IF(AB135="","",IF(AB135>=AD135,"≥","<")) -> ≥ | AD135: =CHOOSE(SR!$BQ$10,ECT,EOT) -> 98 | AE135: =CHOOSE(SR!$BQ$10,"End Closed","End Open") -> End Closed | AG135: =IF(AB135="","",AB135/AD135) -> 1.132653061
AA136: Air Start | AB136: =CHOOSE(DA!$AB$10,AV15,AV55) -> 193 | AC136: =IF(AB136="","",IF(AB136>=AD136,"≥","<")) -> ≥ | AD136: =CHOOSE(SR!$BQ$10,SOT,SCT) -> 115 | AE136: =CHOOSE(SR!$BQ$10,"Start Open","Start Closed") -> Start Open | AG136: =IF(AB136="","",AB136/AD136) -> 1.67826087
AA137: Air End | AB137: =CHOOSE(DA!$AB$10,AV16,AV56) -> 95 | AC137: =IF(AB137="","",IF(AB137>=AD137,"≥","<")) -> ≥ | AD137: =CHOOSE(SR!$BQ$10,EOT,ECT) -> 92 | AE137: =CHOOSE(SR!$BQ$10,"End Open","End Closed") -> End Open | AG137: =IF(AB137="","",AB137/AD137) -> 1.032608696
AC138: Min. Act Torque = | AD138: =MIN(AD134:AD137) -> 92 | AF138: Min. Act. : Req. = | AG138: =MIN(AG134:AG137) -> 1.032608696
AA141: Actuator Mounting for Menu
AA142: Mounting | AB142: Stem Sq.
AA143: =CHOOSE(DA!$AB$10,AL12,AL52) -> F05/F07 | AB143: =CHOOSE(DA!$AB$10,AM12,AM52) -> 14
AA145: SR Actuator Note Table | AD145: AB146:AC148
AB146: Actuator | AC146: Note
AA147: 1 | AB147: 6.5 | AC147: Non-stock; consult factory.
AA148: 2 | AB148: 7.5 | AC148: Non-stock; consult factory.
AA149: 3
AA152: =VLOOKUP($E$135,$AB$147:$AC$149,2, FALSE) -> 
AA153: =IF(ISERROR(AA152),"",AA152) -> 

Sheet Oper (hidden)
A1: Gear Operator
A2: Gear_Op_Alecto | G2: Gear_Op_Alecto
A3: Alecto Gear Operator Data Table (Table 13A) | G3: A6:AG17
G4: Std. Handwheel | J4: Largest HW | M4: Handwheel Diameters Available, In. | Z4: Handwheel Dia. | AE4: Handwheel Pull | AG4: All Criteria Met | AJ4: Alecto Max. HW Dia. Sel. Menu (Table 14A)
A5: Marwin No. (Relative Cost) | B5: AT Controls No. | C5: Gear Ratio | D5: Mech. Advan- tage | E5: *Std. Torque Output In-lbf | F5: Max Torque Output In-lbf | G5: Std. HW Dia. In. | H5: Tot. HW Pull @ Std Torque Lbf | I5: Tot. HW Pull @ Max Torq. Lbf | J5: Largest HW Dia. In. | K5: Tot. HW Pull @ Max Torq. Lbf | L5: HW Shaft Dia | M5: 1 | N5: 2 | O5: 3 | P5: 4 | Q5: 5 | R5: 6 | S5: 7 | T5: 8 | U5: 9 | V5: 10 | W5: 11 | X5: 12 | Z5: Va. Torq. <= Oper. Max. Output Torque | AA5: Calc. D. for User Max Pull, In. | AB5: Index No. of Next Largest Avail. HW | AC5: Next Larg- est Avail. HW D. In. | AD5: <= Max Allow. Dia | AE5: Tot. Pull, Lbf | AF5: <= Max Pull | AK5: HW Dia | AL5: Alecto GO Description: | AP5: Gear Operator Mfgr Menu | AV5: Gear Operator Note Table
A6: 1 | B6: AB 210 | C6: 30 | D6: 9.7 | E6: 2328 | F6: 2920 | G6: 6 | H6: =E6/(G6/2*D6) -> 80 | I6: =F6/(G6/2*D6) -> 100.3436426 | J6: 8 | K6: =F6/(D6*J6/2) -> 75.25773196 | L6: 0.59 | M6: 0 | N6: 6 | O6: 8 | P6: NA | Q6: NA | R6: NA | S6: NA | T6: NA | U6: NA | V6: NA | W6: NA | X6: NA | Y6: NA | Z6: =IF(SOT<=F6,"Y","N") -> Y | AA6: =2*SOT/(Menu!$P$38*D6) -> 0.2963917526 | AB6: =IF(OR(AA6=6,AA6=8),MATCH(AA6,M6:Y6),MATCH(AA6,M6:Y6)+1) -> 2 | AC6: =CHOOSE(AB6,$M6,$N6,$O6,$P6,$Q6,$R6,$S6,$T6,$U6,$V6,$W6,$X6,$Y6) -> 6 | AD6: =IF(AC6<=$AK$141,"Y","N") -> Y | AE6: =SOT/($AK$141/2*D6) -> 1.317296678 | AF6: =IF(AE6<=Menu!$P$38,"Y","N") -> Y | AG6: =AND(Z6="Y",AD6="Y",AF6="Y") -> TRUE | AJ6: 1 | AK6: 6 | AL6: Quarter turn worm gear operator for manual valves. | AQ6: Menu | AW6: Series | AX6: Note
A7: 2 | B7: AB 550 | C7: 34 | D7: 9.7 | E7: 3880 | F7: 8270 | G7: 10 | H7: 80 | I7: 170.5154639 | J7: 20 | K7: 85.25773196 | L7: 0.79 | M7: 0 | N7: 10 | O7: 12 | P7: 14 | Q7: 16 | R7: 18 | S7: 20 | T7: 24 | U7: 28 | V7: NA | W7: NA | X7: NA | Y7: NA | Z7: Y | AA7: =2*SOT/(Menu!$P$38*D7) -> 0.2963917526 | AB7: =IF(OR(AA7=10,AA7=12,AA7=14,AA7=16,AA7=18,AA7=20,AA7=24,AA7=28),MATCH(AA7,M7:Y7),MATCH(AA7,M7:Y7)+1) -> 2 | AC7: 10 | AD7: Y | AE7: 1.317296678 | AF7: =IF(AE7<=Menu!$P$38,"Y","N") -> Y | AG7: TRUE | AJ7: 2 | AK7: 8 | AP7: 1 | AQ7: DynaTorque DT (Manual) | AV7: 1 | AW7: Q200 | AX7: Q200 not suitiable for chain wheel.
A8: 3 | B8: AB 880 | C8: 38 | D8: 12.3 | E8: 5904 | F8: 14350 | G8: 12 | H8: 80 | I8: 194.4444444 | J8: 30 | K8: 77.77777778 | L8: 0.79 | M8: 0 | N8: 10 | O8: 12 | P8: 14 | Q8: 16 | R8: 18 | S8: 20 | T8: 24 | U8: 28 | V8: 30 | W8: 32 | X8: NA | Y8: NA | Z8: Y | AA8: =2*SOT/(Menu!$P$38*D8) -> 0.2337398374 | AB8: =IF(OR(AA8=10,AA8=12,AA8=14,AA8=16,AA8=18,AA8=20,AA8=24,AA8=28,AA8=30,AA8=32),MATCH(AA8,M8:Y8),MATCH(AA8,M8:Y8)+1) -> 2 | AC8: 10 | AD8: Y | AE8: 1.038843722 | AF8: =IF(AE8<=Menu!$P$38,"Y","N") -> Y | AG8: TRUE | AJ8: 3 | AK8: 10 | AP8: 2 | AQ8: DynaTorque DT-SD (Declutch.--DA) | AV8: 2 | AW8: Q400 | AX8: Q400 not suitiable for chain wheel.
A9: 4 | B9: AB 1250 | C9: 55 | D9: 13.2 | E9: 8448 | F9: 23380 | G9: 16 | H9: 80 | I9: 221.4015152 | J9: 36 | K9: 98.4006734 | L9: 0.79 | M9: 0 | N9: 10 | O9: 12 | P9: 14 | Q9: 16 | R9: 18 | S9: 20 | T9: 24 | U9: 28 | V9: 30 | W9: 32 | X9: 36 | Y9: NA | Z9: Y | AA9: =2*SOT/(Menu!$P$38*D9) -> 0.2178030303 | AB9: =IF(OR(AA9=10,AA9=12,AA9=14,AA9=16,AA9=18,AA9=20,AA9=24,AA9=28,AA9=30,AA9=32,AA9=36),MATCH(AA9,M9:Y9),MATCH(AA9,M9:Y9)+1) -> 2 | AC9: 10 | AD9: Y | AE9: 0.968013468 | AF9: =IF(AE9<=Menu!$P$38,"Y","N") -> Y | AG9: TRUE | AJ9: 4 | AK9: 12 | AP9: 3 | AQ9: DynaTorque DT-SRD (Declutch.--SR) | AV9: 3 | AW9: DT1 | AX9: DT1 not suitiable for chain wheel.
A10: 5 | B10: AB 1250/SP4 | C10: 220 | D10: 53.1 | E10: 33472 | F10: 33472 | G10: 16 | H10: 78.79472693 | I10: 78.79472693 | J10: 16 | K10: 78.79472693 | L10: 0.79 | M10: 0 | N10: 10 | O10: 12 | P10: 14 | Q10: 16 | R10: NA | S10: NA | T10: NA | U10: NA | V10: NA | W10: NA | X10: NA | Y10: NA | Z10: Y | AA10: =2*SOT/(Menu!$P$38*D10) -> 0.05414312618 | AB10: =IF(OR(AA10=10,AA10=12,AA10=14,AA10=16),MATCH(AA10,M10:Y10),MATCH(AA10,M10:Y10)+1) -> 2 | AC10: 10 | AD10: Y | AE10: 0.2406361163 | AF10: =IF(AE10<=Menu!$P$38,"Y","N") -> Y | AG10: TRUE | AJ10: 5 | AK10: 14 | AP10: 4 | AQ10: Alecto (Manual) | AV10: 4 | AW10: DT2 | AX10: DT2 not suitiable for chain wheel.
A11: 6 | B11: AB 1950 | C11: 52 | D11: 17.2 | E11: 13760 | F11: 36820 | G11: 20 | H11: 80 | I11: 214.0697674 | J11: 36 | K11: 118.9276486 | L11: 0.98 | M11: 0 | N11: 14 | O11: 16 | P11: 18 | Q11: 20 | R11: 24 | S11: 28 | T11: 30 | U11: 32 | V11: 36 | W11: NA | X11: NA | Y11: NA | Z11: Y | AA11: =2*SOT/(Menu!$P$38*D11) -> 0.1671511628 | AB11: =IF(OR(AA11=14,AA11=16,AA11=18,AA11=20,AA11=24,AA11=28,AA11=30,AA11=32,AA11=36),MATCH(AA11,M11:Y11),MATCH(AA11,M11:Y11)+1) -> 2 | AC11: 14 | AD11: Y | AE11: 0.7428940568 | AF11: =IF(AE11<=Menu!$P$38,"Y","N") -> Y | AG11: TRUE | AJ11: 6 | AK11: 16 | AP11: 5 | AQ11: Pro-Gear (Manual) | AV11: 5 | AW11: DT3 | AX11: DT3 not suitiable for chain wheel.
A12: 7 | B12: AB 1950/SP4 | C12: 208 | D12: 54.4 | E12: 45520 | F12: 60180 | G12: 20 | H12: 83.67647059 | I12: 110.625 | J12: 30 | K12: 73.75 | L12: 0.98 | M12: 0 | N12: 14 | O12: 16 | P12: 18 | Q12: 20 | R12: 24 | S12: 28 | T12: 30 | U12: 32 | V12: NA | W12: NA | X12: NA | Y12: NA | Z12: Y | AA12: =2*SOT/(Menu!$P$38*D12) -> 0.05284926471 | AB12: =IF(OR(AA12=14,AA12=16,AA12=18,AA12=20,AA12=24,AA12=28,AA12=30,AA12=32),MATCH(AA12,M12:Y12),MATCH(AA12,M12:Y12)+1) -> 2 | AC12: 14 | AD12: Y | AE12: 0.2348856209 | AF12: =IF(AE12<=Menu!$P$38,"Y","N") -> Y | AG12: TRUE | AJ12: 7 | AK12: 18 | AP12: 6 | AQ12: MasterGear (Manual) | AV12: 6 | AW12: DT5 | AX12: DT5 not suitiable for chain wheel.
A13: 8 | B13: AB 6800 | C13: 78 | D13: 27.5 | E13: 26400 | F13: 73460 | G13: 24 | H13: 80 | I13: 222.6060606 | J13: 36 | K13: 148.4040404 | L13: 0.98 | M13: 0 | N13: 14 | O13: 16 | P13: 18 | Q13: 20 | R13: 24 | S13: 28 | T13: 30 | U13: 32 | V13: 36 | W13: NA | X13: NA | Y13: NA | Z13: Y | AA13: =2*SOT/(Menu!$P$38*D13) -> 0.1045454545 | AB13: =IF(OR(AA13=14,AA13=16,AA13=18,AA13=20,AA13=24,AA13=28,AA13=30,AA13=32,AA13=36),MATCH(AA13,M13:Y13),MATCH(AA13,M13:Y13)+1) -> 2 | AC13: 14 | AD13: Y | AE13: 0.4646464646 | AF13: =IF(AE13<=Menu!$P$38,"Y","N") -> Y | AG13: TRUE | AJ13: 8 | AK13: 20 | AV13: 7 | AW13: DT7 | AX13: DT7 not suitiable for chain wheel.
A14: 9 | B14: AB 6800/SP4 | C14: 319 | D14: 93.6 | E14: 89568 | F14: 110630 | G14: 24 | H14: 79.74358974 | I14: 98.49537037 | J14: 30 | K14: 78.7962963 | L14: 0.98 | M14: 0 | N14: 14 | O14: 16 | P14: 18 | Q14: 20 | R14: 24 | S14: 28 | T14: 30 | U14: 32 | V14: NA | W14: NA | X14: NA | Y14: NA | Z14: Y | AA14: =2*SOT/(Menu!$P$38*D14) -> 0.03071581197 | AB14: =IF(OR(AA14=14,AA14=16,AA14=18,AA14=20,AA14=24,AA14=28,AA14=30,AA14=32),MATCH(AA14,M14:Y14),MATCH(AA14,M14:Y14)+1) -> 2 | AC14: 14 | AD14: Y | AE14: 0.1365147198 | AF14: =IF(AE14<=Menu!$P$38,"Y","N") -> Y | AG14: TRUE | AJ14: 9 | AK14: 24 | AP14: 1 | AQ14: =VLOOKUP(AP14,AP7:AQ12,2,FALSE) -> DynaTorque DT (Manual) | AV14: 8 | AW14: M05 | AX14: M05 not suitiable for chain wheel.
A15: 10 | B15: A 250/SP9 | C15: 705 | D15: 227 | E15: 218208 | F15: 283200 | G15: 24 | H15: 80.10572687 | I15: 103.9647577 | J15: 30 | K15: 83.17180617 | L15: 1.18 | M15: 0 | N15: 14 | O15: 16 | P15: 18 | Q15: 20 | R15: 24 | S15: 28 | T15: 30 | U15: 32 | V15: NA | W15: NA | X15: NA | Y15: NA | Z15: Y | AA15: =2*SOT/(Menu!$P$38*D15) -> 0.01266519824 | AB15: =IF(OR(AA15=14,AA15=16,AA15=18,AA15=20,AA15=24,AA15=28,AA15=30,AA15=32),MATCH(AA15,M15:Y15),MATCH(AA15,M15:Y15)+1) -> 2 | AC15: 14 | AD15: Y | AE15: 0.05628976995 | AF15: =IF(AE15<=Menu!$P$38,"Y","N") -> Y | AG15: TRUE | AJ15: 10 | AK15: 28 | AV15: 9 | AW15: M07 | AX15: M07 not suitiable for chain wheel.
A16: 11 | B16: A 500/SP15 | C16: 1977 | D16: 400 | E16: 384000 | F16: 442500 | G16: 24 | H16: 80 | I16: 92.1875 | J16: 30 | K16: 73.75 | L16: 1.18 | M16: 0 | N16: 14 | O16: 16 | P16: 18 | Q16: 20 | R16: 24 | S16: 28 | T16: 30 | U16: 32 | V16: NA | W16: NA | X16: NA | Y16: NA | Z16: Y | AA16: =2*SOT/(Menu!$P$38*D16) -> 0.0071875 | AB16: =IF(OR(AA16=14,AA16=16,AA16=18,AA16=20,AA16=24,AA16=28,AA16=30,AA16=32),MATCH(AA16,M16:Y16),MATCH(AA16,M16:Y16)+1) -> 2 | AC16: 14 | AD16: Y | AE16: 0.03194444444 | AF16: =IF(AE16<=Menu!$P$38,"Y","N") -> Y | AG16: TRUE | AJ16: 11 | AK16: 30 | AV16: 10 | AW16: DT3SRD | AX16: DT3SRD not suitiable for chain wheel.
A17: 12 | B17: Consult Eng. | C17: 99999 | D17: 99999 | E17: 99999 | F17: 999999 | G17: 99999 | H17: 2.00002e-05 | I17: 0.0002000038001 | J17: 99999 | K17: 0.0002000038001 | L17: 99999 | M17: 0 | N17: 99 | O17: 99 | P17: 99 | Q17: 99 | R17: 99 | S17: 99 | T17: 99 | U17: 99 | V17: 99 | W17: 99 | X17: 99 | Y17: NA | Z17: Y | AA17: =2*SOT/(Menu!$P$38*D17) -> 2.87502875e-05 | AB17: =MATCH(AA17,M17:Y17) -> 1 | AC17: 0 | AD17: Y | AE17: 0.0001277790556 | AF17: =IF(AE17<=Menu!$P$38,"Y","N") -> Y | AG17: TRUE | AJ17: 12 | AK17: 32
A18: Alecto (AT Controls) | AJ18: 13 | AK18: 36 | AX18: =VLOOKUP($B$128,$AW$7:$AX$16,2, FALSE) -> DT3 not suitiable for chain wheel.
A19: Bold = handwheel sizes on Marwin Dwg. 27-05390 | H19: =G6*D6*80/2 -> 2328 | J19: =F6/D6 -> 301.0309278 | AX19: =IF(ISERROR(AX18),"",AX18) -> DT3 not suitiable for chain wheel.
A20: *Std. Torque output is torque output for 80 lb HW pull with Std. Dia. HW. | H20: =G7*D7*80/2 -> 3880 | J20: =F7/D7 -> 852.5773196
A23: Gear_Op_ProGear | G23: Gear_Op_ProGear
A24: Pro-Gear Gear Operator Data Table (Table 13B) | G24: A27:AG35
G25: Std. Handwheel | J25: Largest HW | M25: ***Handwheel Diameters Available, In. | Z25: Handwheel Dia. | AE25: Handwheel Pull | AG25: All Criteria Met | AJ25: Pro-Gear Max. HW Dia. Sel. Menu (Table 14B)
A26: Marwin No. (Relative Cost) | B26: Pro-Gear No. | C26: Gear Ratio | D26: Mech. Advan- tage | E26: *Std. Torque Output In-lbf | F26: Max Torque Output In-lbf | G26: **Std. HW Dia. In. | H26: Tot. HW Pull @ Std Torque Lbf | I26: Tot. HW Pull @ Max Torq. Lbf | J26: *** Largest HW Dia. In. | K26: Tot. HW Pull @ Max Torq. Lbf | L26: HW Shaft Dia | M26: 1 | N26: 2 | O26: 3 | P26: 4 | Q26: 5 | R26: 6 | S26: 7 | T26: 8 | U26: 9 | V26: 10 | W26: 11 | X26: 12 | Z26: Va. Torq. <= Oper. Max. Output Torque | AA26: Calc. D. for User Max Pull, In. | AB26: Index No. of Next Largest Avail. HW | AC26: Next Larg- est Avail. HW D. In. | AD26: <= Max Allow. Dia | AE26: Tot. Pull, Lbf | AF26: <= Max Pull | AK26: HW Dia | AL26: Pro-Gear GO Description:
A27: 1 | B27: Q200 | C27: 40 | D27: 11.9 | E27: 1770 | F27: 1770 | G27: 4.9 | H27: =E27/(G27/2*D27) -> 60.70999829 | I27: =F27/(G27/2*D27) -> 60.70999829 | J27: 8 | K27: =F27/(D27*J27/2) -> 37.18487395 | L27: 0.47 | M27: 0 | N27: 4.92 | O27: 6.3 | P27: NA | Q27: NA | R27: NA | S27: NA | T27: NA | U27: NA | V27: NA | W27: NA | X27: NA | Y27: NA | Z27: =IF(SOT<=F27,"Y","N") -> Y | AA27: =2*SOT/(Menu!$P$38*D27) -> 0.2415966387 | AB27: =IF(OR(AA27=4.9,AA27=6.3),MATCH(AA27,M27:Y27),MATCH(AA27,M27:Y27)+1) -> 2 | AC27: =CHOOSE(AB27,$M27,$N27,$O27,$P27,$Q27,$R27,$S27,$T27,$U27,$V27,$W27,$X27,$Y27) -> 4.92 | AD27: =IF(AC27<=$AK$141,"Y","N") -> Y | AE27: =SOT/($AK$141/2*D27) -> 1.073762838 | AF27: =IF(AE27<=Menu!$P$38,"Y","N") -> Y | AG27: =AND(Z27="Y",AD27="Y",AF27="Y") -> TRUE | AJ27: 1 | AK27: 5 | AL27: Quarter turn worm gear operator for manual valves.
A28: 2 | B28: Q400 | C28: 44 | D28: 12.8 | E28: 3072 | F28: 3540 | G28: 6.3 | H28: 76.19047619 | I28: 87.79761905 | J28: 8 | K28: 69.140625 | L28: 0.47 | M28: 0 | N28: 4.92 | O28: 6.3 | P28: 7.87 | Q28: NA | R28: NA | S28: NA | T28: NA | U28: NA | V28: NA | W28: NA | X28: NA | Y28: NA | Z28: Y | AA28: =2*SOT/(Menu!$P$38*D28) -> 0.224609375 | AB28: =IF(OR(AA28=4.9,AA28=6.3,AA28=7.9),MATCH(AA28,M28:Y28),MATCH(AA28,M28:Y28)+1) -> 2 | AC28: 4.92 | AD28: Y | AE28: 0.9982638889 | AF28: =IF(AE28<=Menu!$P$38,"Y","N") -> Y | AG28: TRUE | AJ28: 2 | AK28: 6
A29: 3 | B29: Q800 | C29: 40 | D29: 13.3 | E29: 5320 | F29: 7080 | G29: 9.8 | H29: 81.63265306 | I29: 108.6389443 | J29: 16 | K29: 66.54135338 | L29: 0.59 | M29: 0 | N29: 7.87 | O29: 9.84 | P29: 12.4 | Q29: 15.7 | R29: NA | S29: NA | T29: NA | U29: NA | V29: NA | W29: NA | X29: NA | Y29: NA | Z29: Y | AA29: =2*SOT/(Menu!$P$38*D29) -> 0.2161654135 | AB29: =IF(OR(AA29=7.9,AA29=9.8,AA29=12.4,AA29=15.7),MATCH(AA29,M29:Y29),MATCH(AA29,M29:Y29)+1) -> 2 | AC29: 7.87 | AD29: Y | AE29: 0.9607351713 | AF29: =IF(AE29<=Menu!$P$38,"Y","N") -> Y | AG29: TRUE | AJ29: 3 | AK29: 8
A30: 4 | B30: Q2000 | C30: 48 | D30: 15.3 | E30: 9790 | F30: 17700 | G30: 15.7 | H30: 81.51201032 | I30: 147.3710503 | J30: 20 | K30: 115.6862745 | L30: 0.79 | M30: 0 | N30: 12.4 | O30: 15.7 | P30: 19.7 | Q30: 23.6 | R30: 27.6 | S30: 31.5 | T30: NA | U30: NA | V30: NA | W30: NA | X30: NA | Y30: NA | Z30: Y | AA30: =2*SOT/(Menu!$P$38*D30) -> 0.1879084967 | AB30: =IF(OR(AA30=12.4,AA30=15.7,AA30=19.7,AA30=23.6, AA30=27.6,AA30=31.5),MATCH(AA30,M30:Y30),MATCH(AA30,M30:Y30)+1) -> 2 | AC30: 12.4 | AD30: Y | AE30: 0.8351488744 | AF30: =IF(AE30<=Menu!$P$38,"Y","N") -> Y | AG30: TRUE | AJ30: 4 | AK30: 10
A31: 6 | B31: Q4000/PR3 | C31: 216 | D31: 68.4 | E31: 43750 | F31: 57525 | G31: 15.75 | H31: 81.22157245 | I31: 106.7947647 | J31: 24 | K31: 70.08406433 | L31: 0.79 | M31: 0 | N31: 11.8 | O31: 15.7 | P31: 19.7 | Q31: 23.6 | R31: NA | S31: NA | T31: NA | U31: NA | V31: NA | W31: NA | X31: NA | Y31: NA | Z31: Y | AA31: =2*SOT/(Menu!$P$38*D31) -> 0.04203216374 | AB31: =IF(OR(AA31=11.8,AA31=15.7,AA31=19.7,AA31=23.6),MATCH(AA31,M31:Y31),MATCH(AA31,M31:Y31)+1) -> 2 | AC31: 11.8 | AD31: Y | AE31: 0.1868096166 | AF31: =IF(AE31<=Menu!$P$38,"Y","N") -> Y | AG31: TRUE | AJ31: 5 | AK31: 12
A32: 8 | B32: Q8000/PR3 | C32: 216 | D32: 96 | E32: 92200 | F32: 106200 | G32: 23.62 | H32: 81.32232571 | I32: 93.67061812 | J32: 24 | K32: 92.1875 | L32: 0.79 | M32: 0 | N32: 15.7 | O32: 19.7 | P32: 23.6 | Q32: 27.6 | R32: NA | S32: NA | T32: NA | U32: NA | V32: NA | W32: NA | X32: NA | Y32: NA | Z32: Y | AA32: =2*SOT/(Menu!$P$38*D32) -> 0.02994791667 | AB32: =IF(OR(AA32=15.7,AA32=19.7,AA32=23.6,AA32=27.6),MATCH(AA32,M32:Y32),MATCH(AA32,M32:Y32)+1) -> 2 | AC32: 15.7 | AD32: Y | AE32: 0.1331018519 | AF32: =IF(AE32<=Menu!$P$38,"Y","N") -> Y | AG32: TRUE | AJ32: 6 | AK32: 16
A33: 9 | B33: Consult Eng. | C33: 99999 | D33: 99999 | E33: 99999 | F33: 999999 | G33: 99999 | H33: 2.00002e-05 | I33: 0.0002000038001 | J33: 99999 | K33: 0.0002000038001 | L33: 99999 | M33: 0 | N33: 99 | O33: 99 | P33: 99 | Q33: 99 | R33: 99 | S33: 99 | T33: 99 | U33: 99 | V33: 99 | W33: 99 | X33: 99 | Y33: NA | Z33: Y | AA33: =2*SOT/(Menu!$P$38*D33) -> 2.87502875e-05 | AB33: =MATCH(AA33,M33:Y33) -> 1 | AC33: 0 | AD33: Y | AE33: 0.0001277790556 | AF33: =IF(AE33<=Menu!$P$38,"Y","N") -> Y | AG33: TRUE | AJ33: 7 | AK33: 20
A34: 5 | B34: Q4000 | C34: 72 | D34: 21.6 | E34: 17275 | F34: 35400 | G34: 19.69 | H34: 81.23601001 | I34: 166.4691609 | J34: 24 | K34: 136.5740741 | L34: 0.79 | M34: 0 | N34: 19.7 | O34: 23.6 | P34: 27.6 | Q34: 31.5 | R34: NA | S34: NA | T34: NA | U34: NA | V34: NA | W34: NA | X34: NA | Y34: NA | Z34: Y | AA34: =2*SOT/(Menu!$P$38*D34) -> 0.1331018519 | AB34: =IF(OR(AA34=19.7,AA34=23.6,AA34=27.6,AA34=31.5),MATCH(AA34,M34:Y34),MATCH(AA34,M34:Y34)+1) -> 2 | AC34: 19.7 | AD34: N | AE34: 0.591563786 | AF34: =IF(AE34<=Menu!$P$38,"Y","N") -> Y | AG34: FALSE | AJ34: 8 | AK34: 24
A35: 7 | B35: Q8000 | C35: 72 | D35: 31.4 | E35: 30150 | F35: 70800 | G35: 23.62 | H35: 81.30322462 | I35: 190.9210051 | J35: 32 | K35: 140.9235669 | L35: 0.98 | M35: 0 | N35: 19.7 | O35: 23.6 | P35: 27.6 | Q35: 31.5 | R35: NA | S35: NA | T35: NA | U35: NA | V35: NA | W35: NA | X35: NA | Y35: NA | Z35: Y | AA35: =2*SOT/(Menu!$P$38*D35) -> 0.09156050955 | AB35: =IF(OR(AA35=19.7,AA35=23.64,AA35=27.6,AA35=31.5),MATCH(AA35,M35:Y35),MATCH(AA35,M35:Y35)+1) -> 2 | AC35: 19.7 | AD35: N | AE35: 0.406935598 | AF35: =IF(AE35<=Menu!$P$38,"Y","N") -> Y | AG35: FALSE | AJ35: 9 | AK35: 28
A36: Pro-Gear (AT Controls) | AJ36: 10 | AK36: 32
A37: Yellow = AT Controls / Pro-Gear "recommended" hwl size. | G37: Q200 4.9 was 6.3; Q2000 15.7 was 12.4 JJH 11/6/04 | AJ37: 11 | AK37: --
A38: *Std. Torque output is torque output for 80 lb HW pull with Std. Dia. HW. | AJ38: 12 | AK38: --
A39: Data from Pro-Gear by SymTech Bulletin dated 09/2001 | AJ39: 13 | AK39: --
A42: Gear_Op_DT | G42: Gear_Op_DT
A43: DynaTorque DT Gear Operator Data Table (Table 13C) | G43: A46:AH54
G44: Std. Handwheel | J44: Largest HW | M44: Handwheel Diameters Available, In. | Z44: Handwheel Dia. | AE44: Handwheel Pull | AG44: All Criteria Met | AH44: Mount | AJ44: DynaTorque Max. HW Dia. Sel. Menu (Table 14C)
A45: Marwin No. (Relative Cost) | B45: Dyna- Torque No.** | C45: Gear Ratio | D45: Mech. Advan- tage | E45: *Std. Torque Output In-lbf | F45: Max Torque Output In-lbf | G45: Std. HW Dia. In. | H45: Tot. HW Pull @ Std Torque Lbf | I45: Tot. HW Pull @ Max Torq. Lbf | J45: Largest HW Dia. In. | K45: Tot. HW Pull @ Max Torq. Lbf | L45: HW Shaft Dia | M45: 1 | N45: 2 | O45: 3 | P45: 4 | Q45: 5 | R45: 6 | S45: 7 | T45: 8 | U45: 9 | V45: 10 | W45: 11 | X45: 12 | Z45: Va. Torq. <= Oper. Max. Output Torque | AA45: Calc. D. for User Max Pull, In. | AB45: Index No. of Next Largest Avail. HW | AC45: Next Larg- est Avail. HW D. In. | AD45: <= Max Allow. Dia | AE45: Tot. Pull, Lbf | AF45: <= Max Pull | AK45: HW Dia | AL45: DynaTorque DT GO Description:
A46: 1 | B46: DT3 | C46: 30 | D46: 8.1 | E46: =G46*D46*80/2 -> 3888 | F46: 4500 | G46: 12 | H46: =E46/(G46/2*D46) -> 80 | I46: =F46/(G46/2*D46) -> 92.59259259 | J46: 18 | K46: =F46/(D46*J46/2) -> 61.72839506 | L46: 0.625 | M46: 0 | N46: 6 | O46: 8 | P46: 10 | Q46: 12 | R46: 14 | S46: 18 | T46: NA | U46: NA | V46: NA | W46: NA | X46: NA | Y46: NA | Z46: =IF(SOT<=F46,"Y","N") -> Y | AA46: =2*SOT/(Menu!$P$38*D46) -> 0.3549382716 | AB46: =IF(OR(AA46=10,AA46=12,AA46=14,AA46=16,AA46=18,AA46=20,AA46=24,AA46=28),MATCH(AA46,M46:Y46),MATCH(AA46,M46:Y46)+1) -> 2 | AC46: =CHOOSE(AB46,$M46,$N46,$O46,$P46,$Q46,$R46,$S46,$T46,$U46,$V46,$W46,$X46,$Y46) -> 6 | AD46: =IF(AC46<=$AK$141,"Y","N") -> Y | AE46: =SOT/($AK$141/2*D46) -> 1.577503429 | AF46: =IF(AE46<=Menu!$P$38,"Y","N") -> Y | AG46: =AND(Z46="Y",AD46="Y",AF46="Y") -> TRUE | AH46: 0.38-16 on 3.25 BC | AJ46: 1 | AK46: 6 | AL46: Quarter turn worm gear operator for manual valves.
A47: 2 | B47: DT7 | C47: 48 | D47: 12.96 | E47: 7257.6 | F47: 10000 | G47: 14 | H47: 80 | I47: 110.2292769 | J47: 18 | K47: 85.73388203 | L47: 0.625 | M47: 0 | N47: 6 | O47: 8 | P47: 10 | Q47: 12 | R47: 14 | S47: 18 | T47: NA | U47: NA | V47: NA | W47: NA | X47: NA | Y47: NA | Z47: Y | AA47: =2*SOT/(Menu!$P$38*D47) -> 0.2218364198 | AB47: =IF(OR(AA47=10,AA47=12,AA47=14,AA47=16,AA47=18,AA47=20,AA47=24,AA47=28,AA47=30,AA47=32),MATCH(AA47,M47:Y47),MATCH(AA47,M47:Y47)+1) -> 2 | AC47: 6 | AD47: Y | AE47: 0.9859396433 | AF47: =IF(AE47<=Menu!$P$38,"Y","N") -> Y | AG47: TRUE | AH47: F12 | AJ47: 2 | AK47: 8
A48: 3 | B48: DT12 | C48: 57 | D48: 13.68 | E48: 10944 | F48: 16000 | G48: 20 | H48: 80 | I48: 116.9590643 | J48: 36 | K48: 64.97725796 | L48: 1 | M48: 0 | N48: 6 | O48: 8 | P48: 10 | Q48: 12 | R48: 14 | S48: 18 | T48: 20 | U48: 24 | V48: 30 | W48: 36 | X48: NA | Y48: NA | Z48: Y | AA48: =2*SOT/(Menu!$P$38*D48) -> 0.2101608187 | AB48: =IF(OR(AA48=10,AA48=12,AA48=14,AA48=16),MATCH(AA48,M48:Y48),MATCH(AA48,M48:Y48)+1) -> 2 | AC48: 6 | AD48: Y | AE48: 0.9340480832 | AF48: =IF(AE48<=Menu!$P$38,"Y","N") -> Y | AG48: TRUE | AH48: F12 | AJ48: 3 | AK48: 10
A49: 4 | B49: DT21 | C49: 60 | D49: 22.5 | E49: 21600 | F49: 26000 | G49: 24 | H49: 80 | I49: 96.2962963 | J49: 36 | K49: 64.19753086 | L49: 1 | M49: 0 | N49: 6 | O49: 8 | P49: 10 | Q49: 12 | R49: 14 | S49: 18 | T49: 20 | U49: 24 | V49: 30 | W49: 36 | X49: NA | Y49: NA | Z49: Y | AA49: =2*SOT/(Menu!$P$38*D49) -> 0.1277777778 | AB49: =IF(OR(AA49=14,AA49=16,AA49=18,AA49=20,AA49=24,AA49=28,AA49=30,AA49=32),MATCH(AA49,M49:Y49),MATCH(AA49,M49:Y49)+1) -> 2 | AC49: 6 | AD49: Y | AE49: 0.5679012346 | AF49: =IF(AE49<=Menu!$P$38,"Y","N") -> Y | AG49: TRUE | AH49: F14 | AJ49: 4 | AK49: 12
A50: 5 | B50: DT36 | C50: 53 | D50: 19 | E50: 22800 | F50: 36000 | G50: 30 | H50: 80 | I50: 126.3157895 | J50: 36 | K50: 105.2631579 | L50: 1 | M50: 0 | N50: 6 | O50: 8 | P50: 10 | Q50: 12 | R50: 14 | S50: 18 | T50: 20 | U50: 24 | V50: 30 | W50: 36 | X50: NA | Y50: NA | Z50: Y | AA50: =2*SOT/(Menu!$P$38*D50) -> 0.1513157895 | AB50: =IF(OR(AA50=14,AA50=16,AA50=18,AA50=20,AA50=24,AA50=28,AA50=30,AA50=32,AA50=36),MATCH(AA50,M50:Y50),MATCH(AA50,M50:Y50)+1) -> 2 | AC50: 6 | AD50: Y | AE50: 0.6725146199 | AF50: =IF(AE50<=Menu!$P$38,"Y","N") -> Y | AG50: TRUE | AH50: F16 | AJ50: 5 | AK50: 14
A51: 6 | B51: DT50 | C51: 212 | D51: 60.8 | E51: 43776 | F51: 50000 | G51: 18 | H51: 80 | I51: 91.37426901 | J51: 36 | K51: 45.6871345 | L51: 1 | M51: 0 | N51: 6 | O51: 8 | P51: 10 | Q51: 12 | R51: 14 | S51: 18 | T51: 20 | U51: 24 | V51: 30 | W51: 36 | X51: NA | Y51: NA | Z51: Y | AA51: =2*SOT/(Menu!$P$38*D51) -> 0.04728618421 | AB51: =IF(OR(AA51=14,AA51=16,AA51=18,AA51=20,AA51=24,AA51=28,AA51=30,AA51=32),MATCH(AA51,M51:Y51),MATCH(AA51,M51:Y51)+1) -> 2 | AC51: 6 | AD51: Y | AE51: 0.2101608187 | AF51: =IF(AE51<=Menu!$P$38,"Y","N") -> Y | AG51: TRUE | AH51: F16 | AJ51: 6 | AK51: 18
A52: 7 | B52: DT54 | C52: 318 | D52: 91.2 | E52: 72960 | F52: 63000 | G52: 20 | H52: 80 | I52: 69.07894737 | J52: 36 | K52: 38.37719298 | L52: 1 | M52: 0 | N52: 6 | O52: 8 | P52: 10 | Q52: 12 | R52: 14 | S52: 18 | T52: 20 | U52: 24 | V52: 30 | W52: 36 | X52: NA | Y52: NA | Z52: Y | AA52: =2*SOT/(Menu!$P$38*D52) -> 0.03152412281 | AB52: =IF(OR(AA52=14,AA52=16,AA52=18,AA52=20,AA52=24,AA52=28,AA52=30,AA52=32),MATCH(AA52,M52:Y52),MATCH(AA52,M52:Y52)+1) -> 2 | AC52: 6 | AD52: Y | AE52: 0.1401072125 | AF52: =IF(AE52<=Menu!$P$38,"Y","N") -> Y | AG52: TRUE | AH52: F16 | AJ52: 7 | AK52: 20
A53: 8 | B53: DT60 | C53: 60 | D53: 15.6 | E53: 18720 | F53: 60000 | G53: 30 | H53: 80 | I53: 256.4102564 | J53: 36 | K53: 213.6752137 | L53: 1 | M53: 0 | N53: 6 | O53: 8 | P53: 10 | Q53: 12 | R53: 14 | S53: 18 | T53: 20 | U53: 24 | V53: 30 | W53: 36 | X53: NA | Y53: NA | Z53: Y | AA53: =2*SOT/(Menu!$P$38*D53) -> 0.1842948718 | AB53: =IF(OR(AA53=14,AA53=16,AA53=18,AA53=20,AA53=24,AA53=28,AA53=30,AA53=32),MATCH(AA53,M53:Y53),MATCH(AA53,M53:Y53)+1) -> 2 | AC53: 6 | AD53: Y | AE53: 0.8190883191 | AF53: =IF(AE53<=Menu!$P$38,"Y","N") -> Y | AG53: TRUE | AH53: 0.75-10 on 10.25 BC | AJ53: 8 | AK53: 24
A54: 9 | B54: Consult Eng. | C54: 99999 | D54: 99999 | E54: 99999 | F54: 999999 | G54: 99999 | H54: 2.00002e-05 | I54: 0.0002000038001 | J54: 99999 | K54: 0.0002000038001 | L54: 99999 | M54: 0 | N54: 99 | O54: 99 | P54: 99 | Q54: 99 | R54: 99 | S54: 99 | T54: 99 | U54: 99 | V54: 99 | W54: 99 | X54: 99 | Y54: NA | Z54: Y | AA54: =2*SOT/(Menu!$P$38*D54) -> 2.87502875e-05 | AB54: =MATCH(AA54,M54:Y54) -> 1 | AC54: 0 | AD54: Y | AE54: 0.0001277790556 | AF54: =IF(AE54<=Menu!$P$38,"Y","N") -> Y | AG54: TRUE | AH54: -- | AJ54: 9 | AK54: 30
AJ55: 10 | AK55: 36
A56: DynaTorque DT Not Used
A57: 1 | B57: DT1 | C57: 30 | D57: 8.1 | E57: =G57*D57*80/2 -> 1944 | F57: 1500 | G57: 6 | H57: =E57/(G57/2*D57) -> 80 | I57: =F57/(G57/2*D57) -> 61.72839506 | J57: 18 | K57: =F57/(D57*J57/2) -> 20.57613169 | L57: 0.623 | M57: 0 | N57: 6 | O57: 8 | P57: 10 | Q57: 12 | R57: 14 | S57: 18 | T57: NA | U57: NA | V57: NA | W57: NA | X57: NA | Y57: NA | Z57: =IF(SOT<=F57,"Y","N") -> Y | AA57: =2*SOT/(Menu!$P$38*D57) -> 0.3549382716 | AB57: =IF(OR(AA57=6,AA57=8),MATCH(AA57,M57:Y57),MATCH(AA57,M57:Y57)+1) -> 2 | AC57: =CHOOSE(AB57,$M57,$N57,$O57,$P57,$Q57,$R57,$S57,$T57,$U57,$V57,$W57,$X57,$Y57) -> 6 | AD57: =IF(AC57<=$AK$141,"Y","N") -> Y | AE57: =SOT/($AK$141/2*D57) -> 1.577503429 | AF57: =IF(AE57<=Menu!$P$38,"Y","N") -> Y | AG57: =AND(Z57="Y",AD57="Y",AF57="Y") -> TRUE
A58: 1 | B58: DT2 | C58: 30 | D58: 8.1 | E58: =G58*D58*62/2 -> 2008.8 | F58: 2000 | G58: 8 | H58: =E58/(G58/2*D58) -> 62 | I58: =F58/(G58/2*D58) -> 61.72839506 | J58: 12 | K58: =F58/(D58*J58/2) -> 41.15226337 | L58: 0.625 | M58: 0 | N58: 6 | O58: 8 | P58: 10 | Q58: 12 | R58: 14 | S58: 18 | T58: NA | U58: NA | V58: NA | W58: NA | X58: NA | Y58: NA | Z58: =IF(SOT<=F58,"Y","N") -> Y | AA58: =2*SOT/(Menu!$P$38*D58) -> 0.3549382716 | AB58: =IF(OR(AA58=6,AA58=8),MATCH(AA58,M58:Y58),MATCH(AA58,M58:Y58)+1) -> 2 | AC58: =CHOOSE(AB58,$M58,$N58,$O58,$P58,$Q58,$R58,$S58,$T58,$U58,$V58,$W58,$X58,$Y58) -> 6 | AD58: =IF(AC58<=$AK$141,"Y","N") -> Y | AE58: =SOT/($AK$141/2*D58) -> 1.577503429 | AF58: =IF(AE58<=Menu!$P$38,"Y","N") -> Y | AG58: =AND(Z58="Y",AD58="Y",AF58="Y") -> TRUE
A59: 3 | B59: DT5 | C59: 48 | D59: 12.96 | E59: =G59*D59*77/2 -> 4989.6 | F59: 5000 | G59: 10 | H59: =E59/(G59/2*D59) -> 77 | I59: =F59/(G59/2*D59) -> 77.16049383 | J59: 18 | K59: =F59/(D59*J59/2) -> 42.86694102 | L59: 0.625 | M59: 0 | N59: 6 | O59: 8 | P59: 10 | Q59: 12 | R59: 14 | S59: 18 | T59: NA | U59: NA | V59: NA | W59: NA | X59: NA | Y59: NA | Z59: =IF(SOT<=F59,"Y","N") -> Y | AA59: =2*SOT/(Menu!$P$38*D59) -> 0.2218364198 | AB59: =IF(OR(AA59=10,AA59=12,AA59=14,AA59=16,AA59=18,AA59=20,AA59=24,AA59=28),MATCH(AA59,M59:Y59),MATCH(AA59,M59:Y59)+1) -> 2 | AC59: =CHOOSE(AB59,$M59,$N59,$O59,$P59,$Q59,$R59,$S59,$T59,$U59,$V59,$W59,$X59,$Y59) -> 6 | AD59: =IF(AC59<=$AK$141,"Y","N") -> Y | AE59: =SOT/($AK$141/2*D59) -> 0.9859396433 | AF59: =IF(AE59<=Menu!$P$38,"Y","N") -> Y | AG59: =AND(Z59="Y",AD59="Y",AF59="Y") -> TRUE
A60: 5 | B60: DT8 | C60: 30 | D60: 8.1 | E60: =G60*D60*80/2 -> 5832 | F60: 8000 | G60: 18 | H60: =E60/(G60/2*D60) -> 80 | I60: =F60/(G60/2*D60) -> 109.739369 | J60: 36 | K60: =F60/(D60*J60/2) -> 54.8696845 | L60: 1 | M60: 0 | N60: 6 | O60: 8 | P60: 10 | Q60: 12 | R60: 14 | S60: 18 | T60: 20 | U60: 24 | V60: 30 | W60: 36 | X60: NA | Y60: NA | Z60: =IF(SOT<=F60,"Y","N") -> Y | AA60: =2*SOT/(Menu!$P$38*D60) -> 0.3549382716 | AB60: =IF(OR(AA60=10,AA60=12,AA60=14,AA60=16,AA60=18,AA60=20,AA60=24,AA60=28,AA60=30,AA60=32,AA60=36),MATCH(AA60,M60:Y60),MATCH(AA60,M60:Y60)+1) -> 2 | AC60: =CHOOSE(AB60,$M60,$N60,$O60,$P60,$Q60,$R60,$S60,$T60,$U60,$V60,$W60,$X60,$Y60) -> 6 | AD60: =IF(AC60<=$AK$141,"Y","N") -> Y | AE60: =SOT/($AK$141/2*D60) -> 1.577503429 | AF60: =IF(AE60<=Menu!$P$38,"Y","N") -> Y | AG60: =AND(Z60="Y",AD60="Y",AF60="Y") -> TRUE
A61: 7 | B61: DT16 | C61: 44 | D61: 11.44 | E61: =G61*D61*80/2 -> 10982.4 | F61: 16000 | G61: 24 | H61: =E61/(G61/2*D61) -> 80 | I61: =F61/(G61/2*D61) -> 116.5501166 | J61: 36 | K61: =F61/(D61*J61/2) -> 77.7000777 | L61: 1 | M61: 0 | N61: 6 | O61: 8 | P61: 10 | Q61: 12 | R61: 14 | S61: 18 | T61: 20 | U61: 24 | V61: 30 | W61: 36 | X61: NA | Y61: NA | Z61: =IF(SOT<=F61,"Y","N") -> Y | AA61: =2*SOT/(Menu!$P$38*D61) -> 0.2513111888 | AB61: =IF(OR(AA61=14,AA61=16,AA61=18,AA61=20,AA61=24,AA61=28,AA61=30,AA61=32,AA61=36),MATCH(AA61,M61:Y61),MATCH(AA61,M61:Y61)+1) -> 2 | AC61: =CHOOSE(AB61,$M61,$N61,$O61,$P61,$Q61,$R61,$S61,$T61,$U61,$V61,$W61,$X61,$Y61) -> 6 | AD61: =IF(AC61<=$AK$141,"Y","N") -> Y | AE61: =SOT/($AK$141/2*D61) -> 1.116938617 | AF61: =IF(AE61<=Menu!$P$38,"Y","N") -> Y | AG61: =AND(Z61="Y",AD61="Y",AF61="Y") -> TRUE
A64: Ref DynaTorque dwg 33-20XX 12/19/03, 33-22XX 7/13/03, 33-26XX 7/13/03, 33-25XX 7/13/03, 33-28XX 7/13/03, 33-27XX 7/13/03, 33-41XX 7/13/03, 33-42XX 7/31/03, 33-44XXA 7/30/03, 33-43XXA 7/31/03, 33-32XX 7/13/03
A65: Yellow = DynaTorque recommended handwheel dia.
A66: *Std. Torque output is torque output for 80 lb HW pull with Std. Dia. HW except DT2 & DT5.
A67: **DT2 & DT5 are aluminum housing (Dynatorque Basic Series). Others are cast iron housing (Dynatorque Commerical Grade)
A70: Gear_Op_DTSD | G70: Gear_Op_DTSD
A71: DynaTorque DT-SD Gear Operator Data Table (Table 13C) | G71: A74:AH81
G72: Std. Handwheel | J72: Largest HW | M72: Handwheel Diameters Available, In. | Z72: Handwheel Dia. | AE72: Handwheel Pull | AG72: All Criteria Met | AH72: Mount | AJ72: DynaTorque Max. HW Dia. Sel. Menu (Table 14C)
A73: Marwin No. (Relative Cost) | B73: Dyna- Torque No.** | C73: Gear Ratio | D73: Mech. Advan- tage | E73: *Std. Torque Output In-lbf | F73: Max Torque Output In-lbf | G73: Std. HW Dia. In. | H73: Tot. HW Pull @ Std Torque Lbf | I73: Tot. HW Pull @ Max Torq. Lbf | J73: Largest HW Dia. In. | K73: Tot. HW Pull @ Max Torq. Lbf | L73: HW Shaft Dia | M73: 1 | N73: 2 | O73: 3 | P73: 4 | Q73: 5 | R73: 6 | S73: 7 | T73: 8 | U73: 9 | V73: 10 | W73: 11 | X73: 12 | Z73: Va. Torq. <= Oper. Max. Output Torque | AA73: Calc. D. for User Max Pull, In. | AB73: Index No. of Next Largest Avail. HW | AC73: Next Larg- est Avail. HW D. In. | AD73: <= Max Allow. Dia | AE73: Tot. Pull, Lbf | AF73: <= Max Pull | AK73: HW Dia | AL73: DynaTorque DT-SD GO Description:
A74: 1 | B74: DT3SD | C74: 30 | D74: 8.1 | E74: =G74*D74*62/2 -> 3013.2 | F74: 3000 | G74: 12 | H74: =E74/(G74/2*D74) -> 62 | I74: =F74/(G74/2*D74) -> 61.72839506 | J74: 18 | K74: =F74/(D74*J74/2) -> 41.15226337 | L74: 0.625 | M74: 0 | N74: 6 | O74: 8 | P74: 10 | Q74: 12 | R74: 14 | S74: 18 | T74: NA | U74: NA | V74: NA | W74: NA | X74: NA | Y74: NA | Z74: =IF(SOT<=F74,"Y","N") -> Y | AA74: =2*SOT/(Menu!$P$38*D74) -> 0.3549382716 | AB74: =IF(OR(AA74=6,AA74=8),MATCH(AA74,M74:Y74),MATCH(AA74,M74:Y74)+1) -> 2 | AC74: =CHOOSE(AB74,$M74,$N74,$O74,$P74,$Q74,$R74,$S74,$T74,$U74,$V74,$W74,$X74,$Y74) -> 6 | AD74: =IF(AC74<=$AK$141,"Y","N") -> Y | AE74: =SOT/($AK$141/2*D74) -> 1.577503429 | AF74: =IF(AE74<=Menu!$P$38,"Y","N") -> Y | AG74: =AND(Z74="Y",AD74="Y",AF74="Y") -> TRUE | AH74: F07 | AJ74: 1 | AK74: 6 | AL74: Quarter turn "sandwich" declutching worm gear operator for manual overide of double acting pneumatic actuators in both directions.
A75: 2 | B75: DT7SD | C75: 48 | D75: 12.96 | E75: =G75*D75*80/2 -> 7257.6 | F75: 7000 | G75: 14 | H75: 80 | I75: 77.16049383 | J75: 18 | K75: 60.01371742 | L75: 0.625 | M75: 0 | N75: 6 | O75: 8 | P75: 10 | Q75: 12 | R75: 14 | S75: 18 | T75: NA | U75: NA | V75: NA | W75: NA | X75: NA | Y75: NA | Z75: Y | AA75: =2*SOT/(Menu!$P$38*D75) -> 0.2218364198 | AB75: =IF(OR(AA75=10,AA75=12,AA75=14,AA75=16,AA75=18,AA75=20,AA75=24,AA75=28),MATCH(AA75,M75:Y75),MATCH(AA75,M75:Y75)+1) -> 2 | AC75: 6 | AD75: Y | AE75: 0.9859396433 | AF75: =IF(AE75<=Menu!$P$38,"Y","N") -> Y | AG75: TRUE | AH75: F10 | AJ75: 2 | AK75: 8
A76: 3 | B76: DT12SD | C76: 57 | D76: 13.68 | E76: =G76*D76*77/2 -> 10533.6 | F76: 12000 | G76: 20 | H76: 77 | I76: 87.71929825 | J76: 36 | K76: 48.73294347 | L76: 0.75 | M76: 0 | N76: 6 | O76: 8 | P76: 10 | Q76: 12 | R76: 14 | S76: 18 | T76: 20 | U76: 24 | V76: 30 | W76: 36 | X76: NA | Y76: NA | Z76: Y | AA76: =2*SOT/(Menu!$P$38*D76) -> 0.2101608187 | AB76: =IF(OR(AA76=10,AA76=12,AA76=14,AA76=16,AA76=18,AA76=20,AA76=24,AA76=28),MATCH(AA76,M76:Y76),MATCH(AA76,M76:Y76)+1) -> 2 | AC76: 6 | AD76: Y | AE76: 0.9340480832 | AF76: =IF(AE76<=Menu!$P$38,"Y","N") -> Y | AG76: TRUE | AH76: F12 | AJ76: 3 | AK76: 10
A77: 4 | B77: DT21SD | C77: 60 | D77: 13.2 | E77: =G77*D77*80/2 -> 12672 | F77: 21000 | G77: 24 | H77: 80 | I77: 132.5757576 | J77: 36 | K77: 88.38383838 | L77: 0.75 | M77: 0 | N77: 6 | O77: 8 | P77: 10 | Q77: 12 | R77: 14 | S77: 18 | T77: 20 | U77: 24 | V77: 30 | W77: 36 | X77: NA | Y77: NA | Z77: Y | AA77: =2*SOT/(Menu!$P$38*D77) -> 0.2178030303 | AB77: =IF(OR(AA77=10,AA77=12,AA77=14,AA77=16,AA77=18,AA77=20,AA77=24,AA77=28,AA77=30,AA77=32),MATCH(AA77,M77:Y77),MATCH(AA77,M77:Y77)+1) -> 2 | AC77: 6 | AD77: Y | AE77: 0.968013468 | AF77: =IF(AE77<=Menu!$P$38,"Y","N") -> Y | AG77: TRUE | AH77: F14 | AJ77: 4 | AK77: 12
A78: 5 | B78: DT36SD | C78: 53 | D78: 13.25 | E78: =G78*D78*80/2 -> 15900 | F78: 36000 | G78: 30 | H78: 80 | I78: 181.1320755 | J78: 36 | K78: 150.9433962 | L78: 1 | M78: 0 | N78: 6 | O78: 8 | P78: 10 | Q78: 12 | R78: 14 | S78: 18 | T78: 20 | U78: 24 | V78: 30 | W78: 36 | X78: NA | Y78: NA | Z78: Y | AA78: =2*SOT/(Menu!$P$38*D78) -> 0.2169811321 | AB78: =IF(OR(AA78=10,AA78=12,AA78=14,AA78=16,AA78=18,AA78=20,AA78=24,AA78=28,AA78=30,AA78=32,AA78=36),MATCH(AA78,M78:Y78),MATCH(AA78,M78:Y78)+1) -> 2 | AC78: 6 | AD78: Y | AE78: 0.964360587 | AF78: =IF(AE78<=Menu!$P$38,"Y","N") -> Y | AG78: TRUE | AH78: F16 | AJ78: 5 | AK78: 14
A79: 6 | B79: DT50SD | C79: 212 | D79: 34.45 | E79: =G79*D79*80/2 -> 24804 | F79: 50000 | G79: 18 | H79: 80 | I79: 161.2643122 | J79: 36 | K79: 80.6321561 | L79: 1 | M79: 0 | N79: 6 | O79: 8 | P79: 10 | Q79: 12 | R79: 14 | S79: 18 | T79: 20 | U79: 24 | V79: 30 | W79: 36 | X79: NA | Y79: NA | Z79: Y | AA79: =2*SOT/(Menu!$P$38*D79) -> 0.08345428157 | AB79: =IF(OR(AA79=10,AA79=12,AA79=14,AA79=16),MATCH(AA79,M79:Y79),MATCH(AA79,M79:Y79)+1) -> 2 | AC79: 6 | AD79: Y | AE79: 0.3709079181 | AF79: =IF(AE79<=Menu!$P$38,"Y","N") -> Y | AG79: TRUE | AH79: F16 | AJ79: 6 | AK79: 18
A80: 7 | B80: DT54SD | C80: 318 | D80: 51.68 | E80: =G80*D80*80/2 -> 41344 | F80: 63000 | G80: 20 | H80: 80 | I80: 121.9040248 | J80: 36 | K80: 67.7244582 | L80: 1 | M80: 0 | N80: 6 | O80: 8 | P80: 10 | Q80: 12 | R80: 14 | S80: 18 | T80: 20 | U80: 24 | V80: 30 | W80: 36 | X80: NA | Y80: NA | Z80: Y | AA80: =2*SOT/(Menu!$P$38*D80) -> 0.05563080495 | AB80: =IF(OR(AA80=14,AA80=16,AA80=18,AA80=20,AA80=24,AA80=28,AA80=30,AA80=32,AA80=36),MATCH(AA80,M80:Y80),MATCH(AA80,M80:Y80)+1) -> 2 | AC80: 6 | AD80: Y | AE80: 0.247248022 | AF80: =IF(AE80<=Menu!$P$38,"Y","N") -> Y | AG80: TRUE | AH80: F16 | AJ80: 7 | AK80: 20
A81: 8 | B81: Consult Eng. | C81: 99999 | D81: 99999 | E81: 99999 | F81: 999999 | G81: 99999 | H81: 2.00002e-05 | I81: 0.0002000038001 | J81: 99999 | K81: 0.0002000038001 | L81: 99999 | M81: 0 | N81: 99 | O81: 99 | P81: 99 | Q81: 99 | R81: 99 | S81: 99 | T81: 99 | U81: 99 | V81: 99 | W81: 99 | X81: 99 | Y81: NA | Z81: Y | AA81: =2*SOT/(Menu!$P$38*D81) -> 2.87502875e-05 | AB81: =MATCH(AA81,M81:Y81) -> 1 | AC81: 0 | AD81: Y | AE81: 0.0001277790556 | AF81: =IF(AE81<=Menu!$P$38,"Y","N") -> Y | AG81: TRUE | AJ81: 8 | AK81: 24
AJ82: 9 | AK82: 30
AJ83: 10 | AK83: 36
A85: Gear_Op_DTSRD | G85: Gear_Op_DTSRD
A86: DynaTorque DT-SRD Gear Operator Data Table (Table 13C) | G86: A89:AH96
G87: Std. Handwheel | J87: Largest HW | M87: Handwheel Diameters Available, In. | Z87: Handwheel Dia. | AE87: Handwheel Pull | AG87: All Criteria Met | AH87: Mount | AJ87: DynaTorque Max. HW Dia. Sel. Menu (Table 14C)
A88: Marwin No. (Relative Cost) | B88: Dyna- Torque No.** | C88: Gear Ratio | D88: Mech. Advan- tage | E88: *Std. Torque Output In-lbf | F88: Max Torque Output In-lbf | G88: Std. HW Dia. In. | H88: Tot. HW Pull @ Std Torque Lbf | I88: Tot. HW Pull @ Max Torq. Lbf | J88: Largest HW Dia. In. | K88: Tot. HW Pull @ Max Torq. Lbf | L88: HW Shaft Dia | M88: 1 | N88: 2 | O88: 3 | P88: 4 | Q88: 5 | R88: 6 | S88: 7 | T88: 8 | U88: 9 | V88: 10 | W88: 11 | X88: 12 | Z88: Va. Torq. <= Oper. Max. Output Torque | AA88: Calc. D. for User Max Pull, In. | AB88: Index No. of Next Largest Avail. HW | AC88: Next Larg- est Avail. HW D. In. | AD88: <= Max Allow. Dia | AE88: Tot. Pull, Lbf | AF88: <= Max Pull | AK88: HW Dia | AL88: DynaTorque DT-SRD GO Description:
A89: 1 | B89: DT3SRD | C89: 30 | D89: 8.1 | E89: =G89*D89*62/2 -> 2511 | F89: 3000 | G89: 10 | H89: =E89/(G89/2*D89) -> 62 | I89: =F89/(G89/2*D89) -> 74.07407407 | J89: 18 | K89: =F89/(D89*J89/2) -> 41.15226337 | L89: 0.625 | M89: 0 | N89: 6 | O89: 8 | P89: 10 | Q89: 12 | R89: 14 | S89: 18 | T89: NA | U89: NA | V89: NA | W89: NA | X89: NA | Y89: NA | Z89: =IF(SOT+SR!$AB$135<=F89,"Y","N") -> Y | AA89: =2*SOT/(Menu!$P$38*D89) -> 0.3549382716 | AB89: =IF(OR(AA89=6,AA89=8),MATCH(AA89,M89:Y89),MATCH(AA89,M89:Y89)+1) -> 2 | AC89: =CHOOSE(AB89,$M89,$N89,$O89,$P89,$Q89,$R89,$S89,$T89,$U89,$V89,$W89,$X89,$Y89) -> 6 | AD89: =IF(AC89<=$AK$141,"Y","N") -> Y | AE89: =SOT/($AK$141/2*D89) -> 1.577503429 | AF89: =IF(AE89<=Menu!$P$38,"Y","N") -> Y | AG89: =AND(Z89="Y",AD89="Y",AF89="Y") -> TRUE | AH89: F07 | AJ89: 1 | AK89: 6 | AL89: Quarter turn "sandwich" non declutching worm gear operator for manual override of spring return pneumatic actuators in the anti-fail direction (rotation in fail direction provided by spring return pneumatic).
A90: 2 | B90: DT7SRD | C90: 48 | D90: 12.96 | E90: =G90*D90*80/2 -> 5184 | F90: 7000 | G90: 10 | H90: 80 | I90: 108.0246914 | J90: 18 | K90: 60.01371742 | L90: 0.625 | M90: 0 | N90: 6 | O90: 8 | P90: 10 | Q90: 12 | R90: 14 | S90: 18 | T90: NA | U90: NA | V90: NA | W90: NA | X90: NA | Y90: NA | Z90: =IF(SOT+SR!$AB$135<=F90,"Y","N") -> Y | AA90: =2*SOT/(Menu!$P$38*D90) -> 0.2218364198 | AB90: =IF(OR(AA90=10,AA90=12,AA90=14,AA90=16,AA90=18,AA90=20,AA90=24,AA90=28),MATCH(AA90,M90:Y90),MATCH(AA90,M90:Y90)+1) -> 2 | AC90: 6 | AD90: Y | AE90: 0.9859396433 | AF90: =IF(AE90<=Menu!$P$38,"Y","N") -> Y | AG90: TRUE | AH90: F10 | AJ90: 2 | AK90: 8
A91: 3 | B91: DT12SRD | C91: 57 | D91: 13.68 | E91: =G91*D91*77/2 -> 9480.24 | F91: 12000 | G91: 18 | H91: 77 | I91: 97.46588694 | J91: 36 | K91: 48.73294347 | L91: 1 | M91: 0 | N91: 6 | O91: 8 | P91: 10 | Q91: 12 | R91: 14 | S91: 18 | T91: 20 | U91: 24 | V91: 30 | W91: 36 | X91: NA | Y91: NA | Z91: =IF(SOT+SR!$AB$135<=F91,"Y","N") -> Y | AA91: =2*SOT/(Menu!$P$38*D91) -> 0.2101608187 | AB91: =IF(OR(AA91=10,AA91=12,AA91=14,AA91=16,AA91=18,AA91=20,AA91=24,AA91=28),MATCH(AA91,M91:Y91),MATCH(AA91,M91:Y91)+1) -> 2 | AC91: 6 | AD91: Y | AE91: 0.9340480832 | AF91: =IF(AE91<=Menu!$P$38,"Y","N") -> Y | AG91: TRUE | AH91: F12 | AJ91: 3 | AK91: 10
A92: 4 | B92: DT21SRD | C92: 60 | D92: 13.2 | E92: =G92*D92*80/2 -> 12672 | F92: 21000 | G92: 24 | H92: 80 | I92: 132.5757576 | J92: 36 | K92: 88.38383838 | L92: 1 | M92: 0 | N92: 6 | O92: 8 | P92: 10 | Q92: 12 | R92: 14 | S92: 18 | T92: 20 | U92: 24 | V92: 30 | W92: 36 | X92: NA | Y92: NA | Z92: =IF(SOT+SR!$AB$135<=F92,"Y","N") -> Y | AA92: =2*SOT/(Menu!$P$38*D92) -> 0.2178030303 | AB92: =IF(OR(AA92=10,AA92=12,AA92=14,AA92=16,AA92=18,AA92=20,AA92=24,AA92=28,AA92=30,AA92=32),MATCH(AA92,M92:Y92),MATCH(AA92,M92:Y92)+1) -> 2 | AC92: 6 | AD92: Y | AE92: 0.968013468 | AF92: =IF(AE92<=Menu!$P$38,"Y","N") -> Y | AG92: TRUE | AH92: F14 | AJ92: 4 | AK92: 12
A93: 5 | B93: DT36SRD | C93: 53 | D93: 13.25 | E93: =G93*D93*80/2 -> 19080 | F93: 36000 | G93: 36 | H93: 80 | I93: 150.9433962 | J93: 36 | K93: 150.9433962 | L93: 1 | M93: 0 | N93: 6 | O93: 8 | P93: 10 | Q93: 12 | R93: 14 | S93: 18 | T93: 20 | U93: 24 | V93: 30 | W93: 36 | X93: NA | Y93: NA | Z93: =IF(SOT+SR!$AB$135<=F93,"Y","N") -> Y | AA93: =2*SOT/(Menu!$P$38*D93) -> 0.2169811321 | AB93: =IF(OR(AA93=10,AA93=12,AA93=14,AA93=16,AA93=18,AA93=20,AA93=24,AA93=28,AA93=30,AA93=32,AA93=36),MATCH(AA93,M93:Y93),MATCH(AA93,M93:Y93)+1) -> 2 | AC93: 6 | AD93: Y | AE93: 0.964360587 | AF93: =IF(AE93<=Menu!$P$38,"Y","N") -> Y | AG93: TRUE | AH93: F16 | AJ93: 5 | AK93: 14
A94: 6 | B94: DT50SRD | C94: 212 | D94: 34.45 | E94: =G94*D94*80/2 -> 49608 | F94: 50000 | G94: 36 | H94: 80 | I94: 80.6321561 | J94: 36 | K94: 80.6321561 | L94: 1 | M94: 0 | N94: 6 | O94: 8 | P94: 10 | Q94: 12 | R94: 14 | S94: 18 | T94: 20 | U94: 24 | V94: 30 | W94: 36 | X94: NA | Y94: NA | Z94: =IF(SOT+SR!$AB$135<=F94,"Y","N") -> Y | AA94: =2*SOT/(Menu!$P$38*D94) -> 0.08345428157 | AB94: =IF(OR(AA94=10,AA94=12,AA94=14,AA94=16),MATCH(AA94,M94:Y94),MATCH(AA94,M94:Y94)+1) -> 2 | AC94: 6 | AD94: Y | AE94: 0.3709079181 | AF94: =IF(AE94<=Menu!$P$38,"Y","N") -> Y | AG94: TRUE | AH94: F16 | AJ94: 6 | AK94: 18
A95: 7 | B95: DT54SRD | C95: 318 | D95: 51.68 | E95: =G95*D95*80/2 -> 62016 | F95: 63000 | G95: 30 | H95: 80 | I95: 81.26934985 | J95: 36 | K95: 67.7244582 | L95: 1 | M95: 0 | N95: 6 | O95: 8 | P95: 10 | Q95: 12 | R95: 14 | S95: 18 | T95: 20 | U95: 24 | V95: 30 | W95: 36 | X95: NA | Y95: NA | Z95: =IF(SOT+SR!$AB$135<=F95,"Y","N") -> Y | AA95: =2*SOT/(Menu!$P$38*D95) -> 0.05563080495 | AB95: =IF(OR(AA95=14,AA95=16,AA95=18,AA95=20,AA95=24,AA95=28,AA95=30,AA95=32,AA95=36),MATCH(AA95,M95:Y95),MATCH(AA95,M95:Y95)+1) -> 2 | AC95: 6 | AD95: Y | AE95: 0.247248022 | AF95: =IF(AE95<=Menu!$P$38,"Y","N") -> Y | AG95: TRUE | AH95: F16 | AJ95: 7 | AK95: 20
A96: 8 | B96: Consult Eng. | C96: 99999 | D96: 99999 | E96: 99999 | F96: 999999 | G96: 99999 | H96: 2.00002e-05 | I96: 0.0002000038001 | J96: 99999 | K96: 0.0002000038001 | L96: 99999 | M96: 0 | N96: 99 | O96: 99 | P96: 99 | Q96: 99 | R96: 99 | S96: 99 | T96: 99 | U96: 99 | V96: 99 | W96: 99 | X96: 99 | Y96: NA | Z96: =IF(SOT+SR!$AB$135<=F96,"Y","N") -> Y | AA96: =2*SOT/(Menu!$P$38*D96) -> 2.87502875e-05 | AB96: =MATCH(AA96,M96:Y96) -> 1 | AC96: 0 | AD96: Y | AE96: 0.0001277790556 | AF96: =IF(AE96<=Menu!$P$38,"Y","N") -> Y | AG96: TRUE | AJ96: 8 | AK96: 24
AJ97: 9 | AK97: 30
AJ98: 10 | AK98: 36
AJ102: 7
A103: Gear_Op_MG | G103: Gear_Op_MG | AJ103: 7
A104: MasterGear Gear Operator Data Table (Table 13D) | G104: A107:AJ114
G105: Std. Handwheel | J105: Largest HW | M105: Handwheel Diameters Available, In. | Z105: Handwheel Dia. | AE105: Handwheel Pull | AG105: All Criteria Met | AJ105: MasterGear Max. HW Dia. Sel. Menu (Table 14D)
A106: Marwin No. (Relative Cost) | B106: Master- Gear No. | C106: Gear Ratio | D106: Mech. Advan- tage | E106: *Std. Torque Output In-lbf | F106: Max Torque Output In-lbf | G106: Std. HW Dia. In. | H106: Tot. HW Pull @ Std Torque Lbf | I106: Tot. HW Pull @ Max Torq. Lbf | J106: Largest HW Dia. In. | K106: Tot. HW Pull @ Max Torq. Lbf | L106: HW Shaft Dia | M106: 1 | N106: 2 | O106: 3 | P106: 4 | Q106: 5 | R106: 6 | S106: 7 | T106: 8 | U106: 9 | V106: 10 | W106: 11 | X106: 12 | Z106: Va. Torq. <= Oper. Max. Output Torque | AA106: Calc. D. for User Max Pull, In. | AB106: Index No. of Next Largest Avail. HW | AC106: Next Larg- est Avail. HW D. In. | AD106: <= Max Allow. Dia | AE106: Tot. Pull, Lbf | AF106: <= Max Pull | AJ106: 7 | AK106: HW Dia | AL106: MasterGear GO Description:
A107: 1 | B107: M05 | C107: 40 | D107: 9.3 | E107: =G107*D107*80/2 -> 2232 | F107: 1100 | G107: 6 | H107: =E107/(G107/2*D107) -> 80 | I107: =F107/(G107/2*D107) -> 39.4265233 | J107: 9 | K107: =F107/(D107*J107/2) -> 26.28434886 | L107: 0.471 | M107: 0 | N107: 6 | O107: 9 | P107: NA | Q107: NA | R107: NA | S107: NA | T107: NA | U107: NA | V107: NA | W107: NA | X107: NA | Y107: NA | Z107: =IF(F107>=SOT,"Y","N") -> Y | AA107: =2*SOT/(Menu!$P$38*D107) -> 0.3091397849 | AB107: =IF(OR(AA107=6,AA107=8),MATCH(AA107,M107:Y107),MATCH(AA107,M107:Y107)+1) -> 2 | AC107: =CHOOSE(AB107,$M107,$N107,$O107,$P107,$Q107,$R107,$S107,$T107,$U107,$V107,$W107,$X107,$Y107) -> 6 | AD107: =IF(AC107<=$AK$141,"Y","N") -> Y | AE107: =SOT/($AK$141/2*D107) -> 1.3739546 | AF107: =IF(AE107<=Menu!$P$38,"Y","N") -> Y | AG107: =AND(Z107="Y",AD107="Y",AF107="Y") -> TRUE | AJ107: 1 | AK107: 6 | AL107: Quarter turn worm gear operator for manual valves.
A108: 2 | B108: M07 | C108: 40 | D108: 11 | E108: 2640 | F108: 2200 | G108: 6 | H108: 80 | I108: 66.66666667 | J108: 9 | K108: 44.44444444 | L108: 0.471 | M108: 0 | N108: 6 | O108: 9 | P108: NA | Q108: NA | R108: NA | S108: NA | T108: NA | U108: NA | V108: NA | W108: NA | X108: NA | Y108: NA | Z108: Y | AA108: =2*SOT/(Menu!$P$38*D108) -> 0.2613636364 | AB108: =IF(OR(AA108=10,AA108=12,AA108=14,AA108=16,AA108=18,AA108=20,AA108=24,AA108=28),MATCH(AA108,M108:Y108),MATCH(AA108,M108:Y108)+1) -> 2 | AC108: 6 | AD108: Y | AE108: 1.161616162 | AF108: =IF(AE108<=Menu!$P$38,"Y","N") -> Y | AG108: TRUE | AJ108: 2 | AK108: 9
A109: 3 | B109: M10 | C109: 40 | D109: 11 | E109: 4400 | F109: 4400 | G109: 10 | H109: 80 | I109: 80 | J109: 12 | K109: 66.66666667 | L109: 0.5885 | M109: 0 | N109: 6 | O109: 10 | P109: 12 | Q109: NA | R109: NA | S109: NA | T109: NA | U109: NA | V109: NA | W109: NA | X109: NA | Y109: NA | Z109: Y | AA109: =2*SOT/(Menu!$P$38*D109) -> 0.2613636364 | AB109: =IF(OR(AA109=10,AA109=12,AA109=14,AA109=16,AA109=18,AA109=20,AA109=24,AA109=28,AA109=30,AA109=32),MATCH(AA109,M109:Y109),MATCH(AA109,M109:Y109)+1) -> 2 | AC109: 6 | AD109: Y | AE109: 1.161616162 | AF109: =IF(AE109<=Menu!$P$38,"Y","N") -> Y | AG109: TRUE | AJ109: 3 | AK109: 10
A110: 4 | B110: M12 | C110: 42 | D110: 11.3 | E110: 6328 | F110: 8800 | G110: 14 | H110: 80 | I110: 111.2515803 | J110: 24 | K110: 64.89675516 | L110: 0.7855 | M110: 0 | N110: 10 | O110: 12 | P110: 14 | Q110: 18 | R110: 24 | S110: NA | T110: NA | U110: NA | V110: NA | W110: NA | X110: NA | Y110: NA | Z110: Y | AA110: =2*SOT/(Menu!$P$38*D110) -> 0.2544247788 | AB110: =IF(OR(AA110=10,AA110=12,AA110=14,AA110=16,AA110=18,AA110=20,AA110=24,AA110=28,AA110=30,AA110=32,AA110=36),MATCH(AA110,M110:Y110),MATCH(AA110,M110:Y110)+1) -> 2 | AC110: 10 | AD110: Y | AE110: 1.130776794 | AF110: =IF(AE110<=Menu!$P$38,"Y","N") -> Y | AG110: TRUE | AJ110: 4 | AK110: 12
A111: 5 | B111: M14 | C111: 60 | D111: 16.2 | E111: 11664 | F111: 15840 | G111: 18 | H111: 80 | I111: 108.6419753 | J111: 24 | K111: 81.48148148 | L111: 0.7855 | M111: 0 | N111: 10 | O111: 12 | P111: 14 | Q111: 18 | R111: 24 | S111: NA | T111: NA | U111: NA | V111: NA | W111: NA | X111: NA | Y111: NA | Z111: Y | AA111: =2*SOT/(Menu!$P$38*D111) -> 0.1774691358 | AB111: =IF(OR(AA111=10,AA111=12,AA111=14,AA111=16),MATCH(AA111,M111:Y111),MATCH(AA111,M111:Y111)+1) -> 2 | AC111: 10 | AD111: Y | AE111: 0.7887517147 | AF111: =IF(AE111<=Menu!$P$38,"Y","N") -> Y | AG111: TRUE | AJ111: 5 | AK111: 14
A112: 6 | B112: M15 | C112: 68 | D112: 20.5 | E112: 19680 | F112: 29920 | G112: 24 | H112: 80 | I112: 121.6260163 | J112: 36 | K112: 81.08401084 | L112: 1.179 | M112: 0 | N112: 18 | O112: 24 | P112: 30 | Q112: 36 | R112: NA | S112: NA | T112: NA | U112: NA | V112: NA | W112: NA | X112: NA | Y112: NA | Z112: Y | AA112: =2*SOT/(Menu!$P$38*D112) -> 0.1402439024 | AB112: =IF(OR(AA112=14,AA112=16,AA112=18,AA112=20,AA112=24,AA112=28,AA112=30,AA112=32,AA112=36),MATCH(AA112,M112:Y112),MATCH(AA112,M112:Y112)+1) -> 2 | AC112: 18 | AD112: Y | AE112: 0.6233062331 | AF112: =IF(AE112<=Menu!$P$38,"Y","N") -> Y | AG112: TRUE | AJ112: 6 | AK112: 18
A113: 7 | B113: M16 | C113: 88 | D113: 26.5 | E113: 31800 | F113: 39600 | G113: 30 | H113: 80 | I113: 99.62264151 | J113: 36 | K113: 83.01886792 | L113: 1.179 | M113: 0 | N113: 18 | O113: 24 | P113: 30 | Q113: 36 | R113: NA | S113: NA | T113: NA | U113: NA | V113: NA | W113: NA | X113: NA | Y113: NA | Z113: Y | AA113: =2*SOT/(Menu!$P$38*D113) -> 0.108490566 | AB113: =IF(OR(AA113=14,AA113=16,AA113=18,AA113=20,AA113=24,AA113=28,AA113=30,AA113=32),MATCH(AA113,M113:Y113),MATCH(AA113,M113:Y113)+1) -> 2 | AC113: 18 | AD113: Y | AE113: 0.4821802935 | AF113: =IF(AE113<=Menu!$P$38,"Y","N") -> Y | AG113: TRUE | AJ113: 7 | AK113: 24
A114: 9 | B114: Consult Eng. | C114: 99999 | D114: 99999 | E114: 99999 | F114: 999999 | G114: 99999 | H114: 2.00002e-05 | I114: 0.0002000038001 | J114: 99999 | K114: 0.0002000038001 | L114: 99999 | M114: 0 | N114: 99 | O114: 99 | P114: 99 | Q114: 99 | R114: 99 | S114: 99 | T114: 99 | U114: 99 | V114: 99 | W114: 99 | X114: 99 | Y114: NA | Z114: Y | AA114: =2*SOT/(Menu!$P$38*D114) -> 2.87502875e-05 | AB114: =MATCH(AA114,M114:Y114) -> 1 | AC114: 0 | AD114: Y | AE114: 0.0001277790556 | AF114: =IF(AE114<=Menu!$P$38,"Y","N") -> Y | AG114: TRUE | AJ114: 8 | AK114: 30
B115: =NA() ->  | C115: =NA() ->  | D115: =NA() ->  | E115: =NA() ->  | F115: =NA() ->  | G115: =NA() ->  | H115: =E115/(G115/2*D115) ->  | I115: =F115/(G115/2*D115) ->  | J115: =NA() ->  | K115: =F115/(D115*J115/2) ->  | L115: =NA() ->  | M115: 0 | N115: NA | O115: NA | P115: NA | Q115: NA | R115: NA | S115: NA | T115: NA | U115: NA | V115: NA | W115: NA | X115: NA | Y115: NA | Z115: =IF(F115>=SOT,"Y","N") ->  | AA115: =2*SOT/(Menu!$P$38*D115) ->  | AB115: =IF(OR(AA115=14,AA115=16,AA115=18,AA115=20,AA115=24,AA115=28,AA115=30,AA115=32,AA115=36),MATCH(AA115,M115:Y115),MATCH(AA115,M115:Y115)+1) ->  | AC115: =CHOOSE(AB115,$M115,$N115,$O115,$P115,$Q115,$R115,$S115,$T115,$U115,$V115,$W115,$X115,$Y115) ->  | AD115: =IF(AC115<=$AK$141,"Y","N") ->  | AE115: =SOT/($AK$141/2*D115) ->  | AF115: =IF(AE115<=Menu!$P$38,"Y","N") ->  | AG115: =AND(Z115="Y",AD115="Y",AF115="Y") ->  | AJ115: 9 | AK115: 36
B116: =NA() ->  | C116: =NA() ->  | D116: =NA() ->  | E116: =NA() ->  | F116: =NA() ->  | G116: =NA() ->  | J116: =NA() ->  | L116: =NA() ->  | M116: 0 | N116: NA | O116: NA | P116: NA | Q116: NA | R116: NA | S116: NA | T116: NA | U116: NA | V116: NA | W116: NA | X116: NA | Y116: NA | AA116: =2*SOT/(Menu!$P$38*D116) ->  | AB116: =IF(OR(AA116=14,AA116=16,AA116=18,AA116=20,AA116=24,AA116=28,AA116=30,AA116=32),MATCH(AA116,M116:Y116),MATCH(AA116,M116:Y116)+1) ->  | AF116: =IF(AE116<=Menu!$P$38,"Y","N") ->  | AJ116: 10 | AK116: --
B117: =NA() ->  | C117: =NA() ->  | D117: =NA() ->  | E117: =NA() ->  | F117: =NA() ->  | G117: =NA() ->  | J117: =NA() ->  | L117: =NA() ->  | M117: 0 | N117: NA | O117: NA | P117: NA | Q117: NA | R117: NA | S117: NA | T117: NA | U117: NA | V117: NA | W117: NA | X117: NA | Y117: NA | AA117: =2*SOT/(Menu!$P$38*D117) ->  | AB117: =IF(OR(AA117=14,AA117=16,AA117=18,AA117=20,AA117=24,AA117=28,AA117=30,AA117=32),MATCH(AA117,M117:Y117),MATCH(AA117,M117:Y117)+1) ->  | AF117: =IF(AE117<=Menu!$P$38,"Y","N") ->  | AJ117: 11 | AK117: --
B118: =NA() ->  | C118: =NA() ->  | D118: =NA() ->  | E118: =NA() ->  | F118: =NA() ->  | G118: =NA() ->  | J118: =NA() ->  | L118: =NA() ->  | M118: 0 | N118: NA | O118: NA | P118: NA | Q118: NA | R118: NA | S118: NA | T118: NA | U118: NA | V118: NA | W118: NA | X118: NA | Y118: NA | AA118: =2*SOT/(Menu!$P$38*D118) ->  | AB118: =IF(OR(AA118=14,AA118=16,AA118=18,AA118=20,AA118=24,AA118=28,AA118=30,AA118=32),MATCH(AA118,M118:Y118),MATCH(AA118,M118:Y118)+1) ->  | AF118: =IF(AE118<=Menu!$P$38,"Y","N") ->  | AJ118: 12 | AK118: --
A119: MasterGear Controls | AJ119: 13 | AK119: --
A120: Ref. MasterGear dwg. M05/DB1 A 5/13/02, M07/DB1 A 2/13/02, M10 A 5/13/02, M12 A 5/13/02, M14 A 5/13/02, M15 A 5/13/02, M16 A 5/13/02
A121: *Std. torque output is torque output for 80 lb HW pull with Std. Dia. HW.
A125: Gear Operator Selection Table (Table 13E) | F125: =CHOOSE($AP$14, G42, G70, G85, G2,G23,G103) -> Gear_Op_DT
G126: Std. Handwheel | J126: Largest HW | M126: Handwheel Diameters Available, In. | Z126: Handwheel Dia. | AE126: Handwheel Pull | AH126: Mount | AJ126: Max. HW Dia. Sel. Menu (Table 14E)
A127: Marwin No. (Relative Cost) | B127: Gear Op Mfgr. No. | C127: Gear Ratio | D127: Mech. Advan- tage | E127: *Std. Torque Output In-lbf | F127: Max Torque Output In-lbf | G127: Std. HW Dia. In. | H127: Tot. HW Pull @ Std Torque Lbf | I127: Tot. HW Pull @ Max Torq. Lbf | J127: Largest HW Dia. In. | K127: Tot. HW Pull @ Max Torq. Lbf | L127: HW Shaft Dia | M127: 1 | N127: 2 | O127: 3 | P127: 4 | Q127: 5 | R127: 6 | S127: 7 | T127: 8 | U127: 9 | V127: 10 | W127: 11 | X127: 12 | Z127: Va. Torq. <= Oper. Max. Output Torque | AA127: Calc. D. for User Max Pull, In. | AB127: Index No. of Next Largest Avail. HW | AC127: Next Larg- est Avail. HW D. In. | AD127: <= Max Allow. Dia | AE127: Tot. Pull, Lbf | AF127: <= Max Pull | AK127: HW Dia | AL127: Gear Operator Description
A128: =CHOOSE($AP$14, A46, A74, A89, A6, A27, A107) -> 1 | B128: DT3 | C128: 30 | D128: 8.1 | E128: 3888 | F128: 4500 | G128: 12 | H128: 80 | I128: 92.59259259 | J128: 18 | K128: 61.72839506 | L128: 0.625 | M128: 0 | N128: 6 | O128: 8 | P128: 10 | Q128: 12 | R128: 14 | S128: 18 | T128: NA | U128: NA | V128: NA | W128: NA | X128: NA | Y128: NA | Z128: Y | AA128: 0.3549382716 | AB128: 2 | AC128: 6 | AD128: Y | AE128: 1.577503429 | AF128: Y | AH128: =CHOOSE($AP$14, AH46, AH74, AH89, AH6, AH27, AH107) -> 0.38-16 on 3.25 BC | AJ128: 1 | AK128: =CHOOSE($AP$14,AK46,AK74,AK89,AK6,AK27,AK107) -> 6 | AL128: =CHOOSE($AP$14, AL46, AL74, AL89, AL6, AL27, AL107) -> Quarter turn worm gear operator for manual valves.
AJ129: 2 | AK129: 8
AJ130: 3 | AK130: 10
AJ131: 4 | AK131: 12
AJ132: 5 | AK132: 14
AJ133: 6 | AK133: 18
AJ134: 7 | AK134: 20
AJ135: 8 | AK135: 24
AJ136: 9 | AK136: 30
AJ137: 10 | AK137: 36
AJ138: 11 | AK138: 0
AJ139: 7 | AK139: 0
AJ140: 13 | AK140: 0
AI141: Max. Allow. HW Dia, in.: | AJ141: 6 | AK141: =VLOOKUP($AJ$141,$AJ$128:$AK$140,2, FALSE) -> 18
A142: Max. HW Dia. Sel. Menu (Table 14E) to Right ------->

Sheet 600 (hidden)
A3: DM600F Series Full Port Direct Mount | E3: _DM600F | F3: Press = | G3: =Press -> 1500 | H3: psi
B4: Torque (Break), lbf-in. | F4: Max. Seat Pressure | J4: Mounting
B5: Teflon | C5: RPTFE | D5: Delrin | E5: PEEK | F5: T | G5: R | H5: D | I5: P | J5: Mount | K5: Blt Ptrn | L5: Sq
A6: Size Col. | B6: 2 | C6: 3 | D6: 4 | E6: 5 | F6: 6 | G6: 7 | H6: 8 | I6: 9 | J6: 10 | K6: 11 | L6: 12
A7: 0.25 | B7: 10 | C7: -- | D7: -- | E7: -- | F7: NA | G7: -- | H7: -- | I7: -- | J7: Direct | K7: F03 | L7: 9
A8: 0.38 | B8: 10 | C8: -- | D8: -- | E8: -- | F8: NA | G8: -- | H8: -- | I8: -- | J8: Direct | K8: F03 | L8: 9
A9: 0.50 | B9: 11 | C9: -- | D9: -- | E9: -- | F9: NA | G9: -- | H9: -- | I9: -- | J9: Direct | K9: F03 | L9: 9
A10: 0.75 | B10: =0.0091*Press + 10.01 -> 23.66 | C10: -- | D10: -- | E10: -- | F10: 600 | G10: -- | H10: -- | I10: -- | J10: Direct | K10: F03 | L10: 9
A11: 1.00 | B11: =0.0209*Press + 15.14 -> 46.49 | C11: -- | D11: -- | E11: -- | F11: 600 | G11: -- | H11: -- | I11: -- | J11: Direct | K11: F03 | L11: 9
A12: 1.25 | B12: =0.0701*Press + 27.312 -> 132.462 | C12: -- | D12: -- | E12: -- | F12: 600 | G12: -- | H12: -- | I12: -- | J12: Direct | K12: F03 | L12: 9
A13: 1.50 | B13: =0.00004*Press^2+0.1092*Press +41.311 -> 295.111 | C13: -- | D13: -- | E13: -- | F13: 600 | G13: -- | H13: -- | I13: -- | J13: Direct | K13: F05 | L13: 11
A14: 2.00 | B14: =0.2117*Press + 75.658 -> 393.208 | C14: -- | D14: -- | E14: -- | F14: 600 | G14: -- | H14: -- | I14: -- | J14: Direct | K14: F05 | L14: 11
A15: 2.50 | B15: =-0.0002*Press^2 + 0.3859*Press + 153.68 -> 282.53 | C15: -- | D15: -- | E15: -- | F15: 600 | G15: -- | H15: -- | I15: -- | J15: Direct | K15: F07 | L15: 14
A16: 3.00 | B16: =-0.0004*Press^2 + 0.5654*Press + 224.22 -> 172.32 | C16: -- | D16: -- | E16: -- | F16: 600 | G16: -- | H16: -- | I16: -- | J16: Direct | K16: F07 | L16: 14
A17: 4.00 | B17: =-0.0002*Press^2 + 0.7116*Press + 290.35 -> 907.75 | C17: -- | D17: -- | E17: -- | F17: 600 | G17: -- | H17: -- | I17: -- | J17: Direct | K17: F07 | L17: 17
A18: -- | B18: -- | C18: -- | D18: -- | E18: -- | F18: -- | G18: -- | H18: -- | I18: -- | J18: -- | K18: -- | L18: --
A19: Valpres 250N
A20: Reference 1/15/02 e-mail & 1/15/02 Fax, Claudio Cancarini, Torques for Valpres Types 6121, 6123, and 250N, Istruzione I-010.3/13, Momento Torcente Valvole, OTTONE sr. 2500 (e derivati 250N, 2530, 253N)
A22: 666R Series Reduced Port | E22: _666R
B23: Torque (Break), lbf-in. | F23: Max. Seat Pressure | J23: Mounting
B24: Teflon | C24: RPTFE | D24: Delrin | E24: PEEK | F24: T | G24: R | H24: D | I24: P | J24: Mount | K24: Blt Ptrn | L24: Sq
A25: Size Col. | B25: 2 | C25: 3 | D25: 4 | E25: 5 | F25: 6 | G25: 7 | H25: 8 | I25: 9 | J25: 10 | K25: 11 | L25: 12
A26: 0.50 | B26: 18 | C26: -- | D26: -- | E26: -- | F26: NA | G26: -- | H26: -- | I26: -- | J26: None | K26: -- | L26: --
A27: 0.75 | B27: 23 | C27: -- | D27: -- | E27: -- | F27: NA | G27: -- | H27: -- | I27: -- | J27: None | K27: -- | L27: --
A28: 1.00 | B28: 62 | C28: -- | D28: -- | E28: -- | F28: NA | G28: -- | H28: -- | I28: -- | J28: None | K28: -- | L28: --
A29: 1.25 | B29: 89 | C29: -- | D29: -- | E29: -- | F29: NA | G29: -- | H29: -- | I29: -- | J29: None | K29: -- | L29: --
A30: 1.50 | B30: 133 | C30: -- | D30: -- | E30: -- | F30: NA | G30: -- | H30: -- | I30: -- | J30: None | K30: -- | L30: --
A31: 2.00 | B31: 178 | C31: -- | D31: -- | E31: -- | F31: NA | G31: -- | H31: -- | I31: -- | J31: None | K31: -- | L31: --
A32: -- | B32: -- | C32: -- | D32: -- | E32: -- | F32: -- | G32: -- | H32: -- | I32: -- | J32: - | K32: -- | L32: --
A33: Valpres 6123
A34: Reference 1/15/02 e-mail & 1/15/02 Fax, Claudio Cancarini, Torques for Valpres Types 6121, 6123, and 250N
A36: 666F Series Full Port | E36: _666F
B37: Torque (Break), lbf-in. | F37: Max. Seat Pressure | J37: Mounting
B38: Teflon | C38: RPTFE | D38: Delrin | E38: PEEK | F38: T | G38: R | H38: D | I38: P | J38: Mount | K38: Blt Ptrn | L38: Sq
A39: Size Col. | B39: 2 | C39: 3 | D39: 4 | E39: 5 | F39: 6 | G39: 7 | H39: 8 | I39: 9 | J39: 10 | K39: 11 | L39: 12
A40: 0.25 | B40: 18 | C40: -- | D40: -- | E40: -- | F40: NA | G40: -- | H40: -- | I40: -- | J40: None | K40: -- | L40: --
A41: 0.38 | B41: 18 | C41: -- | D41: -- | E41: -- | F41: NA | G41: -- | H41: -- | I41: -- | J41: None | K41: -- | L41: --
A42: 0.50 | B42: 23 | C42: -- | D42: -- | E42: -- | F42: NA | G42: -- | H42: -- | I42: -- | J42: None | K42: -- | L42: --
A43: 0.75 | B43: 62 | C43: -- | D43: -- | E43: -- | F43: NA | G43: -- | H43: -- | I43: -- | J43: None | K43: -- | L43: --
A44: 1.00 | B44: 89 | C44: -- | D44: -- | E44: -- | F44: NA | G44: -- | H44: -- | I44: -- | J44: None | K44: -- | L44: --
A45: 1.25 | B45: 133 | C45: -- | D45: -- | E45: -- | F45: NA | G45: -- | H45: -- | I45: -- | J45: None | K45: -- | L45: --
A46: 1.50 | B46: 178 | C46: -- | D46: -- | E46: -- | F46: NA | G46: -- | H46: -- | I46: -- | J46: None | K46: -- | L46: --
A47: 2.00 | B47: 222 | C47: -- | D47: -- | E47: -- | F47: NA | G47: -- | H47: -- | I47: -- | J47: None | K47: -- | L47: --
A48: -- | B48: -- | C48: -- | D48: -- | E48: -- | F48: -- | G48: -- | H48: -- | I48: -- | J48: - | K48: -- | L48: --
A49: Valpres 6121
A50: Reference 1/15/02 e-mail & 1/15/02 Fax, Claudio Cancarini, Torques for Valpres Types 6121, 6123, and 250N, Istruzione I-010.3/13 Momenti Torcenti Valvole OTTONE sr.171N

Sheet 2K (hidden)
A3: 2000R-150 Series Reduced Port | E3: _2000R_150 | F3: =Press -> 1500 | G3: psi
B4: Torque (Break), lbf-in. | F4: Max. Seat Pressure | J4: Mounting
B5: Teflon | C5: RPTFE | D5: CRPTFE | E5: UHMW-PE | F5: T | G5: R | H5: S | I5: U | J5: Mount | K5: Blt Ptrn | L5: Sq | O5: UHMW-PE | Q5: PTFE
A6: Size Col. | B6: 2 | C6: 3 | D6: 4 | E6: 5 | F6: 6 | G6: 7 | H6: 8 | I6: 9 | J6: 10 | K6: 11 | L6: 12 | O6: 1.15 RPTFE | Q6: 0.9 RPTFE
A7: 1.00 | B7: =0.9*$C7 -> 99 | C7: =IF(Press<=100,90,110) -> 110 | D7: =1.15*$C7 -> 126.5 | E7: 126.5 | F7: 285 | G7: 285 | H7: 285 | I7: 285 | J7: Bckt & Cplgr | K7: F04 | L7: 6.3 | O7: =1.15*$C7 -> 126.5 | Q7: =0.9*$C7 -> 99
A8: 1.50 | B8: =0.9*$C8 -> 198 | C8: =IF(Press<=100,180,220) -> 220 | D8: 253 | E8: 253 | F8: 285 | G8: 285 | H8: 285 | I8: 285 | J8: Bckt & Cplgr | K8: F05 | L8: 8 | O8: =1.15*$C8 -> 253 | Q8: =0.9*$C8 -> 198
A9: 2.00 | B9: =0.9*$C9 -> 342 | C9: =IF(Press<=100,300,380) -> 380 | D9: 437 | E9: 437 | F9: 285 | G9: 285 | H9: 285 | I9: 285 | J9: Bckt & Cplgr | K9: F05 | L9: 9.96 | O9: =1.15*$C9 -> 437 | Q9: =0.9*$C9 -> 342
A10: 3.00 | B10: =0.9*$C10 -> 810 | C10: =IF(Press<=100,700,900) -> 900 | D10: 1035 | E10: 1035 | F10: 285 | G10: 285 | H10: 285 | I10: 285 | J10: Bckt & Cplgr | K10: F07 | L10: 17 | O10: =1.15*$C10 -> 1035 | Q10: =0.9*$C10 -> 810
A11: 4.00 | B11: =0.9*$C11 -> 1440 | C11: =IF(Press<=100,1100,1600) -> 1600 | D11: 1840 | E11: 1840 | F11: 285 | G11: 285 | H11: 285 | I11: 285 | J11: Bckt & Cplgr | K11: F07 | L11: 17 | O11: =1.15*$C11 -> 1840 | Q11: =0.9*$C11 -> 1440
A12: -- | B12: -- | C12: -- | D12: -- | E12: -- | F12: -- | G12: -- | H12: -- | I12: -- | J12: --
A13: Die Erste ED-111RF150
A14: 2000R-150 torques agree w/ Bulletin 2000R-0100 G | F14: 1" 65 in-lb per Joy Su e-mail 3/9/06 Use 90 <= 100 psi, 100 > 100 psi
A15: Yellow shaded cells contain eqn. and / or logic statement. | F15: 1.5" 110 in-lb per Joy Su e-mail 3/6/06 Use 225 <= 100 psi, 250 > 100 psi
A18: 2000F-150 Series Full Port | E18: _2000F_150 | F18: Press = | G18: =Press -> 1500 | H18: psi
B19: Torque (Break), lbf-in. | F19: Max. Seat Pressure | J19: Mounting
B20: Teflon | C20: RPTFE | D20: CRPTFE | E20: UHMW-PE | F20: T | G20: R | H20: S | I20: U | J20: Mount | K20: Blt Ptrn | L20: Sq | O20: UHMW-PE | Q20: PTFE
A21: Size Col. | B21: 2 | C21: 3 | D21: 4 | E21: 5 | F21: 6 | G21: 7 | H21: 8 | I21: 9 | J21: 10 | K21: 11 | L21: 12 | O21: 1.15 RPTFE | Q21: 0.9 RPTFE
A22: 0.50 | B22: =0.9*$C22 -> 79.2 | C22: 88 | D22: =1.15*$C22 -> 101.2 | E22: =1.15*$C22 -> 101.2 | F22: NA | G22: NA | H22: NA | I22: NA | J22: Bckt & Cplgr | K22: F04 | L22: 6.3 | O22: =1.15*$C22 -> 101.2 | Q22: =0.9*$C22 -> 79.2
A23: 0.75 | B23: =0.9*$C23 -> 95.4 | C23: 106 | D23: =1.15*$C23 -> 121.9 | E23: =1.15*$C23 -> 121.9 | F23: NA | G23: NA | H23: NA | I23: NA | J23: Bckt & Cplgr | K23: F04 | L23: 6.3 | O23: =1.15*$C23 -> 121.9 | Q23: =0.9*$C23 -> 95.4
A24: 1.00 | B24: 118.8 | C24: 132 | D24: 151.8 | E24: 151.8 | F24: NA | G24: NA | H24: NA | I24: NA | J24: Bckt & Cplgr | K24: F05 | L24: 8 | O24: 151.8 | Q24: 118.8
A25: 1.25 | B25: 230.4 | C25: 256 | D25: 294.4 | E25: 294.4 | F25: NA | G25: NA | H25: NA | I25: NA | J25: -- | K25: -- | L25: -- | O25: 294.4 | Q25: 230.4
A26: 1.50 | B26: 318.6 | C26: 354 | D26: 407.1 | E26: 407.1 | F26: NA | G26: NA | H26: NA | I26: NA | J26: Bckt & Cplgr | K26: F07 | L26: 9.5 | O26: 407.1 | Q26: 318.6
A27: 2.00 | B27: 381.6 | C27: 424 | D27: 487.6 | E27: 487.6 | F27: NA | G27: NA | H27: NA | I27: NA | J27: Bckt & Cplgr | K27: F07 | L27: 9.5 | O27: 487.6 | Q27: 381.6
A28: 2.50 | B28: 526.5 | C28: 585 | D28: 672.75 | E28: 672.75 | F28: NA | G28: NA | H28: NA | I28: NA | J28: Bckt & Cplgr | K28: F07 | L28: 17 | O28: 672.75 | Q28: 526.5
A29: 3.00 | B29: 883.8 | C29: 982 | D29: 1129.3 | E29: 1129.3 | F29: NA | G29: NA | H29: NA | I29: NA | J29: Bckt & Cplgr | K29: F10 | L29: 17 | O29: 1129.3 | Q29: 883.8
A30: 4.00 | B30: 1115.1 | C30: 1239 | D30: 1424.85 | E30: 1424.85 | F30: NA | G30: NA | H30: NA | I30: NA | J30: Bckt & Cplgr | K30: F10 | L30: 17 | O30: 1424.85 | Q30: 1115.1
A31: 6.00 | B31: 3150 | C31: 3500 | D31: 4025 | E31: 4025 | F31: NA | G31: NA | H31: NA | I31: NA | J31: Bckt & Cplgr | K31: F10 | L31: 25 | O31: 4025 | Q31: 3150
A32: -- | B32: -- | C32: -- | D32: -- | E32: -- | F32: -- | G32: -- | H32: -- | I32: -- | J32: -- | K32: -- | L32: --
A33: Die Erste ED-211FF-150 (0.5"-4.0"); DE-23 (6.0")
A34: 0.5-4.0 Torque values supplied by Die Erste to Chuck Bechtel for RPTFE 4/11/01 in response to 4/10/01 request.
A35: 6.0 Torque value added 8/4/01.
A38: 2000F-300 Series Full Port | E38: _2000F_300 | F38: Press = | G38: =Press -> 1500 | H38: psi
B39: Torque (Break), lbf-in. | F39: Max. Seat Pressure | J39: Mounting
B40: Teflon | C40: RPTFE | D40: CRPTFE | E40: UHMW-PE | F40: T | G40: R | H40: S | I40: U | J40: Mount | K40: Blt Ptrn | L40: Sq | O40: UHMW-PE
A41: Size Col. | B41: 2 | C41: 3 | D41: 4 | E41: 5 | F41: 6 | G41: 7 | H41: 8 | I41: 9 | J41: 10 | K41: 11 | L41: 12 | O41: 1.3 PTFE
A42: 1.00 | B42: =0.0000691*Press + 0.00296*Press + 110.092 -> 114.63565 | C42: =1.2*B42 -> 137.56278 | D42: =1.3*$B42 -> 149.026345 | E42: =1.3*$B42 -> 149.026345 | F42: 740 | G42: 740 | H42: 740 | I42: 740 | J42: Bckt & Cplgr | K42: F05 | L42: 8 | O42: =1.3*$B42 -> 149.026345
A43: 1.50 | B43: =0.000147*Press^2-0.0209*Press+133.5 -> 432.9 | C43: 519.48 | D43: =1.3*$B43 -> 562.77 | E43: =1.3*$B43 -> 562.77 | F43: 740 | G43: 740 | H43: 740 | I43: 740 | J43: Bckt & Cplgr | K43: F07 | L43: 9.5 | O43: =1.3*$B43 -> 562.77
A44: 2.00 | B44: =0.000383*Press^2-0.0997*Press+183.2 -> 895.4 | C44: 1074.48 | D44: 1164.02 | E44: 1164.02 | F44: 740 | G44: 740 | H44: 740 | I44: 740 | J44: Bckt & Cplgr | K44: F07 | L44: 9.5 | O44: 1164.02
A45: 2.50 | B45: =0.000287*Press^2+0.158*Press+302.415 -> 1185.165 | C45: 1422.198 | D45: 1540.7145 | E45: 1540.7145 | F45: 740 | G45: 740 | H45: 740 | I45: 740 | J45: Bckt & Cplgr | K45: F10 | L45: 17 | O45: 1540.7145
A46: 3.00 | B46: =-0.000131*Press^2+0.939*Press+332.2 -> 1445.95 | C46: 1735.14 | D46: 1879.735 | E46: 1879.735 | F46: 740 | G46: 740 | H46: 740 | I46: 740 | J46: Bckt & Cplgr | K46: F10 | L46: 17 | O46: 1879.735
A47: 4.00 | B47: =-0.00000258*Press^3+0.00408*Press^2+0.468*Press+558.6 -> 1733.1 | C47: 2079.72 | D47: 2253.03 | E47: 2253.03 | F47: 740 | G47: 740 | H47: 740 | I47: 740 | J47: Bckt & Cplgr | K47: F10 | L47: 17 | O47: 2253.03
A48: 6.00 | B48: =IF(Press<=400,0.0000385*Press^3-0.0105*Press^2+1.223*Press+1483.7,-0.0126*Press^2+19.83*Press-3162.4) -> -1767.4 | C48: -2120.88 | D48: -2297.62 | E48: -2297.62 | F48: 740 | G48: 740 | H48: 740 | I48: 740 | J48: Bckt & Cplgr | K48: F12 | L48: 23 | O48: -2297.62
A49: -- | B49: -- | C49: -- | D49: -- | E49: -- | F49: -- | G49: -- | H49: -- | I49: -- | J49: -- | K49: -- | L49: --
A50: Taiwan Valve 90S
A51: Torque values changed from TVC published literature to TVC torque sheet by han_wen of TVC dated 2/6/2004 and sent 7/7/05 JJH 6/9/06
A52: Yellow shaded cells contain eqn. and / or logic statement.

Sheet 3K 10K (hidden)
A1: Press = | B1: =Press -> 1500
A3: 3000R Series Reduced Port | E3: _3000R | I3: Press = | J3: =Press -> 1500 | K3: psi
B4: Torque, lbf-in. | I4: Max. Seat Pressure | P4: Mounting
B5: Teflon | C5: RPTFE | D5: CRPTFE | E5: UHMW-PE | F5: Delrin | G5: PEEK | H5: CPEEK | I5: T | J5: R | K5: S | L5: U | M5: D | N5: P | O5: CP | P5: Mount | Q5: Blt Ptrn | R5: Sq | T5: UHMW_PE
A6: Size Col. | B6: 2 | C6: 3 | D6: 4 | E6: 5 | F6: 6 | G6: 7 | H6: 8 | I6: 9 | J6: 10 | K6: 11 | L6: 12 | M6: 13 | N6: 14 | O6: 15 | P6: 10 | Q6: 11 | R6: 12 | T6: 1.5 PTFE
A7: --
A8: --
A9: 0.50 | B9: 72 | C9: 72 | D9: 72 | E9: =1.5*$B9 -> 108 | F9: =0.0107*Press + 84 -> 100.05 | G9: =0.5*(0.02*Press + 240) -> 135 | H9: =1.25*G9 -> 168.75 | I9: NA | J9: NA | K9: NA | L9: NA | M9: 4000 | N9: 4000 | O9: 4000 | P9: Bckt & Cplgr | Q9: F03 | R9: 5.44 | T9: =1.5*$B9 -> 108
A10: 0.75 | B10: 72 | C10: 96 | D10: 96 | E10: =1.5*$B10 -> 108 | F10: =0.0107*Press + 108 -> 124.05 | G10: =0.5*(0.03*Press + 360) -> 202.5 | H10: =1.25*G10 -> 253.125 | I10: NA | J10: NA | K10: NA | L10: NA | M10: 4000 | N10: 4000 | O10: 4000 | P10: Bckt & Cplgr | Q10: F03 | R10: 5.44 | T10: =1.5*$B10 -> 108
A11: 1.00 | B11: 108 | C11: 120 | D11: 120 | E11: 162 | F11: =0.0133*Press + 160 -> 179.95 | G11: =0.5*(0.08*Press + 720) -> 420 | H11: 525 | I11: NA | J11: NA | K11: NA | L11: NA | M11: 4000 | N11: 3200 | O11: 3200 | P11: Bckt & Cplgr | Q11: F04 | R11: 7.47 | T11: 162
A12: 1.25 | B12: 204 | C12: 240 | D12: 240 | E12: 306 | F12: =0.0267*Press + 200 -> 240.05 | G12: =0.5*(0.1*Press + 840) -> 495 | H12: 618.75 | I12: NA | J12: NA | K12: NA | L12: NA | M12: 4000 | N12: 3200 | O12: 3200 | P12: Bckt & Cplgr | Q12: F04 | R12: 7.47 | T12: 306
A13: 1.50 | B13: 220 | C13: =0.0636*Press + 260 -> 355.4 | D13: =0.0636*Press + 260 -> 355.4 | E13: 330 | F13: =0.0444*Press + 250 -> 316.6 | G13: =0.5*(0.5*Press + 950) -> 850 | H13: 1062.5 | I13: NA | J13: 1500 | K13: 2200 | L13: NA | M13: 3200 | N13: 3200 | O13: 3200 | P13: Bckt & Cplgr | Q13: F05 | R13: 8.94 | T13: 330
A14: 2.00 | B14: 240 | C14: =0.00006*Press^2 + 0.0457*Press + 289.58 -> 493.13 | D14: =0.00006*Press^2 + 0.0457*Press + 289.58 -> 493.13 | E14: 360 | F14: =0.08*Press + 280 -> 400 | G14: =0.5*(0.72*Press + 1140) -> 1110 | H14: 1387.5 | I14: NA | J14: 1500 | K14: 2200 | L14: NA | M14: 3200 | N14: 3200 | O14: 3200 | P14: Bckt & Cplgr | Q14: F05 | R14: 8.94 | T14: 360
A15: 2.50 | B15: 432 | C15: =0.34*Press + 780 -> 1290 | D15: =0.34*Press + 780 -> 1290 | E15: 648 | F15: =NA() ->  | G15: =0.5*(1.173*Press + 1320) -> 1539.75 | H15: 1924.6875 | I15: NA | J15: 1000 | K15: 2000 | L15: NA | M15: - | N15: 2400 | O15: 2400 | P15: Bckt & Cplgr | Q15: F05 | R15: 13.71 | T15: 648
A16: 3.00 | B16: =0.8981*Press + 719.38 -> 2066.53 | C16: =-0.0006*Press^2 + 1.8923*Press + 1255.4 -> 2743.85 | D16: =-0.0006*Press^2 + 1.8923*Press + 1255.4 -> 2743.85 | E16: =-0.0003*Press^2+1.6217*Press+1051.6 -> 2809.15 | F16: =NA() ->  | G16: =0.5*(2.08*Press + 1440) -> 2280 | H16: 2850 | I16: 700 | J16: 1000 | K16: 2000 | L16: 1500 | M16: - | N16: 2400 | O16: 2400 | P16: Bckt & Cplgr | Q16: F07 | R16: 15.95 | T16: 3099.795 | V16: y = -0.0003x2 + 1.6217x + 1051.6
A17: 4.00 | B17: =0.9729*Press + 1000 -> 2459.35 | C17: =-0.0012*Press^2 + 2.6265*Press + 1755.1 -> 2994.85 | D17: =-0.0012*Press^2 + 2.6265*Press + 1755.1 -> 2994.85 | E17: =-0.0002*Press^2 + 1.6132*Press + 1491.8 -> 3461.6 | F17: =NA() ->  | G17: =0.5*(3.04*Press + 2160) -> 3360 | H17: 4200 | I17: 700 | J17: 1000 | K17: 1500 | L17: 1000 | M17: - | N17: 1500 | O17: 1500 | P17: Bckt & Cplgr | Q17: F07 | R17: 17.8 | T17: 3689.025 | V17: y = -0.0002x2 + 1.6132x + 1491.8
A18: -- | B18: -- | C18: -- | D18: -- | E18: -- | F18: -- | G18: -- | H18: -- | I18: -- | J18: -- | K18: -- | L18: -- | M18: -- | N18: -- | O18: -- | P18: -- | Q18: -- | R18: --
A19: Torques do not agree w/ Bulletin 3000-1098 G.
A20: 3000 & 10000 Torques Same
A21: Yellow shaded cells contain eqn. and / or logic statement.
A23: 3000F Series Full Port | E23: _3000F | I23: Press = | J23: =Press -> 1500 | K23: psi
B24: Torque, lbf-in. | I24: Max. Seat Pressure | P24: Mounting
B25: Teflon | C25: RPTFE | D25: CRPTFE | E25: UHMW-PE | F25: Delrin | G25: PEEK | H25: CPEEK | I25: T | J25: R | K25: S | L25: U | M25: D | N25: P | O25: CP | P25: Mount | Q25: Blt Ptrn | R25: Sq | T25: UHMW_PE
A26: Size Col. | B26: 2 | C26: 3 | D26: 4 | E26: 5 | F26: 6 | G26: 7 | H26: 8 | I26: 9 | J26: 10 | K26: 11 | L26: 12 | M26: 13 | N26: 14 | O26: 15 | P26: 10 | Q26: 11 | R26: 12 | T26: 1.5 PTFE
A27: 0.25 | B27: 72 | C27: 72 | D27: 72 | E27: =1.5*$B27 -> 108 | F27: =0.0107*Press + 84 -> 100.05 | G27: =0.5*(0.02*Press + 240) -> 135 | H27: =1.25*G27 -> 168.75 | I27: NA | J27: NA | K27: NA | L27: NA | M27: 4000 | N27: 4000 | O27: 4000 | P27: Bckt & Cplgr | Q27: F03 | R27: 5.44 | T27: =1.5*$B27 -> 108
A28: 0.38 | B28: 72 | C28: 72 | D28: 72 | E28: =1.5*$B28 -> 108 | F28: =0.0107*Press + 84 -> 100.05 | G28: =0.5*(0.02*Press + 240) -> 135 | H28: =1.25*G28 -> 168.75 | I28: NA | J28: NA | K28: NA | L28: NA | M28: 4000 | N28: 4000 | O28: 4000 | P28: Bckt & Cplgr | Q28: F03 | R28: 5.44 | T28: =1.5*B28 -> 108
A29: 0.50 | B29: 72 | C29: 96 | D29: 96 | E29: 108 | F29: =0.0107*Press + 108 -> 124.05 | G29: =0.5*(0.03*Press + 360) -> 202.5 | H29: 253.125 | I29: NA | J29: NA | K29: NA | L29: NA | M29: 4000 | N29: 4000 | O29: 4000 | P29: Bckt & Cplgr | Q29: F03 | R29: 5.44 | T29: 108
A30: 0.75 | B30: 108 | C30: 120 | D30: 120 | E30: 162 | F30: =0.0133*Press + 160 -> 179.95 | G30: =0.5*(0.08*Press + 720) -> 420 | H30: 525 | I30: NA | J30: NA | K30: NA | L30: NA | M30: 4000 | N30: 3200 | O30: 3200 | P30: Bckt & Cplgr | Q30: F04 | R30: 7.47 | T30: 162
A31: 1.00 | B31: 204 | C31: 240 | D31: 240 | E31: 306 | F31: =0.0267*Press + 200 -> 240.05 | G31: =0.5*(0.1*Press + 840) -> 495 | H31: 618.75 | I31: NA | J31: NA | K31: NA | L31: NA | M31: 4000 | N31: 3200 | O31: 3200 | P31: Bckt & Cplgr | Q31: F04 | R31: 7.47 | T31: 306
A32: 1.25 | B32: 220 | C32: =0.0636*Press + 260 -> 355.4 | D32: =0.0636*Press + 260 -> 355.4 | E32: 330 | F32: =0.0444*Press + 250 -> 316.6 | G32: =0.5*(0.5*Press + 950) -> 850 | H32: 1062.5 | I32: NA | J32: 1500 | K32: 2200 | L32: NA | M32: 3200 | N32: 3200 | O32: 3200 | P32: Bckt & Cplgr | Q32: F05 | R32: 8.92 | T32: 330
A33: 1.50 | B33: 240 | C33: =0.00006*Press^2 + 0.0457*Press + 289.58 -> 493.13 | D33: =0.00006*Press^2 + 0.0457*Press + 289.58 -> 493.13 | E33: 360 | F33: =0.08*Press + 280 -> 400 | G33: =0.5*(0.72*Press + 1140) -> 1110 | H33: 1387.5 | I33: NA | J33: 1500 | K33: 2200 | L33: NA | M33: 3200 | N33: 3200 | O33: 3200 | P33: Bckt & Cplgr | Q33: F05 | R33: 8.92 | T33: 360
A34: 2.00 | B34: 432 | C34: =0.34*Press + 780 -> 1290 | D34: =0.34*Press + 780 -> 1290 | E34: 648 | F34: =NA() ->  | G34: =0.5*(1.173*Press + 1320) -> 1539.75 | H34: 1924.6875 | I34: NA | J34: 1000 | K34: 2000 | L34: NA | M34: -- | N34: 2400 | O34: 2400 | P34: Bckt & Cplgr | Q34: F05 | R34: 13.71 | T34: 648
A35: 2.50 | B35: =0.8981*Press + 719.38 -> 2066.53 | C35: =-0.0006*Press^2 + 1.8923*Press + 1255.4 -> 2743.85 | D35: =-0.0006*Press^2 + 1.8923*Press + 1255.4 -> 2743.85 | E35: =-0.0003*Press^2+1.6217*Press+1051.6 -> 2809.15 | F35: =NA() ->  | G35: =0.5*(2.08*Press + 1440) -> 2280 | H35: 2850 | I35: 700 | J35: 1000 | K35: 2000 | L35: 1500 | M35: -- | N35: 2400 | O35: 2400 | P35: Bckt & Cplgr | Q35: F07 | R35: 15.95 | T35: 3099.795
A36: 3.00 | B36: =0.9729*Press + 1000 -> 2459.35 | C36: =-0.0012*Press^2 + 2.6265*Press + 1755.1 -> 2994.85 | D36: =-0.0012*Press^2 + 2.6265*Press + 1755.1 -> 2994.85 | E36: =-0.0002*Press^2 + 1.6132*Press + 1491.8 -> 3461.6 | F36: =NA() ->  | G36: =0.5*(3.04*Press + 2160) -> 3360 | H36: 4200 | I36: 700 | J36: 1000 | K36: 1500 | L36: 1000 | M36: -- | N36: 1500 | O36: 1500 | P36: Bckt & Cplgr | Q36: F07 | R36: 17.8 | T36: 3689.025
A37: -- | B37: -- | C37: -- | D37: -- | E37: -- | F37: -- | G37: -- | H37: -- | I37: -- | J37: -- | K37: -- | L37: -- | M37: -- | N37: -- | O37: -- | P37: -- | Q37: -- | R37: --
A38: Torques do not agree w/ Bulletin 3000-1098 G.
A39: 3000 & 10000 Torques Same
A40: Yellow shaded cells contain eqn. and / or logic statement.
A47: 10000F Series Full (Sch 160) Port | E47: _10000F | I47: Press = | J47: =Press -> 1500 | K47: psi
B48: Torque, lbf-in. | I48: Max. Seat Pressure | P48: Mounting
C49: R | D49: S | F49: Delrin | G49: PEEK | H49: CPEEK | J49: R | K49: S | M49: D | N49: P | O49: CP | P49: Mount | Q49: Blt Ptrn | R49: Sq
A50: Size Col. | B50: 2 | C50: 3 | D50: 4 | E50: 5 | F50: 6 | G50: 7 | H50: 8 | I50: 9 | J50: 10 | K50: 11 | L50: 12 | M50: 13 | N50: 12 | O50: 15 | P50: 10 | Q50: 11 | R50: 12
A51: 0.25 | C51: 96 | D51: 96 | F51: =0.0107*Press + 108 -> 124.05 | G51: =0.5*(0.03*Press + 360) -> 202.5 | H51: =1.25*G51 -> 253.125 | J51: NA | K51: 2800 | M51: 6000 | N51: 6000 | O51: 6000 | P51: Bckt & Cplgr | Q51: -- | R51: 7.47
A52: 0.38 | C52: 96 | D52: 96 | F52: =0.0107*Press + 108 -> 124.05 | G52: =0.5*(0.03*Press + 360) -> 202.5 | H52: 253.125 | J52: NA | K52: 2800 | M52: 6000 | N52: 6000 | O52: 6000 | P52: Bckt & Cplgr | Q52: -- | R52: 7.47
A53: 0.50 | C53: 96 | D53: 96 | F53: =0.0107*Press + 108 -> 124.05 | G53: =0.5*(0.03*Press + 360) -> 202.5 | H53: 253.125 | J53: NA | K53: 2800 | M53: 6000 | N53: 6000 | O53: 6000 | P53: Bckt & Cplgr | Q53: -- | R53: 7.47
A54: 0.75 | C54: 195 | D54: 195 | F54: =0.0133*Press + 160 -> 179.95 | G54: =0.5*(0.08*Press + 720) -> 420 | H54: 525 | J54: NA | K54: 2800 | M54: 6000 | N54: 6000 | O54: 6000 | P54: Bckt & Cplgr | Q54: F04 | R54: 7.47
A55: 1.00 | C55: 240 | D55: 240 | F55: =0.0267*Press + 200 -> 240.05 | G55: =0.5*(0.1*Press + 840) -> 495 | H55: 618.75 | J55: NA | K55: 2800 | M55: 4500 | N55: 6000 | O55: 6000 | P55: Bckt & Cplgr | Q55: F04 | R55: 8.52
A56: 1.25 | C56: =0.00006*Press^2 + 0.0457*Press + 289.58 -> 493.13 | D56: =0.00006*Press^2 + 0.0457*Press + 289.58 -> 493.13 | F56: =0.08*Press + 280 -> 400 | G56: =0.5*(0.72*Press + 1140) -> 1110 | H56: 1387.5 | J56: 1500 | K56: 2500 | M56: 4500 | N56: 5000 | O56: 5000 | P56: Bckt & Cplgr | Q56: F07 | R56: 15.95
A57: 1.50 | C57: =0.00006*Press^2 + 0.0457*Press + 289.58 -> 493.13 | D57: =0.00006*Press^2 + 0.0457*Press + 289.58 -> 493.13 | F57: =0.08*Press + 280 -> 400 | G57: =0.5*(0.72*Press + 1140) -> 1110 | H57: 1387.5 | J57: 1000 | K57: 2500 | M57: 4500 | N57: 5000 | O57: 5000 | P57: Bckt & Cplgr | Q57: F07 | R57: 15.95 | T57: Note: UT-3-SR-60 would not turn 1.5" 10K w/ Delrin seats /
A58: 2.00 | C58: =0.34*Press + 780 -> 1290 | D58: =0.34*Press + 780 -> 1290 | F58: =0.175*Press + 375 -> 637.5 | G58: =0.5*(2.08*Press + 1440) -> 2280 | H58: 2850 | J58: 1000 | K58: 2500 | M58: 4500 | N58: 5000 | O58: 5000 | P58: Bckt & Cplgr | Q58: F07 | R58: 15.95 | T58: Grafoil-Viton stem seal on RI test bench 5/23/07 (CO8030639).
A59: 3.00 x 2.00 | C59: =0.34*Press + 780 -> 1290 | D59: =0.34*Press + 780 -> 1290 | F59: =0.175*Press + 375 -> 637.5 | G59: =0.5*(2.08*Press + 1440) -> 2280 | H59: 2850 | J59: 1000 | K59: 2500 | M59: 4500 | N59: 5000 | O59: 5000 | P59: Bckt & Cplgr | Q59: F07 | R59: 15.95 | T59: Changed to UT-4.5-SR-60 for 3000 to 4500 psi operating pressure.
A60: -- | C60: -- | D60: -- | E60: -- | F60: -- | G60: -- | H60: -- | I60: -- | J60: -- | K60: -- | L60: -- | M60: -- | N60: -- | O60: -- | P60: -- | Q60: -- | R60: --
A61: -- | C61: -- | D61: -- | E61: -- | F61: -- | G61: -- | H61: -- | I61: -- | J61: -- | K61: -- | L61: -- | M61: -- | N61: -- | O61: -- | P61: -- | Q61: -- | R61: --
A62: 3000 & 10000 Torques Same
A63: Yellow shaded cells contain eqn. and / or logic statement.
A65: PTFE, RPTFE, and CRPTFE deleted per D. Behm request 7/16/04
A71: MS3K 3-Pc Metal Seated, Sch. 160 Port, 1000 WOG | F71: _MS3000 | I71: Press = | J71: =Press -> 1500 | K71: psi
B72: Torque, lbf-in. | I72: Max. Seat Pressure | Q72: Mounting
B73: MarWear Metal CL4 | C73: MarWear Metal CL5 | D73: Marwinite Carbon CL6 | I73: W4 | J73: W5 | K73: M6 | Q73: Mount | R73: Sq
A74: Size Col. | B74: 2 | C74: 3 | D74: 4 | E74: 5 | F74: 6 | G74: 7 | H74: 8 | I74: 9 | J74: 10 | K74: 11 | L74: 12 | M74: 13 | N74: 14 | O74: 15 | Q74: 16 | R74: 17
A75: 0.25 | B75: =0.5*(0.03*Press + 360) -> 202.5 | C75: =0.5*(0.02*Press + 240) -> 135 | D75: 135 | E75: -- | F75: -- | G75: -- | I75: 1000 | J75: 1000 | K75: 750 | L75: - | M75: - | O75: -
A76: 0.38 | B76: =0.5*(0.03*Press + 360) -> 202.5 | C76: 135 | D76: 135 | E76: -- | F76: -- | G76: -- | I76: 1000 | J76: 1000 | K76: 750 | L76: - | M76: - | O76: -
A77: 0.50 | B77: =0.5*(0.03*Press + 360) -> 202.5 | C77: 135 | D77: 135 | E77: -- | F77: -- | G77: -- | I77: 1000 | J77: 1000 | K77: 750 | L77: - | M77: - | O77: -
A78: 0.75 | B78: =0.5*(0.08*Press + 720) -> 420 | C78: =0.5*(0.08*Press + 600) -> 360 | D78: =0.5*(0.08*Press + 600) -> 360 | E78: -- | F78: -- | G78: -- | I78: 1000 | J78: 1000 | K78: 750 | L78: - | M78: - | O78: -
A79: 1.00 | B79: =0.5*(0.1*Press + 840) -> 495 | C79: =0.5*(0.1*Press +700) -> 425 | D79: =0.5*(0.1*Press +700) -> 425 | E79: -- | F79: -- | G79: -- | I79: 1000 | J79: 1000 | K79: 750 | L79: - | M79: - | O79: -
A80: 1.25 | B80: =0.5*(0.5*Press + 950) -> 850 | C80: =0.5*(0.5*Press + 750) -> 750 | D80: =0.5*(0.5*Press + 750) -> 750 | E80: -- | F80: -- | G80: -- | I80: 1000 | J80: 1000 | K80: 750 | L80: - | M80: - | O80: -
A81: 1.50 | B81: =0.5*(0.5*Press + 950) -> 850 | C81: =0.5*(0.5*Press + 750) -> 750 | D81: =0.5*(0.5*Press + 750) -> 750 | E81: -- | F81: -- | G81: -- | I81: 1000 | J81: 1000 | K81: 750 | L81: - | M81: - | O81: -
A82: 2.00 | B82: =0.5*(1.173*Press + 1320) -> 1539.75 | C82: =0.5*(1.173*Press + 1000) -> 1379.75 | D82: =0.5*(1.173*Press + 1000) -> 1379.75 | E82: -- | F82: -- | G82: -- | I82: 1000 | J82: 1000 | K82: 750 | L82: - | M82: - | O82: -
A83: 3.00 x 2.00 | B83: =0.5*(1.173*Press + 1320) -> 1539.75 | C83: =0.5*(1.173*Press + 1000) -> 1379.75 | D83: =0.5*(1.173*Press + 1000) -> 1379.75 | E83: -- | F83: -- | G83: -- | I83: 1000 | J83: 1000 | K83: 750 | L83: - | M83: - | O83: -
A84: -- | B84: -- | C84: -- | D84: -- | E84: -- | F84: -- | G84: -- | I84: - | J84: - | K84: - | L84: - | M84: - | O84: -
A85: -- | B85: -- | C85: -- | D85: -- | E85: -- | F85: -- | G85: -- | I85: - | J85: - | K85: - | L85: - | M85: - | O85: -
A86: Yellow shaded cells contain eqn. and / or logic statement.
A87: 1000 was 1440 in columns 9 & 10; W5 was W6; W4 & M6 eliminated
A90: MS10K 3-Pc Metal Seated, Sch. 160 Port, 4500 WOG<=1.25 / 3700 WOG > 1.25 | H90: _MS10000 | I90: Press = | J90: =Press -> 1500 | K90: psi
B91: Torque, lbf-in. | I91: Max. Seat Pressure | Q91: Mounting
B92: MarWear Metal CL4 | C92: MarWear Metal CL5 | I92: M4 | J92: W5 | Q92: Mount | R92: Sq
A93: Size Col. | B93: 2 | C93: 3 | D93: 4 | E93: 5 | F93: 6 | G93: 7 | H93: 8 | I93: 9 | J93: 10 | K93: 11 | L93: 12 | M93: 13 | N93: 14 | O93: 15 | Q93: 16 | R93: 17
A94: 0.25 | B94: =0.5*(0.03*Press + 360) -> 202.5 | C94: =0.5*(0.02*Press + 240) -> 135 | D94: -- | E94: -- | F94: -- | G94: -- | I94: 4500 | J94: 4500 | K94: - | L94: - | M94: - | O94: -
A95: 0.38 | B95: =0.5*(0.03*Press + 360) -> 202.5 | C95: =0.5*(0.02*Press + 240) -> 135 | D95: -- | E95: -- | F95: -- | G95: -- | I95: 4500 | J95: 4500 | K95: - | L95: - | M95: - | O95: -
A96: 0.50 | B96: =0.5*(0.03*Press + 360) -> 202.5 | C96: =0.5*(0.02*Press + 240) -> 135 | D96: -- | E96: -- | F96: -- | G96: -- | I96: 4500 | J96: 4500 | K96: - | L96: - | M96: - | O96: -
A97: 0.75 | B97: =0.5*(0.08*Press + 720) -> 420 | C97: =0.5*(0.08*Press + 600) -> 360 | D97: -- | E97: -- | F97: -- | G97: -- | I97: 4500 | J97: 4500 | K97: - | L97: - | M97: - | O97: -
A98: 1.00 | B98: =0.5*(0.1*Press + 840) -> 495 | C98: =0.5*(0.1*Press +700) -> 425 | D98: -- | E98: -- | F98: -- | G98: -- | I98: 4500 | J98: 4500 | K98: - | L98: - | M98: - | O98: -
A99: 1.25 | B99: =0.5*(0.5*Press + 950) -> 850 | C99: =0.5*(0.5*Press + 750) -> 750 | D99: -- | E99: -- | F99: -- | G99: -- | I99: 3700 | J99: 3700 | K99: - | L99: - | M99: - | O99: -
A100: 1.50 | B100: =0.5*(0.5*Press + 950) -> 850 | C100: =0.5*(0.5*Press + 750) -> 750 | D100: -- | E100: -- | F100: -- | G100: -- | I100: 3700 | J100: 3700 | K100: - | L100: - | M100: - | O100: -
A101: 2.00 | B101: =0.5*(1.173*Press + 1320) -> 1539.75 | C101: =0.5*(1.173*Press + 1000) -> 1379.75 | D101: -- | E101: -- | F101: -- | G101: -- | I101: 3700 | J101: 3700 | K101: - | L101: - | M101: - | O101: -
A102: 3.00 x 2.00 | B102: =0.5*(1.173*Press + 1320) -> 1539.75 | C102: =0.5*(1.173*Press + 1000) -> 1379.75 | D102: -- | E102: -- | F102: -- | G102: -- | I102: 3700 | J102: 3700 | K102: - | L102: - | M102: - | O102: -
A103: -- | B103: -- | C103: -- | D103: -- | E103: -- | F103: -- | G103: -- | I103: - | J103: - | K103: - | L103: - | M103: - | O103: -
A104: -- | B104: -- | C104: -- | D104: -- | E104: -- | F104: -- | G104: -- | I104: - | J104: - | K104: - | L104: - | M104: - | O104: -
A105: Yellow shaded cells contain eqn. and / or logic statement.
A106: W5 was W6; W4 & M6 eliminated

Sheet 4K (hidden)
A3: 4600R Series Reduced Port | E3: _4000R
B4: Torque (Break), lbf-in. | F4: Max. Seat Pressure | J4: Mounting
B5: Teflon | C5: RPTFE | D5: Delrin | E5: PEEK | F5: T | G5: R | H5: D | I5: P | J5: Mount | K5: Blt Ptrn | L5: Sq
A6: Size Col. | B6: 2 | C6: 3 | D6: 4 | E6: 5 | F6: 6 | G6: 7 | H6: 8 | I6: 9 | J6: 10 | K6: 11 | L6: 12
A7: 0.25 | B7: =IF(Press<=100,45,65) -> 65 | C7: -- | D7: -- | E7: -- | F7: 600 | G7: NA | H7: NA | I7: NA | J7: -- | K7: -- | L7: --
A8: 0.38 | B8: =IF(Press<=100,45,65) -> 65 | C8: -- | D8: -- | E8: -- | F8: 600 | G8: NA | H8: NA | I8: NA | J8: -- | K8: -- | L8: --
A9: 0.50 | B9: =IF(Press<=100,45,65) -> 65 | C9: -- | D9: -- | E9: -- | F9: 600 | G9: NA | H9: NA | I9: NA | J9: -- | K9: -- | L9: --
A10: 0.75 | B10: =IF(Press<=100,50,80) -> 80 | C10: -- | D10: -- | E10: -- | F10: 600 | G10: NA | H10: NA | I10: NA | J10: -- | K10: -- | L10: --
A11: 1.00 | B11: =IF(Press<=100,125,230) -> 230 | C11: -- | D11: -- | E11: -- | F11: 600 | G11: NA | H11: NA | I11: NA | J11: -- | K11: -- | L11: --
A12: 1.25 | B12: =IF(Press<=100,125,230) -> 230 | C12: -- | D12: -- | E12: -- | F12: 600 | G12: NA | H12: NA | I12: NA | J12: Saddle | K12: -- | L12: 6
A13: 1.50 | B13: =IF(Press<=100,150,275) -> 275 | C13: -- | D13: -- | E13: -- | F13: 600 | G13: NA | H13: NA | I13: NA | J13: Saddle | K13: -- | L13: 10
A14: 2.00 | B14: =IF(Press<=100,170,300) -> 300 | C14: -- | D14: -- | E14: -- | F14: 600 | G14: NA | H14: NA | I14: NA | J14: Saddle | K14: -- | L14: 10
A15: 2.50 | B15: =IF(Press<=100,250,410) -> 410 | C15: -- | D15: -- | E15: -- | F15: 600 | G15: NA | H15: NA | I15: NA | J15: Saddle | K15: -- | L15: 10
A16: 3.00 | B16: =IF(Press<=100,370,540) -> 540 | C16: -- | D16: -- | E16: -- | F16: 600 | G16: NA | H16: NA | I16: NA | J16: Saddle | K16: -- | L16: 11
A17: Sizes 0.25-1.00 Nibco 595-Y; Sizes 1.25-2.5 Nibco 590-Y-66
A18: Yellow shaded cells contain logic statement.
A21: 4600F Series Full Port | E21: _4000F
B22: Torque (Break), lbf-in. | F22: Max. Seat Pressure | J22: Mounting
B23: Teflon | C23: RPTFE | D23: Delrin | E23: PEEK | F23: T | G23: R | H23: D | I23: P | J23: Mount | K23: Blt Ptrn | L23: Sq
A24: Size Col. | B24: 2 | C24: 3 | D24: 4 | E24: 5 | F24: 6 | G24: 7 | H24: 8 | I24: 9 | J24: 10 | K24: 11 | L24: 12
A25: 0.25 | B25: =IF(Press<=100,45,65) -> 65 | C25: -- | D25: -- | E25: -- | F25: 600 | G25: NA | H25: NA | I25: NA | J25: Saddle | K25: -- | L25: 5
A26: 0.38 | B26: =IF(Press<=100,45,65) -> 65 | C26: -- | D26: -- | E26: -- | F26: 600 | G26: NA | H26: NA | I26: NA | J26: Saddle | K26: -- | L26: 5
A27: 0.50 | B27: =IF(Press<=100,45,65) -> 65 | C27: -- | D27: -- | E27: -- | F27: 600 | G27: NA | H27: NA | I27: NA | J27: Saddle | K27: -- | L27: 5
A28: 0.75 | B28: =IF(Press<=100,50,80) -> 80 | C28: -- | D28: -- | E28: -- | F28: 600 | G28: NA | H28: NA | I28: NA | J28: Saddle | K28: -- | L28: 6
A29: 1.00 | B29: =IF(Press<=100,125,230) -> 230 | C29: -- | D29: -- | E29: -- | F29: 600 | G29: NA | H29: NA | I29: NA | J29: Saddle | K29: -- | L29: 10
A30: 1.25 | B30: =IF(Press<=100,150,275) -> 275 | C30: -- | D30: -- | E30: -- | F30: 600 | G30: NA | H30: NA | I30: NA | J30: Saddle | K30: -- | L30: 10
A31: 1.50 | B31: =IF(Press<=100,170,300) -> 300 | C31: -- | D31: -- | E31: -- | F31: 600 | G31: NA | H31: NA | I31: NA | J31: Saddle | K31: -- | L31: 10
A32: 2.00 | B32: =IF(Press<=100,250,410) -> 410 | C32: -- | D32: -- | E32: -- | F32: 600 | G32: NA | H32: NA | I32: NA | J32: Saddle | K32: -- | L32: 10
A33: 2.50 | B33: =IF(Press<=100,370,540) -> 540 | C33: -- | D33: -- | E33: -- | F33: 600 | G33: NA | H33: NA | I33: NA | J33: Saddle | K33: -- | L33: 11
A34: -- | B34: -- | C34: -- | D34: -- | E34: -- | F34: -- | G34: -- | H34: -- | I34: -- | J34: -- | K34: -- | L34: --
A35: Nibco 595-Y
A36: Yellow shaded cells contain logic statement.
A39: For 4700, See 8K tab

Sheet 5K 6K (hidden)
A3: 5000R Series Reduced Port | E3: _5000R | G3: Press = | H3: =Press -> 1500 | I3: psi
B4: Torque, lbf-in. | G4: Max. Seat Pressure | L4: Mounting
B5: Teflon | C5: RPTFE | D5: CRPTFE | E5: UHMW-PE | F5: P | G5: T | H5: R | I5: S | J5: U | K5: P | L5: Mount | M5: Blt Ptrn | N5: Sq | R5: UHMW-PE
A6: Size Col. | B6: 2 | C6: 3 | D6: 4 | E6: 5 | F6: 6 | G6: 7 | H6: 8 | I6: 9 | J6: 10 | K6: 11 | L6: 10 | M6: 11 | N6: 12 | R6: 1.3 PTFE
A7: 0.50 | B7: =0.85*C7 -> 305.4475 | C7: =IF(Press<=100,60,0.0001*Press^2 +0.0529*Press + 55) -> 359.35 | D7: =1.1*C7 -> 395.285 | E7: =1.3*$B7 -> 397.08175 | F7: -- | G7: 285 | H7: 285 | I7: 285 | J7: 285 | K7: -- | L7: Bckt & Cplgr | M7: Spl | N7: 5 | R7: =1.3*$B7 -> 397.08175
A8: 0.75 | B8: 305.4475 | C8: =IF(Press<=100,60,0.0001*Press^2 + 0.0529*Press + 55) -> 359.35 | D8: 395.285 | E8: =1.3*$B8 -> 397.08175 | F8: -- | G8: 285 | H8: 285 | I8: 285 | J8: 285 | K8: -- | L8: Bckt & Cplgr | M8: Spl | N8: 5 | R8: =1.3*$B8 -> 397.08175
A9: 1.00 | B9: 291.975 | C9: =IF(Press<=100,85,0.0001*Press^2 + 0.025*Press + 81) -> 343.5 | D9: 377.85 | E9: 379.5675 | F9: -- | G9: 285 | H9: 285 | I9: 285 | J9: 285 | K9: -- | L9: Bckt & Cplgr | M9: Spl | N9: 8 | R9: 379.5675
A10: 1.50 | B10: 294.525 | C10: =IF(Press<=100,150,0.141*Press + 135) -> 346.5 | D10: 381.15 | E10: 382.8825 | F10: -- | G10: 285 | H10: 285 | I10: 285 | J10: 285 | K10: -- | L10: Bckt & Cplgr | M10: Spl | N10: 14 | R10: 382.8825
A11: 2.00 | B11: 486.6675 | C11: =IF(Press<=100,300,0.1937*Press + 282) -> 572.55 | D11: 629.805 | E11: 632.66775 | F11: -- | G11: 285 | H11: 285 | I11: 285 | J11: 285 | K11: -- | L11: Bckt & Cplgr | M11: Spl | N11: 14 | R11: 632.66775
A12: 3.00 | B12: 889.3125 | C12: =IF(Press<=100,500,0.3895*Press + 462) -> 1046.25 | D12: 1150.875 | E12: 1156.10625 | F12: -- | G12: 285 | H12: 285 | I12: 285 | J12: 285 | K12: -- | L12: Bckt & Cplgr | M12: Spl | N12: 18 | R12: 1156.10625
A13: 4.00 | B13: 1983.9 | C13: =IF(Press<=100,950,0.97*Press + 879) -> 2334 | D13: 2567.4 | E13: 2579.07 | F13: -- | G13: 285 | H13: 285 | I13: 285 | J13: 285 | K13: -- | L13: Bckt & Cplgr | M13: Spl | N13: 22.5 | R13: 2579.07
A14: 6.00 | B14: 4006.05 | C14: =IF(Press<=100,1550,2.25*Press + 1338) -> 4713 | D14: 5184.3 | E14: 5207.865 | F14: -- | G14: 285 | H14: 285 | I14: 285 | J14: 285 | K14: -- | L14: Bckt & Cplgr | M14: Spl | N14: 30 | R14: 5207.865
A15: 8.00 | B15: 10051.6325 | C15: =IF(Press<=100,3500,5.9783*Press + 2858) -> 11825.45 | D15: 13007.995 | E15: 13067.12225 | F15: -- | G15: 285 | H15: 285 | I15: 285 | J15: 285 | K15: -- | L15: Bckt & Cplgr | M15: Spl | N15: 30 | R15: 13067.12225
A16: 10.00 | B16: 15227.75 | C16: =IF(Press<=100,7000,7.78*Press + 6245) -> 17915 | D16: 19706.5 | E16: 19796.075 | F16: -- | G16: 285 | H16: 285 | I16: 285 | J16: 285 | K16: -- | L16: Bckt & Cplgr | M16: Spl | N16: 30 | R16: 19796.075
A17: -- | B17: -- | C17: -- | D17: -- | E17: -- | F17: -- | G17: -- | H17: -- | I17: -- | J17: -- | K17: -- | L17: -- | M17: -- | N17: --
A18: RPTFE agrees w/ Bulletin 5000-0600 G; Teflon = 0.85 RPTFE, CRPTFE = RPTFE | F18: RPTFE changed 2/4/06; PTFE = 0.85 x new RPTFE; CRPTFE changed from 1.0 to 1.1 x RPTFE.
A19: Yellow shaded cells contain eqn. and / or logic statement.
A21: 5000F Series Full Port | E21: _5000F | G21: Press = | H21: =Press -> 1500 | I21: psi
B22: Torque, lbf-in. | G22: Max. Seat Pressure | L22: Mounting
B23: Teflon | C23: RPTFE | D23: CRPTFE | E23: UHMW-PE | F23: P | G23: T | H23: R | I23: S | J23: U | K23: P | L23: Mount | M23: Blt Ptrn | N23: Sq | R23: UHMW-PE
A24: Size Col. | B24: 2 | C24: 3 | D24: 4 | E24: 5 | F24: 6 | G24: 7 | H24: 8 | I24: 9 | J24: 10 | K24: 11 | L24: 10 | M24: 11 | N24: 12 | R24: 1.3 PTFE
A25: 0.50 | B25: =0.85*C25 -> 305.4475 | C25: =IF(Press<=100,60,0.0001*Press^2 + 0.0529*Press + 55) -> 359.35 | D25: =1.1*C25 -> 395.285 | E25: =1.3*$B25 -> 397.08175 | F25: -- | G25: 285 | H25: 285 | I25: 285 | J25: 285 | K25: -- | L25: Bckt & Cplgr | M25: Spl | N25: 5 | R25: =1.3*$B25 -> 397.08175
A26: 0.75 | B26: =0.85*C26 -> 291.975 | C26: =IF(Press<=100,85,0.0001*Press^2 + 0.025*Press + 81) -> 343.5 | D26: 377.85 | E26: =1.3*$B26 -> 379.5675 | F26: -- | G26: 285 | H26: 285 | I26: 285 | J26: 285 | K26: -- | L26: Bckt & Cplgr | M26: Spl | N26: -- | R26: =1.3*$B26 -> 379.5675
A27: 1.00 | B27: 294.525 | C27: =IF(Press<=100,150,0.141*Press + 135) -> 346.5 | D27: 381.15 | E27: 382.8825 | F27: -- | G27: 285 | H27: 285 | I27: 285 | J27: 285 | K27: -- | L27: Bckt & Cplgr | M27: Spl | N27: 8 | R27: 382.8825
A28: 1.50 | B28: 486.6675 | C28: =IF(Press<=100,300,0.1937*Press + 282) -> 572.55 | D28: 629.805 | E28: 632.66775 | F28: -- | G28: 285 | H28: 285 | I28: 285 | J28: 285 | K28: -- | L28: Bckt & Cplgr | M28: Spl | N28: 14 | R28: 632.66775
A29: 2.00 | B29: 889.3125 | C29: =IF(Press<=100,500,0.3895*Press + 462) -> 1046.25 | D29: 1150.875 | E29: 1156.10625 | F29: -- | G29: 285 | H29: 285 | I29: 285 | J29: 285 | K29: -- | L29: Bckt & Cplgr | M29: Spl | N29: 14 | R29: 1156.10625
A30: 3.00 | B30: 1983.9 | C30: =IF(Press<=100,950,0.97*Press + 879) -> 2334 | D30: 2567.4 | E30: 2579.07 | F30: -- | G30: 285 | H30: 285 | I30: 285 | J30: 285 | K30: -- | L30: Bckt & Cplgr | M30: Spl | N30: 18 | R30: 2579.07
A31: 4.00 | B31: =0.85*C31 -> 4006.05 | C31: =IF(Press<=100,1550,2.25*Press + 1338) -> 4713 | D31: 5184.3 | E31: 5207.865 | F31: -- | G31: 285 | H31: 285 | I31: 285 | J31: 285 | K31: -- | L31: Bckt & Cplgr | M31: Spl | N31: 22.5 | R31: 5207.865
A32: 6.00 | B32: 10051.6325 | C32: =IF(Press<=100,3500,5.9783*Press + 2858) -> 11825.45 | D32: 13007.995 | E32: 13067.12225 | F32: -- | G32: 285 | H32: 285 | I32: 285 | J32: 285 | K32: -- | L32: Bckt & Cplgr | M32: Spl | N32: 30 | R32: 13067.12225
A33: 8.00 | B33: 15227.75 | C33: =IF(Press<=100,7000,7.78*Press + 6245) -> 17915 | D33: 19706.5 | E33: 19796.075 | F33: -- | G33: 285 | H33: 285 | I33: 285 | J33: 285 | K33: -- | L33: Bckt & Cplgr | M33: Spl | N33: 30 | R33: 19796.075
A34: -- | B34: -- | C34: -- | D34: -- | E34: -- | F34: -- | G34: -- | H34: -- | I34: -- | J34: -- | K34: -- | L34: -- | M34: -- | N34: --
A35: RPTFE agrees w/ Bulletin 5000-0600 G; Teflon = 0.85 RPTFE, CRPTFE = RPTFE | F35: RPTFE changed 2/4/06; PTFE = 0.85 x new RPTFE; CRPTFE changed from 1.0 to 1.1 x RPTFE.
A36: Yellow shaded cells contain eqn. and / or logic statement.
A40: 6000R Series Reduced Port | E40: _6000R | G40: Press = | H40: =Press -> 1500 | I40: psi
B41: Torque, lbf-in. | G41: Max. Seat Pressure | L41: Mounting
B42: Teflon | C42: RPTFE | D42: CRPTFE | E42: UHMW-PE | F42: PEEK | G42: T | H42: R | I42: S | J42: U | K42: P | L42: Mount | M42: Blt Ptrn | N42: Sq | R42: UHMW-PE
A43: Size Col. | B43: 2 | C43: 3 | D43: 4 | E43: 5 | F43: 6 | G43: 7 | H43: 8 | I43: 9 | J43: 10 | K43: 11 | L43: 10 | M43: 11 | N43: 12 | R43: 1.3 PTFE
A44: 0.50 | B44: =0.85*C44 -> 305.4475 | C44: =IF(Press<=100,60,0.0001*Press^2 + 0.0529*Press + 55) -> 359.35 | D44: =1.1*C44 -> 395.285 | E44: =1.3*$B44 -> 397.08175 | F44: -- | G44: 740 | H44: 740 | I44: 740 | J44: 740 | K44: -- | L44: Bckt & Cplgr | M44: Spl | N44: 5 | R44: =1.3*$B44 -> 397.08175
A45: 0.75 | B45: =0.85*C45 -> 305.4475 | C45: =IF(Press<=100,60,0.0001*Press^2 + 0.0529*Press + 55) -> 359.35 | D45: 395.285 | E45: =1.3*$B45 -> 397.08175 | F45: -- | G45: 740 | H45: 740 | I45: 740 | J45: 740 | K45: -- | L45: Bckt & Cplgr | M45: Spl | N45: 5 | R45: =1.3*$B45 -> 397.08175
A46: 1.00 | B46: =0.85*C46 -> 291.975 | C46: =IF(Press<=100,85,0.0001*Press^2 + 0.025*Press + 81) -> 343.5 | D46: 377.85 | E46: 379.5675 | F46: -- | G46: 740 | H46: 740 | I46: 740 | J46: 740 | K46: -- | L46: Bckt & Cplgr | M46: Spl | N46: 8 | R46: 379.5675
A47: 1.50 | B47: 294.525 | C47: =IF(Press<=100,150,0.141*Press + 135) -> 346.5 | D47: 381.15 | E47: 382.8825 | F47: -- | G47: 740 | H47: 740 | I47: 740 | J47: 740 | K47: -- | L47: Bckt & Cplgr | M47: Spl | N47: 14 | R47: 382.8825
A48: 2.00 | B48: 486.6675 | C48: =IF(Press<=100,300,0.1937*Press + 282) -> 572.55 | D48: 629.805 | E48: 632.66775 | F48: -- | G48: 740 | H48: 740 | I48: 740 | J48: 740 | K48: -- | L48: Bckt & Cplgr | M48: Spl | N48: 14 | R48: 632.66775
A49: 3.00 | B49: 889.3125 | C49: =IF(Press<=100,500,0.3895*Press + 462) -> 1046.25 | D49: 1150.875 | E49: 1156.10625 | F49: -- | G49: 740 | H49: 740 | I49: 740 | J49: 740 | K49: -- | L49: Bckt & Cplgr | M49: Spl | N49: 18 | R49: 1156.10625
A50: 4.00 | B50: 1983.9 | C50: =IF(Press<=100,950,0.97*Press + 879) -> 2334 | D50: 2567.4 | E50: 2579.07 | F50: -- | G50: 740 | H50: 740 | I50: 740 | J50: 740 | K50: -- | L50: Bckt & Cplgr | M50: Spl | N50: 22.5 | R50: 2579.07
A51: 6.00 | B51: 4006.05 | C51: =IF(Press<=100,1550,2.25*Press + 1338) -> 4713 | D51: 5184.3 | E51: 5207.865 | F51: =1.4*C51 -> 6598.2 | G51: 740 | H51: 740 | I51: 740 | J51: 740 | K51: -- | L51: Bckt & Cplgr | M51: Spl | N51: 30 | R51: 5207.865
A52: 8.00 | B52: 10051.6325 | C52: =IF(Press<=100,3500,5.9783*Press + 2858) -> 11825.45 | D52: 13007.995 | E52: 13067.12225 | F52: -- | G52: 740 | H52: 740 | I52: 740 | J52: 740 | K52: -- | L52: Bckt & Cplgr | M52: Spl | N52: 30 | R52: 13067.12225
A53: 10.00 | B53: 15227.75 | C53: =IF(Press<=100,7000,7.78*Press + 6245) -> 17915 | D53: 19706.5 | E53: 19796.075 | F53: -- | G53: 740 | H53: 740 | I53: 740 | J53: 740 | K53: -- | L53: Bckt & Cplgr | M53: Spl | N53: 30 | R53: 19796.075
A54: -- | B54: -- | C54: -- | D54: -- | E54: -- | F54: -- | G54: -- | H54: -- | I54: -- | J54: -- | K54: -- | L54: -- | M54: -- | N54: --
A55: RPTFE agrees w/ Bulletin 5000-0600 G; Teflon = 0.85 RPTFE, CRPTFE = RPTFE | F55: RPTFE changed 2/4/06; PTFE = 0.85 x new RPTFE; CRPTFE changed from 1.0 to 1.1 x RPTFE.
A56: Yellow shaded cells contain eqn. and / or logic statement.
A58: 6000F Series Full Port | E58: _6000F | G58: Press = | H58: =Press -> 1500 | I58: psi
B59: Torque, lbf-in. | G59: Max. Seat Pressure | L59: Mounting
B60: Teflon | C60: RPTFE | D60: CRPTFE | E60: UHMW-PE | F60: PEEK | G60: T | H60: R | I60: S | J60: U | K60: P | L60: Mount | M60: Blt Ptrn | N60: Sq | R60: UHMW-PE
A61: Size Col. | B61: 2 | C61: 3 | D61: 4 | E61: 5 | F61: 6 | G61: 7 | H61: 8 | I61: 9 | J61: 10 | K61: 11 | L61: 10 | M61: 11 | N61: 12 | R61: 1.3 PTFE
A62: 0.50 | B62: =0.85*C62 -> 305.4475 | C62: =IF(Press<=100,60,0.0001*Press^2 + 0.0529*Press + 55) -> 359.35 | D62: =1.1*C62 -> 395.285 | E62: =1.3*$B62 -> 397.08175 | F62: -- | G62: 740 | H62: 740 | I62: 740 | J62: 740 | K62: -- | L62: Bckt & Cplgr | M62: Spl | N62: 5 | R62: =1.3*$B62 -> 397.08175
A63: 0.75 | B63: =0.85*C63 -> 291.975 | C63: =IF(Press<=100,85,0.0001*Press^2 + 0.025*Press + 81) -> 343.5 | D63: 377.85 | E63: =1.3*$B63 -> 379.5675 | F63: -- | G63: 740 | H63: 740 | I63: 740 | J63: 740 | K63: -- | L63: Bckt & Cplgr | M63: Spl | N63: -- | R63: =1.3*$B63 -> 379.5675
A64: 1.00 | B64: 294.525 | C64: =IF(Press<=100,150,0.141*Press + 135) -> 346.5 | D64: 381.15 | E64: 382.8825 | F64: -- | G64: 740 | H64: 740 | I64: 740 | J64: 740 | K64: -- | L64: Bckt & Cplgr | M64: Spl | N64: 8 | R64: 382.8825
A65: 1.50 | B65: 486.6675 | C65: =IF(Press<=100,300,0.1937*Press + 282) -> 572.55 | D65: 629.805 | E65: 632.66775 | F65: -- | G65: 740 | H65: 740 | I65: 740 | J65: 740 | K65: -- | L65: Bckt & Cplgr | M65: Spl | N65: 14 | R65: 632.66775
A66: 2.00 | B66: 889.3125 | C66: =IF(Press<=100,500,0.3895*Press + 462) -> 1046.25 | D66: 1150.875 | E66: 1156.10625 | F66: -- | G66: 740 | H66: 740 | I66: 740 | J66: 740 | K66: -- | L66: Bckt & Cplgr | M66: Spl | N66: 14 | R66: 1156.10625
A67: 3.00 | B67: 1983.9 | C67: =IF(Press<=100,950,0.97*Press + 879) -> 2334 | D67: 2567.4 | E67: 2579.07 | F67: -- | G67: 740 | H67: 740 | I67: 740 | J67: 740 | K67: -- | L67: Bckt & Cplgr | M67: Spl | N67: 18 | R67: 2579.07
A68: 4.00 | B68: 4006.05 | C68: =IF(Press<=100,1550,2.25*Press + 1338) -> 4713 | D68: 5184.3 | E68: 5207.865 | F68: -- | G68: 740 | H68: 740 | I68: 740 | J68: 740 | K68: -- | L68: Bckt & Cplgr | M68: Spl | N68: 22.5 | R68: 5207.865
A69: 6.00 | B69: 10051.6325 | C69: =IF(Press<=100,3500,5.9783*Press + 2858) -> 11825.45 | D69: 13007.995 | E69: 13067.12225 | F69: -- | G69: 740 | H69: 740 | I69: 740 | J69: 740 | K69: -- | L69: Bckt & Cplgr | M69: Spl | N69: 30 | R69: 13067.12225
A70: 8.00 | B70: 15227.75 | C70: =IF(Press<=100,7000,7.78*Press + 6245) -> 17915 | D70: 19706.5 | E70: 19796.075 | F70: -- | G70: 740 | H70: 740 | I70: 740 | J70: 740 | K70: -- | L70: Bckt & Cplgr | M70: Spl | N70: 30 | R70: 19796.075
A71: -- | B71: -- | C71: -- | D71: -- | E71: -- | F71: -- | G71: -- | H71: -- | I71: -- | J71: -- | K71: -- | L71: -- | M71: -- | N71: --
A72: RPTFE agrees w/ Bulletin 5000-0600 G; Teflon = 0.85 RPTFE, CRPTFE = RPTFE | D72: RPTFE changed 2/4/06; PTFE = 0.85 x new RPTFE; CRPTFE changed from 1.0 to 1.1 x RPTFE.
A73: Yellow shaded cells contain eqn. and / or logic statement.
E80: _5801R
A81: 5801R Series Reduced Port | E81: _5800R | G81: Press = | H81: =Press -> 1500 | I81: psi
B82: Torque, lbf-in. | G82: Max. Seat Pressure | L82: Mounting
B83: Teflon | C83: RPTFE | D83: CRPTFE | E83: UHMW-PE | F83: PEEK | G83: T | H83: R | I83: S | J83: U | K83: P | L83: Mount | M83: Blt Ptrn | N83: Sq | R83: UHMW-PE
A84: Size Col. | B84: 2 | C84: 3 | D84: 4 | E84: 5 | F84: 6 | G84: 7 | H84: 8 | I84: 9 | J84: 10 | K84: 11 | L84: 10 | M84: 11 | N84: 12 | R84: 1.3 PTFE
A85: 0.50 | B85: =NA() ->  | C85: =1.15*B85 ->  | D85: =1.25*B85 ->  | E85: =1.3*$B85 ->  | F85: -- | G85: NA | H85: NA | I85: NA | J85: NA | K85: -- | L85: Bckt & Cplgr | M85: -- | N85: -- | R85: =1.3*$B85 -> 
A86: 0.75 | B86: =NA() ->  | C86: =1.15*B86 ->  | E86: =1.3*$B86 ->  | F86: -- | G86: NA | H86: NA | I86: NA | J86: NA | K86: -- | L86: Bckt & Cplgr | M86: -- | N86: -- | R86: =1.3*$B86 -> 
A87: 1.00 | B87: =IF(Press<=285,80, 80+(Press-285)/455*38) -> 181.4725275 | C87: 208.6934066 | D87: 226.8406593 | E87: =1.3*$B87 -> 235.9142857 | F87: -- | G87: 285 | H87: 285 | I87: 285 | J87: 285 | K87: -- | L87: Bckt & Cplgr | M87: F05 | N87: 8 | R87: =1.3*$B87 -> 235.9142857
A88: 1.50 | B88: =IF(Press<=285,155, 155+(Press-285)/455*100) -> 422.032967 | C88: 485.3379121 | D88: 527.5412088 | E88: 548.6428571 | F88: -- | G88: 285 | H88: 285 | I88: 285 | J88: 285 | K88: -- | L88: Bckt & Cplgr | M88: F05 | N88: 10 | R88: 548.6428571
A89: 2.00 | B89: =IF(Press<=285,190, 190+(Press-285)/455*160) -> 617.2527473 | C89: 709.8406593 | D89: 771.5659341 | E89: 802.4285714 | F89: -- | G89: 285 | H89: 285 | I89: 285 | J89: 285 | K89: -- | L89: Bckt & Cplgr | M89: F07 | N89: 14 | R89: 802.4285714
A90: 2.50 | B90: =NA() ->  | F90: -- | G90: NA | H90: NA | I90: NA | J90: NA | K90: -- | L90: Bckt & Cplgr | M90: -- | N90: --
A91: 3.00 | B91: =IF(Press<=285,400,400+(Press-285)/455*425) -> 1534.89011 | C91: 1765.123626 | D91: 1918.612637 | E91: 1995.357143 | F91: -- | G91: 285 | H91: 285 | I91: 285 | J91: 285 | K91: -- | L91: Bckt & Cplgr | M91: F10 | N91: 16 | R91: 1995.357143
A92: 4.00 | B92: =IF(Press<=285,675,675+(Press-285)/455*525) -> 2076.923077 | C92: 2388.461538 | D92: 2596.153846 | E92: 2700 | F92: -- | G92: 285 | H92: 285 | I92: 285 | J92: 285 | K92: -- | L92: Bckt & Cplgr | M92: F10 | N92: 16 | R92: 2700
A93: 6.00 | B93: =IF(Press<=285,2400,2400+(Press-285)/455*1375) -> 6071.703297 | C93: 6982.458791 | D93: 7589.629121 | E93: 7893.214286 | F93: -- | G93: 285 | H93: 285 | I93: 285 | J93: 285 | K93: -- | L93: Bckt & Cplgr | M93: F10 | N93: 20 | R93: 7893.214286
A94: 8.00 | B94: =IF(Press<=285,4000,4000+(Press-285)/455*1600) -> 8272.527473 | C94: 9513.406593 | D94: 10340.65934 | E94: 10754.28571 | F94: -- | G94: 285 | H94: 285 | I94: 285 | J94: 285 | K94: -- | L94: Bckt & Cplgr | M94: F12 | N94: 26 | R94: 10754.28571
A95: 10.00 | B95: =NA() ->  | F95: -- | G95: NA | H95: NA | I95: NA | J95: NA | K95: -- | L95: Bckt & Cplgr | M95: -- | N95: --
A96: -- | B96: -- | C96: -- | D96: -- | E96: -- | F96: -- | G96: -- | H96: -- | I96: -- | J96: -- | K96: -- | L96: -- | M96: -- | N96: --
A97: PTFE originally from Virgo bulletin Floating HSV 2/2 copyright 2002; RPTFE = 1.15 PTFE, CRPTFE = 1.25 PTFE, UHMW-PE = 1.3 * PTFE
A98: Yellow shaded cells contain eqn. and / or logic statement. | E98: Torques revised 5/7/14
A99: 10" 5800R standard w/ Virgo GO & 23.6 in. D. Hwl.
E100: _5801F
A101: 5801F Series Full Port | E101: _5800F | G101: Press = | H101: =Press -> 1500 | I101: psi
B102: Torque, lbf-in. | G102: Max. Seat Pressure | L102: Mounting
B103: Teflon | C103: RPTFE | D103: CRPTFE | E103: UHMW-PE | F103: PEEK | G103: T | H103: R | I103: S | J103: U | K103: P | L103: Mount | M103: Blt Ptrn | N103: Sq | R103: UHMW-PE
A104: Size Col. | B104: 2 | C104: 3 | D104: 4 | E104: 5 | F104: 6 | G104: 7 | H104: 8 | I104: 9 | J104: 10 | K104: 11 | L104: 10 | M104: 11 | N104: 12 | R104: 1.3 PTFE
A105: 0.50 | B105: =IF(Press<=285,55, 55+(Press-285)/455*45) -> 175.1648352 | C105: =1.15*B105 -> 201.4395604 | D105: =1.25*B105 -> 218.956044 | E105: =1.3*$B105 -> 227.7142857 | F105: -- | G105: 285 | H105: 285 | I105: 285 | J105: 285 | K105: -- | L105: Bckt & Cplgr | M105: F05 | N105: 8 | R105: =1.3*$B105 -> 227.7142857
A106: 0.75 | B106: =IF(Press<=285,80, 80+(Press-285)/455*38) -> 181.4725275 | C106: =1.15*B106 -> 208.6934066 | D106: 226.8406593 | E106: =1.3*$B106 -> 235.9142857 | F106: -- | G106: 285 | H106: 285 | I106: 285 | J106: 285 | K106: -- | L106: Bckt & Cplgr | M106: F05 | N106: 8 | R106: =1.3*$B106 -> 235.9142857
A107: 1.00 | B107: =IF(Press<=285,110, 110+(Press-285)/455*65) -> 283.5714286 | C107: 326.1071429 | D107: 354.4642857 | E107: 368.6428571 | F107: -- | G107: 285 | H107: 285 | I107: 285 | J107: 285 | K107: -- | L107: Bckt & Cplgr | M107: F07 | N107: 10 | R107: 368.6428571
A108: 1.50 | B108: =IF(Press<=285,190, 190+(Press-285)/455*160) -> 617.2527473 | C108: 709.8406593 | D108: 771.5659341 | E108: 802.4285714 | F108: -- | G108: 285 | H108: 285 | I108: 285 | J108: 285 | K108: -- | L108: Bckt & Cplgr | M108: F07 | N108: 14 | R108: 802.4285714
A109: 2.00 | B109: =IF(Press<=285,270, 270+(Press-285)/455*250) -> 937.5824176 | C109: 1078.21978 | D109: 1171.978022 | E109: 1218.857143 | F109: -- | G109: 285 | H109: 285 | I109: 285 | J109: 285 | K109: -- | L109: Bckt & Cplgr | M109: F07 | N109: 14 | R109: 1218.857143
A110: 2.50 | B110: =IF(Press<=285,400,400+(Press-285)/455*425) -> 1534.89011 | C110: 1765.123626 | D110: 1918.612637 | E110: 1995.357143 | F110: -- | G110: 285 | H110: 285 | I110: 285 | J110: 285 | K110: -- | L110: Bckt & Cplgr | M110: F07 | N110: 14 | R110: 1995.357143
A111: 3.00 | B111: =IF(Press<=285,675,675+(Press-285)/455*525) -> 2076.923077 | C111: 2388.461538 | D111: 2596.153846 | E111: 2700 | F111: -- | G111: 285 | H111: 285 | I111: 285 | J111: 285 | K111: -- | L111: Bckt & Cplgr | M111: F10 | N111: 16 | R111: 2700
A112: 4.00 | B112: =IF(Press<=285,1225,1225+(Press-285)/455*775) -> 3294.505495 | C112: 3788.681319 | D112: 4118.131868 | E112: 4282.857143 | F112: -- | G112: 285 | H112: 285 | I112: 285 | J112: 285 | K112: -- | L112: Bckt & Cplgr | M112: F10 | N112: 20 | R112: 4282.857143
A113: 6.00 | B113: =IF(Press<=285,4000,4000+(Press-285)/455*1600) -> 8272.527473 | C113: 9513.406593 | D113: 10340.65934 | E113: 10754.28571 | F113: -- | G113: 285 | H113: 285 | I113: 285 | J113: 285 | K113: -- | L113: Bckt & Cplgr | M113: F12 | N113: 26 | R113: 10754.28571
A114: 8.00 | B114: =IF(Press<=285,10000,10000+(Press-285)/455*2500) -> 16675.82418 | C114: 19177.1978 | D114: 20844.78022 | E114: 21678.57143 | F114: -- | G114: 285 | H114: 285 | I114: 285 | J114: 285 | K114: -- | L114: Bckt & Cplgr | M114: F14 | N114: 32 | R114: 21678.57143
A115: -- | B115: -- | C115: -- | D115: -- | E115: -- | F115: -- | G115: -- | H115: -- | I115: -- | J115: -- | K115: -- | L115: -- | M115: -- | N115: --
A116: PTFE originally from Virgo bulletin Floating HSV 2/2 copyright 2002; RPTFE = 1.15 PTFE, CRPTFE = 1.25 PTFE, UHMW-PE = 1.3 * PTFE
A117: Yellow shaded cells contain eqn. and / or logic statement. | E117: Torques revised 5/7/14
A118: 8" 5800F standard w/ Virgo GO & 23.6 in. D. Hwl.
A121: 6800R Series Reduced Port | E121: _6800R | G121: =Press -> 1500 | H121: psi
B122: Torque, lbf-in. | G122: Max. Seat Pressure | L122: Mounting
B123: Teflon | C123: RPTFE | D123: CRPTFE | E123: UHMW-PE | F123: PEEK | G123: T | H123: R | I123: S | J123: U | K123: P | L123: Mount | M123: Blt Ptrn | N123: Sq | R123: UHMW-PE
A124: Size Col. | B124: 2 | C124: 3 | D124: 4 | E124: 5 | F124: 6 | G124: 7 | H124: 8 | I124: 9 | J124: 10 | K124: 11 | L124: 10 | M124: 11 | N124: 12 | R124: 1.3 PTFE
A125: 0.50 | B125: =NA() ->  | C125: =1.15*B125 ->  | D125: =1.25*B125 ->  | E125: =1.3*$B125 ->  | F125: -- | G125: 740 | H125: 740 | I125: 740 | J125: 740 | K125: -- | L125: Bckt & Cplgr | M125: -- | N125: -- | R125: =1.3*$B125 -> 
A126: 0.75 | B126: =IF(Press<=285,44, 71) -> 71 | C126: =1.15*B126 -> 81.65 | D126: 88.75 | E126: =1.3*$B126 -> 92.3 | F126: -- | G126: 740 | H126: 740 | I126: 740 | J126: 740 | K126: -- | L126: Bckt & Cplgr | M126: -- | N126: -- | R126: =1.3*$B126 -> 92.3
A127: 1.00 | B127: =IF(Press<=285,71, 80) -> 80 | C127: 92 | D127: 100 | E127: 104 | F127: -- | G127: 740 | H127: 740 | I127: 740 | J127: 740 | K127: -- | L127: Bckt & Cplgr | M127: -- | N127: -- | R127: 104
A128: 1.50 | B128: =IF(Press<=285,106, 142) -> 142 | C128: 163.3 | D128: 177.5 | E128: 184.6 | F128: -- | G128: 740 | H128: 740 | I128: 740 | J128: 740 | K128: -- | L128: Bckt & Cplgr | M128: -- | N128: -- | R128: 184.6
A129: 2.00 | B129: =IF(Press<=285,221, 310) -> 310 | C129: 356.5 | D129: 387.5 | E129: 403 | F129: -- | G129: 740 | H129: 740 | I129: 740 | J129: 740 | K129: -- | L129: Bckt & Cplgr | M129: -- | N129: -- | R129: 403
A130: 2.50 | B130: =IF(Press<=285,266, 390) -> 390 | C130: 448.5 | D130: 487.5 | E130: 507 | F130: -- | G130: 740 | H130: 740 | I130: 740 | J130: 740 | K130: -- | L130: Bckt & Cplgr | M130: -- | N130: -- | R130: 507
A131: 3.00 | B131: =IF(Press<=285,407, 567) -> 567 | C131: 652.05 | D131: 708.75 | E131: 737.1 | F131: -- | G131: 740 | H131: 740 | I131: 740 | J131: 740 | K131: -- | L131: Bckt & Cplgr | M131: -- | N131: -- | R131: 737.1
A132: 4.00 | B132: =IF(Press<=285,620, 974) -> 974 | C132: 1120.1 | D132: 1217.5 | E132: 1266.2 | F132: -- | G132: 740 | H132: 740 | I132: 740 | J132: 740 | K132: -- | L132: Bckt & Cplgr | M132: -- | N132: -- | R132: 1266.2
A133: 6.00 | B133: =IF(Press<=285,1283, 1593) -> 1593 | C133: 1831.95 | D133: 1991.25 | E133: 2070.9 | F133: -- | G133: 740 | H133: 740 | I133: 740 | J133: 740 | K133: -- | L133: Bckt & Cplgr | M133: -- | N133: -- | R133: 2070.9
A134: 8.00 | B134: =IF(Press<=285,3098, 4868) -> 4868 | C134: 5598.2 | D134: 6085 | E134: 6328.4 | F134: -- | G134: 740 | H134: 740 | I134: 740 | J134: 740 | K134: -- | L134: Bckt & Cplgr | M134: -- | N134: -- | R134: 6328.4
A135: 10.00 | B135: =IF(Press<=285,7080, 8851) -> 8851 | C135: 10178.65 | D135: 11063.75 | E135: 11506.3 | F135: -- | G135: 740 | H135: 740 | I135: 740 | J135: 740 | K135: -- | L135: Bckt & Cplgr | M135: -- | N135: -- | R135: 11506.3
A136: -- | B136: -- | C136: -- | D136: -- | E136: -- | F136: -- | G136: -- | H136: -- | I136: -- | J136: -- | K136: -- | L136: -- | M136: -- | N136: --
A137: PTFE originally from Virgo bulletin Floating HSV 2/2 copyright 2002; RPTFE = 1.15 PTFE, CRPTFE = 1.25 PTFE, UHMW-PE = 1.3 * PTFE | J137: Torques changed to 5800 values below 285 psi. JJH 2/4/06
A138: Yellow shaded cells contain eqn. and / or logic statement. | E138: Torques revised 5/7/14
A139: 8" & 10" 6800R standard w/ Virgo GO.
E140: _6801F
A141: 6801F Series Full Port | E141: _6800F | G141: =Press -> 1500 | H141: psi
B142: Torque, lbf-in. | G142: Max. Seat Pressure | L142: Mounting
B143: Teflon | C143: RPTFE | D143: CRPTFE | E143: UHMW-PE | F143: PEEK | G143: T | H143: R | I143: S | J143: U | K143: P | L143: Mount | M143: Blt Ptrn | N143: Sq | R143: UHMW-PE
A144: Size Col. | B144: 2 | C144: 3 | D144: 4 | E144: 5 | F144: 6 | G144: 7 | H144: 8 | I144: 9 | J144: 10 | K144: 11 | L144: 10 | M144: 11 | N144: 12 | R144: 1.3 PTFE
A145: 0.50 | B145: =IF(Press<=285,55, 55+(Press-285)/455*45) -> 175.1648352 | C145: =1.15*B145 -> 201.4395604 | D145: =1.1*C145 -> 221.5835165 | E145: =1.3*$B145 -> 227.7142857 | F145: -- | G145: 740 | H145: 740 | I145: 740 | J145: 740 | K145: -- | L145: Bckt & Cplgr | M145: F05 | N145: 8 | R145: =1.3*$B145 -> 227.7142857
A146: 0.75 | B146: =IF(Press<=285,80, 80+(Press-285)/455*38) -> 181.4725275 | C146: =1.15*B146 -> 208.6934066 | D146: =1.25*B146 -> 226.8406593 | E146: =1.3*$B146 -> 235.9142857 | F146: -- | G146: 740 | H146: 740 | I146: 740 | J146: 740 | K146: -- | L146: Bckt & Cplgr | M146: F05 | N146: 8 | R146: =1.3*$B146 -> 235.9142857
A147: 1.00 | B147: =IF(Press<=285,110, 110+(Press-285)/455*65) -> 283.5714286 | C147: 326.1071429 | D147: 354.4642857 | E147: 368.6428571 | F147: -- | G147: 740 | H147: 740 | I147: 740 | J147: 740 | K147: -- | L147: Bckt & Cplgr | M147: F07 | N147: 10 | R147: 368.6428571
A148: 1.50 | B148: =IF(Press<=285,190, 190+(Press-285)/455*160) -> 617.2527473 | C148: 709.8406593 | D148: 771.5659341 | E148: 802.4285714 | F148: -- | G148: 740 | H148: 740 | I148: 740 | J148: 740 | K148: -- | L148: Bckt & Cplgr | M148: F07 | N148: 14 | R148: 802.4285714
A149: 2.00 | B149: =IF(Press<=285,270, 270+(Press-285)/455*250) -> 937.5824176 | C149: 1078.21978 | D149: 1171.978022 | E149: 1218.857143 | F149: -- | G149: 740 | H149: 740 | I149: 740 | J149: 740 | K149: -- | L149: Bckt & Cplgr | M149: F07 | N149: 14 | R149: 1218.857143
A150: 2.50 | B150: =IF(Press<=285,400,400+(Press-285)/455*425) -> 1534.89011 | C150: 1765.123626 | D150: 1918.612637 | E150: 1995.357143 | F150: -- | G150: 740 | H150: 740 | I150: 740 | J150: 740 | K150: -- | L150: Bckt & Cplgr | M150: F07 | N150: 14 | R150: 1995.357143
A151: 3.00 | B151: =IF(Press<=285,675,675+(Press-285)/455*525) -> 2076.923077 | C151: 2388.461538 | D151: 2596.153846 | E151: 2700 | F151: -- | G151: 740 | H151: 740 | I151: 740 | J151: 740 | K151: -- | L151: Bckt & Cplgr | M151: F10 | N151: 16 | R151: 2700
A152: 4.00 | B152: =IF(Press<=285,1225,1225+(Press-285)/455*775) -> 3294.505495 | C152: 3788.681319 | D152: 4118.131868 | E152: 4282.857143 | F152: -- | G152: 740 | H152: 740 | I152: 740 | J152: 740 | K152: -- | L152: Bckt & Cplgr | M152: F10 | N152: 20 | R152: 4282.857143
A153: 6.00 | B153: =IF(Press<=285,4000,4000+(Press-285)/455*1600) -> 8272.527473 | C153: 9513.406593 | D153: 10340.65934 | E153: 10754.28571 | F153: -- | G153: 740 | H153: 740 | I153: 740 | J153: 740 | K153: -- | L153: Bckt & Cplgr | M153: F12 | N153: 26 | R153: 10754.28571
A154: 8.00 | B154: =IF(Press<=285,10000,10000+(Press-285)/455*2500) -> 16675.82418 | C154: 19177.1978 | D154: 20844.78022 | E154: 21678.57143 | F154: -- | G154: 740 | H154: 740 | I154: 740 | J154: 740 | K154: -- | L154: Bckt & Cplgr | M154: F14 | N154: 32 | R154: 21678.57143
A155: -- | B155: -- | C155: -- | D155: -- | E155: -- | F155: -- | G155: -- | H155: -- | I155: -- | J155: -- | K155: -- | L155: -- | M155: -- | N155: --
A156: PTFE originally from Virgo bulletin Floating HSV 2/2 copyright 2002; RPTFE = 1.15 PTFE, CRPTFE = 1.25 PTFE, UHMW-PE = 1.3 * PTFE | J156: Torques changed to 5800 values below 285 psi. JJH 2/4/06
A157: Yellow shaded cells contain eqn. and / or logic statement. | E157: Torques revised 5/7/14
A158: 6" & 8" 6800F standard w/ Virgo GO & 23.6 in. D. Hwl.

Sheet 8K (hidden)
A3: CF8901F Series Full (Tube) Port | E3: _CF8901F | G3: Press = | H3: =Press -> 1500 | I3: psi
B4: Torque (Break), lbf-in. | G4: Max. Seat Pressure | L4: Mounting
B5: Teflon | C5: RPTFE | D5: Delrin | E5: UHMW-PE | F5: PEEK | G5: T | H5: R | I5: D | J5: U | K5: P | L5: Mount | M5: Blt Ptrn | N5: Sq | P5: Teflon
A6: Size Col. | B6: 2 | C6: 3 | D6: 4 | E6: 5 | F6: 6 | G6: 7 | H6: 8 | I6: 9 | J6: 10 | K6: 11 | L6: 12 | M6: 13 | N6: 14 | P6: 2
A7: 0.50 | B7: 80 | C7: -- | D7: -- | E7: -- | F7: -- | G7: NA | H7: -- | I7: -- | J7: -- | K7: -- | L7: Bckt & Cplgr | M7: F03 | N7: 9 | P7: 89
A8: 0.75 | B8: 100 | C8: -- | D8: -- | E8: -- | F8: -- | G8: NA | H8: -- | I8: -- | J8: -- | K8: -- | L8: Bckt & Cplgr | M8: F03 | N8: 9 | P8: 142
A9: 1.00 | B9: 125 | C9: -- | D9: -- | E9: -- | F9: -- | G9: NA | H9: -- | I9: -- | J9: -- | K9: -- | L9: Bckt & Cplgr | M9: F04 | N9: 11 | P9: 177
A10: 1.50 | B10: 290 | C10: -- | D10: -- | E10: -- | F10: -- | G10: NA | H10: -- | I10: -- | J10: -- | K10: -- | L10: Bckt & Cplgr | M10: F05 | N10: 14 | P10: 310
A11: 2.00 | B11: 400 | C11: -- | D11: -- | E11: -- | F11: -- | G11: NA | H11: -- | I11: -- | J11: -- | K11: -- | L11: Bckt & Cplgr | M11: F05 | N11: 14 | P11: 443
A12: 2.50 | B12: 600 | C12: -- | D12: -- | E12: -- | F12: -- | G12: NA | H12: -- | I12: -- | J12: -- | K12: -- | L12: Bckt & Cplgr | M12: F07 | N12: 17 | P12: 752
A13: 3.00 | B13: 900 | F13: -- | G13: NA | H13: -- | I13: -- | J13: -- | K13: -- | L13: Bckt & Cplgr | M13: F07 | N13: 17 | P13: 974
A14: 4.00 | B14: 1300 | C14: -- | D14: -- | E14: -- | F14: -- | G14: NA | H14: -- | I14: -- | J14: -- | K14: -- | L14: Bckt & Cplgr | M14: F10 | N14: 22 | P14: 1195
A15: -- | B15: -- | C15: -- | D15: -- | E15: -- | F15: -- | G15: -- | H15: -- | I15: -- | J15: -- | K15: -- | L15: -- | M15: -- | N15: -- | P15: --
A16: Sigma 301T/B-M-SL | P16: was John Valve JV9301NC ST
A28: 4700F Series Full Port | E28: _4700F | G28: Press = | H28: =Press -> 1500 | I28: psi
A29: Size F.P. | B29: Torque (Break), lbf-in. | G29: Max. Seat Pressure | L29: Mounting
B30: Teflon | C30: RPTFE | D30: CRPTFE | E30: UHMW-PE | F30: PEEK | G30: T | H30: R | I30: S | J30: U | K30: P | L30: Mount | M30: Blt Ptrn | N30: Sq
B31: 2 | C31: 3 | D31: 4 | E31: 5 | F31: 6 | G31: 7 | H31: 8 | I31: 9 | J31: 10 | K31: 11 | L31: 12 | M31: 13 | N31: 14
A32: 0.50 | B32: =0.87*C32 -> 39.15 | C32: 45 | D32: =1.09*C32 -> 49.05 | E32: =1.3*$B32 -> 50.895 | F32: -- | G32: NA | H32: NA | I32: NA | J32: NA | K32: -- | L32: Direct | M32: F03/F04 | N32: 9
A33: 0.75 | B33: =0.87*C33 -> 49.59 | C33: 57 | D33: 62.13 | E33: =1.3*$B33 -> 64.467 | F33: -- | G33: NA | H33: NA | I33: NA | J33: NA | K33: -- | L33: Direct | M33: F03/F04 | N33: 9
A34: 1.00 | B34: 113.1 | C34: 130 | D34: 141.7 | E34: 147.03 | F34: -- | G34: NA | H34: NA | I34: NA | J34: NA | K34: -- | L34: Direct | M34: F04/F05 | N34: 11
A35: 1.25 | B35: 165.3 | C35: =IF(Press<=1500, 190, 0.12*Press + 10) -> 190 | D35: 207.1 | E35: 214.89 | F35: -- | G35: 2000 | H35: 2000 | I35: 2000 | J35: 2000 | K35: -- | L35: Direct | M35: F04/F05 | N35: 11
A36: 1.50 | B36: 304.5 | C36: =IF(Press<=1250, 250, 0.4*Press-250) -> 350 | D36: 381.5 | E36: 395.85 | F36: -- | G36: 2000 | H36: 2000 | I36: 2000 | J36: 2000 | K36: -- | L36: Direct | M36: F05/F07 | N36: 14
A37: 2.00 | B37: 689.2575 | C37: =IF(Press<=1275, 400, 1.7201*Press-1787.9) -> 792.25 | D37: 863.5525 | E37: 896.03475 | F37: -- | G37: 2000 | H37: 2000 | I37: 2000 | J37: 2000 | K37: -- | L37: Direct | M37: F05/F07 | N37: 14
A38: 2.50 | B38: 717.75 | C38: =IF(Press<=750, 600, 0.3*Press+375) -> 825 | D38: 899.25 | E38: 933.075 | F38: -- | G38: 1000 | H38: 1000 | I38: 1000 | J38: 1000 | K38: -- | L38: Direct | M38: F07/F10 | N38: 17
A39: 3.00 | B39: 1022.25 | C39: =IF(Press<=750, 800, 0.5*Press+425) -> 1175 | D39: 1280.75 | E39: 1328.925 | F39: -- | G39: 1000 | H39: 1000 | I39: 1000 | J39: 1000 | K39: -- | L39: Direct | M39: F07/F10 | N39: 17
A40: 4.00 | B40: 1653 | C40: =IF(Press<=750, 1450, 0.6*Press+1000) -> 1900 | D40: 2071 | E40: 2148.9 | F40: -- | G40: 1000 | H40: 1000 | I40: 1000 | J40: 1000 | K40: -- | L40: Direct | M40: F07/F10 | N40: 17
A41: -- | B41: -- | C41: -- | D41: -- | E41: -- | F41: -- | G41: -- | H41: -- | I41: -- | J41: -- | K41: -- | L41: -- | M41: -- | N41: --
A42: Emico EA-309
A43: Torques adjusted from Emico published values based on Emico & Richards tests.
A44: Blue shaded cells contain logic statement / torque equation.
A45: Yellow shaded cells contain eqn. and / or logic statement.
A49: 8700F Series Full Port | E49: _8700F | G49: Press = | H49: =Press -> 1500 | I49: psi
A50: Size F.P. | B50: Torque (Break), lbf-in. | G50: Max. Seat Pressure | L50: Mounting
B51: Teflon | C51: RPTFE | D51: CRPTFE | E51: UHMW-PE | F51: PEEK | G51: T | H51: R | I51: S | J51: U | K51: P | L51: Mount | M51: Blt Ptrn | N51: Sq
B52: 2 | C52: 3 | D52: 4 | E52: 5 | F52: 6 | G52: 7 | H52: 8 | I52: 9 | J52: 10 | K52: 11 | L52: 12 | M52: 13 | N52: 14
A53: 0.50 | B53: =0.87*C53 -> 39.15 | C53: 45 | D53: =1.09*C53 -> 49.05 | E53: =1.3*$B53 -> 50.895 | F53: -- | G53: NA | H53: NA | I53: NA | J53: NA | K53: -- | L53: Direct | M53: F03/F04 | N53: 9
A54: 0.75 | B54: =0.87*C54 -> 49.59 | C54: 57 | D54: 62.13 | E54: =1.3*$B54 -> 64.467 | F54: -- | G54: NA | H54: NA | I54: NA | J54: NA | K54: -- | L54: Direct | M54: F03/F04 | N54: 9
A55: 1.00 | B55: 113.1 | C55: 130 | D55: 141.7 | E55: 147.03 | F55: -- | G55: NA | H55: NA | I55: NA | J55: NA | K55: -- | L55: Direct | M55: F04/F05 | N55: 11
A56: 1.25 | B56: 165.3 | C56: 190 | D56: 207.1 | E56: 214.89 | F56: -- | G56: NA | H56: NA | I56: NA | J56: NA | K56: -- | L56: Direct | M56: F04/F05 | N56: 11
A57: 1.50 | B57: 217.5 | C57: 250 | D57: 272.5 | E57: 282.75 | F57: -- | G57: NA | H57: NA | I57: NA | J57: NA | K57: -- | L57: Direct | M57: F05/F07 | N57: 14
A58: 2.00 | B58: 348 | C58: 400 | D58: 436 | E58: 452.4 | F58: -- | G58: NA | H58: NA | I58: NA | J58: NA | K58: -- | L58: Direct | M58: F05/F07 | N58: 14
A59: 2.50 | B59: 717.75 | C59: =IF(Press<=750, 600, 0.3*Press+375) -> 825 | D59: 899.25 | E59: 933.075 | F59: -- | G59: 1000 | H59: 1000 | I59: 1000 | J59: 1000 | K59: -- | L59: Direct | M59: F07/F10 | N59: 17
A60: 3.00 | B60: 1022.25 | C60: =IF(Press<=750, 800, 0.5*Press+425) -> 1175 | D60: 1280.75 | E60: 1328.925 | F60: -- | G60: 1000 | H60: 1000 | I60: 1000 | J60: 1000 | K60: -- | L60: Direct | M60: F07/F10 | N60: 17
A61: 4.00 | B61: 1653 | C61: =IF(Press<=750, 1450, 0.6*Press+1000) -> 1900 | D61: 2071 | E61: 2148.9 | F61: -- | G61: 1000 | H61: 1000 | I61: 1000 | J61: 1000 | K61: -- | L61: Direct | M61: F07/F10 | N61: 17
A62: -- | B62: -- | C62: -- | D62: -- | E62: -- | F62: -- | G62: -- | H62: -- | I62: -- | J62: -- | K62: -- | L62: -- | M62: -- | N62: --
A63: Emico EA-307
A64: Torques adjusted from Emico published values based on Emico & Richards tests.
A65: Blue shaded cells contain logic statement / torque equation.
A66: Yellow shaded cells contain eqn. and / or logic statement.

Sheet 9K (hidden)
A3: 9000R Series Reduced Port | E3: _9000R
B4: Torque (Break), lbf-in. | F4: Max. Seat Pressure | J4: Mounting
B5: T | C5: RPTFE | D5: D | E5: P | F5: T | G5: R | H5: D | I5: P | J5: Mount | K5: Blt Ptrn | L5: Sq
A6: Size Col. | B6: 2 | C6: 3 | D6: 4 | E6: 5 | F6: 6 | G6: 7 | H6: 8 | I6: 9 | J6: 10 | K6: 11 | L6: 12
A7: 0.50 | B7: -- | C7: 60 | D7: -- | E7: -- | F7: -- | G7: NA | H7: -- | I7: -- | J7: Bckt & Cplgr | K7: Spl | L7: 5.21
A8: 0.75 | B8: -- | C8: 85 | D8: -- | E8: -- | F8: -- | G8: NA | H8: -- | I8: -- | J8: Bckt & Cplgr | K8: Spl | L8: 6.2
A9: 1.00 | B9: -- | C9: 150 | D9: -- | E9: -- | F9: -- | G9: NA | H9: -- | I9: -- | J9: Bckt & Cplgr | K9: Spl | L9: 6.2
A10: 1.25 | B10: -- | C10: 190 | D10: -- | E10: -- | F10: -- | G10: NA | H10: -- | I10: -- | J10: Bckt & Cplgr | K10: Spl | L10: 9.3
A11: 1.50 | B11: -- | C11: 220 | D11: -- | E11: -- | F11: -- | G11: NA | H11: -- | I11: -- | J11: Bckt & Cplgr | K11: Spl | L11: 9.3
A12: 2.00 | B12: -- | C12: 290 | D12: -- | E12: -- | F12: -- | G12: NA | H12: -- | I12: -- | J12: Bckt & Cplgr | K12: Spl | L12: 9.3
A13: -- | B13: -- | C13: -- | D13: -- | E13: -- | F13: -- | G13: -- | H13: -- | I13: -- | J13: -- | K13: -- | L13: --
A14: Die Erste EG-211R
A15: Torques agree w/ Bulletin 9000-0999 G.
A18: 9000F Series Full Port | E18: _9000F
B19: Torque (Break), lbf-in. | F19: Max. Seat Pressure | J19: Mounting
B20: T | C20: RPTFE | D20: D | E20: P | F20: T | G20: R | H20: D | I20: P | J20: Mount | K20: Blt Ptrn | L20: Sq
A21: Size Col. | B21: 2 | C21: 3 | D21: 4 | E21: 5 | F21: 6 | G21: 7 | H21: 8 | I21: 9 | J21: 10 | K21: 11 | L21: 12
A22: 0.25 | B22: -- | C22: 50 | D22: -- | E22: -- | F22: -- | G22: NA | H22: -- | I22: -- | J22: Bckt & Cplgr | K22: Spl | L22: 4
A23: 0.38 | B23: -- | C23: 50 | F23: -- | G23: NA | H23: -- | I23: -- | J23: Bckt & Cplgr | K23: Spl | L23: 5
A24: 0.50 | B24: -- | C24: 85 | D24: -- | E24: -- | F24: -- | G24: NA | H24: -- | I24: -- | J24: Bckt & Cplgr | K24: Spl | L24: 5
A25: 0.75 | B25: -- | C25: 140 | D25: -- | E25: -- | F25: -- | G25: NA | H25: -- | I25: -- | J25: Bckt & Cplgr | K25: Spl | L25: 5
A26: 1.00 | B26: -- | C26: 180 | D26: -- | E26: -- | F26: -- | G26: NA | H26: -- | I26: -- | J26: Bckt & Cplgr | K26: Spl | L26: 8
A27: 1.25 | B27: -- | C27: 235 | D27: -- | E27: -- | F27: -- | G27: NA | H27: -- | I27: -- | J27: Bckt & Cplgr | K27: Spl | L27: 8
A28: 1.50 | B28: -- | C28: 300 | D28: -- | E28: -- | F28: -- | G28: NA | H28: -- | I28: -- | J28: Bckt & Cplgr | K28: Spl | L28: 10
A29: 2.00 | B29: -- | C29: 330 | D29: -- | E29: -- | F29: -- | G29: NA | H29: -- | I29: -- | J29: Bckt & Cplgr | K29: Spl | L29: 10
A30: 2.50 | B30: -- | C30: 850 | D30: -- | E30: -- | F30: -- | G30: NA | H30: -- | I30: -- | J30: Bckt & Cplgr | K30: Spl | L30: 10
A31: 3.00 | B31: -- | C31: 1200 | D31: -- | E31: -- | F31: -- | G31: NA | H31: -- | I31: -- | J31: Bckt & Cplgr | K31: Spl | L31: 12
A32: -- | B32: -- | C32: -- | D32: -- | E32: -- | F32: -- | G32: -- | H32: -- | I32: -- | J32: -- | K32: -- | L32: --
A33: Die Erste EG-211F
A34: Torques agree w/ Bulletin 9000-0999 G.
A37: DM9000 Series Full Port | E37: _DM9000F
B38: Torque (Break), lbf-in. | F38: Max. Seat Pressure | J38: Mounting
B39: Teflon | C39: RPTFE | D39: Delrin | E39: PEEK | F39: T | G39: R | H39: D | I39: P | J39: Mount | K39: Blt Ptrn | L39: Sq | Q39: Old Marwin Torq. | R39: New Valbia Torq
A40: Size Col. | B40: 2 | C40: 3 | D40: 4 | E40: 5 | F40: 6 | G40: 7 | H40: 8 | I40: 9 | J40: 10 | K40: 11 | L40: 12 | N40: _DM9000F
A41: 0.25 | B41: 38 | C41: -- | D41: -- | E41: -- | F41: NA | G41: -- | H41: -- | I41: -- | J41: Direct | K41: F03 | L41: 9 | N41: 0.25 | O41: 38 | Q41: 38 | R41: 2003-07-22
A42: 0.38 | B42: 38 | C42: -- | D42: -- | E42: -- | F42: NA | G42: -- | H42: -- | I42: -- | J42: Direct | K42: F03 | L42: 9 | N42: 0.38 | O42: 38 | Q42: 38
A43: 0.50 | B43: 38 | C43: -- | D43: -- | E43: -- | F43: NA | G43: -- | H43: -- | I43: -- | J43: Direct | K43: F03 | L43: 9 | N43: 0.50 | O43: 38 | Q43: 38 | R43: 53
A44: 0.75 | B44: 45 | C44: -- | D44: -- | E44: -- | F44: NA | G44: -- | H44: -- | I44: -- | J44: Direct | K44: F03 | L44: 9 | N44: 0.75 | O44: 45 | Q44: 45 | R44: 53
A45: 1.00 | B45: 53 | C45: -- | D45: -- | E45: -- | F45: NA | G45: -- | H45: -- | I45: -- | J45: Direct | K45: F03 | L45: 9 | N45: 1.00 | O45: 53 | Q45: 53 | R45: 53
A46: 1.25 | B46: 66 | C46: -- | D46: -- | E46: -- | F46: NA | G46: -- | H46: -- | I46: -- | J46: Direct | K46: F03 | L46: 9 | N46: 1.25 | O46: 66 | Q46: 66 | R46: 53
A47: 1.50 | B47: 90 | C47: -- | D47: -- | E47: -- | F47: NA | G47: -- | H47: -- | I47: -- | J47: Direct | K47: F05 | L47: 11 | N47: 1.50 | O47: 90 | Q47: 90 | R47: 150
A48: 2.00 | B48: 150 | C48: -- | D48: -- | E48: -- | F48: NA | G48: -- | H48: -- | I48: -- | J48: Direct | K48: F05 | L48: 11 | N48: 2.00 | O48: 150 | Q48: 120 | R48: 150
A49: -- | B49: -- | C49: -- | D49: -- | E49: -- | F49: -- | G49: -- | H49: -- | I49: -- | J49: -- | K49: -- | L49: --
A50: -- | B50: -- | C50: -- | D50: -- | E50: -- | F50: -- | G50: -- | H50: -- | I50: -- | J50: -- | K50: -- | L50: --
A51: -- | B51: -- | C51: -- | D51: -- | E51: -- | F51: -- | G51: -- | H51: -- | I51: -- | J51: -- | K51: -- | L51: --
A52: Valbia
A53: Old Marwin torques agree w/ Bulletin DM9000-1100 G.
A54: New torques as follows 8/1/03: 0.5 - 1" -- old torq. Used; 1.25" new torq used; 1.5" old torq. Used; 2" new torq used. Ref. Valbia e-mail dated 7/22/03 for new torques.
A57: 9700 Series 2-Pc Seal Welded | E57: _9700
B58: Torque (Break), lbf-in. | F58: Max. Seat Pressure | J58: Mounting
B59: Teflon | C59: RPTFE | D59: Delrin | E59: PEEK | F59: T | G59: R | H59: D | I59: P | J59: Mount | K59: Blt Ptrn | L59: Sq
A60: Size Col. | B60: 2 | C60: 3 | D60: 4 | E60: 5 | F60: 6 | G60: 7 | H60: 8 | I60: 9 | J60: 10 | K60: 11 | L60: 12
A61: 0.25F | C61: -- | D61: 89 | E61: -- | F61: -- | G61: -- | H61: NA | I61: -- | J61: Bckt & Cplgr | K61: F03 | L61: 6
A62: 0.38F | C62: -- | D62: 89 | E62: -- | F62: -- | G62: -- | H62: NA | I62: -- | J62: Bckt & Cplgr | K62: F03 | L62: 6
A63: 0.50F | C63: -- | D63: 89 | E63: -- | F63: -- | G63: -- | H63: NA | I63: -- | J63: Bckt & Cplgr | K63: F03 | L63: 6
A64: 0.75F | C64: -- | D64: 117 | E64: -- | F64: -- | G64: -- | H64: NA | I64: -- | J64: Bckt & Cplgr | K64: F04 | L64: 8
A65: 1.00F | C65: -- | D65: 336 | E65: -- | F65: -- | G65: -- | H65: NA | I65: -- | J65: Bckt & Cplgr | K65: F05 | L65: 8
A66: 1.25F | C66: -- | D66: 797 | E66: -- | F66: -- | G66: -- | H66: NA | I66: -- | J66: Bckt & Cplgr | K66: F07 | L66: 12
A67: 1.50F | C67: -- | D67: 850 | E67: -- | F67: -- | G67: -- | H67: NA | I67: -- | J67: Bckt & Cplgr | K67: F07 | L67: 12
A68: 2.00R | C68: -- | D68: 850 | E68: -- | F68: -- | G68: -- | H68: NA | I68: -- | J68: Bckt & Cplgr | K68: F07 | L68: 12
A69: -- | B69: -- | C69: -- | D69: -- | E69: -- | F69: -- | G69: -- | H69: -- | I69: -- | J69: -- | K69: -- | L69: --
A70: -- | B70: -- | C70: -- | D70: -- | E70: -- | F70: -- | G70: -- | H70: -- | I70: -- | J70: -- | K70: -- | L70: --
A71: -- | B71: -- | C71: -- | D71: -- | E71: -- | F71: -- | G71: -- | H71: -- | I71: -- | J71: -- | K71: -- | L71: --
A72: Die Erste FSB-26

Sheet 3W-2000 (hidden)
A3: 3L/T-2100 Series Full Port Thd End Float Ball (Bolted End Pc) | G3: _3L_or_3T_2100F_A | J3: Press = | K3: =Press -> 1500 | L3: psi
B4: Torque (Break), lbf-in. | F4: Max. Seat Pressure | J4: Mounting | N4: 3W-2P/Q33
B5: Teflon | C5: RPTFE | D5: CRPTFE | E5: UHMW-PE | F5: T | G5: R | H5: S | I5: U | J5: Mount | K5: Blt Ptrn | L5: Sq | N5: RPTFE
A6: Size Col. | B6: 2 | C6: 3 | D6: 4 | E6: 5 | F6: 6 | G6: 7 | H6: 8 | I6: 9 | J6: 10 | K6: 11 | L6: 12 | N6: 3
A7: 0.38 | B7: -- | C7: 95 | D7: =1.15*$C7 -> 109.25 | E7: =1.15*$C7 -> 109.25 | F7: -- | G7: NA | H7: NA | I7: NA | J7: -- | K7: -- | L7: -- | N7: 95
A8: 0.50 | B8: -- | C8: =IF(Press<=285, 147,206) -> 206 | D8: =1.15*$C8 -> 236.9 | E8: 236.9 | F8: -- | G8: 740 | H8: NA | I8: NA | J8: Direct | K8: F04 | L8: 9 | N8: 150
A9: 0.75 | B9: -- | C9: =IF(Press<=285, 177,249) -> 249 | D9: 286.35 | E9: 286.35 | F9: -- | G9: 740 | H9: NA | I9: NA | J9: Direct | K9: F05 | L9: 11 | N9: 220
A10: 1.00 | B10: -- | C10: =IF(Press<=285, 288,394) -> 394 | D10: 453.1 | E10: 453.1 | F10: -- | G10: 740 | H10: NA | I10: NA | J10: Direct | K10: F05 | L10: 11 | N10: 354
A11: 1.25 | B11: -- | C11: =IF(Press<=285, 398,557) -> 557 | D11: 640.55 | E11: 640.55 | F11: -- | G11: 740 | H11: NA | I11: NA | J11: Direct | K11: F05/F07 | L11: 14 | N11: 664
A12: 1.50 | B12: -- | C12: =IF(Press<=285, 636,890) -> 890 | D12: 1023.5 | E12: 1023.5 | F12: -- | G12: 740 | H12: NA | I12: NA | J12: Direct | K12: F05/F07 | L12: 14 | N12: 858
A13: 2.00 | B13: -- | C13: =IF(Press<=285, 826,1157) -> 1157 | D13: =1.15*$C13 -> 1330.55 | E13: 1330.55 | F13: -- | G13: 740 | H13: NA | I13: NA | J13: Direct | K13: F07/F10 | L13: 17 | N13: 1717
A14: 2.50 | B14: -- | C14: =IF(Press<=285, 1550,2170) -> 2170 | D14: 2495.5 | E14: 2495.5 | F14: -- | G14: 600 | H14: NA | I14: NA | J14: Direct | K14: F07/F10 | L14: 17 | N14: 2434
A15: 3.00 | B15: -- | C15: =IF(Press<=285, 1698,2376) -> 2376 | D15: 2732.4 | E15: 2732.4 | F15: -- | G15: 600 | H15: NA | I15: NA | J15: Direct | K15: F07/F10 | L15: 17 | N15: 2726
A16: 4.00 | B16: -- | C16: =IF(Press<=285, 2730,3823) -> 3823 | D16: 4396.45 | E16: 4396.45 | F16: -- | G16: 600 | H16: NA | I16: NA | J16: Direct | K16: F12 | L16: 27 | N16: 2921
A17: 6.00 | B17: -- | C17: =IF(Press<=285, 147,206) -> 206 | D17: 236.9 | E17: 236.9 | F17: -- | G17: NA | H17: NA | I17: NA | J17: Bckt & Cplgr | K17: F14 | L17: 36 | N17: 8100
A18: -- | B18: -- | C18: -- | D18: -- | E18: -- | F18: -- | G18: -- | H18: -- | I18: -- | J18: -- | K18: -- | L18: -- | N18: Taiwan Valve 30M
A19: DieErste Series M4 (Threaded). Torques from Die Erste 4/30/13. | N19: Agrees w/ Taiwan Valve TI-9907-1.0
A23: 3L/T-2100 Series Full Port FE150 Float Ball (Bolted End Pc) | G23: _3L or 3T_2100F_F | J23: Press = | K23: =Press -> 1500 | L23: psi
B24: Torque (Break), lbf-in. | F24: Max. Seat Pressure | J24: Mounting
B25: Teflon | C25: RPTFE | D25: CRPTFE | E25: UHMW-PE | F25: T | G25: R | H25: S | I25: U | J25: Mount | K25: Blt Ptrn | L25: Sq
A26: Size Col. | B26: 2 | C26: 3 | D26: 4 | E26: 5 | F26: 6 | G26: 7 | H26: 8 | I26: 9 | J26: 10 | K26: 11 | L26: 12
A27: 0.50 | B27: -- | C27: 147 | D27: =1.15*$C27 -> 169.05 | E27: 169.05 | F27: -- | G27: -- | H27: NA | I27: NA | J27: Direct | K27: F04 | L27: 9
A28: 0.75 | B28: -- | C28: 177 | D28: 203.55 | E28: 203.55 | F28: -- | G28: -- | H28: NA | I28: NA | J28: Direct | K28: F05 | L28: 11
A29: 1.00 | B29: -- | C29: 288 | D29: 331.2 | E29: 331.2 | F29: -- | G29: -- | H29: NA | I29: NA | J29: Direct | K29: F05 | L29: 11
A30: 1.25 | B30: -- | C30: 398 | D30: 457.7 | E30: 457.7 | F30: -- | G30: -- | H30: NA | I30: NA | J30: Direct | K30: F05/F07 | L30: 14
A31: 1.50 | B31: -- | C31: 636 | D31: 731.4 | E31: 731.4 | F31: -- | G31: -- | H31: NA | I31: NA | J31: Direct | K31: F05/F07 | L31: 14
A32: 2.00 | B32: -- | C32: 826 | D32: 949.9 | E32: 949.9 | F32: -- | G32: -- | H32: NA | I32: NA | J32: Direct | K32: F07/F10 | L32: 17
A33: 2.50 | B33: -- | C33: 1550 | D33: 1782.5 | E33: 1782.5 | F33: -- | G33: -- | H33: NA | I33: NA | J33: Direct | K33: F07/F10 | L33: 17
A34: 3.00 | B34: -- | C34: 1698 | D34: 1952.7 | E34: 1952.7 | F34: -- | G34: -- | H34: NA | I34: NA | J34: Direct | K34: F07/F10 | L34: 17
A35: 4.00 | B35: -- | C35: 2730 | D35: 3139.5 | E35: 3139.5 | F35: -- | G35: -- | H35: NA | I35: NA | J35: Direct | K35: F12 | L35: 27
A36: 6.00 | B36: -- | C36: 5603 | D36: 6443.45 | E36: 6443.45 | F36: -- | G36: -- | H36: NA | I36: NA | J36: Bckt & Cplgr | K36: F14 | L36: 36
A37: -- | B37: -- | C37: -- | D37: -- | E37: -- | F37: -- | G37: -- | H37: -- | I37: -- | J37: -- | K37: -- | L37: --
A38: DieErste Series M4F (Flanged). Torques from Die Erste 4/30/13.

Sheet 3T31-3L32 (hidden)
A3: 3T3101 or 3L3201 Series Full Port | D3: _3T3101F | E3: _3L3201F
B4: Torque (Break), lbf-in. | F4: Max. Seat Pressure | J4: Mounting
B5: Teflon | C5: RPTFE | D5: Delrin | E5: PEEK | F5: T | G5: R | H5: D | I5: P | J5: Mount | K5: Blt Ptrn | L5: Sq | O5: New Dsgn
A6: Size Col. | B6: 2 | C6: 3 | D6: 4 | E6: 5 | F6: 6 | G6: 7 | H6: 8 | I6: 9 | J6: 10 | K6: 11 | L6: 12 | O6: TFE*
A7: 0.25 | B7: 18 | C7: -- | D7: -- | E7: -- | F7: NA | G7: -- | H7: -- | I7: -- | J7: Direct | K7: F03 | L7: 9 | O7: 71
A8: 0.38 | B8: 18 | C8: -- | D8: -- | E8: -- | F8: NA | G8: -- | H8: -- | I8: -- | J8: Direct | K8: F03 | L8: 9 | O8: 71
A9: 0.50 | B9: 45 | C9: -- | D9: -- | E9: -- | F9: NA | G9: -- | H9: -- | I9: -- | J9: Direct | K9: F03 | L9: 9 | O9: 71
A10: 0.75 | B10: 89 | C10: -- | D10: -- | E10: -- | F10: NA | G10: -- | H10: -- | I10: -- | J10: Direct | K10: F03 | L10: 9 | O10: 71
A11: 1.00 | B11: 133 | C11: -- | D11: -- | E11: -- | F11: NA | G11: -- | H11: -- | I11: -- | J11: Direct | K11: F05 | L11: 9 | O11: 71
A12: 1.25 | B12: 178 | C12: -- | D12: -- | E12: -- | F12: NA | G12: -- | H12: -- | I12: -- | J12: Direct | K12: F05 | L12: 9 | O12: 160
A13: 1.50 | B13: 239 | C13: -- | D13: -- | E13: -- | F13: NA | G13: -- | H13: -- | I13: -- | J13: Direct | K13: F05 | L13: 11 | O13: 160
A14: 2.00 | B14: 284 | C14: -- | D14: -- | E14: -- | F14: NA | G14: -- | H14: -- | I14: -- | J14: Direct | K14: F07 | L14: 11 | O14: 160
A15: 3.00 | B15: 974 | C15: -- | D15: -- | E15: -- | F15: NA | G15: -- | H15: -- | I15: -- | J15: None | K15: -- | L15: --
A16: -- | B16: -- | C16: -- | D16: -- | E16: -- | F16: -- | G16: -- | H16: -- | I16: -- | J16: -- | K16: -- | L16: --
A17: 1/4"-2" 3T3101/3L3201 (Valbia 3T3210 / 3L3110) | O17: *New desing (O-ring loaded seats, O-ring stem
A18: 3" 3T-3100/3L-3200 (Valbia 3210 / 3110); torques from e-mail, C. Cancarini (Valbia) to C. Page, 10/31/00. | O18: seal, ISO pad). Maximum torque (safety factor
O19: included) per G. Crescini 9/11/06 e-mail to C.
O20: Bechtel

Sheet 3T33-3L34 (hidden)
A3: 3T3300 and 3L3400 Series Reduced Port | F3: _3T3300R _3L3400R
B4: Torque (Break), lbf-in. | F4: Max. Seat Pressure | J4: Mounting
B5: Teflon | C5: RPTFE | D5: Delrin | E5: PEEK | F5: T | G5: R | H5: D | I5: P | J5: Mount | K5: Blt Ptrn | L5: Sq
A6: Size Col. | B6: 2 | C6: 3 | D6: 4 | E6: 5 | F6: 6 | G6: 7 | H6: 8 | I6: 9 | J6: 10 | K6: 11 | L6: 12
A7: 0.25 | B7: -- | C7: 53.1 | D7: -- | E7: -- | F7: -- | G7: NA | H7: -- | I7: -- | J7: Direct | K7: F03 | L7: 9
A8: 0.38 | B8: -- | C8: 53.1 | D8: -- | E8: -- | F8: -- | G8: NA | H8: -- | I8: -- | J8: Direct | K8: F03 | L8: 9
A9: 0.50 | B9: -- | C9: 53.1 | D9: -- | E9: -- | F9: -- | G9: NA | H9: -- | I9: -- | J9: Direct | K9: F03 | L9: 9
A10: 0.75 | B10: -- | C10: 53.1 | D10: -- | E10: -- | F10: -- | G10: NA | H10: -- | I10: -- | J10: Direct | K10: F03 | L10: 9
A11: 1.00 | B11: -- | C11: 150.5 | D11: -- | E11: -- | F11: -- | G11: NA | H11: -- | I11: -- | J11: Direct | K11: F05 | L11: 11
A12: 1.25 | B12: -- | C12: 150.5 | D12: -- | E12: -- | F12: -- | G12: NA | H12: -- | I12: -- | J12: Direct | K12: F05 | L12: 11
A13: 1.50 | B13: -- | C13: 150.5 | D13: -- | E13: -- | F13: -- | G13: NA | H13: -- | I13: -- | J13: Direct | K13: F05 | L13: 11
A14: 2.00 | B14: -- | C14: 274.4 | D14: -- | E14: -- | F14: -- | G14: NA | H14: -- | I14: -- | J14: Direct | K14: F07 | L14: 14
A15: -- | B15: -- | C15: -- | D15: -- | E15: -- | F15: -- | G15: -- | H15: -- | I15: -- | J15: -- | K15: -- | L15: --
A16: -- | B16: -- | C16: -- | D16: -- | E16: -- | F16: -- | G16: -- | H16: -- | I16: -- | J16: -- | K16: -- | L16: --
A17: No Torques in Bulletin 3300-0900 G
A18: Valbia 355N / 365N. Torques from Istruzione I-010.3/13 attached to e-mail, C. Cancarini (Valbia) to C. Page, 10/31/00.

Sheet 3T37-3L38 (hidden)
A3: 3T3700 and 3L3800 Series Standard (Reduced) Port | F3: _3T3700R _3L3800R
B4: Torque (Break), lbf-in. | F4: Max. Seat Pressure | J4: Mounting
B5: Teflon | C5: RPTFE | D5: Delrin | E5: PEEK | F5: T | G5: R | H5: D | I5: P | J5: Mount | K5: Blt Ptrn | L5: Sq
A6: Size Col. | B6: 2 | C6: 3 | D6: 4 | E6: 5 | F6: 6 | G6: 7 | H6: 8 | I6: 9 | J6: 10 | K6: 11 | L6: 12
A7: 0.25 | B7: 93 | C7: 93 | D7: -- | E7: -- | F7: NA | G7: NA | H7: -- | I7: -- | J7: Bckt & Cplgr | K7: F04 | L7: 9
A8: 0.38 | B8: 93 | C8: 93 | D8: -- | E8: -- | F8: NA | G8: NA | H8: -- | I8: -- | J8: Bckt & Cplgr | K8: F04 | L8: 9
A9: 0.50 | B9: 100 | C9: 100 | D9: -- | E9: -- | F9: NA | G9: NA | H9: -- | I9: -- | J9: Bckt & Cplgr | K9: F04 | L9: 9
A10: 0.75 | B10: 150 | C10: 150 | D10: -- | E10: -- | F10: NA | G10: NA | H10: -- | I10: -- | J10: Bckt & Cplgr | K10: F05 | L10: 11
A11: 1.00 | B11: 300 | C11: 300 | D11: -- | E11: -- | F11: NA | G11: NA | H11: -- | I11: -- | J11: Bckt & Cplgr | K11: F05 | L11: 11
A12: 1.25 | B12: 385 | C12: 385 | D12: -- | E12: -- | F12: NA | G12: NA | H12: -- | I12: -- | J12: Bckt & Cplgr | K12: F05 | L12: 11
A13: 1.50 | B13: 450 | C13: 450 | D13: -- | E13: -- | F13: NA | G13: NA | H13: -- | I13: -- | J13: Bckt & Cplgr | K13: F07 | L13: 11
A14: 2.00 | B14: 580 | C14: 580 | D14: -- | E14: -- | F14: NA | G14: NA | H14: -- | I14: -- | J14: Bckt & Cplgr | K14: F07 | L14: 14
A15: -- | B15: -- | C15: -- | D15: -- | E15: -- | F15: -- | G15: -- | H15: -- | I15: -- | J15: -- | K15: -- | L15: --
A16: Die Erste EGTS-45
A17: Agrees w/ Bulletin w/ 3L3800-0100 G
A18: 0.25 & 0.38 RPTFE Torque 93 was 100-Changed so UT-1-SR-80 FC selected w/ 1.2 SF based on customer experience. JJH 11/4/04
